Workbook

Sheet GC
A1: GC
C8: =Model_Name -> Submission Capital Expenditure Model
C10: =+A48 -> Data Version | F10: =+_LU_DataVersion -> Proposal - V17.2
C11: Structural Version | F11: =+_LU_Version -> Version 2.1 July 2014
C13: Refer to the | D13: Guide | E13: below for further details
P19: Information Classification: | Q19: =+D45 -> Highly Confidential
A36: Model Guide | C36: (Refer Below)
A37: =Model_Name -> Submission Capital Expenditure Model
A38: ="Version " & _LU_Version -> Version Version 2.1 July 2014
A40: Overview
A41: Organisation name | D41: SA Power Networks
A42: Workbook name | D42: Submission Capital Expenditure Model
A43: SAPN ID | L43: ID as provided by the Project Office, for models in the Quality Register.
A44: Workbook purpose | D44: Submission Capital Expenditure Buildup
A45: Information Classification | D45: Highly Confidential | L45: Note the confidentiality of this document.
A46: File name | D46: =MID(CELL("filename"),SEARCH("[",CELL("filename"))+1, SEARCH("]",CELL("filename"))-SEARCH("[",CELL("filename"))-1) -> Attachment_Q.7_SAPN_Revised ACS opex submission expenditure model.xlsm
A47: File Location | D47: =MID(CELL("filename"),1, SEARCH("[",CELL("filename"))-1) -> R:\OfficeCEO\MgrStrategicBusDev\Reset 2015\__Revised Proposal\4 Revised proposal\Response\
A48: Data Version | D48: Proposal - V17.2 | L48: Input description of the data in this version of the model.
A49: Model User | L49: Input name of the end user of the model - as the reference for assistance concerning the data and outputs.
A50: Structural Version | D50: Version 2.1 July 2014 | L50: Input Structural Version of this model (as distinct from the data version).
A51: Model Developer | D51: David Craig | L51: Input name of the Developer of the model - as the reference for assistance for model questions and changes.
A52: Modifications | D52: Refer to Version Notes | J52: Hyperlink: | K52: VersionNotes
A53: Diagram of data flow | D53: Refer "Submission Expenditure Model Development.docx"

Sheet C1
A1: C | B1: Table of Contents | J1: =+[0]!Model_Name -> Submission Capital Expenditure Model
B3: Section | C3: Sheet Title | E3: Sheet Description
C4: Contents
C5: C-1 | E5: Contents Page (this page)
B7: =+Gen_Ass_SSC!D10 -> 1 | C7: =+Gen_Ass_SSC!C9 -> Baseline - General Assumptions
C8: I-1 | E8: =+'I-1'!B1 -> CPI Inputs
C9: I-2 | E9: =+'I-2'!A1 -> I-2
B11: 2 | C11: =+Data_SSC!C9 -> Expenditure Data Inputs
C12: I-4 | E12: =+'I-4 History'!C1 -> Capital Expenditure History - Input sheet
C13: I-5 | E13: =+'I-5 Future'!C1 -> Capital Expenditure - Baseline Submission Input sheet
B15: 3 | C15: =+Scen_Ass_SSC!C9 -> Specific Assumptions
C16: I-6 | E16: =+'I-6'!A1 -> I-6
B18: 4 | C18: =+Workings_SC!C9 -> Detailed Workings for each Category
C19: C-1 | E19: Capital Expenditure
C20: to C-28
B22: 5 | C22: Reports
C23: R-1 | E23: =+'R1'!B1 -> Capital Expenditure Detail
C24: R-2 | E24: =+'R2'!B1 -> Capital Expenditure Detail - Before Escalations
C25: R-3 | E25: =+'R3'!A1 -> Capital Expenditure
C26: R-4 | E26: =+'R4'!B1 -> Capital Expenditure Variations
C27: R-5 | E27: =+'R5'!B1 -> Capital Expenditure Escalations
C28: R-6 | E28: =+'R6'!B1 -> Impact of Capital Expenditure Escalations
C29: R-7 | E29: =+'R7'!B1 -> Capital Expenditure Escalations & Variations Summary
C30: R-9 | E30: =+'R8'!B1 -> Capital Expenditure Trend Analysis
B32: 5.1 | C32: =+'Reports $2015_SC'!C9 -> Reports $2015
C33: =+'R3 ($2015)'!A1 -> R3 ($2015) | E33: =+'R3 ($2015)'!E1 -> Capex by Asset Type
C34: =+'R6 ($2015)'!A1 -> R6 ($2015) | E34: =+'R6 ($2015)'!B1 -> Impact of Capital Expenditure Escalations
C35: =+'R8 ($2015)'!A1 -> R8 ($2015) | E35: =+'R8 ($2015)'!B1 -> Capital Expenditure Trend Analysis
B37: 6 | C37: Exports
C38: E-1 | E38: =+'E1'!B1 -> Data for Export to RIN
C39: E-2 | E39: =+'E2'!B1 -> Copy of RIN Sheet 2.2.1, but with Regulatory Proposal categorisations (Table 2)
B41: 7 | C41: =+Reference!C9 -> Reference
C42: Ref-1 | E42: General Lookup References used by this model
C43: Ref-2 | E43: Description of Names used in this model
C44: =+HelpText!A1 -> HelpText | E44: =+scrHelpMain -> Help Text
B46: 8 | C46: Cross-checks
C47: Ck1 | E47: Cross-checks

Sheet Gen_Ass_SSC
A1: SSC
C9: Baseline - General Assumptions
C10: Section | D10: 1
C11: Submission Capital Expenditure Model
C17: Sub-Section Cover Notes:
C18: Contains General Baseline Assumptions.

Sheet I-1
A1: =RIGHT(CELL("filename",A1),LEN(CELL("filename",A1))-FIND("]",CELL("filename",A1))) -> I-1 | B1: CPI Inputs
A4: Actual & Forecast CPI Indices
A5: Year Ended: | E5: 2010 | F5: 2011 | G5: 2012 | H5: 2013 | I5: 2014 | J5: 2015 | K5: 2016 | L5: 2017 | M5: 2018 | N5: 2019 | O5: 2020 | P5: 2021
A7: Assumed Future Inflation (%p.a.) | I7: 0.02 | J7: 0.02 | K7: 0.0255 | L7: 0.0255 | M7: 0.0255 | N7: 0.0255 | O7: 0.0255 | P7: 0.0255
A8: Used where actual is not known
A10: June to June CPI | E10: =IF(E11>0,"Actual", "Forecast") -> Actual | F10: Actual | G10: Actual | H10: =IF(H11>0,"Actual", "Forecast") -> Actual | I10: =IF(I11>0,"Actual", "Forecast") -> Actual | J10: Forecast | K10: Forecast | L10: Forecast | M10: Forecast | N10: Forecast | O10: Forecast | P10: Forecast | Q10: Escalation to June based on CPI index to preceeding March (ie 3 month lag)
A11: Actual CPI Index @ March** | E11: 95.2 | F11: 98.3 | G11: 99.9 | H11: 102.4 | I11: 105.4 | Q11: Input March CPI index, where available, otherwise leave blank
A12: Actual Annual CPI Change | F12: =IF(F11>0,+F11/E11-1,+F$7) -> 0.03256302521 | G12: 0.01627670397 | H12: 0.02502502503 | I12: 0.029296875 | J12: 0.02 | K12: 0.0255 | L12: 0.0255 | M12: 0.0255 | N12: 0.0255 | O12: 0.0255 | P12: 0.0255
A13: Actual & forecast CPI Index | E13: =+E11 -> 95.2 | F13: 98.3 | G13: =+G11 -> 99.9 | H13: =IF(H11>0,H11,G13*(1+H$7)) -> 102.4 | I13: 105.4 | J13: 107.508 | K13: 110.249454 | L13: 113.0608151 | M13: 115.9438659 | N13: 118.9004344 | O13: 121.9323955 | P13: 125.0416716
A15: December to December CPI | E15: =IF(E16>0,"Actual", "Forecast") -> Actual | F15: Actual | G15: Actual | H15: =IF(H16>0,"Actual", "Forecast") -> Actual | I15: =IF(I16>0,"Actual", "Forecast") -> Forecast | J15: Forecast | K15: Forecast | L15: Forecast | M15: Forecast | N15: Forecast | O15: Forecast | P15: Forecast | Q15: Escalation to December based on CPI index to preceeding September (ie 3 month lag)
A16: Actual CPI Index @ September** | E16: 96.5 | F16: 99.8 | G16: 101.8 | H16: 104 | Q16: Input December CPI index, where available, otherwise leave blank
A17: Actual Annual CPI Change | F17: =IF(F16>0,+F16/E16-1,+F$7) -> 0.03419689119 | G17: 0.02004008016 | H17: 0.02161100196 | I17: 0.02 | J17: 0.02 | K17: 0.0255 | L17: 0.0255 | M17: 0.0255 | N17: 0.0255 | O17: 0.0255 | P17: 0.0255
A18: Actual & forecast CPI Index | E18: =+E16 -> 96.5 | F18: 99.8 | G18: =IF(G16>0,G16,F18*(1+G$7)) -> 101.8 | H18: =IF(H16>0,H16,G18*(1+H$7)) -> 104 | I18: =IF(I16>0,I16,H18*(1+I$7)) -> 106.08
A19: CPI to December, based on CPI index to preceeding September (ie 3 month lag)
E22: 2010-06-30 | F22: =+E22+365 -> 2011-06-30 | G22: 2012-06-29 | H22: 2013-06-29 | I22: 2014-06-29 | J22: 2015-06-29 | K22: 2016-06-28 | L22: 2017-06-28 | M22: 2018-06-28 | N22: 2019-06-28 | O22: 2020-06-27 | P22: 2021-06-27
A23: Real to Nominal Escalation Factor | E23: 1 | F23: =ROUND((+F13/$E$13),4) -> 1.0326 | G23: 1.0494 | H23: 1.0756 | I23: 1.1071 | J23: 1.1293 | K23: 1.1581 | L23: 1.1876 | M23: 1.2179 | N23: 1.249 | O23: 1.2808 | P23: 1.3135
A24: June 2010 as Base
A25: June 2015 as Base | H25: =+$J$13/H18 -> 1.033730769
D27: Escalation Factor used for Reports | J27: Escalation Factor - $June 2014 to $June 2015
D28: Convert Template Dollars to June 2015 Dollars | J28: i.e. June 2014 to June 2015 = 1.0 years | P28: Note on Escalation Factors:
D29: CPI for $Dec 2013 = Sept 2013 Index | H29: =H18 -> 104 | J29: CPI for $Dec 2013 = Sept 2013 Index | N29: =H18 -> 104 | P29: Capex is December 2013 dollars.
D30: CPI for $June 2015 = March 2015 Index | H30: =J13 -> 107.508 | J30: CPI for $June 2015 = March 2015 Index | N30: =+'I-1'!J13 -> 107.508 | P30: Need to escalate by 1.5 years to June 2015 dollars.
H31: 1 | N31: 1 | P31: The revised submission in July 2015 will use the actual CPI for March 2015 as the measure of June 2015 dollars (3 month lag) which is released in April 2015.
D32: Used in Reports: "Rxxxx ($2015)" | J32: Used in Reports: "E1"
A35: User Notes
A37: User must update the actual CPI index for each March and September, when it is released by the ABS.
A38: ** Index used is the CPI All Groups, Weighted Average of Eight Capital Cities, Index Numbers(a)
A39: Downloaded from: www.abs.gov.au

Sheet I-2
A1: =RIGHT(CELL("filename",A1),LEN(CELL("filename",A1))-FIND("]",CELL("filename",A1))) -> I-2 | B1: Directly Attributed Regulated Services - Master list of Services
A4: Category | B4: Expenditure Template | C4: Service | D4: Sign-Off
B6: Capital
A7: ACS | B7: C-1 | C7: ACS Replacements | D7: Tom Walker
B8: C-2 | C8: ACS IT Infrastructure | D8: Tom Walker
B9: C-3 | C9: Superannuation | D9: Patrick Makinson
B10: C-4 | C10: Equity Raising Costs | D10: Patrick Makinson
B11: C-5 | C11: Spare - Not in Use | D11: N/A
B12: C-6 | C12: Spare - Not in Use | D12: N/A
B13: C-7 | C13: Spare - Not in Use | D13: N/A
B14: C-8 | C14: Spare - Not in Use | D14: N/A
B15: C-9 | C15: Spare - Not in Use | D15: N/A
B16: C-10 | C16: Spare - Not in Use | D16: N/A
B17: C-11 | C17: Spare - Not in Use | D17: N/A
B18: C-12 | C18: Spare - Not in Use | D18: N/A
B19: C-13 | C19: Spare - Not in Use | D19: N/A
B20: C-14 | C20: Spare - Not in Use | D20: N/A
B21: C-15 | C21: Spare - Not in Use | D21: N/A
B22: C-16 | C22: Spare - Not in Use | D22: N/A
B23: C-17 | C23: Spare - Not in Use | D23: N/A
B24: C-18 | C24: Spare - Not in Use | D24: N/A
B25: C-19 | C25: Spare - Not in Use | D25: N/A
B26: C-20 | C26: Spare - Not in Use | D26: N/A
B27: C-21 | C27: Spare - Not in Use | D27: N/A
B28: C-22 | C28: Spare - Not in Use | D28: N/A
B29: C-23 | C29: Spare - Not in Use | D29: N/A
B30: C-24 | C30: Spare - Not in Use | D30: N/A
B31: C-25 | C31: Spare - Not in Use | D31: N/A
B32: C-26 | C32: Spare - Not in Use | D32: N/A
B33: C-27 | C33: Spare - Not in Use | D33: N/A
B34: C-28 | C34: Spare - Not in Use | D34: N/A
B35: C-29 | C35: Spare - Not in Use | D35: N/A
B36: C-30 | C36: Spare - Not in Use | D36: N/A
B37: C-31 | C37: Spare - Not in Use | D37: N/A

Sheet Data_SSC
A1: SSC
C9: Expenditure Data Inputs
C10: Section | D10: 2
C11: Submission Capital Expenditure Model
C16: Sub-Section Cover Notes:
C17: Contains Baseline Inputs.

Sheet I-4 History (hidden)
B1: =RIGHT(CELL("filename",B1),LEN(CELL("filename",B1))-FIND("]",CELL("filename",B1))) -> I-4 History | C1: Capital Expenditure History - Input sheet
D3: Actual Expenditure in Nominal ($M)
A4: SheetNo | B4: Template | D4: =+'Ref-1'!F39 -> 2004/05 | E4: =+'Ref-1'!G39 -> 2005/06 | F4: =+'Ref-1'!H39 -> 2006/07 | G4: =+'Ref-1'!I39 -> 2007/08 | H4: =+'Ref-1'!J39 -> 2008/09 | I4: =+'Ref-1'!K39 -> 2009/10 | J4: =+'Ref-1'!L39 -> 2010/11 | K4: =+'Ref-1'!M39 -> 2011/12 | L4: =+'Ref-1'!N39 -> 2012/13 | M4: Notes
E5: =Array_ColOffset_Header -> -7 | F5: -6 | G5: -5 | H5: -4 | I5: -3 | J5: -2 | K5: -1 | L5: 0
A6: 1 | B6: =OFFSET('I-2'!$B$6,+A6,0) -> C-1 | C6: =VLOOKUP(B6,List_Capital,2,FALSE) -> ACS Replacements
C7: Labour
C8: Materials
C9: Contracts
C10: Services Other
C11: Business Overheads
C12: Other
C13: Total | D13: =SUBTOTAL(9,D7:D12) -> 0 | E13: 0 | F13: 0 | G13: 0 | H13: 0 | I13: 0 | J13: 0 | K13: 0 | L13: =SUBTOTAL(9,L7:L12) -> 0
A15: =+A6+1 -> 2 | B15: =OFFSET('I-2'!$B$6,+A15,0) -> C-2 | C15: =VLOOKUP(B15,List_Capital,2,FALSE) -> ACS IT Infrastructure
C16: Labour
C17: Materials
C18: Contracts
C19: Services Other
C20: Business Overheads
C21: Other
C22: Total | D22: =SUBTOTAL(9,D16:D21) -> 0 | E22: 0 | F22: 0 | G22: 0 | H22: 0 | I22: 0 | J22: 0 | K22: 0 | L22: =SUBTOTAL(9,L16:L21) -> 0
A24: =+A15+1 -> 3 | B24: =OFFSET('I-2'!$B$6,+A24,0) -> C-3 | C24: =VLOOKUP(B24,List_Capital,2,FALSE) -> Superannuation
C25: Labour
C26: Materials
C27: Contracts
C28: Services Other
C29: Business Overheads
C30: Other
C31: Total | D31: =SUBTOTAL(9,D25:D30) -> 0 | E31: 0 | F31: 0 | G31: 0 | H31: 0 | I31: 0 | J31: 0 | K31: 0 | L31: =SUBTOTAL(9,L25:L30) -> 0
A33: =+A24+1 -> 4 | B33: =OFFSET('I-2'!$B$6,+A33,0) -> C-4 | C33: =VLOOKUP(B33,List_Capital,2,FALSE) -> Equity Raising Costs
C34: Labour
C35: Materials
C36: Contracts
C37: Services Other
C38: Business Overheads
C39: Other
C40: Total | D40: =SUBTOTAL(9,D34:D39) -> 0 | E40: 0 | F40: 0 | G40: 0 | H40: 0 | I40: 0 | J40: 0 | K40: 0 | L40: =SUBTOTAL(9,L34:L39) -> 0
A42: =+A33+1 -> 5 | B42: =OFFSET('I-2'!$B$6,+A42,0) -> C-5 | C42: =VLOOKUP(B42,List_Capital,2,FALSE) -> Spare - Not in Use
C43: Labour
C44: Materials
C45: Contracts
C46: Services Other
C47: Business Overheads
C48: Other
C49: Total | D49: =SUBTOTAL(9,D43:D48) -> 0 | E49: 0 | F49: 0 | G49: 0 | H49: 0 | I49: 0 | J49: 0 | K49: 0 | L49: =SUBTOTAL(9,L43:L48) -> 0
A51: =+A42+1 -> 6 | B51: =OFFSET('I-2'!$B$6,+A51,0) -> C-6 | C51: =VLOOKUP(B51,List_Capital,2,FALSE) -> Spare - Not in Use
C52: Labour
C53: Materials
C54: Contracts
C55: Services Other
C56: Business Overheads
C57: Other
C58: Total | D58: =SUBTOTAL(9,D52:D57) -> 0 | E58: 0 | F58: 0 | G58: 0 | H58: 0 | I58: 0 | J58: 0 | K58: 0 | L58: =SUBTOTAL(9,L52:L57) -> 0
A60: =+A51+1 -> 7 | B60: =OFFSET('I-2'!$B$6,+A60,0) -> C-7 | C60: =VLOOKUP(B60,List_Capital,2,FALSE) -> Spare - Not in Use
C61: Labour
C62: Materials
C63: Contracts
C64: Services Other
C65: Business Overheads
C66: Other
C67: Total | D67: =SUBTOTAL(9,D61:D66) -> 0 | E67: 0 | F67: 0 | G67: 0 | H67: 0 | I67: 0 | J67: 0 | K67: 0 | L67: =SUBTOTAL(9,L61:L66) -> 0
A69: =+A60+1 -> 8 | B69: =OFFSET('I-2'!$B$6,+A69,0) -> C-8 | C69: =VLOOKUP(B69,List_Capital,2,FALSE) -> Spare - Not in Use
C70: Labour
C71: Materials
C72: Contracts
C73: Services Other
C74: Business Overheads
C75: Other
C76: Total | D76: =SUBTOTAL(9,D70:D75) -> 0 | E76: 0 | F76: 0 | G76: 0 | H76: 0 | I76: 0 | J76: 0 | K76: 0 | L76: =SUBTOTAL(9,L70:L75) -> 0
A78: =+A69+1 -> 9 | B78: =OFFSET('I-2'!$B$6,+A78,0) -> C-9 | C78: =VLOOKUP(B78,List_Capital,2,FALSE) -> Spare - Not in Use
C79: Labour
C80: Materials
C81: Contracts
C82: Services Other
C83: Business Overheads
C84: Other
C85: Total | D85: =SUBTOTAL(9,D79:D84) -> 0 | E85: 0 | F85: 0 | G85: 0 | H85: 0 | I85: 0 | J85: 0 | K85: 0 | L85: =SUBTOTAL(9,L79:L84) -> 0
A87: =+A78+1 -> 10 | B87: =OFFSET('I-2'!$B$6,+A87,0) -> C-10 | C87: =VLOOKUP(B87,List_Capital,2,FALSE) -> Spare - Not in Use
C88: Labour
C89: Materials
C90: Contracts
C91: Services Other
C92: Business Overheads
C93: Other
C94: Total | D94: =SUBTOTAL(9,D88:D93) -> 0 | E94: 0 | F94: 0 | G94: 0 | H94: 0 | I94: 0 | J94: 0 | K94: 0 | L94: =SUBTOTAL(9,L88:L93) -> 0
A96: =+A87+1 -> 11 | B96: =OFFSET('I-2'!$B$6,+A96,0) -> C-11 | C96: =VLOOKUP(B96,List_Capital,2,FALSE) -> Spare - Not in Use
C97: Labour
C98: Materials
C99: Contracts
C100: Services Other
C101: Business Overheads
C102: Other
C103: Total | D103: =SUBTOTAL(9,D97:D102) -> 0 | E103: 0 | F103: 0 | G103: 0 | H103: 0 | I103: 0 | J103: 0 | K103: 0 | L103: =SUBTOTAL(9,L97:L102) -> 0
A105: =+A96+1 -> 12 | B105: =OFFSET('I-2'!$B$6,+A105,0) -> C-12 | C105: =VLOOKUP(B105,List_Capital,2,FALSE) -> Spare - Not in Use
C106: Labour
C107: Materials
C108: Contracts
C109: Services Other
C110: Business Overheads
C111: Other
C112: Total | D112: =SUBTOTAL(9,D106:D111) -> 0 | E112: 0 | F112: 0 | G112: 0 | H112: 0 | I112: 0 | J112: 0 | K112: 0 | L112: =SUBTOTAL(9,L106:L111) -> 0
A114: =+A105+1 -> 13 | B114: =OFFSET('I-2'!$B$6,+A114,0) -> C-13 | C114: =VLOOKUP(B114,List_Capital,2,FALSE) -> Spare - Not in Use
C115: Labour
C116: Materials
C117: Contracts
C118: Services Other
C119: Business Overheads
C120: Other
C121: Total | D121: =SUBTOTAL(9,D115:D120) -> 0 | E121: 0 | F121: 0 | G121: 0 | H121: 0 | I121: 0 | J121: 0 | K121: 0 | L121: =SUBTOTAL(9,L115:L120) -> 0
A123: =+A114+1 -> 14 | B123: =OFFSET('I-2'!$B$6,+A123,0) -> C-14 | C123: =VLOOKUP(B123,List_Capital,2,FALSE) -> Spare - Not in Use
C124: Labour
C125: Materials
C126: Contracts
C127: Services Other
C128: Business Overheads
C129: Other
C130: Total | D130: =SUBTOTAL(9,D124:D129) -> 0 | E130: 0 | F130: 0 | G130: 0 | H130: 0 | I130: 0 | J130: 0 | K130: 0 | L130: 0
A132: =+A123+1 -> 15 | B132: =OFFSET('I-2'!$B$6,+A132,0) -> C-15 | C132: =VLOOKUP(B132,List_Capital,2,FALSE) -> Spare - Not in Use
C133: Labour
C134: Materials
C135: Contracts
C136: Services Other
C137: Business Overheads
C138: Other
C139: Total | D139: =SUBTOTAL(9,D133:D138) -> 0 | E139: 0 | F139: 0 | G139: 0 | H139: 0 | I139: 0 | J139: 0 | K139: 0 | L139: 0
A141: =+A132+1 -> 16 | B141: =OFFSET('I-2'!$B$6,+A141,0) -> C-16 | C141: =VLOOKUP(B141,List_Capital,2,FALSE) -> Spare - Not in Use
C142: Labour
C143: Materials
C144: Contracts
C145: Services Other
C146: Business Overheads
C147: Other
C148: Total | D148: =SUBTOTAL(9,D142:D147) -> 0 | E148: 0 | F148: 0 | G148: 0 | H148: 0 | I148: 0 | J148: 0 | K148: 0 | L148: 0
A150: =+A141+1 -> 17 | B150: =OFFSET('I-2'!$B$6,+A150,0) -> C-17 | C150: =VLOOKUP(B150,List_Capital,2,FALSE) -> Spare - Not in Use
C151: Labour
C152: Materials
C153: Contracts
C154: Services Other
C155: Business Overheads
C156: Other
C157: Total | D157: =SUBTOTAL(9,D151:D156) -> 0 | E157: 0 | F157: 0 | G157: 0 | H157: 0 | I157: 0 | J157: 0 | K157: 0 | L157: 0
A159: =+A150+1 -> 18 | B159: =OFFSET('I-2'!$B$6,+A159,0) -> C-18 | C159: =VLOOKUP(B159,List_Capital,2,FALSE) -> Spare - Not in Use
C160: Labour
C161: Materials
C162: Contracts
C163: Services Other
C164: Business Overheads
C165: Other
C166: Total | D166: =SUBTOTAL(9,D160:D165) -> 0 | E166: 0 | F166: 0 | G166: 0 | H166: 0 | I166: 0 | J166: 0 | K166: 0 | L166: 0
A168: =+A159+1 -> 19 | B168: =OFFSET('I-2'!$B$6,+A168,0) -> C-19 | C168: =VLOOKUP(B168,List_Capital,2,FALSE) -> Spare - Not in Use
C169: Labour
C170: Materials
C171: Contracts
C172: Services Other
C173: Business Overheads
C174: Other
C175: Total | D175: =SUBTOTAL(9,D169:D174) -> 0 | E175: 0 | F175: 0 | G175: 0 | H175: 0 | I175: 0 | J175: 0 | K175: 0 | L175: 0
A177: =+A168+1 -> 20 | B177: =OFFSET('I-2'!$B$6,+A177,0) -> C-20 | C177: =VLOOKUP(B177,List_Capital,2,FALSE) -> Spare - Not in Use
C178: Labour
C179: Materials
C180: Contracts
C181: Services Other
C182: Business Overheads
C183: Other
C184: Total | D184: =SUBTOTAL(9,D178:D183) -> 0 | E184: 0 | F184: 0 | G184: 0 | H184: 0 | I184: 0 | J184: 0 | K184: 0 | L184: 0
A186: =+A177+1 -> 21 | B186: =OFFSET('I-2'!$B$6,+A186,0) -> C-21 | C186: =VLOOKUP(B186,List_Capital,2,FALSE) -> Spare - Not in Use
C187: Labour
C188: Materials
C189: Contracts
C190: Services Other
C191: Business Overheads
C192: Other
C193: Total | D193: =SUBTOTAL(9,D187:D192) -> 0 | E193: 0 | F193: 0 | G193: 0 | H193: 0 | I193: 0 | J193: 0 | K193: 0 | L193: 0
A195: =+A186+1 -> 22 | B195: =OFFSET('I-2'!$B$6,+A195,0) -> C-22 | C195: =VLOOKUP(B195,List_Capital,2,FALSE) -> Spare - Not in Use
C196: Labour
C197: Materials
C198: Contracts
C199: Services Other
C200: Business Overheads
C201: Other
C202: Total | D202: =SUBTOTAL(9,D196:D201) -> 0 | E202: 0 | F202: 0 | G202: 0 | H202: 0 | I202: 0 | J202: 0 | K202: 0 | L202: 0
A204: =+A195+1 -> 23 | B204: =OFFSET('I-2'!$B$6,+A204,0) -> C-23 | C204: =VLOOKUP(B204,List_Capital,2,FALSE) -> Spare - Not in Use
C205: Labour
C206: Materials
C207: Contracts
C208: Services Other
C209: Business Overheads
C210: Other
C211: Total | D211: =SUBTOTAL(9,D205:D210) -> 0 | E211: 0 | F211: 0 | G211: 0 | H211: 0 | I211: 0 | J211: 0 | K211: 0 | L211: 0
A213: =+A204+1 -> 24 | B213: =OFFSET('I-2'!$B$6,+A213,0) -> C-24 | C213: =VLOOKUP(B213,List_Capital,2,FALSE) -> Spare - Not in Use
C214: Labour
C215: Materials
C216: Contracts
C217: Services Other
C218: Business Overheads
C219: Other
C220: Total | D220: =SUBTOTAL(9,D214:D219) -> 0 | E220: 0 | F220: 0 | G220: 0 | H220: 0 | I220: 0 | J220: 0 | K220: 0 | L220: 0
A222: =+A213+1 -> 25 | B222: =OFFSET('I-2'!$B$6,+A222,0) -> C-25 | C222: =VLOOKUP(B222,List_Capital,2,FALSE) -> Spare - Not in Use
C223: Labour
C224: Materials
C225: Contracts
... 67 more rows

Sheet I-5 Future
B1: =RIGHT(CELL("filename",B1),LEN(CELL("filename",B1))-FIND("]",CELL("filename",B1))) -> I-5 Future | C1: Capital Expenditure - Baseline Submission Input sheet
C2: Important - this is baseline expenditure only - variations must be manually input on the relevant template.
D3: =+'Ref-1'!B45 -> ($M) Dec 2013 dollars | K3: Version
A4: SheetNo | B4: Template | D4: =LU_TemplateYearHeader2 -> 2013/14 | E4: 2014/15 | F4: 2015/16 | G4: 2016/17 | H4: 2017/18 | I4: 2018/19 | J4: 2019/20 | K4: of Data: | L4: Dated:
D5: =Array_ColOffset_Header2 -> 0 | E5: 1 | F5: 2 | G5: 3 | H5: 4 | I5: 5 | J5: 6
A6: 1 | B6: =OFFSET('I-2'!$B$6,+A6,0) -> C-1 | C6: =VLOOKUP(B6,List_Capital,2,FALSE) -> ACS Replacements | S6: =R6-SUM(F13:J13) -> -17.061
C7: Labour | F7: ='[1]CAPEX I-5 Future'!$T$28:$X$33 -> 0.7062499855 | G7: 0.7411057568 | H7: 0.9170673023 | I7: 0.7064903831 | J7: 1.030288445
C8: Materials | F8: 1.949249995 | G8: 2.04545195 | H8: 2.531105777 | I8: 1.949913448 | J8: 2.843596114
C9: Contracts | F9: 0.08475000161 | G9: 0.08893268344 | H9: 0.110048065 | I9: 0.08477885074 | J9: 0.1236346637
C10: Services Other | F10: 0.08475000161 | G10: 0.08893268344 | H10: 0.110048065 | I10: 0.08477885074 | J10: 0.1236346637
C11: Business Overheads | F11: 0.1130000161 | G11: 0.1185769266 | H11: 0.1467307909 | I11: 0.1130384677 | J11: 0.1648461136
C12: Other | F12: 0 | G12: 0 | H12: 0 | I12: 0 | J12: 0
C13: Total | D13: =SUBTOTAL(9,D7:D12) -> 0 | E13: 0 | F13: =SUBTOTAL(9,F7:F12) -> 2.938 | G13: 3.083 | H13: 3.815 | I13: 2.939 | J13: 4.286
A15: =+A6+1 -> 2 | B15: =OFFSET('I-2'!$B$6,+A15,0) -> C-2 | C15: =VLOOKUP(B15,List_Capital,2,FALSE) -> ACS IT Infrastructure | S15: =R15-SUM(F22:J22) -> -1.6856
C16: Labour | F16: ='[1]CAPEX I-5 Future'!$T$64:$X$69 -> 0 | G16: 0 | H16: 0 | I16: 0 | J16: 0
C17: Materials | F17: 0.7548076923 | G17: 0.2165384615 | H17: 0.2165384615 | I17: 0.2165384615 | J17: 0.2163461538
C18: Contracts | F18: 0 | G18: 0 | H18: 0 | I18: 0 | J18: 0
C19: Services Other | F19: 0 | G19: 0 | H19: 0 | I19: 0 | J19: 0
C20: Business Overheads | F20: 0.03019230769 | G20: 0.008661538462 | H20: 0.008661538462 | I20: 0.008661538462 | J20: 0.008653846154
C21: Other | F21: 0 | G21: 0 | H21: 0 | I21: 0 | J21: 0
C22: Total | D22: =SUBTOTAL(9,D16:D21) -> 0 | E22: 0 | F22: 0.785 | G22: 0.2252 | H22: 0.2252 | I22: 0.2252 | J22: 0.225
A24: =+A15+1 -> 3 | B24: =OFFSET('I-2'!$B$6,+A24,0) -> C-3 | C24: =VLOOKUP(B24,List_Capital,2,FALSE) -> Superannuation
C25: Labour
C26: Materials
C27: Contracts
C28: Services Other
C29: Business Overheads
C30: Other
C31: Total | D31: =SUBTOTAL(9,D25:D30) -> 0 | E31: 0 | F31: 0 | G31: 0 | H31: 0 | I31: 0 | J31: 0
A33: =+A24+1 -> 4 | B33: =OFFSET('I-2'!$B$6,+A33,0) -> C-4 | C33: =VLOOKUP(B33,List_Capital,2,FALSE) -> Equity Raising Costs
C34: Labour
C35: Materials
C36: Contracts
C37: Services Other
C38: Business Overheads
C39: Other
C40: Total | D40: =SUBTOTAL(9,D34:D39) -> 0 | E40: 0 | F40: 0 | G40: 0 | H40: 0 | I40: 0 | J40: 0
A42: =+A33+1 -> 5 | B42: =OFFSET('I-2'!$B$6,+A42,0) -> C-5 | C42: =VLOOKUP(B42,List_Capital,2,FALSE) -> Spare - Not in Use
C43: Labour
C44: Materials
C45: Contracts
C46: Services Other
C47: Business Overheads
C48: Other
C49: Total | D49: =SUBTOTAL(9,D43:D48) -> 0 | E49: 0 | F49: 0 | G49: 0 | H49: 0 | I49: 0 | J49: 0
A51: =+A42+1 -> 6 | B51: =OFFSET('I-2'!$B$6,+A51,0) -> C-6 | C51: =VLOOKUP(B51,List_Capital,2,FALSE) -> Spare - Not in Use
C52: Labour
C53: Materials
C54: Contracts
C55: Services Other
C56: Business Overheads
C57: Other
C58: Total | D58: =SUBTOTAL(9,D52:D57) -> 0 | E58: 0 | F58: 0 | G58: 0 | H58: 0 | I58: 0 | J58: 0
A60: =+A51+1 -> 7 | B60: =OFFSET('I-2'!$B$6,+A60,0) -> C-7 | C60: =VLOOKUP(B60,List_Capital,2,FALSE) -> Spare - Not in Use
C61: Labour
C62: Materials
C63: Contracts
C64: Services Other
C65: Business Overheads
C66: Other
C67: Total | D67: =SUBTOTAL(9,D61:D66) -> 0 | E67: 0 | F67: 0 | G67: 0 | H67: 0 | I67: 0 | J67: 0
A69: =+A60+1 -> 8 | B69: =OFFSET('I-2'!$B$6,+A69,0) -> C-8 | C69: =VLOOKUP(B69,List_Capital,2,FALSE) -> Spare - Not in Use
C70: Labour
C71: Materials
C72: Contracts
C73: Services Other
C74: Business Overheads
C75: Other
C76: Total | D76: =SUBTOTAL(9,D70:D75) -> 0 | E76: 0 | F76: 0 | G76: 0 | H76: 0 | I76: 0 | J76: 0
A78: =+A69+1 -> 9 | B78: =OFFSET('I-2'!$B$6,+A78,0) -> C-9 | C78: =VLOOKUP(B78,List_Capital,2,FALSE) -> Spare - Not in Use
C79: Labour
C80: Materials
C81: Contracts
C82: Services Other
C83: Business Overheads
C84: Other
C85: Total | D85: =SUBTOTAL(9,D79:D84) -> 0 | E85: 0 | F85: 0 | G85: 0 | H85: 0 | I85: 0 | J85: 0
A87: =+A78+1 -> 10 | B87: =OFFSET('I-2'!$B$6,+A87,0) -> C-10 | C87: =VLOOKUP(B87,List_Capital,2,FALSE) -> Spare - Not in Use
C88: Labour
C89: Materials
C90: Contracts
C91: Services Other
C92: Business Overheads
C93: Other
C94: Total | D94: =SUBTOTAL(9,D88:D93) -> 0 | E94: 0 | F94: 0 | G94: 0 | H94: 0 | I94: 0 | J94: 0
A96: =+A87+1 -> 11 | B96: =OFFSET('I-2'!$B$6,+A96,0) -> C-11 | C96: =VLOOKUP(B96,List_Capital,2,FALSE) -> Spare - Not in Use
C97: Labour
C98: Materials
C99: Contracts
C100: Services Other
C101: Business Overheads
C102: Other
C103: Total | D103: =SUBTOTAL(9,D97:D102) -> 0 | E103: 0 | F103: 0 | G103: 0 | H103: 0 | I103: 0 | J103: 0
A105: =+A96+1 -> 12 | B105: =OFFSET('I-2'!$B$6,+A105,0) -> C-12 | C105: =VLOOKUP(B105,List_Capital,2,FALSE) -> Spare - Not in Use
C106: Labour
C107: Materials
C108: Contracts
C109: Services Other
C110: Business Overheads
C111: Other
C112: Total | D112: =SUBTOTAL(9,D106:D111) -> 0 | E112: 0 | F112: 0 | G112: 0 | H112: 0 | I112: 0 | J112: 0
A114: =+A105+1 -> 13 | B114: =OFFSET('I-2'!$B$6,+A114,0) -> C-13 | C114: =VLOOKUP(B114,List_Capital,2,FALSE) -> Spare - Not in Use
C115: Labour
C116: Materials
C117: Contracts
C118: Services Other
C119: Business Overheads
C120: Other
C121: Total | D121: =SUBTOTAL(9,D115:D120) -> 0 | E121: 0 | F121: 0 | G121: 0 | H121: 0 | I121: 0 | J121: 0
A123: =+A114+1 -> 14 | B123: =OFFSET('I-2'!$B$6,+A123,0) -> C-14 | C123: =VLOOKUP(B123,List_Capital,2,FALSE) -> Spare - Not in Use
C124: Labour
C125: Materials
C126: Contracts
C127: Services Other
C128: Business Overheads
C129: Other
C130: Total | D130: =SUBTOTAL(9,D124:D129) -> 0 | E130: 0 | F130: 0 | G130: 0 | H130: 0 | I130: 0 | J130: 0
A132: =+A123+1 -> 15 | B132: =OFFSET('I-2'!$B$6,+A132,0) -> C-15 | C132: =VLOOKUP(B132,List_Capital,2,FALSE) -> Spare - Not in Use
C133: Labour
C134: Materials
C135: Contracts
C136: Services Other
C137: Business Overheads
C138: Other
C139: Total | D139: =SUBTOTAL(9,D133:D138) -> 0 | E139: 0 | F139: 0 | G139: 0 | H139: 0 | I139: 0 | J139: 0
A141: =+A132+1 -> 16 | B141: =OFFSET('I-2'!$B$6,+A141,0) -> C-16 | C141: =VLOOKUP(B141,List_Capital,2,FALSE) -> Spare - Not in Use
C142: Labour
C143: Materials
C144: Contracts
C145: Services Other
C146: Business Overheads
C147: Other
C148: Total | D148: =SUBTOTAL(9,D142:D147) -> 0 | E148: 0 | F148: 0 | G148: 0 | H148: 0 | I148: 0 | J148: 0
A150: =+A141+1 -> 17 | B150: =OFFSET('I-2'!$B$6,+A150,0) -> C-17 | C150: =VLOOKUP(B150,List_Capital,2,FALSE) -> Spare - Not in Use
C151: Labour
C152: Materials
C153: Contracts
C154: Services Other
C155: Business Overheads
C156: Other
C157: Total | D157: =SUBTOTAL(9,D151:D156) -> 0 | E157: 0 | F157: 0 | G157: 0 | H157: 0 | I157: 0 | J157: 0
A159: =+A150+1 -> 18 | B159: =OFFSET('I-2'!$B$6,+A159,0) -> C-18 | C159: =VLOOKUP(B159,List_Capital,2,FALSE) -> Spare - Not in Use
C160: Labour
C161: Materials
C162: Contracts
C163: Services Other
C164: Business Overheads
C165: Other
C166: Total | D166: =SUBTOTAL(9,D160:D165) -> 0 | E166: 0 | F166: 0 | G166: 0 | H166: 0 | I166: 0 | J166: 0
A168: =+A159+1 -> 19 | B168: =OFFSET('I-2'!$B$6,+A168,0) -> C-19 | C168: =VLOOKUP(B168,List_Capital,2,FALSE) -> Spare - Not in Use
C169: Labour
C170: Materials
C171: Contracts
C172: Services Other
C173: Business Overheads
C174: Other
C175: Total | D175: =SUBTOTAL(9,D169:D174) -> 0 | E175: 0 | F175: 0 | G175: 0 | H175: 0 | I175: 0 | J175: 0
A177: =+A168+1 -> 20 | B177: =OFFSET('I-2'!$B$6,+A177,0) -> C-20 | C177: =VLOOKUP(B177,List_Capital,2,FALSE) -> Spare - Not in Use
C178: Labour
C179: Materials
C180: Contracts
C181: Services Other
C182: Business Overheads
C183: Other
C184: Total | D184: =SUBTOTAL(9,D178:D183) -> 0 | E184: 0 | F184: 0 | G184: 0 | H184: 0 | I184: 0 | J184: 0
A186: =+A177+1 -> 21 | B186: =OFFSET('I-2'!$B$6,+A186,0) -> C-21 | C186: =VLOOKUP(B186,List_Capital,2,FALSE) -> Spare - Not in Use
C187: Labour
C188: Materials
C189: Contracts
C190: Services Other
C191: Business Overheads
C192: Other
C193: Total | D193: =SUBTOTAL(9,D187:D192) -> 0 | E193: 0 | F193: 0 | G193: 0 | H193: 0 | I193: 0 | J193: 0
A195: =+A186+1 -> 22 | B195: =OFFSET('I-2'!$B$6,+A195,0) -> C-22 | C195: =VLOOKUP(B195,List_Capital,2,FALSE) -> Spare - Not in Use
C196: Labour
C197: Materials
C198: Contracts
C199: Services Other
C200: Business Overheads
C201: Other
C202: Total | D202: =SUBTOTAL(9,D196:D201) -> 0 | E202: 0 | F202: 0 | G202: 0 | H202: 0 | I202: 0 | J202: 0
A204: =+A195+1 -> 23 | B204: =OFFSET('I-2'!$B$6,+A204,0) -> C-23 | C204: =VLOOKUP(B204,List_Capital,2,FALSE) -> Spare - Not in Use
C205: Labour
C206: Materials
C207: Contracts
C208: Services Other
C209: Business Overheads
C210: Other
C211: Total | D211: =SUBTOTAL(9,D205:D210) -> 0 | E211: 0 | F211: 0 | G211: 0 | H211: 0 | I211: 0 | J211: 0
A213: =+A204+1 -> 24 | B213: =OFFSET('I-2'!$B$6,+A213,0) -> C-24 | C213: =VLOOKUP(B213,List_Capital,2,FALSE) -> Spare - Not in Use
C214: Labour
C215: Materials
C216: Contracts
C217: Services Other
C218: Business Overheads
C219: Other
C220: Total | D220: =SUBTOTAL(9,D214:D219) -> 0 | E220: 0 | F220: 0 | G220: 0 | H220: 0 | I220: 0 | J220: 0
A222: =+A213+1 -> 25 | B222: =OFFSET('I-2'!$B$6,+A222,0) -> C-25 | C222: =VLOOKUP(B222,List_Capital,2,FALSE) -> Spare - Not in Use
C223: Labour
C224: Materials
... 69 more rows

Sheet Scen_Ass_SSC
A1: SSC
C9: Specific Assumptions
C10: Section | D10: 3
C17: Section Cover Notes:
C18: Contains Specific Assumptions.

Sheet I-6
A1: =RIGHT(CELL("filename",A1),LEN(CELL("filename",A1))-FIND("]",CELL("filename",A1))) -> I-6 | B1: Escalation Factors Summary
A2: Escalators should be 'simple' changes, input as a percentage, that can be applied generically across mapped expense and cost categories.
A3: Escalations should generally apply to expenditures for all mapped categories AFTER including variations.
A4: Full details of each escalation should be recorded on an Escalation template.
A5: Forecast Inflation Rate
A6: General Input Cost Escalation (%Real**)
A7: Note - General input cost escalators will apply to all operating and capital expenditures for the specified cost categories and also include Variations and Specific Escalations.
A8: Escalations are calculated as a product of each other, by cost category.
B9: Year No. | C9: 1 | D9: 2 | E9: 3 | F9: 4 | G9: 5 | H9: 6 | I9: 7
B10: Cost Categories to apply to: | C10: =LU_TemplateYearHeader2 -> 2013/14 | D10: 2014/15 | E10: 2015/16 | F10: 2016/17 | G10: 2017/18 | H10: 2018/19 | I10: 2019/20 | K10: Description | L10: Escalation is cumulative or stand-alone? | M10: Version of Data
B11: Labour | D11: 0.0166 | E11: =[2]Sheet1!C22 -> 0.0214579659 | F11: =[2]Sheet1!D22 -> 0.0214579659 | G11: =[2]Sheet1!E22 -> 0.02263374486 | H11: =[2]Sheet1!F22 -> 0.02263374486 | I11: =[2]Sheet1!G22 -> 0.02263374486 | K11: General escalation for all labour costs | L11: Cumulative
B12: Materials | D12: 0 | E12: =[2]Sheet1!C27 -> 0 | F12: =[2]Sheet1!D27 -> 0 | G12: =[2]Sheet1!E27 -> 0 | H12: =[2]Sheet1!F27 -> 0 | I12: =[2]Sheet1!G27 -> 0 | K12: General escalation for all materials costs | L12: Cumulative
B13: Services-construction | D13: 0.001 | E13: =[2]Sheet1!C25 -> 0.005 | F13: =[2]Sheet1!D25 -> 0.009 | G13: =[2]Sheet1!E25 -> 0.011 | H13: =[2]Sheet1!F25 -> 0.014 | I13: =[2]Sheet1!G25 -> 0.018 | K13: General escalation for services construction costs | L13: Cumulative
B14: Services-general | D14: 0.001 | E14: =[2]Sheet1!C25 -> 0.005 | F14: =[2]Sheet1!D25 -> 0.009 | G14: =[2]Sheet1!E25 -> 0.011 | H14: =[2]Sheet1!F25 -> 0.014 | I14: =[2]Sheet1!G25 -> 0.018 | K14: General escalation for general services costs | L14: Cumulative
B15: Materials - Land | D15: 0.0596 | E15: =[2]Sheet1!C28 -> 0.0596 | F15: =[2]Sheet1!D28 -> 0.0596 | G15: =[2]Sheet1!E28 -> 0.0596 | H15: =[2]Sheet1!F28 -> 0.0596 | I15: =[2]Sheet1!G28 -> 0.0596 | K15: General escalation for Land Value Related costs | L15: Cumulative
B18: Notes: ** % Real means expected annual percentage increases above the general inflation rate for that year
A22: Specific Input Cost Escalation (%Real**)
A23: Note - Specific Input Cost and Quantity Escalations will only apply to the specified expense and cost categories
B24: Title | C24: =LU_TemplateYearHeader2 -> 2013/14 | D24: 2014/15 | E24: 2015/16 | F24: 2016/17 | G24: 2017/18 | H24: 2018/19 | I24: 2019/20 | K24: Description | L24: Escalation is cumulative or stand-alone? | M24: Version of Data
B25: Network growth - direct charges
A44: Specific Input Quantity Escalation (%Real**)

Sheet Workings_SC
A1: SC
C9: Detailed Workings for each Category
C10: Section | D10: 4
C11: Submission Capital Expenditure Model
C17: Section Cover Notes:
C18: Contains Detailed Workings

Sheet C-1
A1: Capital Expenditure | I1: =LU_TemplateDollarDenomination -> $'M Dec 2013 | J1: Sheet Number: | K1: 1
A2: Costs Category : | B2: =OFFSET(List_CapexCategoriesStart,+$K$1,1) -> ACS Replacements
A3: Sign-off : | B3: =OFFSET(List_CapexCategoriesStart,+$K$1,2) -> Tom Walker | E3: Version of Data: | H3: Dated:
B4: =LU_TemplateYearHeader -> 2012/13 | C4: 2013/14 | D4: 2014/15 | E4: 2015/16 | F4: 2016/17 | G4: 2017/18 | H4: 2018/19 | I4: 2019/20 | J4: Notes & checks
A5: A. Baseline Expenditure, based on:
A7: Summary by Cost Category
A8: Labour | B8: =OFFSET(List_CapexStart,MATCH($K$1,'I-4 History'!$A$6:$A$256)+2,0) -> 0 | C8: =OFFSET(Future_CapexStart,MATCH($K$1,'I-5 Future'!$A$6:$A$284)+2,+'I-5 Future'!D$5) -> 0 | D8: =OFFSET(Future_CapexStart,MATCH($K$1,'I-5 Future'!$A$6:$A$284)+2,+'I-5 Future'!E$5) -> 0 | E8: =OFFSET(Future_CapexStart,MATCH($K$1,'I-5 Future'!$A$6:$A$284)+2,+'I-5 Future'!F$5) -> 0.7062499855 | F8: =OFFSET(Future_CapexStart,MATCH($K$1,'I-5 Future'!$A$6:$A$284)+2,+'I-5 Future'!G$5) -> 0.7411057568 | G8: =OFFSET(Future_CapexStart,MATCH($K$1,'I-5 Future'!$A$6:$A$284)+2,+'I-5 Future'!H$5) -> 0.9170673023 | H8: =OFFSET(Future_CapexStart,MATCH($K$1,'I-5 Future'!$A$6:$A$284)+2,+'I-5 Future'!I$5) -> 0.7064903831 | I8: =OFFSET(Future_CapexStart,MATCH($K$1,'I-5 Future'!$A$6:$A$284)+2,+'I-5 Future'!J$5) -> 1.030288445
A9: Materials | B9: =OFFSET(List_CapexStart,MATCH($K$1,'I-4 History'!$A$6:$A$256)+3,0) -> 0 | C9: =OFFSET(Future_CapexStart,MATCH($K$1,'I-5 Future'!$A$6:$A$284)+3,+'I-5 Future'!D$5) -> 0 | D9: =OFFSET(Future_CapexStart,MATCH($K$1,'I-5 Future'!$A$6:$A$284)+3,+'I-5 Future'!E$5) -> 0 | E9: =OFFSET(Future_CapexStart,MATCH($K$1,'I-5 Future'!$A$6:$A$284)+3,+'I-5 Future'!F$5) -> 1.949249995 | F9: =OFFSET(Future_CapexStart,MATCH($K$1,'I-5 Future'!$A$6:$A$284)+3,+'I-5 Future'!G$5) -> 2.04545195 | G9: =OFFSET(Future_CapexStart,MATCH($K$1,'I-5 Future'!$A$6:$A$284)+3,+'I-5 Future'!H$5) -> 2.531105777 | H9: =OFFSET(Future_CapexStart,MATCH($K$1,'I-5 Future'!$A$6:$A$284)+3,+'I-5 Future'!I$5) -> 1.949913448 | I9: =OFFSET(Future_CapexStart,MATCH($K$1,'I-5 Future'!$A$6:$A$284)+3,+'I-5 Future'!J$5) -> 2.843596114
A10: Contracts | B10: =OFFSET(List_CapexStart,MATCH($K$1,'I-4 History'!$A$6:$A$256)+4,0) -> 0 | C10: =OFFSET(Future_CapexStart,MATCH($K$1,'I-5 Future'!$A$6:$A$284)+4,+'I-5 Future'!D$5) -> 0 | D10: =OFFSET(Future_CapexStart,MATCH($K$1,'I-5 Future'!$A$6:$A$284)+4,+'I-5 Future'!E$5) -> 0 | E10: =OFFSET(Future_CapexStart,MATCH($K$1,'I-5 Future'!$A$6:$A$284)+4,+'I-5 Future'!F$5) -> 0.08475000161 | F10: =OFFSET(Future_CapexStart,MATCH($K$1,'I-5 Future'!$A$6:$A$284)+4,+'I-5 Future'!G$5) -> 0.08893268344 | G10: =OFFSET(Future_CapexStart,MATCH($K$1,'I-5 Future'!$A$6:$A$284)+4,+'I-5 Future'!H$5) -> 0.110048065 | H10: =OFFSET(Future_CapexStart,MATCH($K$1,'I-5 Future'!$A$6:$A$284)+4,+'I-5 Future'!I$5) -> 0.08477885074 | I10: =OFFSET(Future_CapexStart,MATCH($K$1,'I-5 Future'!$A$6:$A$284)+4,+'I-5 Future'!J$5) -> 0.1236346637
A11: Services Other | B11: =OFFSET(List_CapexStart,MATCH($K$1,'I-4 History'!$A$6:$A$256)+5,0) -> 0 | C11: =OFFSET(Future_CapexStart,MATCH($K$1,'I-5 Future'!$A$6:$A$284)+5,+'I-5 Future'!D$5) -> 0 | D11: =OFFSET(Future_CapexStart,MATCH($K$1,'I-5 Future'!$A$6:$A$284)+5,+'I-5 Future'!E$5) -> 0 | E11: =OFFSET(Future_CapexStart,MATCH($K$1,'I-5 Future'!$A$6:$A$284)+5,+'I-5 Future'!F$5) -> 0.08475000161 | F11: =OFFSET(Future_CapexStart,MATCH($K$1,'I-5 Future'!$A$6:$A$284)+5,+'I-5 Future'!G$5) -> 0.08893268344 | G11: =OFFSET(Future_CapexStart,MATCH($K$1,'I-5 Future'!$A$6:$A$284)+5,+'I-5 Future'!H$5) -> 0.110048065 | H11: =OFFSET(Future_CapexStart,MATCH($K$1,'I-5 Future'!$A$6:$A$284)+5,+'I-5 Future'!I$5) -> 0.08477885074 | I11: =OFFSET(Future_CapexStart,MATCH($K$1,'I-5 Future'!$A$6:$A$284)+5,+'I-5 Future'!J$5) -> 0.1236346637
A12: Business Overheads | B12: =OFFSET(List_CapexStart,MATCH($K$1,'I-4 History'!$A$6:$A$256)+6,0) -> 0 | C12: =OFFSET(Future_CapexStart,MATCH($K$1,'I-5 Future'!$A$6:$A$284)+6,+'I-5 Future'!D$5) -> 0 | D12: =OFFSET(Future_CapexStart,MATCH($K$1,'I-5 Future'!$A$6:$A$284)+6,+'I-5 Future'!E$5) -> 0 | E12: =OFFSET(Future_CapexStart,MATCH($K$1,'I-5 Future'!$A$6:$A$284)+6,+'I-5 Future'!F$5) -> 0.1130000161 | F12: =OFFSET(Future_CapexStart,MATCH($K$1,'I-5 Future'!$A$6:$A$284)+6,+'I-5 Future'!G$5) -> 0.1185769266 | G12: =OFFSET(Future_CapexStart,MATCH($K$1,'I-5 Future'!$A$6:$A$284)+6,+'I-5 Future'!H$5) -> 0.1467307909 | H12: =OFFSET(Future_CapexStart,MATCH($K$1,'I-5 Future'!$A$6:$A$284)+6,+'I-5 Future'!I$5) -> 0.1130384677 | I12: =OFFSET(Future_CapexStart,MATCH($K$1,'I-5 Future'!$A$6:$A$284)+6,+'I-5 Future'!J$5) -> 0.1648461136
A13: Other | B13: =OFFSET(List_CapexStart,MATCH($K$1,'I-4 History'!$A$6:$A$256)+7,0) -> 0 | C13: =OFFSET(Future_CapexStart,MATCH($K$1,'I-5 Future'!$A$6:$A$284)+7,+'I-5 Future'!D$5) -> 0 | D13: =OFFSET(Future_CapexStart,MATCH($K$1,'I-5 Future'!$A$6:$A$284)+7,+'I-5 Future'!E$5) -> 0 | E13: =OFFSET(Future_CapexStart,MATCH($K$1,'I-5 Future'!$A$6:$A$284)+7,+'I-5 Future'!F$5) -> 0 | F13: =OFFSET(Future_CapexStart,MATCH($K$1,'I-5 Future'!$A$6:$A$284)+7,+'I-5 Future'!G$5) -> 0 | G13: =OFFSET(Future_CapexStart,MATCH($K$1,'I-5 Future'!$A$6:$A$284)+7,+'I-5 Future'!H$5) -> 0 | H13: =OFFSET(Future_CapexStart,MATCH($K$1,'I-5 Future'!$A$6:$A$284)+7,+'I-5 Future'!I$5) -> 0 | I13: =OFFSET(Future_CapexStart,MATCH($K$1,'I-5 Future'!$A$6:$A$284)+7,+'I-5 Future'!J$5) -> 0
A14: Baseline Expenditure | B14: =SUM(B8:B13) -> 0 | C14: 0 | D14: 0 | E14: 2.938 | F14: 3.083 | G14: 3.815 | H14: 2.939 | I14: 4.286
A16: B. Variations (as per calculations on page 3)
A18: Summary by Cost Category
A19: Labour | C19: =+C176 -> 0 | D19: 0 | E19: 0 | F19: 0 | G19: 0 | H19: 0 | I19: 0
A20: Materials | C20: 0 | D20: 0 | E20: 0 | F20: 0 | G20: 0 | H20: 0 | I20: 0
A21: Contracts | C21: =+C178 -> 0 | D21: 0 | E21: 0 | F21: 0 | G21: 0 | H21: 0 | I21: 0
A22: Services Other | C22: =+C179 -> 0 | D22: 0 | E22: 0 | F22: 0 | G22: 0 | H22: 0 | I22: 0
A23: Business Overheads | C23: =+C180 -> 0 | D23: 0 | E23: 0 | F23: 0 | G23: 0 | H23: 0 | I23: 0
A24: Other | C24: =+C181 -> 0 | D24: 0 | E24: 0 | F24: 0 | G24: 0 | H24: 0 | I24: 0
A25: Variations | C25: =SUM(C19:C24) -> 0 | D25: 0 | E25: 0 | F25: 0 | G25: 0 | H25: 0 | I25: 0 | J25: =IF(ROUND(SUM(C182:I182)-SUM(B25:I25),2)<>0,"Warning Check Totals","OK") -> OK
A27: Total Base Expenditure + Variations, Before Escalations
A29: Summary by Cost Category
A30: Labour | B30: =+'C-1'!B8+'C-1'!B19 -> 0 | C30: =+'C-1'!C8+'C-1'!C19 -> 0 | D30: =+'C-1'!D8+'C-1'!D19 -> 0 | E30: =+'C-1'!E8+'C-1'!E19 -> 0.7062499855 | F30: =+'C-1'!F8+'C-1'!F19 -> 0.7411057568 | G30: =+'C-1'!G8+'C-1'!G19 -> 0.9170673023 | H30: =+'C-1'!H8+'C-1'!H19 -> 0.7064903831 | I30: =+'C-1'!I8+'C-1'!I19 -> 1.030288445
A31: Materials | B31: =+'C-1'!B9+'C-1'!B20 -> 0 | C31: =+'C-1'!C9+'C-1'!C20 -> 0 | D31: =+'C-1'!D9+'C-1'!D20 -> 0 | E31: =+'C-1'!E9+'C-1'!E20 -> 1.949249995 | F31: =+'C-1'!F9+'C-1'!F20 -> 2.04545195 | G31: =+'C-1'!G9+'C-1'!G20 -> 2.531105777 | H31: =+'C-1'!H9+'C-1'!H20 -> 1.949913448 | I31: =+'C-1'!I9+'C-1'!I20 -> 2.843596114
A32: Contracts | B32: =+'C-1'!B10+'C-1'!B21 -> 0 | C32: =+'C-1'!C10+'C-1'!C21 -> 0 | D32: =+'C-1'!D10+'C-1'!D21 -> 0 | E32: =+'C-1'!E10+'C-1'!E21 -> 0.08475000161 | F32: =+'C-1'!F10+'C-1'!F21 -> 0.08893268344 | G32: =+'C-1'!G10+'C-1'!G21 -> 0.110048065 | H32: =+'C-1'!H10+'C-1'!H21 -> 0.08477885074 | I32: =+'C-1'!I10+'C-1'!I21 -> 0.1236346637
A33: Services Other | B33: =+'C-1'!B11+'C-1'!B22 -> 0 | C33: =+'C-1'!C11+'C-1'!C22 -> 0 | D33: =+'C-1'!D11+'C-1'!D22 -> 0 | E33: =+'C-1'!E11+'C-1'!E22 -> 0.08475000161 | F33: =+'C-1'!F11+'C-1'!F22 -> 0.08893268344 | G33: =+'C-1'!G11+'C-1'!G22 -> 0.110048065 | H33: =+'C-1'!H11+'C-1'!H22 -> 0.08477885074 | I33: =+'C-1'!I11+'C-1'!I22 -> 0.1236346637
A34: Business Overheads | B34: =+'C-1'!B12+'C-1'!B23 -> 0 | C34: =+'C-1'!C12+'C-1'!C23 -> 0 | D34: =+'C-1'!D12+'C-1'!D23 -> 0 | E34: =+'C-1'!E12+'C-1'!E23 -> 0.1130000161 | F34: =+'C-1'!F12+'C-1'!F23 -> 0.1185769266 | G34: =+'C-1'!G12+'C-1'!G23 -> 0.1467307909 | H34: =+'C-1'!H12+'C-1'!H23 -> 0.1130384677 | I34: =+'C-1'!I12+'C-1'!I23 -> 0.1648461136
A35: Other | B35: =+'C-1'!B13+'C-1'!B24 -> 0 | C35: =+'C-1'!C13+'C-1'!C24 -> 0 | D35: =+'C-1'!D13+'C-1'!D24 -> 0 | E35: =+'C-1'!E13+'C-1'!E24 -> 0 | F35: =+'C-1'!F13+'C-1'!F24 -> 0 | G35: =+'C-1'!G13+'C-1'!G24 -> 0 | H35: =+'C-1'!H13+'C-1'!H24 -> 0 | I35: =+'C-1'!I13+'C-1'!I24 -> 0
A36: Expenditure Before Escalations | B36: =SUM(B30:B35) -> 0 | C36: 0 | D36: 0 | E36: 2.938 | F36: 3.083 | G36: 3.815 | H36: 2.939 | I36: 4.286 | J36: =IF(ROUND(SUM(B14:I14)+SUM(B25:I25)-SUM(B36:I36),2)<>0,"Warning Check Totals","OK") -> OK
A39: C. Specific Escalations (as per calculations on page 2)
A41: Summary by Cost Category
A42: Labour | C42: =+C125 -> 0 | D42: 0 | E42: 0 | F42: 0 | G42: 0 | H42: 0 | I42: 0
A43: Materials | C43: 0 | D43: 0 | E43: 0 | F43: 0 | G43: 0 | H43: 0 | I43: 0
A44: Contracts | C44: =+C127 -> 0 | D44: 0 | E44: 0 | F44: 0 | G44: 0 | H44: 0 | I44: 0
A45: Services Other | C45: =+C128 -> 0 | D45: 0 | E45: 0 | F45: 0 | G45: 0 | H45: 0 | I45: 0
A46: Business Overheads | C46: =+C129 -> 0 | D46: 0 | E46: 0 | F46: 0 | G46: 0 | H46: 0 | I46: 0
A47: Other | C47: =+C130 -> 0 | D47: 0 | E47: 0 | F47: 0 | G47: 0 | H47: 0 | I47: 0
A48: Specific Escalations | C48: =SUM(C42:C47) -> 0 | D48: 0 | E48: 0 | F48: 0 | G48: 0 | H48: 0 | I48: 0 | J48: =IF(ROUND(SUM(B48:I48)-SUM(B131:I131),2)<>0,"Warning Check Escalations","OK") -> OK
A50: D. General Escalations (as per calculations on page 2)
A52: Summary by Cost Category
A53: Labour | C53: =+C161 -> 0 | D53: 0 | E53: 0.02713000569 | F53: 0.04498246921 | G53: 0.07767922858 | H53: 0.07718751409 | I53: 0.1384310602
A54: Materials | C54: 0 | D54: 0 | E54: 0 | F54: 0 | G54: 0 | H54: 0 | I54: 0
A55: Contracts | C55: =+C163 -> 0 | D55: 0 | E55: 0.0005089237596 | F55: 0.001339241282 | G55: 0.002885976885 | H55: 0.003441329563 | I55: 0.007334316513
A56: Services Other | C56: =+C164 -> 0 | D56: 0 | E56: 0.0005089237596 | F56: 0.001339241282 | G56: 0.002885976885 | H56: 0.003441329563 | I56: 0.007334316513
A57: Business Overheads | C57: =+C165 -> 0 | D57: 0 | E57: 0.004340801616 | F57: 0.007197195409 | G57: 0.01242867848 | H57: 0.01235000295 | I57: 0.02214896457
A58: Other | C58: =+C166 -> 0 | D58: 0 | E58: 0 | F58: 0 | G58: 0 | H58: 0 | I58: 0
A59: General Escalations | C59: =SUM(C53:C58) -> 0 | D59: 0 | E59: 0.03248865483 | F59: 0.05485814718 | G59: 0.09587986083 | H59: 0.09642017617 | I59: 0.1752486578 | J59: =IF(ROUND(SUM(B59:I59)-SUM(B167:I167),2)<>0,"Warning Check Escalations","OK") -> OK
A61: Total Expenditure | B61: =LU_TemplateYearHeader -> 2012/13 | C61: 2013/14 | D61: 2014/15 | E61: 2015/16 | F61: 2016/17 | G61: 2017/18 | H61: 2018/19 | I61: 2019/20
A63: Summary by Cost Category
A64: Labour | B64: =+B42+B30+B53 -> 0 | C64: 0 | D64: 0 | E64: 0.7333799912 | F64: 0.786088226 | G64: 0.9947465309 | H64: 0.7836778972 | I64: 1.168719506
A65: Materials | B65: 0 | C65: 0 | D65: 0 | E65: 1.949249995 | F65: 2.04545195 | G65: 2.531105777 | H65: 1.949913448 | I65: 2.843596114
A66: Contracts | B66: =+B44+B32+B55 -> 0 | C66: 0 | D66: 0 | E66: 0.08525892537 | F66: 0.09027192473 | G66: 0.1129340419 | H66: 0.08822018031 | I66: 0.1309689802
A67: Services Other | B67: =+B45+B33+B56 -> 0 | C67: 0 | D67: 0 | E67: 0.08525892537 | F67: 0.09027192473 | G67: 0.1129340419 | H67: 0.08822018031 | I67: 0.1309689802
A68: Business Overheads | B68: =+B46+B34+B57 -> 0 | C68: 0 | D68: 0 | E68: 0.1173408177 | F68: 0.125774122 | G68: 0.1591594693 | H68: 0.1253884706 | I68: 0.1869950782
A69: Other | B69: =+B47+B35+B58 -> 0 | C69: 0 | D69: 0 | E69: 0 | F69: 0 | G69: 0 | H69: 0 | I69: 0
A70: Total Expenditure | B70: =SUM(B64:B69) -> 0 | C70: 0 | D70: 0 | E70: 2.970488655 | F70: 3.137858147 | G70: 3.910879861 | H70: 3.035420176 | I70: 4.461248658 | J70: =IF(ROUND(SUM(B48:I48)+SUM(B36:I36)+SUM(B59:I59)-SUM(B70:I70),3)<>0,"Warning Check Totals","OK") -> OK
A72: Expenditure Categorisation | AA72: Base costs - Expenditure Categorisation
A73: Allocation of Capital Expenditure to Asset Categories | N73: Expenditure Category Proportions | AA73: On pro-rata basis
D74: =+'Ref-1'!P39 -> 2014/15 | E74: =+'Ref-1'!Q39 -> 2015/16 | F74: =+'Ref-1'!R39 -> 2016/17 | G74: =+'Ref-1'!S39 -> 2017/18 | H74: =+'Ref-1'!T39 -> 2018/19 | I74: =+'Ref-1'!U39 -> 2019/20 | N74: =E74 -> 2015/16 | O74: =F74 -> 2016/17 | P74: =G74 -> 2017/18 | Q74: =H74 -> 2018/19 | R74: =I74 -> 2019/20
A75: ='I-2'!C7 -> ACS Replacements | E75: =+E$70*N75 -> 2.970488655 | F75: =+F$70*O75 -> 3.137858147 | G75: 3.910879861 | H75: 3.035420176 | I75: 4.461248658 | N75: 1 | O75: 1 | P75: 1 | Q75: 1 | R75: 1 | AA75: =+E75*E$14/E$36 -> 2.970488655 | AB75: =+F75*F$14/F$36 -> 3.137858147 | AC75: =+G75*G$14/G$36 -> 3.910879861 | AD75: =+H75*H$14/H$36 -> 3.035420176 | AE75: =+I75*I$14/I$36 -> 4.461248658
A76: ='I-2'!C8 -> ACS IT Infrastructure | E76: =+E$70*N76 -> 0 | F76: =+F$70*O76 -> 0 | G76: =+G$70*P76 -> 0 | H76: =+H$70*Q76 -> 0 | I76: =+I$70*R76 -> 0 | N76: 0 | O76: 0 | P76: 0 | Q76: 0 | R76: 0
A77: ='I-2'!C9 -> Superannuation | E77: 0 | F77: 0 | G77: 0 | H77: 0 | I77: 0 | N77: 0 | O77: 0 | P77: 0 | Q77: 0 | R77: 0 | AA77: =+E77*E$14/E$36 -> 0 | AB77: =+F77*F$14/F$36 -> 0 | AC77: =+G77*G$14/G$36 -> 0 | AD77: =+H77*H$14/H$36 -> 0 | AE77: =+I77*I$14/I$36 -> 0
A78: ='I-2'!C10 -> Equity Raising Costs | E78: 0 | F78: 0 | G78: 0 | H78: 0 | I78: 0 | N78: 0 | O78: 0 | P78: 0 | Q78: 0 | R78: 0
A79: ='I-2'!C11 -> Spare - Not in Use | E79: 0 | F79: 0 | G79: 0 | H79: 0 | I79: 0 | N79: 0 | O79: 0 | P79: 0 | Q79: 0 | R79: 0 | AA79: =+E79*E$14/E$36 -> 0 | AB79: =+F79*F$14/F$36 -> 0 | AC79: =+G79*G$14/G$36 -> 0 | AD79: =+H79*H$14/H$36 -> 0 | AE79: =+I79*I$14/I$36 -> 0
A80: ='I-2'!C12 -> Spare - Not in Use | E80: 0 | F80: 0 | G80: 0 | H80: 0 | I80: 0 | N80: 0 | O80: 0 | P80: 0 | Q80: 0 | R80: 0
A81: ='I-2'!C13 -> Spare - Not in Use | E81: =+E$70*N81 -> 0 | F81: 0 | G81: 0 | H81: 0 | I81: 0 | N81: 0 | O81: 0 | P81: 0 | Q81: 0 | R81: 0
A82: ='I-2'!C14 -> Spare - Not in Use | E82: 0 | F82: 0 | G82: 0 | H82: 0 | I82: 0 | N82: 0 | O82: 0 | P82: 0 | Q82: 0 | R82: 0
A83: ='I-2'!C15 -> Spare - Not in Use | E83: 0 | F83: 0 | G83: 0 | H83: 0 | I83: 0 | N83: 0 | O83: 0 | P83: 0 | Q83: 0 | R83: 0 | AA83: =+E83*E$14/E$36 -> 0 | AB83: =+F83*F$14/F$36 -> 0 | AC83: =+G83*G$14/G$36 -> 0 | AD83: =+H83*H$14/H$36 -> 0 | AE83: =+I83*I$14/I$36 -> 0
A84: ='I-2'!C16 -> Spare - Not in Use | E84: 0 | F84: 0 | G84: 0 | H84: 0 | I84: 0 | N84: 0 | O84: 0 | P84: 0 | Q84: 0 | R84: 0
A85: ='I-2'!C17 -> Spare - Not in Use | E85: 0 | F85: 0 | G85: 0 | H85: 0 | I85: 0 | N85: 0 | O85: 0 | P85: 0 | Q85: 0 | R85: 0 | AA85: =+E85*E$14/E$36 -> 0 | AB85: =+F85*F$14/F$36 -> 0 | AC85: =+G85*G$14/G$36 -> 0 | AD85: =+H85*H$14/H$36 -> 0 | AE85: =+I85*I$14/I$36 -> 0
A86: ='I-2'!C18 -> Spare - Not in Use | E86: 0 | F86: 0 | G86: 0 | H86: 0 | I86: 0 | N86: 0 | O86: 0 | P86: 0 | Q86: 0 | R86: 0
A87: ='I-2'!C19 -> Spare - Not in Use | E87: 0 | F87: 0 | G87: 0 | H87: 0 | I87: 0 | N87: 0 | O87: 0 | P87: 0 | Q87: 0 | R87: 0 | AA87: =+E87*E$14/E$36 -> 0 | AB87: =+F87*F$14/F$36 -> 0 | AC87: =+G87*G$14/G$36 -> 0 | AD87: =+H87*H$14/H$36 -> 0 | AE87: =+I87*I$14/I$36 -> 0
A88: ='I-2'!C20 -> Spare - Not in Use | E88: 0 | F88: 0 | G88: 0 | H88: 0 | I88: 0 | N88: 0 | O88: 0 | P88: 0 | Q88: 0 | R88: 0
A89: ='I-2'!C21 -> Spare - Not in Use | E89: 0 | F89: 0 | G89: 0 | H89: 0 | I89: 0 | N89: 0 | O89: 0 | P89: 0 | Q89: 0 | R89: 0
A90: ='I-2'!C22 -> Spare - Not in Use | E90: 0 | F90: 0 | G90: 0 | H90: 0 | I90: 0 | N90: 0 | O90: 0 | P90: 0 | Q90: 0 | R90: 0
A91: ='I-2'!C23 -> Spare - Not in Use | E91: 0 | F91: 0 | G91: 0 | H91: 0 | I91: 0 | N91: 0 | O91: 0 | P91: 0 | Q91: 0 | R91: 0
A92: ='I-2'!C24 -> Spare - Not in Use | E92: 0 | F92: 0 | G92: 0 | H92: 0 | I92: 0 | N92: 0 | O92: 0 | P92: 0 | Q92: 0 | R92: 0
A93: ='I-2'!C25 -> Spare - Not in Use | E93: 0 | F93: 0 | G93: 0 | H93: 0 | I93: 0 | N93: 0 | O93: 0 | P93: 0 | Q93: 0 | R93: 0
A94: ='I-2'!C26 -> Spare - Not in Use | E94: 0 | F94: 0 | G94: 0 | H94: 0 | I94: 0 | N94: 0 | O94: 0 | P94: 0 | Q94: 0 | R94: 0
A95: ='I-2'!C27 -> Spare - Not in Use | E95: 0 | F95: 0 | G95: 0 | H95: 0 | I95: 0 | N95: 0 | O95: 0 | P95: 0 | Q95: 0 | R95: 0
A96: ='I-2'!C28 -> Spare - Not in Use | E96: 0 | F96: 0 | G96: 0 | H96: 0 | I96: 0 | N96: 0 | O96: 0 | P96: 0 | Q96: 0 | R96: 0
A97: ='I-2'!C29 -> Spare - Not in Use | E97: 0 | F97: 0 | G97: 0 | H97: 0 | I97: 0 | N97: 0 | O97: 0 | P97: 0 | Q97: 0 | R97: 0
A98: ='I-2'!C30 -> Spare - Not in Use
A99: ='I-2'!C31 -> Spare - Not in Use
A100: ='I-2'!C32 -> Spare - Not in Use
A101: Total Expenditure | B101: =SUM(B75:B100) -> 0 | C101: 0 | D101: 0 | E101: 2.970488655 | F101: 3.137858147 | G101: 3.910879861 | H101: 3.035420176 | I101: 4.461248658 | O101: Check | P101: =E101-E70 -> 0 | Q101: =F101-F70 -> 0 | R101: 0 | S101: 0 | T101: 0 | AA101: =SUM(AA75:AA100) -> 2.970488655 | AB101: 3.137858147 | AC101: 3.910879861 | AD101: 3.035420176 | AE101: 4.461248658
A103: Specific Escalation Calculations | C103: 2 | D103: =+C103+1 -> 3 | E103: 4 | F103: 5 | G103: 6 | H103: 7 | I103: 8 | J103: Escalation | K103: Escalation
A104: Select the specific escalations to apply for this expenditure category and the cost categories to which they relate: | J104: Type | K104: Active? | N104: Dollar Impact of Each Escalation (uncompounded with other specific escalations of the same cost category)
A105: Important - if there are not enough rows, copy and insert an entire row with the escalation formulas, not just the visible cells | N105: =LU_TemplateYearHeader2 -> 2013/14 | O105: 2014/15 | P105: 2015/16 | Q105: 2016/17 | R105: 2017/18 | S105: 2018/19 | T105: 2019/20
A106: Specific Escalations | B106: Cost Category | C106: =LU_TemplateYearHeader2 -> 2013/14 | D106: 2014/15 | E106: 2015/16 | F106: 2016/17 | G106: 2017/18 | H106: 2018/19 | I106: 2019/20
C107: =IF($K107="No",0,VLOOKUP($A107,Escalations_Specific_Costs,+C$103,FALSE)) -> 0 | D107: =IF($K107="No",0,IF($J107="one-off",VLOOKUP($A107,Escalations_Specific_Costs,+D$103,FALSE),(VLOOKUP($A107,Escalations_Specific_Costs,+D$103,FALSE)+1)*(1+C107)-1)) -> 0 | E107: 0 | F107: 0 | G107: 0 | H107: 0 | I107: 0 | J107: =IF(ISNA(VLOOKUP($A107,Escalations_Specific_Costs,+I$103+3,FALSE)),0,VLOOKUP($A107,Escalations_Specific_Costs,+I$103+3,FALSE)) -> 0 | K107: =IF(ISNA(VLOOKUP($A107,Escalations_Specific_Costs,1,FALSE)),"No","Yes") -> No | N107: =IF($B107<>0,(+VLOOKUP($B107,$A$30:$I$35,3,FALSE))*(C107),0) -> 0 | O107: =IF($B107<>0,(+VLOOKUP($B107,$A$30:$I$35,4,FALSE))*(D107),0) -> 0 | P107: =IF($B107<>0,(+VLOOKUP($B107,$A$30:$I$35,5,FALSE))*(E107),0) -> 0 | Q107: =IF($B107<>0,(+VLOOKUP($B107,$A$30:$I$35,6,FALSE))*(F107),0) -> 0 | R107: =IF($B107<>0,(+VLOOKUP($B107,$A$30:$I$35,7,FALSE))*(G107),0) -> 0 | S107: =IF($B107<>0,(+VLOOKUP($B107,$A$30:$I$35,8,FALSE))*(H107),0) -> 0 | T107: =IF($B107<>0,(+VLOOKUP($B107,$A$30:$I$35,9,FALSE))*(I107),0) -> 0
C108: =IF($K108="No",0,VLOOKUP($A108,Escalations_Specific_Costs,+C$103,FALSE)) -> 0 | D108: 0 | E108: 0 | F108: 0 | G108: 0 | H108: 0 | I108: 0 | J108: =IF(ISNA(VLOOKUP($A108,Escalations_Specific_Costs,+I$103+3,FALSE)),0,VLOOKUP($A108,Escalations_Specific_Costs,+I$103+3,FALSE)) -> 0 | K108: =IF(ISNA(VLOOKUP($A108,Escalations_Specific_Costs,1,FALSE)),"No","Yes") -> No | N108: =IF($B108<>0,(+VLOOKUP($B108,$A$30:$I$35,3,FALSE))*(C108),0) -> 0 | O108: =IF($B108<>0,(+VLOOKUP($B108,$A$30:$I$35,4,FALSE))*(D108),0) -> 0 | P108: =IF($B108<>0,(+VLOOKUP($B108,$A$30:$I$35,5,FALSE))*(E108),0) -> 0 | Q108: =IF($B108<>0,(+VLOOKUP($B108,$A$30:$I$35,6,FALSE))*(F108),0) -> 0 | R108: =IF($B108<>0,(+VLOOKUP($B108,$A$30:$I$35,7,FALSE))*(G108),0) -> 0 | S108: =IF($B108<>0,(+VLOOKUP($B108,$A$30:$I$35,8,FALSE))*(H108),0) -> 0 | T108: =IF($B108<>0,(+VLOOKUP($B108,$A$30:$I$35,9,FALSE))*(I108),0) -> 0
C109: =IF($K109="No",0,VLOOKUP($A109,Escalations_Specific_Costs,+C$103,FALSE)) -> 0 | D109: 0 | E109: 0 | F109: 0 | G109: 0 | H109: 0 | I109: 0 | J109: =IF(ISNA(VLOOKUP($A109,Escalations_Specific_Costs,+I$103+3,FALSE)),0,VLOOKUP($A109,Escalations_Specific_Costs,+I$103+3,FALSE)) -> 0 | K109: =IF(ISNA(VLOOKUP($A109,Escalations_Specific_Costs,1,FALSE)),"No","Yes") -> No | N109: =IF($B109<>0,(+VLOOKUP($B109,$A$30:$I$35,3,FALSE))*(C109),0) -> 0 | O109: =IF($B109<>0,(+VLOOKUP($B109,$A$30:$I$35,4,FALSE))*(D109),0) -> 0 | P109: =IF($B109<>0,(+VLOOKUP($B109,$A$30:$I$35,5,FALSE))*(E109),0) -> 0 | Q109: =IF($B109<>0,(+VLOOKUP($B109,$A$30:$I$35,6,FALSE))*(F109),0) -> 0 | R109: =IF($B109<>0,(+VLOOKUP($B109,$A$30:$I$35,7,FALSE))*(G109),0) -> 0 | S109: =IF($B109<>0,(+VLOOKUP($B109,$A$30:$I$35,8,FALSE))*(H109),0) -> 0 | T109: =IF($B109<>0,(+VLOOKUP($B109,$A$30:$I$35,9,FALSE))*(I109),0) -> 0
A110: End of Escalations - Note all escalations must be above this row. Do Not delete this row | N110: =SUM(N107:N109) -> 0 | O110: 0 | P110: 0 | Q110: 0 | R110: 0 | S110: 0 | T110: 0
M111: Check | N111: =ROUND(N110-C131,3) -> 0 | O111: 0 | P111: 0 | Q111: 0 | R111: 0 | S111: 0 | T111: 0
A112: Total Specific Escalations to Apply (based on escalations selected above)
A113: Labour | C113: =PRODUCT(IF($B$107:$B$110=$A113,C$107:C$110+1))-IF(COUNTIF($B$107:$B$110,+$A113)=0,0,1) -> 0 | D113: =PRODUCT(IF($B$107:$B$110=$A113,D$107:D$110+1))-IF(COUNTIF($B$107:$B$110,+$A113)=0,0,1) -> 0 | E113: =PRODUCT(IF($B$107:$B$110=$A113,E$107:E$110+1))-IF(COUNTIF($B$107:$B$110,+$A113)=0,0,1) -> 0 | F113: =PRODUCT(IF($B$107:$B$110=$A113,F$107:F$110+1))-IF(COUNTIF($B$107:$B$110,+$A113)=0,0,1) -> 0 | G113: =PRODUCT(IF($B$107:$B$110=$A113,G$107:G$110+1))-IF(COUNTIF($B$107:$B$110,+$A113)=0,0,1) -> 0 | H113: =PRODUCT(IF($B$107:$B$110=$A113,H$107:H$110+1))-IF(COUNTIF($B$107:$B$110,+$A113)=0,0,1) -> 0 | I113: =PRODUCT(IF($B$107:$B$110=$A113,I$107:I$110+1))-IF(COUNTIF($B$107:$B$110,+$A113)=0,0,1) -> 0
A114: Materials | C114: =PRODUCT(IF($B$107:$B$110=$A114,C$107:C$110+1))-IF(COUNTIF($B$107:$B$110,+$A114)=0,0,1) -> 0 | D114: =PRODUCT(IF($B$107:$B$110=$A114,D$107:D$110+1))-IF(COUNTIF($B$107:$B$110,+$A114)=0,0,1) -> 0 | E114: =PRODUCT(IF($B$107:$B$110=$A114,E$107:E$110+1))-IF(COUNTIF($B$107:$B$110,+$A114)=0,0,1) -> 0 | F114: =PRODUCT(IF($B$107:$B$110=$A114,F$107:F$110+1))-IF(COUNTIF($B$107:$B$110,+$A114)=0,0,1) -> 0 | G114: =PRODUCT(IF($B$107:$B$110=$A114,G$107:G$110+1))-IF(COUNTIF($B$107:$B$110,+$A114)=0,0,1) -> 0 | H114: =PRODUCT(IF($B$107:$B$110=$A114,H$107:H$110+1))-IF(COUNTIF($B$107:$B$110,+$A114)=0,0,1) -> 0 | I114: =PRODUCT(IF($B$107:$B$110=$A114,I$107:I$110+1))-IF(COUNTIF($B$107:$B$110,+$A114)=0,0,1) -> 0
A115: Contracts | C115: =PRODUCT(IF($B$107:$B$110=$A115,C$107:C$110+1))-IF(COUNTIF($B$107:$B$110,+$A115)=0,0,1) -> 0 | D115: =PRODUCT(IF($B$107:$B$110=$A115,D$107:D$110+1))-IF(COUNTIF($B$107:$B$110,+$A115)=0,0,1) -> 0 | E115: =PRODUCT(IF($B$107:$B$110=$A115,E$107:E$110+1))-IF(COUNTIF($B$107:$B$110,+$A115)=0,0,1) -> 0 | F115: =PRODUCT(IF($B$107:$B$110=$A115,F$107:F$110+1))-IF(COUNTIF($B$107:$B$110,+$A115)=0,0,1) -> 0 | G115: =PRODUCT(IF($B$107:$B$110=$A115,G$107:G$110+1))-IF(COUNTIF($B$107:$B$110,+$A115)=0,0,1) -> 0 | H115: =PRODUCT(IF($B$107:$B$110=$A115,H$107:H$110+1))-IF(COUNTIF($B$107:$B$110,+$A115)=0,0,1) -> 0 | I115: =PRODUCT(IF($B$107:$B$110=$A115,I$107:I$110+1))-IF(COUNTIF($B$107:$B$110,+$A115)=0,0,1) -> 0
A116: Services Other | C116: =PRODUCT(IF($B$107:$B$110=$A116,C$107:C$110+1))-IF(COUNTIF($B$107:$B$110,+$A116)=0,0,1) -> 0 | D116: =PRODUCT(IF($B$107:$B$110=$A116,D$107:D$110+1))-IF(COUNTIF($B$107:$B$110,+$A116)=0,0,1) -> 0 | E116: =PRODUCT(IF($B$107:$B$110=$A116,E$107:E$110+1))-IF(COUNTIF($B$107:$B$110,+$A116)=0,0,1) -> 0 | F116: =PRODUCT(IF($B$107:$B$110=$A116,F$107:F$110+1))-IF(COUNTIF($B$107:$B$110,+$A116)=0,0,1) -> 0 | G116: =PRODUCT(IF($B$107:$B$110=$A116,G$107:G$110+1))-IF(COUNTIF($B$107:$B$110,+$A116)=0,0,1) -> 0 | H116: =PRODUCT(IF($B$107:$B$110=$A116,H$107:H$110+1))-IF(COUNTIF($B$107:$B$110,+$A116)=0,0,1) -> 0 | I116: =PRODUCT(IF($B$107:$B$110=$A116,I$107:I$110+1))-IF(COUNTIF($B$107:$B$110,+$A116)=0,0,1) -> 0
A117: Business Overheads | C117: =PRODUCT(IF($B$107:$B$110=$A117,C$107:C$110+1))-IF(COUNTIF($B$107:$B$110,+$A117)=0,0,1) -> 0 | D117: =PRODUCT(IF($B$107:$B$110=$A117,D$107:D$110+1))-IF(COUNTIF($B$107:$B$110,+$A117)=0,0,1) -> 0 | E117: =PRODUCT(IF($B$107:$B$110=$A117,E$107:E$110+1))-IF(COUNTIF($B$107:$B$110,+$A117)=0,0,1) -> 0 | F117: =PRODUCT(IF($B$107:$B$110=$A117,F$107:F$110+1))-IF(COUNTIF($B$107:$B$110,+$A117)=0,0,1) -> 0 | G117: =PRODUCT(IF($B$107:$B$110=$A117,G$107:G$110+1))-IF(COUNTIF($B$107:$B$110,+$A117)=0,0,1) -> 0 | H117: =PRODUCT(IF($B$107:$B$110=$A117,H$107:H$110+1))-IF(COUNTIF($B$107:$B$110,+$A117)=0,0,1) -> 0 | I117: =PRODUCT(IF($B$107:$B$110=$A117,I$107:I$110+1))-IF(COUNTIF($B$107:$B$110,+$A117)=0,0,1) -> 0
A118: Other | C118: =PRODUCT(IF($B$107:$B$110=$A118,C$107:C$110+1))-IF(COUNTIF($B$107:$B$110,+$A118)=0,0,1) -> 0 | D118: =PRODUCT(IF($B$107:$B$110=$A118,D$107:D$110+1))-IF(COUNTIF($B$107:$B$110,+$A118)=0,0,1) -> 0 | E118: =PRODUCT(IF($B$107:$B$110=$A118,E$107:E$110+1))-IF(COUNTIF($B$107:$B$110,+$A118)=0,0,1) -> 0 | F118: =PRODUCT(IF($B$107:$B$110=$A118,F$107:F$110+1))-IF(COUNTIF($B$107:$B$110,+$A118)=0,0,1) -> 0 | G118: =PRODUCT(IF($B$107:$B$110=$A118,G$107:G$110+1))-IF(COUNTIF($B$107:$B$110,+$A118)=0,0,1) -> 0 | H118: =PRODUCT(IF($B$107:$B$110=$A118,H$107:H$110+1))-IF(COUNTIF($B$107:$B$110,+$A118)=0,0,1) -> 0 | I118: =PRODUCT(IF($B$107:$B$110=$A118,I$107:I$110+1))-IF(COUNTIF($B$107:$B$110,+$A118)=0,0,1) -> 0
A119: Product of Escalators by Category | C119: =PRODUCT(IF(C113:C118<>0,C113:C118+1))-IF(SUM(C113:C118)<>0,1,0) -> 0 | D119: =PRODUCT(IF(D113:D118<>0,D113:D118+1))-IF(SUM(D113:D118)<>0,1,0) -> 0 | E119: =PRODUCT(IF(E113:E118<>0,E113:E118+1))-IF(SUM(E113:E118)<>0,1,0) -> 0 | F119: =PRODUCT(IF(F113:F118<>0,F113:F118+1))-IF(SUM(F113:F118)<>0,1,0) -> 0 | G119: =PRODUCT(IF(G113:G118<>0,G113:G118+1))-IF(SUM(G113:G118)<>0,1,0) -> 0 | H119: =PRODUCT(IF(H113:H118<>0,H113:H118+1))-IF(SUM(H113:H118)<>0,1,0) -> 0 | I119: =PRODUCT(IF(I113:I118<>0,I113:I118+1))-IF(SUM(I113:I118)<>0,1,0) -> 0
A120: Product of All Escalators | C120: =PRODUCT(IF((C107:C110<>0),C107:C110+1))-IF(C107:C110<>0,1,0) -> 0 | D120: =PRODUCT(IF((D107:D110<>0),D107:D110+1))-IF(D107:D110<>0,1,0) -> 0 | E120: =PRODUCT(IF((E107:E110<>0),E107:E110+1))-IF(E107:E110<>0,1,0) -> 0 | F120: =PRODUCT(IF((F107:F110<>0),F107:F110+1))-IF(F107:F110<>0,1,0) -> 0 | G120: =PRODUCT(IF((G107:G110<>0),G107:G110+1))-IF(G107:G110<>0,1,0) -> 0 | H120: =PRODUCT(IF((H107:H110<>0),H107:H110+1))-IF(H107:H110<>0,1,0) -> 0 | I120: =PRODUCT(IF((I107:I110<>0),I107:I110+1))-IF(I107:I110<>0,1,0) -> 0
A121: Difference - should be Zero | C121: =+C119-C120 -> 0 | D121: 0 | E121: 0 | F121: 0 | G121: 0 | H121: 0 | I121: 0 | J121: =IF(SUM(C121:I121)<>0,"Warning Check Escalations","OK") -> OK
A123: Dollar Impact of Specific Escalations
A124: Summary by Cost Category | C124: =LU_TemplateYearHeader2 -> 2013/14 | D124: 2014/15 | E124: 2015/16 | F124: 2016/17 | G124: 2017/18 | H124: 2018/19 | I124: 2019/20
A125: Labour | C125: =+C30*(C113) -> 0 | D125: 0 | E125: 0 | F125: 0 | G125: 0 | H125: 0 | I125: 0
A126: Materials | C126: 0 | D126: 0 | E126: 0 | F126: 0 | G126: 0 | H126: 0 | I126: 0
A127: Contracts | C127: =+C32*(C115) -> 0 | D127: 0 | E127: 0 | F127: 0 | G127: 0 | H127: 0 | I127: 0
A128: Services Other | C128: =+C33*(C116) -> 0 | D128: 0 | E128: 0 | F128: 0 | G128: 0 | H128: 0 | I128: 0
A129: Business Overheads | C129: =+C34*(C117) -> 0 | D129: 0 | E129: 0 | F129: 0 | G129: 0 | H129: 0 | I129: 0
A130: Other | C130: =+C35*(C118) -> 0 | D130: 0 | E130: 0 | F130: 0 | G130: 0 | H130: 0 | I130: 0
A131: Dollar Impact of Escalations | C131: =SUM(C125:C130) -> 0 | D131: 0 | E131: 0 | F131: 0 | G131: 0 | H131: 0 | I131: 0
A132: Average Specific Escalation % | C132: =IF(C36<>0,+C131/C36,0) -> 0 | D132: 0 | E132: 0 | F132: 0 | G132: 0 | H132: 0 | I132: 0
A135: General Escalation Calculations | C135: 2 | D135: =+C135+1 -> 3 | E135: 4 | F135: 5 | G135: 6 | H135: 7 | I135: 8 | J135: Escalation | K135: Escalation
A136: Select the general escalations to apply for this expenditure category and the cost categories to which they relate: | J136: Type | K136: Active?
A137: Important - if there are not enough rows, copy and insert an entire row with the escalation formulas, not just the visible cells | N137: Dollar Impact of Each Escalation (uncompounded with other general escalations of the same cost category)
B138: Cost Category | C138: =LU_TemplateYearHeader2 -> 2013/14 | D138: 2014/15 | E138: 2015/16 | F138: 2016/17 | G138: 2017/18 | H138: 2018/19 | I138: 2019/20 | N138: =LU_TemplateYearHeader2 -> 2013/14 | O138: 2014/15 | P138: 2015/16 | Q138: 2016/17 | R138: 2017/18 | S138: 2018/19 | T138: 2019/20
A139: General Escalation (%Real**)
A140: Labour | B140: Labour | C140: =IF($K140="No",0,VLOOKUP($A140,Escalations_General_Costs,+C$135,FALSE)) -> 0 | D140: =IF($K140="No",0,IF($J140="one-off",VLOOKUP($A140,Escalations_General_Costs,+'I-6'!D$9+1,FALSE),((VLOOKUP($A140,Escalations_General_Costs,+'I-6'!D$9+1,FALSE)+1)*(1+C140)-1))) -> 0.0166 | E140: =IF($K140="No",0,IF($J140="one-off",VLOOKUP($A140,Escalations_General_Costs,+'I-6'!E$9+1,FALSE),((VLOOKUP($A140,Escalations_General_Costs,+'I-6'!E$9+1,FALSE)+1)*(1+D140)-1))) -> 0.03841416814 | F140: =IF($K140="No",0,IF($J140="one-off",VLOOKUP($A140,Escalations_General_Costs,+'I-6'!F$9+1,FALSE),((VLOOKUP($A140,Escalations_General_Costs,+'I-6'!F$9+1,FALSE)+1)*(1+E140)-1))) -> 0.06069642395 | G140: =IF($K140="No",0,IF($J140="one-off",VLOOKUP($A140,Escalations_General_Costs,+'I-6'!G$9+1,FALSE),((VLOOKUP($A140,Escalations_General_Costs,+'I-6'!G$9+1,FALSE)+1)*(1+F140)-1))) -> 0.08470395618 | H140: =IF($K140="No",0,IF($J140="one-off",VLOOKUP($A140,Escalations_General_Costs,+'I-6'!H$9+1,FALSE),((VLOOKUP($A140,Escalations_General_Costs,+'I-6'!H$9+1,FALSE)+1)*(1+G140)-1))) -> 0.1092548688 | I140: =IF($K140="No",0,IF($J140="one-off",VLOOKUP($A140,Escalations_General_Costs,+'I-6'!I$9+1,FALSE),((VLOOKUP($A140,Escalations_General_Costs,+'I-6'!I$9+1,FALSE)+1)*(1+H140)-1))) -> 0.1343614604 | J140: =IF(ISNA(VLOOKUP($A140,Escalations_General_Costs,+I$103+3,FALSE)),0,VLOOKUP($A140,Escalations_General_Costs,+I$103+3,FALSE)) -> Cumulative | K140: =IF(ISNA(VLOOKUP($A140,Escalations_General_Costs,1,FALSE)),"No","Yes") -> Yes | N140: =IF($B140<>0,(+VLOOKUP($B140,$A$30:$I$35,3,FALSE)+VLOOKUP($B140,$A$42:$I$47,3,FALSE))*(C140),0) -> 0 | O140: =IF($B140<>0,(+VLOOKUP($B140,$A$30:$I$35,4,FALSE)+VLOOKUP($B140,$A$42:$I$47,4,FALSE))*(D140),0) -> 0 | P140: =IF($B140<>0,(+VLOOKUP($B140,$A$30:$I$35,5,FALSE)+VLOOKUP($B140,$A$42:$I$47,5,FALSE))*(E140),0) -> 0.02713000569 | Q140: =IF($B140<>0,(+VLOOKUP($B140,$A$30:$I$35,6,FALSE)+VLOOKUP($B140,$A$42:$I$47,6,FALSE))*(F140),0) -> 0.04498246921 | R140: =IF($B140<>0,(+VLOOKUP($B140,$A$30:$I$35,7,FALSE)+VLOOKUP($B140,$A$42:$I$47,7,FALSE))*(G140),0) -> 0.07767922858 | S140: =IF($B140<>0,(+VLOOKUP($B140,$A$30:$I$35,8,FALSE)+VLOOKUP($B140,$A$42:$I$47,8,FALSE))*(H140),0) -> 0.07718751409 | T140: =IF($B140<>0,(+VLOOKUP($B140,$A$30:$I$35,9,FALSE)+VLOOKUP($B140,$A$42:$I$47,9,FALSE))*(I140),0) -> 0.1384310602
A141: Materials | B141: Materials | C141: 0 | D141: =IF($K141="No",0,IF($J141="one-off",VLOOKUP($A141,Escalations_General_Costs,+'I-6'!D$9+1,FALSE),((VLOOKUP($A141,Escalations_General_Costs,+'I-6'!D$9+1,FALSE)+1)*(1+C141)-1))) -> 0 | E141: =IF($K141="No",0,IF($J141="one-off",VLOOKUP($A141,Escalations_General_Costs,+'I-6'!E$9+1,FALSE),((VLOOKUP($A141,Escalations_General_Costs,+'I-6'!E$9+1,FALSE)+1)*(1+D141)-1))) -> 0 | F141: =IF($K141="No",0,IF($J141="one-off",VLOOKUP($A141,Escalations_General_Costs,+'I-6'!F$9+1,FALSE),((VLOOKUP($A141,Escalations_General_Costs,+'I-6'!F$9+1,FALSE)+1)*(1+E141)-1))) -> 0 | G141: =IF($K141="No",0,IF($J141="one-off",VLOOKUP($A141,Escalations_General_Costs,+'I-6'!G$9+1,FALSE),((VLOOKUP($A141,Escalations_General_Costs,+'I-6'!G$9+1,FALSE)+1)*(1+F141)-1))) -> 0 | H141: =IF($K141="No",0,IF($J141="one-off",VLOOKUP($A141,Escalations_General_Costs,+'I-6'!H$9+1,FALSE),((VLOOKUP($A141,Escalations_General_Costs,+'I-6'!H$9+1,FALSE)+1)*(1+G141)-1))) -> 0 | I141: =IF($K141="No",0,IF($J141="one-off",VLOOKUP($A141,Escalations_General_Costs,+'I-6'!I$9+1,FALSE),((VLOOKUP($A141,Escalations_General_Costs,+'I-6'!I$9+1,FALSE)+1)*(1+H141)-1))) -> 0 | J141: Cumulative | K141: Yes | N141: =IF($B141<>0,(+VLOOKUP($B141,$A$30:$I$35,3,FALSE)+VLOOKUP($B141,$A$42:$I$47,3,FALSE))*(C141),0) -> 0 | O141: =IF($B141<>0,(+VLOOKUP($B141,$A$30:$I$35,4,FALSE)+VLOOKUP($B141,$A$42:$I$47,4,FALSE))*(D141),0) -> 0 | P141: =IF($B141<>0,(+VLOOKUP($B141,$A$30:$I$35,5,FALSE)+VLOOKUP($B141,$A$42:$I$47,5,FALSE))*(E141),0) -> 0 | Q141: =IF($B141<>0,(+VLOOKUP($B141,$A$30:$I$35,6,FALSE)+VLOOKUP($B141,$A$42:$I$47,6,FALSE))*(F141),0) -> 0 | R141: =IF($B141<>0,(+VLOOKUP($B141,$A$30:$I$35,7,FALSE)+VLOOKUP($B141,$A$42:$I$47,7,FALSE))*(G141),0) -> 0 | S141: =IF($B141<>0,(+VLOOKUP($B141,$A$30:$I$35,8,FALSE)+VLOOKUP($B141,$A$42:$I$47,8,FALSE))*(H141),0) -> 0 | T141: =IF($B141<>0,(+VLOOKUP($B141,$A$30:$I$35,9,FALSE)+VLOOKUP($B141,$A$42:$I$47,9,FALSE))*(I141),0) -> 0
A142: Services-construction | B142: Contracts | C142: 0 | D142: =IF($K142="No",0,IF($J142="one-off",VLOOKUP($A142,Escalations_General_Costs,+'I-6'!D$9+1,FALSE),((VLOOKUP($A142,Escalations_General_Costs,+'I-6'!D$9+1,FALSE)+1)*(1+C142)-1))) -> 0.001 | E142: =IF($K142="No",0,IF($J142="one-off",VLOOKUP($A142,Escalations_General_Costs,+'I-6'!E$9+1,FALSE),((VLOOKUP($A142,Escalations_General_Costs,+'I-6'!E$9+1,FALSE)+1)*(1+D142)-1))) -> 0.006005 | F142: =IF($K142="No",0,IF($J142="one-off",VLOOKUP($A142,Escalations_General_Costs,+'I-6'!F$9+1,FALSE),((VLOOKUP($A142,Escalations_General_Costs,+'I-6'!F$9+1,FALSE)+1)*(1+E142)-1))) -> 0.015059045 | G142: =IF($K142="No",0,IF($J142="one-off",VLOOKUP($A142,Escalations_General_Costs,+'I-6'!G$9+1,FALSE),((VLOOKUP($A142,Escalations_General_Costs,+'I-6'!G$9+1,FALSE)+1)*(1+F142)-1))) -> 0.02622469449 | H142: =IF($K142="No",0,IF($J142="one-off",VLOOKUP($A142,Escalations_General_Costs,+'I-6'!H$9+1,FALSE),((VLOOKUP($A142,Escalations_General_Costs,+'I-6'!H$9+1,FALSE)+1)*(1+G142)-1))) -> 0.04059184022 | I142: =IF($K142="No",0,IF($J142="one-off",VLOOKUP($A142,Escalations_General_Costs,+'I-6'!I$9+1,FALSE),((VLOOKUP($A142,Escalations_General_Costs,+'I-6'!I$9+1,FALSE)+1)*(1+H142)-1))) -> 0.05932249334 | J142: Cumulative | K142: Yes | N142: =IF($B142<>0,(+VLOOKUP($B142,$A$30:$I$35,3,FALSE)+VLOOKUP($B142,$A$42:$I$47,3,FALSE))*(C142),0) -> 0 | O142: =IF($B142<>0,(+VLOOKUP($B142,$A$30:$I$35,4,FALSE)+VLOOKUP($B142,$A$42:$I$47,4,FALSE))*(D142),0) -> 0 | P142: =IF($B142<>0,(+VLOOKUP($B142,$A$30:$I$35,5,FALSE)+VLOOKUP($B142,$A$42:$I$47,5,FALSE))*(E142),0) -> 0.0005089237596 | Q142: =IF($B142<>0,(+VLOOKUP($B142,$A$30:$I$35,6,FALSE)+VLOOKUP($B142,$A$42:$I$47,6,FALSE))*(F142),0) -> 0.001339241282 | R142: =IF($B142<>0,(+VLOOKUP($B142,$A$30:$I$35,7,FALSE)+VLOOKUP($B142,$A$42:$I$47,7,FALSE))*(G142),0) -> 0.002885976885 | S142: =IF($B142<>0,(+VLOOKUP($B142,$A$30:$I$35,8,FALSE)+VLOOKUP($B142,$A$42:$I$47,8,FALSE))*(H142),0) -> 0.003441329563 | T142: =IF($B142<>0,(+VLOOKUP($B142,$A$30:$I$35,9,FALSE)+VLOOKUP($B142,$A$42:$I$47,9,FALSE))*(I142),0) -> 0.007334316513
A143: Services-general | B143: Services Other | C143: 0 | D143: =IF($K143="No",0,IF($J143="one-off",VLOOKUP($A143,Escalations_General_Costs,+'I-6'!D$9+1,FALSE),((VLOOKUP($A143,Escalations_General_Costs,+'I-6'!D$9+1,FALSE)+1)*(1+C143)-1))) -> 0.001 | E143: =IF($K143="No",0,IF($J143="one-off",VLOOKUP($A143,Escalations_General_Costs,+'I-6'!E$9+1,FALSE),((VLOOKUP($A143,Escalations_General_Costs,+'I-6'!E$9+1,FALSE)+1)*(1+D143)-1))) -> 0.006005 | F143: =IF($K143="No",0,IF($J143="one-off",VLOOKUP($A143,Escalations_General_Costs,+'I-6'!F$9+1,FALSE),((VLOOKUP($A143,Escalations_General_Costs,+'I-6'!F$9+1,FALSE)+1)*(1+E143)-1))) -> 0.015059045 | G143: =IF($K143="No",0,IF($J143="one-off",VLOOKUP($A143,Escalations_General_Costs,+'I-6'!G$9+1,FALSE),((VLOOKUP($A143,Escalations_General_Costs,+'I-6'!G$9+1,FALSE)+1)*(1+F143)-1))) -> 0.02622469449 | H143: =IF($K143="No",0,IF($J143="one-off",VLOOKUP($A143,Escalations_General_Costs,+'I-6'!H$9+1,FALSE),((VLOOKUP($A143,Escalations_General_Costs,+'I-6'!H$9+1,FALSE)+1)*(1+G143)-1))) -> 0.04059184022 | I143: =IF($K143="No",0,IF($J143="one-off",VLOOKUP($A143,Escalations_General_Costs,+'I-6'!I$9+1,FALSE),((VLOOKUP($A143,Escalations_General_Costs,+'I-6'!I$9+1,FALSE)+1)*(1+H143)-1))) -> 0.05932249334 | J143: Cumulative | K143: Yes | N143: 0 | O143: 0 | P143: 0.0005089237596 | Q143: 0.001339241282 | R143: 0.002885976885 | S143: 0.003441329563 | T143: 0.007334316513
A144: Labour | B144: Business Overheads | C144: 0 | D144: =IF($K144="No",0,IF($J144="one-off",VLOOKUP($A144,Escalations_General_Costs,+'I-6'!D$9+1,FALSE),((VLOOKUP($A144,Escalations_General_Costs,+'I-6'!D$9+1,FALSE)+1)*(1+C144)-1))) -> 0.0166 | E144: =IF($K144="No",0,IF($J144="one-off",VLOOKUP($A144,Escalations_General_Costs,+'I-6'!E$9+1,FALSE),((VLOOKUP($A144,Escalations_General_Costs,+'I-6'!E$9+1,FALSE)+1)*(1+D144)-1))) -> 0.03841416814 | F144: =IF($K144="No",0,IF($J144="one-off",VLOOKUP($A144,Escalations_General_Costs,+'I-6'!F$9+1,FALSE),((VLOOKUP($A144,Escalations_General_Costs,+'I-6'!F$9+1,FALSE)+1)*(1+E144)-1))) -> 0.06069642395 | G144: =IF($K144="No",0,IF($J144="one-off",VLOOKUP($A144,Escalations_General_Costs,+'I-6'!G$9+1,FALSE),((VLOOKUP($A144,Escalations_General_Costs,+'I-6'!G$9+1,FALSE)+1)*(1+F144)-1))) -> 0.08470395618 | H144: =IF($K144="No",0,IF($J144="one-off",VLOOKUP($A144,Escalations_General_Costs,+'I-6'!H$9+1,FALSE),((VLOOKUP($A144,Escalations_General_Costs,+'I-6'!H$9+1,FALSE)+1)*(1+G144)-1))) -> 0.1092548688 | I144: =IF($K144="No",0,IF($J144="one-off",VLOOKUP($A144,Escalations_General_Costs,+'I-6'!I$9+1,FALSE),((VLOOKUP($A144,Escalations_General_Costs,+'I-6'!I$9+1,FALSE)+1)*(1+H144)-1))) -> 0.1343614604 | J144: Cumulative | K144: Yes | N144: 0 | O144: 0 | P144: 0.004340801616 | Q144: 0.007197195409 | R144: 0.01242867848 | S144: 0.01235000295 | T144: 0.02214896457
A145: Materials - Land | B145: Other | C145: 0 | D145: =IF($K145="No",0,IF($J145="one-off",VLOOKUP($A145,Escalations_General_Costs,+'I-6'!D$9+1,FALSE),((VLOOKUP($A145,Escalations_General_Costs,+'I-6'!D$9+1,FALSE)+1)*(1+C145)-1))) -> 0.0596 | E145: =IF($K145="No",0,IF($J145="one-off",VLOOKUP($A145,Escalations_General_Costs,+'I-6'!E$9+1,FALSE),((VLOOKUP($A145,Escalations_General_Costs,+'I-6'!E$9+1,FALSE)+1)*(1+D145)-1))) -> 0.12275216 | F145: =IF($K145="No",0,IF($J145="one-off",VLOOKUP($A145,Escalations_General_Costs,+'I-6'!F$9+1,FALSE),((VLOOKUP($A145,Escalations_General_Costs,+'I-6'!F$9+1,FALSE)+1)*(1+E145)-1))) -> 0.1896681887 | G145: =IF($K145="No",0,IF($J145="one-off",VLOOKUP($A145,Escalations_General_Costs,+'I-6'!G$9+1,FALSE),((VLOOKUP($A145,Escalations_General_Costs,+'I-6'!G$9+1,FALSE)+1)*(1+F145)-1))) -> 0.2605724128 | H145: =IF($K145="No",0,IF($J145="one-off",VLOOKUP($A145,Escalations_General_Costs,+'I-6'!H$9+1,FALSE),((VLOOKUP($A145,Escalations_General_Costs,+'I-6'!H$9+1,FALSE)+1)*(1+G145)-1))) -> 0.3357025286 | I145: =IF($K145="No",0,IF($J145="one-off",VLOOKUP($A145,Escalations_General_Costs,+'I-6'!I$9+1,FALSE),((VLOOKUP($A145,Escalations_General_Costs,+'I-6'!I$9+1,FALSE)+1)*(1+H145)-1))) -> 0.4153103993 | J145: Cumulative | K145: Yes | N145: =IF($B145<>0,(+VLOOKUP($B145,$A$30:$I$35,3,FALSE)+VLOOKUP($B145,$A$42:$I$47,3,FALSE))*(C145),0) -> 0 | O145: =IF($B145<>0,(+VLOOKUP($B145,$A$30:$I$35,4,FALSE)+VLOOKUP($B145,$A$42:$I$47,4,FALSE))*(D145),0) -> 0 | P145: =IF($B145<>0,(+VLOOKUP($B145,$A$30:$I$35,5,FALSE)+VLOOKUP($B145,$A$42:$I$47,5,FALSE))*(E145),0) -> 0 | Q145: =IF($B145<>0,(+VLOOKUP($B145,$A$30:$I$35,6,FALSE)+VLOOKUP($B145,$A$42:$I$47,6,FALSE))*(F145),0) -> 0 | R145: =IF($B145<>0,(+VLOOKUP($B145,$A$30:$I$35,7,FALSE)+VLOOKUP($B145,$A$42:$I$47,7,FALSE))*(G145),0) -> 0 | S145: =IF($B145<>0,(+VLOOKUP($B145,$A$30:$I$35,8,FALSE)+VLOOKUP($B145,$A$42:$I$47,8,FALSE))*(H145),0) -> 0 | T145: =IF($B145<>0,(+VLOOKUP($B145,$A$30:$I$35,9,FALSE)+VLOOKUP($B145,$A$42:$I$47,9,FALSE))*(I145),0) -> 0
A146: End of Escalations - Note all escalations must be above this row. Do Not delete this row | N146: =SUM(N140:N145) -> 0 | O146: =SUM(O140:O145) -> 0 | P146: 0.03248865483 | Q146: 0.05485814718 | R146: 0.09587986083 | S146: 0.09642017617 | T146: 0.1752486578
M147: Check | N147: =ROUND(N146-C167,3) -> 0 | O147: 0 | P147: 0 | Q147: 0 | R147: 0 | S147: 0 | T147: 0
A148: Total General Escalations to Apply (based on escalations selected above)
A149: Labour | C149: =PRODUCT(IF($B$140:$B$146=$A149,C$140:C$146+1))-IF(COUNTIF($B$140:$B$146,+$A149)=0,0,1) -> 0 | D149: =PRODUCT(IF($B$140:$B$146=$A149,D$140:D$146+1))-IF(COUNTIF($B$140:$B$146,+$A149)=0,0,1) -> 0.0166 | E149: =PRODUCT(IF($B$140:$B$146=$A149,E$140:E$146+1))-IF(COUNTIF($B$140:$B$146,+$A149)=0,0,1) -> 0.03841416814 | F149: =PRODUCT(IF($B$140:$B$146=$A149,F$140:F$146+1))-IF(COUNTIF($B$140:$B$146,+$A149)=0,0,1) -> 0.06069642395 | G149: =PRODUCT(IF($B$140:$B$146=$A149,G$140:G$146+1))-IF(COUNTIF($B$140:$B$146,+$A149)=0,0,1) -> 0.08470395618 | H149: =PRODUCT(IF($B$140:$B$146=$A149,H$140:H$146+1))-IF(COUNTIF($B$140:$B$146,+$A149)=0,0,1) -> 0.1092548688 | I149: =PRODUCT(IF($B$140:$B$146=$A149,I$140:I$146+1))-IF(COUNTIF($B$140:$B$146,+$A149)=0,0,1) -> 0.1343614604
A150: Materials | C150: =PRODUCT(IF($B$140:$B$146=$A150,C$140:C$146+1))-IF(COUNTIF($B$140:$B$146,+$A150)=0,0,1) -> 0 | D150: =PRODUCT(IF($B$140:$B$146=$A150,D$140:D$146+1))-IF(COUNTIF($B$140:$B$146,+$A150)=0,0,1) -> 0 | E150: =PRODUCT(IF($B$140:$B$146=$A150,E$140:E$146+1))-IF(COUNTIF($B$140:$B$146,+$A150)=0,0,1) -> 0 | F150: =PRODUCT(IF($B$140:$B$146=$A150,F$140:F$146+1))-IF(COUNTIF($B$140:$B$146,+$A150)=0,0,1) -> 0 | G150: =PRODUCT(IF($B$140:$B$146=$A150,G$140:G$146+1))-IF(COUNTIF($B$140:$B$146,+$A150)=0,0,1) -> 0 | H150: =PRODUCT(IF($B$140:$B$146=$A150,H$140:H$146+1))-IF(COUNTIF($B$140:$B$146,+$A150)=0,0,1) -> 0 | I150: =PRODUCT(IF($B$140:$B$146=$A150,I$140:I$146+1))-IF(COUNTIF($B$140:$B$146,+$A150)=0,0,1) -> 0
A151: Contracts | C151: =PRODUCT(IF($B$140:$B$146=$A151,C$140:C$146+1))-IF(COUNTIF($B$140:$B$146,+$A151)=0,0,1) -> 0 | D151: =PRODUCT(IF($B$140:$B$146=$A151,D$140:D$146+1))-IF(COUNTIF($B$140:$B$146,+$A151)=0,0,1) -> 0.001 | E151: =PRODUCT(IF($B$140:$B$146=$A151,E$140:E$146+1))-IF(COUNTIF($B$140:$B$146,+$A151)=0,0,1) -> 0.006005 | F151: =PRODUCT(IF($B$140:$B$146=$A151,F$140:F$146+1))-IF(COUNTIF($B$140:$B$146,+$A151)=0,0,1) -> 0.015059045 | G151: =PRODUCT(IF($B$140:$B$146=$A151,G$140:G$146+1))-IF(COUNTIF($B$140:$B$146,+$A151)=0,0,1) -> 0.02622469449 | H151: =PRODUCT(IF($B$140:$B$146=$A151,H$140:H$146+1))-IF(COUNTIF($B$140:$B$146,+$A151)=0,0,1) -> 0.04059184022 | I151: =PRODUCT(IF($B$140:$B$146=$A151,I$140:I$146+1))-IF(COUNTIF($B$140:$B$146,+$A151)=0,0,1) -> 0.05932249334
A152: Services Other | C152: =PRODUCT(IF($B$140:$B$146=$A152,C$140:C$146+1))-IF(COUNTIF($B$140:$B$146,+$A152)=0,0,1) -> 0 | D152: =PRODUCT(IF($B$140:$B$146=$A152,D$140:D$146+1))-IF(COUNTIF($B$140:$B$146,+$A152)=0,0,1) -> 0.001 | E152: =PRODUCT(IF($B$140:$B$146=$A152,E$140:E$146+1))-IF(COUNTIF($B$140:$B$146,+$A152)=0,0,1) -> 0.006005 | F152: =PRODUCT(IF($B$140:$B$146=$A152,F$140:F$146+1))-IF(COUNTIF($B$140:$B$146,+$A152)=0,0,1) -> 0.015059045 | G152: =PRODUCT(IF($B$140:$B$146=$A152,G$140:G$146+1))-IF(COUNTIF($B$140:$B$146,+$A152)=0,0,1) -> 0.02622469449 | H152: =PRODUCT(IF($B$140:$B$146=$A152,H$140:H$146+1))-IF(COUNTIF($B$140:$B$146,+$A152)=0,0,1) -> 0.04059184022 | I152: =PRODUCT(IF($B$140:$B$146=$A152,I$140:I$146+1))-IF(COUNTIF($B$140:$B$146,+$A152)=0,0,1) -> 0.05932249334
A153: Business Overheads | C153: =PRODUCT(IF($B$140:$B$146=$A153,C$140:C$146+1))-IF(COUNTIF($B$140:$B$146,+$A153)=0,0,1) -> 0 | D153: =PRODUCT(IF($B$140:$B$146=$A153,D$140:D$146+1))-IF(COUNTIF($B$140:$B$146,+$A153)=0,0,1) -> 0.0166 | E153: =PRODUCT(IF($B$140:$B$146=$A153,E$140:E$146+1))-IF(COUNTIF($B$140:$B$146,+$A153)=0,0,1) -> 0.03841416814 | F153: =PRODUCT(IF($B$140:$B$146=$A153,F$140:F$146+1))-IF(COUNTIF($B$140:$B$146,+$A153)=0,0,1) -> 0.06069642395 | G153: =PRODUCT(IF($B$140:$B$146=$A153,G$140:G$146+1))-IF(COUNTIF($B$140:$B$146,+$A153)=0,0,1) -> 0.08470395618 | H153: =PRODUCT(IF($B$140:$B$146=$A153,H$140:H$146+1))-IF(COUNTIF($B$140:$B$146,+$A153)=0,0,1) -> 0.1092548688 | I153: =PRODUCT(IF($B$140:$B$146=$A153,I$140:I$146+1))-IF(COUNTIF($B$140:$B$146,+$A153)=0,0,1) -> 0.1343614604
A154: Other | C154: =PRODUCT(IF($B$140:$B$146=$A154,C$140:C$146+1))-IF(COUNTIF($B$140:$B$146,+$A154)=0,0,1) -> 0 | D154: =PRODUCT(IF($B$140:$B$146=$A154,D$140:D$146+1))-IF(COUNTIF($B$140:$B$146,+$A154)=0,0,1) -> 0.0596 | E154: =PRODUCT(IF($B$140:$B$146=$A154,E$140:E$146+1))-IF(COUNTIF($B$140:$B$146,+$A154)=0,0,1) -> 0.12275216 | F154: =PRODUCT(IF($B$140:$B$146=$A154,F$140:F$146+1))-IF(COUNTIF($B$140:$B$146,+$A154)=0,0,1) -> 0.1896681887 | G154: =PRODUCT(IF($B$140:$B$146=$A154,G$140:G$146+1))-IF(COUNTIF($B$140:$B$146,+$A154)=0,0,1) -> 0.2605724128 | H154: =PRODUCT(IF($B$140:$B$146=$A154,H$140:H$146+1))-IF(COUNTIF($B$140:$B$146,+$A154)=0,0,1) -> 0.3357025286 | I154: =PRODUCT(IF($B$140:$B$146=$A154,I$140:I$146+1))-IF(COUNTIF($B$140:$B$146,+$A154)=0,0,1) -> 0.4153103993
A155: Product of Escalators by Category | C155: =PRODUCT(IF(C149:C154<>0,C149:C154+1))-IF(SUM(C149:C154)<>0,1,0) -> 0 | D155: =PRODUCT(IF(D149:D154<>0,D149:D154+1))-IF(SUM(D149:D154)<>0,1,0) -> 0.09726193985 | E155: =PRODUCT(IF(E149:E154<>0,E149:E154+1))-IF(SUM(E149:E154)<>0,1,0) -> 0.2252519088 | F155: =PRODUCT(IF(F149:F154<>0,F149:F154+1))-IF(SUM(F149:F154)<>0,1,0) -> 0.379083839 | G155: =PRODUCT(IF(G149:G154<>0,G149:G154+1))-IF(SUM(G149:G154)<>0,1,0) -> 0.5619789215 | H155: =PRODUCT(IF(H149:H154<>0,H149:H154+1))-IF(SUM(H149:H154)<>0,1,0) -> 0.7796445439 | I155: =PRODUCT(IF(I149:I154<>0,I149:I154+1))-IF(SUM(I149:I154)<>0,1,0) -> 1.04367114
A156: Product of All Escalators | C156: =PRODUCT(IF((C140:C146<>0),C140:C146+1))-IF(C140:C146<>0,1,0) -> 0 | D156: =PRODUCT(IF((D140:D146<>0),D140:D146+1))-IF(D140:D146<>0,1,0) -> 0.09726193985 | E156: =PRODUCT(IF((E140:E146<>0),E140:E146+1))-IF(E140:E146<>0,1,0) -> 0.2252519088 | F156: =PRODUCT(IF((F140:F146<>0),F140:F146+1))-IF(F140:F146<>0,1,0) -> 0.379083839 | G156: =PRODUCT(IF((G140:G146<>0),G140:G146+1))-IF(G140:G146<>0,1,0) -> 0.5619789215 | H156: =PRODUCT(IF((H140:H146<>0),H140:H146+1))-IF(H140:H146<>0,1,0) -> 0.7796445439 | I156: =PRODUCT(IF((I140:I146<>0),I140:I146+1))-IF(I140:I146<>0,1,0) -> 1.04367114
A157: Difference - should be Zero | C157: =ROUND(+C155-C156,4) -> 0 | D157: 0 | E157: 0 | F157: 0 | G157: 0 | H157: 0 | I157: 0 | J157: =IF(SUM(C157:I157)<>0,"Warning Check Escalations","OK") -> OK
A159: Dollar Impact of General Escalations
A160: Summary by Cost Category | C160: =LU_TemplateYearHeader2 -> 2013/14 | D160: 2014/15 | E160: 2015/16 | F160: 2016/17 | G160: 2017/18 | H160: 2018/19 | I160: 2019/20
A161: Labour | C161: =(+C30+C42)*(C$149) -> 0 | D161: 0 | E161: 0.02713000569 | F161: 0.04498246921 | G161: 0.07767922858 | H161: 0.07718751409 | I161: 0.1384310602
A162: Materials | C162: =(+C31+C43)*(C$150) -> 0 | D162: 0 | E162: 0 | F162: 0 | G162: 0 | H162: 0 | I162: 0
A163: Contracts | C163: =(+C32+C44)*(C$151) -> 0 | D163: =(+D32+D44)*(D$151) -> 0 | E163: =(+E32+E44)*(E$151) -> 0.0005089237596 | F163: 0.001339241282 | G163: 0.002885976885 | H163: 0.003441329563 | I163: 0.007334316513
A164: Services Other | C164: =(+C33+C45)*(C$152) -> 0 | D164: =(+D33+D45)*(D$152) -> 0 | E164: =(+E33+E45)*(E$152) -> 0.0005089237596 | F164: 0.001339241282 | G164: 0.002885976885 | H164: 0.003441329563 | I164: 0.007334316513
A165: Business Overheads | C165: =(+C34+C46)*(C$153) -> 0 | D165: =(+D34+D46)*(D$153) -> 0 | E165: =(+E34+E46)*(E$153) -> 0.004340801616 | F165: 0.007197195409 | G165: 0.01242867848 | H165: 0.01235000295 | I165: 0.02214896457
A166: Other | C166: =(+C35+C47)*(C$154) -> 0 | D166: 0 | E166: 0 | F166: 0 | G166: 0 | H166: 0 | I166: 0
A167: Dollar Impact of General Escalations | C167: =SUM(C161:C166) -> 0 | D167: 0 | E167: 0.03248865483 | F167: 0.05485814718 | G167: 0.09587986083 | H167: 0.09642017617 | I167: 0.1752486578
A168: Average General Escalation % | C168: =IF((+C36+C48)<>0,+C167/(+C36+C48),0) -> 0 | D168: 0 | E168: 0.01105808537 | F168: 0.01779375517 | G168: 0.02513233574 | H168: 0.03280713718 | I168: 0.04088862758
A172: Variations
A173: Total of all the Variation Templates
B174: =LU_TemplateYearHeader -> 2012/13 | C174: 2013/14 | D174: 2014/15 | E174: 2015/16 | F174: 2016/17 | G174: 2017/18 | H174: 2018/19 | I174: 2019/20
A175: Summary by Cost Category
A176: Labour | C176: =SUMIF($A$217:$A$227,$A176,C$217:C$227) -> 0 | D176: 0 | E176: 0 | F176: 0 | G176: 0 | H176: 0 | I176: 0
A177: Materials | C177: 0 | D177: 0 | E177: 0 | F177: 0 | G177: 0 | H177: 0 | I177: 0
A178: Contracts | C178: =SUMIF($A$217:$A$227,$A178,C$217:C$227) -> 0 | D178: 0 | E178: 0 | F178: 0 | G178: 0 | H178: 0 | I178: 0
A179: Services Other | C179: 0 | D179: 0 | E179: 0 | F179: 0 | G179: 0 | H179: 0 | I179: 0
A180: Business Overheads | C180: 0 | D180: 0 | E180: 0 | F180: 0 | G180: 0 | H180: 0 | I180: 0
A181: Other | C181: =SUMIF($A$217:$A$227,$A181,C$217:C$227) -> 0 | D181: 0 | E181: 0 | F181: 0 | G181: 0 | H181: 0 | I181: 0
A182: Total Variations | C182: =SUM(C176:C181) -> 0 | D182: 0 | E182: 0 | F182: 0 | G182: 0 | H182: 0 | I182: 0
A184: Variations Summary
A185: Summary of the Variation Templates | C185: Number of variations: | D185: =MAX(J210:J227) -> 1
B186: =LU_TemplateYearHeader -> 2012/13 | C186: 2013/14 | D186: 2014/15 | E186: 2015/16 | F186: 2016/17 | G186: 2017/18 | H186: 2018/19 | I186: 2019/20 | J186: No:
A187: =IF(ISNUMBER($J187),OFFSET($B$209,MATCH(+$J187,$J$210:$J$227,0),0),"") -> Total Variation | B187: =IF(ISNUMBER($J187),OFFSET(B$209,MATCH(+$J187,$J$210:$J$227,0)+11,0),"") -> 0 | C187: 0 | D187: 0 | E187: 0 | F187: 0 | G187: 0 | H187: 0 | I187: 0 | J187: =IF($D$185>0,1,"") -> 1
J188: =IF(J187<$D$185,J187+1,"") -> 
J189: =IF(J188<$D$185,J188+1,"") -> 
J197: =IF(J196<$D$185,J196+1,"") -> 
J198: =IF(J197<$D$185,J197+1,"") -> 
J199: =IF(J198<$D$185,J198+1,"") -> 
J200: =IF(J199<$D$185,J199+1,"") -> 
J201: =IF(J200<$D$185,J200+1,"") -> 
A202: Total Variations | B202: =SUM(B187:B201) -> 0 | C202: =SUM(C187:C201) -> 0 | D202: 0 | E202: 0 | F202: 0 | G202: 0 | H202: 0 | I202: 0
A204: Variation Templates
A205: Variations are input below, with one Variation Template to be completed for each variation.
A206: Click on the "Insert New Variation" button to add a new template:
A207: Variations to be input in Real 2013 dollars (ie without escalations) . Escalations are calculated separately on all expenditure, including variations.
J209: Var. No:
A210: Variation Title | B210: Total Variation | J210: 1
A211: Description
A212: Source of data. (Name, date, location)
A213: Version of Data
B215: =LU_TemplateYearHeader -> 2012/13 | C215: 2013/14 | D215: 2014/15 | E215: 2015/16 | F215: 2016/17 | G215: 2017/18 | H215: 2018/19 | I215: 2019/20
A216: Summary by Cost Category
A217: Labour
A218: Materials
A219: Contracts
A220: Services Other
A221: Business Overheads
A222: Other
A223: Total of this variation | C223: =SUM(C217:C222) -> 0 | D223: 0 | E223: 0 | F223: 0 | G223: 0 | H223: 0 | I223: 0
A227: End of Variations - Note all variations must be above this row. Do Not delete this row
A232: Charts
A234: Chart Data - Historic Expenditure | B234: =LU_TemplateYearHeader3 -> 2005/06 | C234: 2006/07 | D234: 2007/08 | E234: 2008/09 | F234: 2009/10 | G234: 2010/11 | H234: 2011/12
A235: Historic Expenditure | B235: =OFFSET(List_CapexStart,MATCH($K$1,'I-4 History'!$A$6:$A$282)+6,+'I-4 History'!E5) -> 0 | C235: =OFFSET(List_CapexStart,MATCH($K$1,'I-4 History'!$A$6:$A$282)+6,+'I-4 History'!F5) -> 0 | D235: =OFFSET(List_CapexStart,MATCH($K$1,'I-4 History'!$A$6:$A$282)+6,+'I-4 History'!G5) -> 0 | E235: =OFFSET(List_CapexStart,MATCH($K$1,'I-4 History'!$A$6:$A$282)+6,+'I-4 History'!H5) -> 0 | F235: =OFFSET(List_CapexStart,MATCH($K$1,'I-4 History'!$A$6:$A$282)+6,+'I-4 History'!I5) -> 0 | G235: =OFFSET(List_CapexStart,MATCH($K$1,'I-4 History'!$A$6:$A$282)+6,+'I-4 History'!J5) -> 0 | H235: =OFFSET(List_CapexStart,MATCH($K$1,'I-4 History'!$A$6:$A$282)+6,+'I-4 History'!K5) -> 0
A236: Chart Data - Base Year+Planned | B236: =LU_TemplateYearHeader -> 2012/13 | C236: 2013/14 | D236: 2014/15 | E236: 2015/16 | F236: 2016/17 | G236: 2017/18 | H236: 2018/19 | I236: 2019/20
A237: Baseline Expenditure | B237: =+B14 -> 0 | C237: 0 | D237: 0 | E237: 2.938 | F237: 3.083 | G237: 3.815 | H237: 2.939 | I237: 4.286
A238: Total with Variations | B238: =+B36 -> 0 | C238: 0 | D238: 0 | E238: 2.938 | F238: 3.083 | G238: 3.815 | H238: 2.939 | I238: 4.286
A239: Total with Specific Escalations | B239: =+B36+B48 -> 0 | C239: 0 | D239: 0 | E239: 2.938 | F239: 3.083 | G239: 3.815 | H239: 2.939 | I239: 4.286
A240: Total with All Escalations | B240: =+B70 -> 0 | C240: 0 | D240: 0 | E240: 2.970488655 | F240: 3.137858147 | G240: 3.910879861 | H240: 3.035420176 | I240: 4.461248658

Sheet C-2
A1: Capital Expenditure | I1: =LU_TemplateDollarDenomination -> $'M Dec 2013 | J1: Sheet Number: | K1: 2
A2: Costs Category : | B2: =OFFSET(List_CapexCategoriesStart,+$K$1,1) -> ACS IT Infrastructure
A3: Sign-off : | B3: =OFFSET(List_CapexCategoriesStart,+$K$1,2) -> Tom Walker | E3: Version of Data: | H3: Dated:
B4: =LU_TemplateYearHeader -> 2012/13 | C4: 2013/14 | D4: 2014/15 | E4: 2015/16 | F4: 2016/17 | G4: 2017/18 | H4: 2018/19 | I4: 2019/20 | J4: Notes & checks
A5: A. Baseline Expenditure, based on:
A7: Summary by Cost Category
A8: Labour | B8: =OFFSET(List_CapexStart,MATCH($K$1,'I-4 History'!$A$6:$A$256)+2,0) -> 0 | C8: =OFFSET(Future_CapexStart,MATCH($K$1,'I-5 Future'!$A$6:$A$284)+2,+'I-5 Future'!D$5) -> 0 | D8: =OFFSET(Future_CapexStart,MATCH($K$1,'I-5 Future'!$A$6:$A$284)+2,+'I-5 Future'!E$5) -> 0 | E8: =OFFSET(Future_CapexStart,MATCH($K$1,'I-5 Future'!$A$6:$A$284)+2,+'I-5 Future'!F$5) -> 0 | F8: =OFFSET(Future_CapexStart,MATCH($K$1,'I-5 Future'!$A$6:$A$284)+2,+'I-5 Future'!G$5) -> 0 | G8: =OFFSET(Future_CapexStart,MATCH($K$1,'I-5 Future'!$A$6:$A$284)+2,+'I-5 Future'!H$5) -> 0 | H8: =OFFSET(Future_CapexStart,MATCH($K$1,'I-5 Future'!$A$6:$A$284)+2,+'I-5 Future'!I$5) -> 0 | I8: =OFFSET(Future_CapexStart,MATCH($K$1,'I-5 Future'!$A$6:$A$284)+2,+'I-5 Future'!J$5) -> 0
A9: Materials | B9: =OFFSET(List_CapexStart,MATCH($K$1,'I-4 History'!$A$6:$A$256)+3,0) -> 0 | C9: =OFFSET(Future_CapexStart,MATCH($K$1,'I-5 Future'!$A$6:$A$284)+3,+'I-5 Future'!D$5) -> 0 | D9: =OFFSET(Future_CapexStart,MATCH($K$1,'I-5 Future'!$A$6:$A$284)+3,+'I-5 Future'!E$5) -> 0 | E9: =OFFSET(Future_CapexStart,MATCH($K$1,'I-5 Future'!$A$6:$A$284)+3,+'I-5 Future'!F$5) -> 0.7548076923 | F9: =OFFSET(Future_CapexStart,MATCH($K$1,'I-5 Future'!$A$6:$A$284)+3,+'I-5 Future'!G$5) -> 0.2165384615 | G9: =OFFSET(Future_CapexStart,MATCH($K$1,'I-5 Future'!$A$6:$A$284)+3,+'I-5 Future'!H$5) -> 0.2165384615 | H9: =OFFSET(Future_CapexStart,MATCH($K$1,'I-5 Future'!$A$6:$A$284)+3,+'I-5 Future'!I$5) -> 0.2165384615 | I9: =OFFSET(Future_CapexStart,MATCH($K$1,'I-5 Future'!$A$6:$A$284)+3,+'I-5 Future'!J$5) -> 0.2163461538
A10: Contracts | B10: =OFFSET(List_CapexStart,MATCH($K$1,'I-4 History'!$A$6:$A$256)+4,0) -> 0 | C10: =OFFSET(Future_CapexStart,MATCH($K$1,'I-5 Future'!$A$6:$A$284)+4,+'I-5 Future'!D$5) -> 0 | D10: =OFFSET(Future_CapexStart,MATCH($K$1,'I-5 Future'!$A$6:$A$284)+4,+'I-5 Future'!E$5) -> 0 | E10: =OFFSET(Future_CapexStart,MATCH($K$1,'I-5 Future'!$A$6:$A$284)+4,+'I-5 Future'!F$5) -> 0 | F10: =OFFSET(Future_CapexStart,MATCH($K$1,'I-5 Future'!$A$6:$A$284)+4,+'I-5 Future'!G$5) -> 0 | G10: =OFFSET(Future_CapexStart,MATCH($K$1,'I-5 Future'!$A$6:$A$284)+4,+'I-5 Future'!H$5) -> 0 | H10: =OFFSET(Future_CapexStart,MATCH($K$1,'I-5 Future'!$A$6:$A$284)+4,+'I-5 Future'!I$5) -> 0 | I10: =OFFSET(Future_CapexStart,MATCH($K$1,'I-5 Future'!$A$6:$A$284)+4,+'I-5 Future'!J$5) -> 0
A11: Services Other | B11: =OFFSET(List_CapexStart,MATCH($K$1,'I-4 History'!$A$6:$A$256)+5,0) -> 0 | C11: =OFFSET(Future_CapexStart,MATCH($K$1,'I-5 Future'!$A$6:$A$284)+5,+'I-5 Future'!D$5) -> 0 | D11: =OFFSET(Future_CapexStart,MATCH($K$1,'I-5 Future'!$A$6:$A$284)+5,+'I-5 Future'!E$5) -> 0 | E11: =OFFSET(Future_CapexStart,MATCH($K$1,'I-5 Future'!$A$6:$A$284)+5,+'I-5 Future'!F$5) -> 0 | F11: =OFFSET(Future_CapexStart,MATCH($K$1,'I-5 Future'!$A$6:$A$284)+5,+'I-5 Future'!G$5) -> 0 | G11: =OFFSET(Future_CapexStart,MATCH($K$1,'I-5 Future'!$A$6:$A$284)+5,+'I-5 Future'!H$5) -> 0 | H11: =OFFSET(Future_CapexStart,MATCH($K$1,'I-5 Future'!$A$6:$A$284)+5,+'I-5 Future'!I$5) -> 0 | I11: =OFFSET(Future_CapexStart,MATCH($K$1,'I-5 Future'!$A$6:$A$284)+5,+'I-5 Future'!J$5) -> 0
A12: Business Overheads | B12: =OFFSET(List_CapexStart,MATCH($K$1,'I-4 History'!$A$6:$A$256)+6,0) -> 0 | C12: =OFFSET(Future_CapexStart,MATCH($K$1,'I-5 Future'!$A$6:$A$284)+6,+'I-5 Future'!D$5) -> 0 | D12: =OFFSET(Future_CapexStart,MATCH($K$1,'I-5 Future'!$A$6:$A$284)+6,+'I-5 Future'!E$5) -> 0 | E12: =OFFSET(Future_CapexStart,MATCH($K$1,'I-5 Future'!$A$6:$A$284)+6,+'I-5 Future'!F$5) -> 0.03019230769 | F12: =OFFSET(Future_CapexStart,MATCH($K$1,'I-5 Future'!$A$6:$A$284)+6,+'I-5 Future'!G$5) -> 0.008661538462 | G12: =OFFSET(Future_CapexStart,MATCH($K$1,'I-5 Future'!$A$6:$A$284)+6,+'I-5 Future'!H$5) -> 0.008661538462 | H12: =OFFSET(Future_CapexStart,MATCH($K$1,'I-5 Future'!$A$6:$A$284)+6,+'I-5 Future'!I$5) -> 0.008661538462 | I12: =OFFSET(Future_CapexStart,MATCH($K$1,'I-5 Future'!$A$6:$A$284)+6,+'I-5 Future'!J$5) -> 0.008653846154
A13: Other | B13: =OFFSET(List_CapexStart,MATCH($K$1,'I-4 History'!$A$6:$A$256)+7,0) -> 0 | C13: =OFFSET(Future_CapexStart,MATCH($K$1,'I-5 Future'!$A$6:$A$284)+7,+'I-5 Future'!D$5) -> 0 | D13: =OFFSET(Future_CapexStart,MATCH($K$1,'I-5 Future'!$A$6:$A$284)+7,+'I-5 Future'!E$5) -> 0 | E13: =OFFSET(Future_CapexStart,MATCH($K$1,'I-5 Future'!$A$6:$A$284)+7,+'I-5 Future'!F$5) -> 0 | F13: =OFFSET(Future_CapexStart,MATCH($K$1,'I-5 Future'!$A$6:$A$284)+7,+'I-5 Future'!G$5) -> 0 | G13: =OFFSET(Future_CapexStart,MATCH($K$1,'I-5 Future'!$A$6:$A$284)+7,+'I-5 Future'!H$5) -> 0 | H13: =OFFSET(Future_CapexStart,MATCH($K$1,'I-5 Future'!$A$6:$A$284)+7,+'I-5 Future'!I$5) -> 0 | I13: =OFFSET(Future_CapexStart,MATCH($K$1,'I-5 Future'!$A$6:$A$284)+7,+'I-5 Future'!J$5) -> 0
A14: Baseline Expenditure | B14: =SUM(B8:B13) -> 0 | C14: 0 | D14: 0 | E14: 0.785 | F14: 0.2252 | G14: 0.2252 | H14: 0.2252 | I14: 0.225
A16: B. Variations (as per calculations on page 3)
A18: Summary by Cost Category
A19: Labour | C19: =+C176 -> 0 | D19: 0 | E19: 0 | F19: 0 | G19: 0 | H19: 0 | I19: 0
A20: Materials | C20: 0 | D20: 0 | E20: 0 | F20: 0 | G20: 0 | H20: 0 | I20: 0
A21: Contracts | C21: =+C178 -> 0 | D21: 0 | E21: 0 | F21: 0 | G21: 0 | H21: 0 | I21: 0
A22: Services Other | C22: =+C179 -> 0 | D22: 0 | E22: 0 | F22: 0 | G22: 0 | H22: 0 | I22: 0
A23: Business Overheads | C23: =+C180 -> 0 | D23: 0 | E23: 0 | F23: 0 | G23: 0 | H23: 0 | I23: 0
A24: Other | C24: =+C181 -> 0 | D24: 0 | E24: 0 | F24: 0 | G24: 0 | H24: 0 | I24: 0
A25: Variations | C25: =SUM(C19:C24) -> 0 | D25: 0 | E25: 0 | F25: 0 | G25: 0 | H25: 0 | I25: 0 | J25: =IF(ROUND(SUM(C182:I182)-SUM(B25:I25),2)<>0,"Warning Check Totals","OK") -> OK
A27: Total Base Expenditure + Variations, Before Escalations
A29: Summary by Cost Category
A30: Labour | B30: =+'C-2'!B8+'C-2'!B19 -> 0 | C30: =+'C-2'!C8+'C-2'!C19 -> 0 | D30: =+'C-2'!D8+'C-2'!D19 -> 0 | E30: =+'C-2'!E8+'C-2'!E19 -> 0 | F30: =+'C-2'!F8+'C-2'!F19 -> 0 | G30: =+'C-2'!G8+'C-2'!G19 -> 0 | H30: =+'C-2'!H8+'C-2'!H19 -> 0 | I30: =+'C-2'!I8+'C-2'!I19 -> 0
A31: Materials | B31: =+'C-2'!B9+'C-2'!B20 -> 0 | C31: =+'C-2'!C9+'C-2'!C20 -> 0 | D31: =+'C-2'!D9+'C-2'!D20 -> 0 | E31: =+'C-2'!E9+'C-2'!E20 -> 0.7548076923 | F31: =+'C-2'!F9+'C-2'!F20 -> 0.2165384615 | G31: =+'C-2'!G9+'C-2'!G20 -> 0.2165384615 | H31: =+'C-2'!H9+'C-2'!H20 -> 0.2165384615 | I31: =+'C-2'!I9+'C-2'!I20 -> 0.2163461538
A32: Contracts | B32: =+'C-2'!B10+'C-2'!B21 -> 0 | C32: =+'C-2'!C10+'C-2'!C21 -> 0 | D32: =+'C-2'!D10+'C-2'!D21 -> 0 | E32: =+'C-2'!E10+'C-2'!E21 -> 0 | F32: =+'C-2'!F10+'C-2'!F21 -> 0 | G32: =+'C-2'!G10+'C-2'!G21 -> 0 | H32: =+'C-2'!H10+'C-2'!H21 -> 0 | I32: =+'C-2'!I10+'C-2'!I21 -> 0
A33: Services Other | B33: =+'C-2'!B11+'C-2'!B22 -> 0 | C33: =+'C-2'!C11+'C-2'!C22 -> 0 | D33: =+'C-2'!D11+'C-2'!D22 -> 0 | E33: =+'C-2'!E11+'C-2'!E22 -> 0 | F33: =+'C-2'!F11+'C-2'!F22 -> 0 | G33: =+'C-2'!G11+'C-2'!G22 -> 0 | H33: =+'C-2'!H11+'C-2'!H22 -> 0 | I33: =+'C-2'!I11+'C-2'!I22 -> 0
A34: Business Overheads | B34: =+'C-2'!B12+'C-2'!B23 -> 0 | C34: =+'C-2'!C12+'C-2'!C23 -> 0 | D34: =+'C-2'!D12+'C-2'!D23 -> 0 | E34: =+'C-2'!E12+'C-2'!E23 -> 0.03019230769 | F34: =+'C-2'!F12+'C-2'!F23 -> 0.008661538462 | G34: =+'C-2'!G12+'C-2'!G23 -> 0.008661538462 | H34: =+'C-2'!H12+'C-2'!H23 -> 0.008661538462 | I34: =+'C-2'!I12+'C-2'!I23 -> 0.008653846154
A35: Other | B35: =+'C-2'!B13+'C-2'!B24 -> 0 | C35: =+'C-2'!C13+'C-2'!C24 -> 0 | D35: =+'C-2'!D13+'C-2'!D24 -> 0 | E35: =+'C-2'!E13+'C-2'!E24 -> 0 | F35: =+'C-2'!F13+'C-2'!F24 -> 0 | G35: =+'C-2'!G13+'C-2'!G24 -> 0 | H35: =+'C-2'!H13+'C-2'!H24 -> 0 | I35: =+'C-2'!I13+'C-2'!I24 -> 0
A36: Expenditure Before Escalations | B36: =SUM(B30:B35) -> 0 | C36: 0 | D36: 0 | E36: 0.785 | F36: 0.2252 | G36: 0.2252 | H36: 0.2252 | I36: 0.225 | J36: =IF(ROUND(SUM(B14:I14)+SUM(B25:I25)-SUM(B36:I36),2)<>0,"Warning Check Totals","OK") -> OK
A39: C. Specific Escalations (as per calculations on page 2)
A41: Summary by Cost Category
A42: Labour | C42: =+C125 -> 0 | D42: 0 | E42: 0 | F42: 0 | G42: 0 | H42: 0 | I42: 0
A43: Materials | C43: 0 | D43: 0 | E43: 0 | F43: 0 | G43: 0 | H43: 0 | I43: 0
A44: Contracts | C44: =+C127 -> 0 | D44: 0 | E44: 0 | F44: 0 | G44: 0 | H44: 0 | I44: 0
A45: Services Other | C45: =+C128 -> 0 | D45: 0 | E45: 0 | F45: 0 | G45: 0 | H45: 0 | I45: 0
A46: Business Overheads | C46: =+C129 -> 0 | D46: 0 | E46: 0 | F46: 0 | G46: 0 | H46: 0 | I46: 0
A47: Other | C47: =+C130 -> 0 | D47: 0 | E47: 0 | F47: 0 | G47: 0 | H47: 0 | I47: 0
A48: Specific Escalations | C48: =SUM(C42:C47) -> 0 | D48: 0 | E48: 0 | F48: 0 | G48: 0 | H48: 0 | I48: 0 | J48: =IF(ROUND(SUM(B48:I48)-SUM(B131:I131),2)<>0,"Warning Check Escalations","OK") -> OK
A50: D. General Escalations (as per calculations on page 2)
A52: Summary by Cost Category
A53: Labour | C53: =+C161 -> 0 | D53: 0 | E53: 0 | F53: 0 | G53: 0 | H53: 0 | I53: 0
A54: Materials | C54: 0 | D54: 0 | E54: 0 | F54: 0 | G54: 0 | H54: 0 | I54: 0
A55: Contracts | C55: =+C163 -> 0 | D55: 0 | E55: 0 | F55: 0 | G55: 0 | H55: 0 | I55: 0
A56: Services Other | C56: =+C164 -> 0 | D56: 0 | E56: 0 | F56: 0 | G56: 0 | H56: 0 | I56: 0
A57: Business Overheads | C57: =+C165 -> 0 | D57: 0 | E57: 0.001159812384 | F57: 0.0005257244105 | G57: 0.0007336665743 | H57: 0.0009463152479 | I57: 0.001162743408
A58: Other | C58: =+C166 -> 0 | D58: 0 | E58: 0 | F58: 0 | G58: 0 | H58: 0 | I58: 0
A59: General Escalations | C59: =SUM(C53:C58) -> 0 | D59: 0 | E59: 0.001159812384 | F59: 0.0005257244105 | G59: 0.0007336665743 | H59: 0.0009463152479 | I59: 0.001162743408 | J59: =IF(ROUND(SUM(B59:I59)-SUM(B167:I167),2)<>0,"Warning Check Escalations","OK") -> OK
A61: Total Expenditure | B61: =LU_TemplateYearHeader -> 2012/13 | C61: 2013/14 | D61: 2014/15 | E61: 2015/16 | F61: 2016/17 | G61: 2017/18 | H61: 2018/19 | I61: 2019/20
A63: Summary by Cost Category
A64: Labour | B64: =+B42+B30+B53 -> 0 | C64: 0 | D64: 0 | E64: 0 | F64: 0 | G64: 0 | H64: 0 | I64: 0
A65: Materials | B65: 0 | C65: 0 | D65: 0 | E65: 0.7548076923 | F65: 0.2165384615 | G65: 0.2165384615 | H65: 0.2165384615 | I65: 0.2163461538
A66: Contracts | B66: =+B44+B32+B55 -> 0 | C66: 0 | D66: 0 | E66: 0 | F66: 0 | G66: 0 | H66: 0 | I66: 0
A67: Services Other | B67: =+B45+B33+B56 -> 0 | C67: 0 | D67: 0 | E67: 0 | F67: 0 | G67: 0 | H67: 0 | I67: 0
A68: Business Overheads | B68: =+B46+B34+B57 -> 0 | C68: 0 | D68: 0 | E68: 0.03135212008 | F68: 0.009187262872 | G68: 0.009395205036 | H68: 0.009607853709 | I68: 0.009816589562
A69: Other | B69: =+B47+B35+B58 -> 0 | C69: 0 | D69: 0 | E69: 0 | F69: 0 | G69: 0 | H69: 0 | I69: 0
A70: Total Expenditure | B70: =SUM(B64:B69) -> 0 | C70: 0 | D70: 0 | E70: 0.7861598124 | F70: 0.2257257244 | G70: 0.2259336666 | H70: 0.2261463152 | I70: 0.2261627434 | J70: =IF(ROUND(SUM(B48:I48)+SUM(B36:I36)+SUM(B59:I59)-SUM(B70:I70),3)<>0,"Warning Check Totals","OK") -> OK
A72: Expenditure Categorisation | AA72: Base costs - Expenditure Categorisation
A73: Allocation of Capital Expenditure to Asset Categories | N73: Expenditure Category Proportions | AA73: On pro-rata basis
D74: =+'Ref-1'!P39 -> 2014/15 | E74: =+'Ref-1'!Q39 -> 2015/16 | F74: =+'Ref-1'!R39 -> 2016/17 | G74: =+'Ref-1'!S39 -> 2017/18 | H74: =+'Ref-1'!T39 -> 2018/19 | I74: =+'Ref-1'!U39 -> 2019/20 | N74: =E74 -> 2015/16 | O74: =F74 -> 2016/17 | P74: 2017/18 | Q74: 2018/19 | R74: 2019/20
A75: ='I-2'!C7 -> ACS Replacements | E75: =+E$70*N75 -> 0 | F75: =+F$70*O75 -> 0 | G75: 0 | H75: 0 | I75: 0 | N75: 0 | O75: 0 | P75: 0 | Q75: 0 | R75: 0 | AA75: =+E75*E$14/E$36 -> 0 | AB75: =+F75*F$14/F$36 -> 0 | AC75: =+G75*G$14/G$36 -> 0 | AD75: =+H75*H$14/H$36 -> 0 | AE75: =+I75*I$14/I$36 -> 0
A76: ='I-2'!C8 -> ACS IT Infrastructure | E76: =+E$70*N76 -> 0.7861598124 | F76: 0.2257257244 | G76: 0.2259336666 | H76: 0.2261463152 | I76: 0.2261627434 | N76: 1 | O76: 1 | P76: 1 | Q76: 1 | R76: 1
A77: ='I-2'!C9 -> Superannuation | E77: 0 | F77: 0 | G77: 0 | H77: 0 | I77: 0 | N77: 0 | O77: 0 | P77: 0 | Q77: 0 | R77: 0 | AA77: =+E77*E$14/E$36 -> 0 | AB77: =+F77*F$14/F$36 -> 0 | AC77: =+G77*G$14/G$36 -> 0 | AD77: =+H77*H$14/H$36 -> 0 | AE77: =+I77*I$14/I$36 -> 0
A78: ='I-2'!C10 -> Equity Raising Costs | E78: 0 | F78: 0 | G78: 0 | H78: 0 | I78: 0 | N78: 0 | O78: 0 | P78: 0 | Q78: 0 | R78: 0
A79: ='I-2'!C11 -> Spare - Not in Use | E79: 0 | F79: 0 | G79: 0 | H79: 0 | I79: 0 | N79: 0 | O79: 0 | P79: 0 | Q79: 0 | R79: 0 | AA79: =+E79*E$14/E$36 -> 0 | AB79: =+F79*F$14/F$36 -> 0 | AC79: =+G79*G$14/G$36 -> 0 | AD79: =+H79*H$14/H$36 -> 0 | AE79: =+I79*I$14/I$36 -> 0
A80: ='I-2'!C12 -> Spare - Not in Use | E80: 0 | F80: 0 | G80: 0 | H80: 0 | I80: 0 | N80: 0 | O80: 0 | P80: 0 | Q80: 0 | R80: 0
A81: ='I-2'!C13 -> Spare - Not in Use | E81: =+E$70*N81 -> 0 | F81: 0 | G81: 0 | H81: 0 | I81: 0 | N81: 0 | O81: 0 | P81: 0 | Q81: 0 | R81: 0
A82: ='I-2'!C14 -> Spare - Not in Use | E82: 0 | F82: 0 | G82: 0 | H82: 0 | I82: 0 | N82: 0 | O82: 0 | P82: 0 | Q82: 0 | R82: 0
A83: ='I-2'!C15 -> Spare - Not in Use | E83: 0 | F83: 0 | G83: 0 | H83: 0 | I83: 0 | N83: 0 | O83: 0 | P83: 0 | Q83: 0 | R83: 0 | AA83: =+E83*E$14/E$36 -> 0 | AB83: =+F83*F$14/F$36 -> 0 | AC83: =+G83*G$14/G$36 -> 0 | AD83: =+H83*H$14/H$36 -> 0 | AE83: =+I83*I$14/I$36 -> 0
A84: ='I-2'!C16 -> Spare - Not in Use | E84: 0 | F84: 0 | G84: 0 | H84: 0 | I84: 0 | N84: 0 | O84: 0 | P84: 0 | Q84: 0 | R84: 0
A85: ='I-2'!C17 -> Spare - Not in Use | E85: 0 | F85: 0 | G85: 0 | H85: 0 | I85: 0 | N85: 0 | O85: 0 | P85: 0 | Q85: 0 | R85: 0 | AA85: =+E85*E$14/E$36 -> 0 | AB85: =+F85*F$14/F$36 -> 0 | AC85: =+G85*G$14/G$36 -> 0 | AD85: =+H85*H$14/H$36 -> 0 | AE85: =+I85*I$14/I$36 -> 0
A86: ='I-2'!C18 -> Spare - Not in Use | E86: 0 | F86: 0 | G86: 0 | H86: 0 | I86: 0 | N86: 0 | O86: 0 | P86: 0 | Q86: 0 | R86: 0
A87: ='I-2'!C19 -> Spare - Not in Use | E87: 0 | F87: 0 | G87: 0 | H87: 0 | I87: 0 | N87: 0 | O87: 0 | P87: 0 | Q87: 0 | R87: 0 | AA87: =+E87*E$14/E$36 -> 0 | AB87: =+F87*F$14/F$36 -> 0 | AC87: =+G87*G$14/G$36 -> 0 | AD87: =+H87*H$14/H$36 -> 0 | AE87: =+I87*I$14/I$36 -> 0
A88: ='I-2'!C20 -> Spare - Not in Use | E88: 0 | F88: 0 | G88: 0 | H88: 0 | I88: 0 | N88: 0 | O88: 0 | P88: 0 | Q88: 0 | R88: 0
A89: ='I-2'!C21 -> Spare - Not in Use | E89: 0 | F89: 0 | G89: 0 | H89: 0 | I89: 0 | N89: 0 | O89: 0 | P89: 0 | Q89: 0 | R89: 0
A90: ='I-2'!C22 -> Spare - Not in Use | E90: 0 | F90: 0 | G90: 0 | H90: 0 | I90: 0 | N90: 0 | O90: 0 | P90: 0 | Q90: 0 | R90: 0
A91: ='I-2'!C23 -> Spare - Not in Use | E91: 0 | F91: 0 | G91: 0 | H91: 0 | I91: 0 | N91: 0 | O91: 0 | P91: 0 | Q91: 0 | R91: 0
A92: ='I-2'!C24 -> Spare - Not in Use | E92: 0 | F92: 0 | G92: 0 | H92: 0 | I92: 0 | N92: 0 | O92: 0 | P92: 0 | Q92: 0 | R92: 0
A93: ='I-2'!C25 -> Spare - Not in Use | E93: 0 | F93: 0 | G93: 0 | H93: 0 | I93: 0 | N93: 0 | O93: 0 | P93: 0 | Q93: 0 | R93: 0
A94: ='I-2'!C26 -> Spare - Not in Use | E94: 0 | F94: 0 | G94: 0 | H94: 0 | I94: 0 | N94: 0 | O94: 0 | P94: 0 | Q94: 0 | R94: 0
A95: ='I-2'!C27 -> Spare - Not in Use | E95: 0 | F95: 0 | G95: 0 | H95: 0 | I95: 0 | N95: 0 | O95: 0 | P95: 0 | Q95: 0 | R95: 0
A96: ='I-2'!C28 -> Spare - Not in Use | E96: 0 | F96: 0 | G96: 0 | H96: 0 | I96: 0 | N96: 0 | O96: 0 | P96: 0 | Q96: 0 | R96: 0
A97: ='I-2'!C29 -> Spare - Not in Use | E97: 0 | F97: 0 | G97: 0 | H97: 0 | I97: 0 | N97: 0 | O97: 0 | P97: 0 | Q97: 0 | R97: 0
A98: ='I-2'!C30 -> Spare - Not in Use
A99: ='I-2'!C31 -> Spare - Not in Use
A100: ='I-2'!C32 -> Spare - Not in Use
A101: Total Expenditure | B101: =SUM(B75:B100) -> 0 | C101: 0 | D101: 0 | E101: 0.7861598124 | F101: 0.2257257244 | G101: 0.2259336666 | H101: 0.2261463152 | I101: 0.2261627434 | O101: Check | P101: =E101-E70 -> 0 | Q101: =F101-F70 -> 0 | R101: 0 | S101: 0 | T101: 0 | AA101: =SUM(AA75:AA100) -> 0 | AB101: 0 | AC101: 0 | AD101: 0 | AE101: 0
A103: Specific Escalation Calculations | C103: 2 | D103: =+C103+1 -> 3 | E103: 4 | F103: 5 | G103: 6 | H103: 7 | I103: 8 | J103: Escalation | K103: Escalation
A104: Select the specific escalations to apply for this expenditure category and the cost categories to which they relate: | J104: Type | K104: Active? | N104: Dollar Impact of Each Escalation (uncompounded with other specific escalations of the same cost category)
A105: Important - if there are not enough rows, copy and insert an entire row with the escalation formulas, not just the visible cells | N105: =LU_TemplateYearHeader2 -> 2013/14 | O105: 2014/15 | P105: 2015/16 | Q105: 2016/17 | R105: 2017/18 | S105: 2018/19 | T105: 2019/20
A106: Specific Escalations | B106: Cost Category | C106: =LU_TemplateYearHeader2 -> 2013/14 | D106: 2014/15 | E106: 2015/16 | F106: 2016/17 | G106: 2017/18 | H106: 2018/19 | I106: 2019/20
C107: =IF($K107="No",0,VLOOKUP($A107,Escalations_Specific_Costs,+C$103,FALSE)) -> 0 | D107: =IF($K107="No",0,IF($J107="one-off",VLOOKUP($A107,Escalations_Specific_Costs,+D$103,FALSE),(VLOOKUP($A107,Escalations_Specific_Costs,+D$103,FALSE)+1)*(1+C107)-1)) -> 0 | E107: 0 | F107: 0 | G107: 0 | H107: 0 | I107: 0 | J107: =IF(ISNA(VLOOKUP($A107,Escalations_Specific_Costs,+I$103+3,FALSE)),0,VLOOKUP($A107,Escalations_Specific_Costs,+I$103+3,FALSE)) -> 0 | K107: =IF(ISNA(VLOOKUP($A107,Escalations_Specific_Costs,1,FALSE)),"No","Yes") -> No | N107: =IF($B107<>0,(+VLOOKUP($B107,$A$30:$I$35,3,FALSE))*(C107),0) -> 0 | O107: =IF($B107<>0,(+VLOOKUP($B107,$A$30:$I$35,4,FALSE))*(D107),0) -> 0 | P107: =IF($B107<>0,(+VLOOKUP($B107,$A$30:$I$35,5,FALSE))*(E107),0) -> 0 | Q107: =IF($B107<>0,(+VLOOKUP($B107,$A$30:$I$35,6,FALSE))*(F107),0) -> 0 | R107: =IF($B107<>0,(+VLOOKUP($B107,$A$30:$I$35,7,FALSE))*(G107),0) -> 0 | S107: =IF($B107<>0,(+VLOOKUP($B107,$A$30:$I$35,8,FALSE))*(H107),0) -> 0 | T107: =IF($B107<>0,(+VLOOKUP($B107,$A$30:$I$35,9,FALSE))*(I107),0) -> 0
C108: =IF($K108="No",0,VLOOKUP($A108,Escalations_Specific_Costs,+C$103,FALSE)) -> 0 | D108: 0 | E108: 0 | F108: 0 | G108: 0 | H108: 0 | I108: 0 | J108: =IF(ISNA(VLOOKUP($A108,Escalations_Specific_Costs,+I$103+3,FALSE)),0,VLOOKUP($A108,Escalations_Specific_Costs,+I$103+3,FALSE)) -> 0 | K108: =IF(ISNA(VLOOKUP($A108,Escalations_Specific_Costs,1,FALSE)),"No","Yes") -> No | N108: =IF($B108<>0,(+VLOOKUP($B108,$A$30:$I$35,3,FALSE))*(C108),0) -> 0 | O108: =IF($B108<>0,(+VLOOKUP($B108,$A$30:$I$35,4,FALSE))*(D108),0) -> 0 | P108: =IF($B108<>0,(+VLOOKUP($B108,$A$30:$I$35,5,FALSE))*(E108),0) -> 0 | Q108: =IF($B108<>0,(+VLOOKUP($B108,$A$30:$I$35,6,FALSE))*(F108),0) -> 0 | R108: =IF($B108<>0,(+VLOOKUP($B108,$A$30:$I$35,7,FALSE))*(G108),0) -> 0 | S108: =IF($B108<>0,(+VLOOKUP($B108,$A$30:$I$35,8,FALSE))*(H108),0) -> 0 | T108: =IF($B108<>0,(+VLOOKUP($B108,$A$30:$I$35,9,FALSE))*(I108),0) -> 0
C109: =IF($K109="No",0,VLOOKUP($A109,Escalations_Specific_Costs,+C$103,FALSE)) -> 0 | D109: 0 | E109: 0 | F109: 0 | G109: 0 | H109: 0 | I109: 0 | J109: =IF(ISNA(VLOOKUP($A109,Escalations_Specific_Costs,+I$103+3,FALSE)),0,VLOOKUP($A109,Escalations_Specific_Costs,+I$103+3,FALSE)) -> 0 | K109: =IF(ISNA(VLOOKUP($A109,Escalations_Specific_Costs,1,FALSE)),"No","Yes") -> No | N109: =IF($B109<>0,(+VLOOKUP($B109,$A$30:$I$35,3,FALSE))*(C109),0) -> 0 | O109: =IF($B109<>0,(+VLOOKUP($B109,$A$30:$I$35,4,FALSE))*(D109),0) -> 0 | P109: =IF($B109<>0,(+VLOOKUP($B109,$A$30:$I$35,5,FALSE))*(E109),0) -> 0 | Q109: =IF($B109<>0,(+VLOOKUP($B109,$A$30:$I$35,6,FALSE))*(F109),0) -> 0 | R109: =IF($B109<>0,(+VLOOKUP($B109,$A$30:$I$35,7,FALSE))*(G109),0) -> 0 | S109: =IF($B109<>0,(+VLOOKUP($B109,$A$30:$I$35,8,FALSE))*(H109),0) -> 0 | T109: =IF($B109<>0,(+VLOOKUP($B109,$A$30:$I$35,9,FALSE))*(I109),0) -> 0
A110: End of Escalations - Note all escalations must be above this row. Do Not delete this row | N110: =SUM(N107:N109) -> 0 | O110: 0 | P110: 0 | Q110: 0 | R110: 0 | S110: 0 | T110: 0
M111: Check | N111: =ROUND(N110-C131,3) -> 0 | O111: 0 | P111: 0 | Q111: 0 | R111: 0 | S111: 0 | T111: 0
A112: Total Specific Escalations to Apply (based on escalations selected above)
A113: Labour | C113: =PRODUCT(IF($B$107:$B$110=$A113,C$107:C$110+1))-IF(COUNTIF($B$107:$B$110,+$A113)=0,0,1) -> 0 | D113: =PRODUCT(IF($B$107:$B$110=$A113,D$107:D$110+1))-IF(COUNTIF($B$107:$B$110,+$A113)=0,0,1) -> 0 | E113: =PRODUCT(IF($B$107:$B$110=$A113,E$107:E$110+1))-IF(COUNTIF($B$107:$B$110,+$A113)=0,0,1) -> 0 | F113: =PRODUCT(IF($B$107:$B$110=$A113,F$107:F$110+1))-IF(COUNTIF($B$107:$B$110,+$A113)=0,0,1) -> 0 | G113: =PRODUCT(IF($B$107:$B$110=$A113,G$107:G$110+1))-IF(COUNTIF($B$107:$B$110,+$A113)=0,0,1) -> 0 | H113: =PRODUCT(IF($B$107:$B$110=$A113,H$107:H$110+1))-IF(COUNTIF($B$107:$B$110,+$A113)=0,0,1) -> 0 | I113: =PRODUCT(IF($B$107:$B$110=$A113,I$107:I$110+1))-IF(COUNTIF($B$107:$B$110,+$A113)=0,0,1) -> 0
A114: Materials | C114: =PRODUCT(IF($B$107:$B$110=$A114,C$107:C$110+1))-IF(COUNTIF($B$107:$B$110,+$A114)=0,0,1) -> 0 | D114: =PRODUCT(IF($B$107:$B$110=$A114,D$107:D$110+1))-IF(COUNTIF($B$107:$B$110,+$A114)=0,0,1) -> 0 | E114: =PRODUCT(IF($B$107:$B$110=$A114,E$107:E$110+1))-IF(COUNTIF($B$107:$B$110,+$A114)=0,0,1) -> 0 | F114: =PRODUCT(IF($B$107:$B$110=$A114,F$107:F$110+1))-IF(COUNTIF($B$107:$B$110,+$A114)=0,0,1) -> 0 | G114: =PRODUCT(IF($B$107:$B$110=$A114,G$107:G$110+1))-IF(COUNTIF($B$107:$B$110,+$A114)=0,0,1) -> 0 | H114: =PRODUCT(IF($B$107:$B$110=$A114,H$107:H$110+1))-IF(COUNTIF($B$107:$B$110,+$A114)=0,0,1) -> 0 | I114: =PRODUCT(IF($B$107:$B$110=$A114,I$107:I$110+1))-IF(COUNTIF($B$107:$B$110,+$A114)=0,0,1) -> 0
A115: Contracts | C115: =PRODUCT(IF($B$107:$B$110=$A115,C$107:C$110+1))-IF(COUNTIF($B$107:$B$110,+$A115)=0,0,1) -> 0 | D115: =PRODUCT(IF($B$107:$B$110=$A115,D$107:D$110+1))-IF(COUNTIF($B$107:$B$110,+$A115)=0,0,1) -> 0 | E115: =PRODUCT(IF($B$107:$B$110=$A115,E$107:E$110+1))-IF(COUNTIF($B$107:$B$110,+$A115)=0,0,1) -> 0 | F115: =PRODUCT(IF($B$107:$B$110=$A115,F$107:F$110+1))-IF(COUNTIF($B$107:$B$110,+$A115)=0,0,1) -> 0 | G115: =PRODUCT(IF($B$107:$B$110=$A115,G$107:G$110+1))-IF(COUNTIF($B$107:$B$110,+$A115)=0,0,1) -> 0 | H115: =PRODUCT(IF($B$107:$B$110=$A115,H$107:H$110+1))-IF(COUNTIF($B$107:$B$110,+$A115)=0,0,1) -> 0 | I115: =PRODUCT(IF($B$107:$B$110=$A115,I$107:I$110+1))-IF(COUNTIF($B$107:$B$110,+$A115)=0,0,1) -> 0
A116: Services Other | C116: =PRODUCT(IF($B$107:$B$110=$A116,C$107:C$110+1))-IF(COUNTIF($B$107:$B$110,+$A116)=0,0,1) -> 0 | D116: =PRODUCT(IF($B$107:$B$110=$A116,D$107:D$110+1))-IF(COUNTIF($B$107:$B$110,+$A116)=0,0,1) -> 0 | E116: =PRODUCT(IF($B$107:$B$110=$A116,E$107:E$110+1))-IF(COUNTIF($B$107:$B$110,+$A116)=0,0,1) -> 0 | F116: =PRODUCT(IF($B$107:$B$110=$A116,F$107:F$110+1))-IF(COUNTIF($B$107:$B$110,+$A116)=0,0,1) -> 0 | G116: =PRODUCT(IF($B$107:$B$110=$A116,G$107:G$110+1))-IF(COUNTIF($B$107:$B$110,+$A116)=0,0,1) -> 0 | H116: =PRODUCT(IF($B$107:$B$110=$A116,H$107:H$110+1))-IF(COUNTIF($B$107:$B$110,+$A116)=0,0,1) -> 0 | I116: =PRODUCT(IF($B$107:$B$110=$A116,I$107:I$110+1))-IF(COUNTIF($B$107:$B$110,+$A116)=0,0,1) -> 0
A117: Business Overheads | C117: =PRODUCT(IF($B$107:$B$110=$A117,C$107:C$110+1))-IF(COUNTIF($B$107:$B$110,+$A117)=0,0,1) -> 0 | D117: =PRODUCT(IF($B$107:$B$110=$A117,D$107:D$110+1))-IF(COUNTIF($B$107:$B$110,+$A117)=0,0,1) -> 0 | E117: =PRODUCT(IF($B$107:$B$110=$A117,E$107:E$110+1))-IF(COUNTIF($B$107:$B$110,+$A117)=0,0,1) -> 0 | F117: =PRODUCT(IF($B$107:$B$110=$A117,F$107:F$110+1))-IF(COUNTIF($B$107:$B$110,+$A117)=0,0,1) -> 0 | G117: =PRODUCT(IF($B$107:$B$110=$A117,G$107:G$110+1))-IF(COUNTIF($B$107:$B$110,+$A117)=0,0,1) -> 0 | H117: =PRODUCT(IF($B$107:$B$110=$A117,H$107:H$110+1))-IF(COUNTIF($B$107:$B$110,+$A117)=0,0,1) -> 0 | I117: =PRODUCT(IF($B$107:$B$110=$A117,I$107:I$110+1))-IF(COUNTIF($B$107:$B$110,+$A117)=0,0,1) -> 0
A118: Other | C118: =PRODUCT(IF($B$107:$B$110=$A118,C$107:C$110+1))-IF(COUNTIF($B$107:$B$110,+$A118)=0,0,1) -> 0 | D118: =PRODUCT(IF($B$107:$B$110=$A118,D$107:D$110+1))-IF(COUNTIF($B$107:$B$110,+$A118)=0,0,1) -> 0 | E118: =PRODUCT(IF($B$107:$B$110=$A118,E$107:E$110+1))-IF(COUNTIF($B$107:$B$110,+$A118)=0,0,1) -> 0 | F118: =PRODUCT(IF($B$107:$B$110=$A118,F$107:F$110+1))-IF(COUNTIF($B$107:$B$110,+$A118)=0,0,1) -> 0 | G118: =PRODUCT(IF($B$107:$B$110=$A118,G$107:G$110+1))-IF(COUNTIF($B$107:$B$110,+$A118)=0,0,1) -> 0 | H118: =PRODUCT(IF($B$107:$B$110=$A118,H$107:H$110+1))-IF(COUNTIF($B$107:$B$110,+$A118)=0,0,1) -> 0 | I118: =PRODUCT(IF($B$107:$B$110=$A118,I$107:I$110+1))-IF(COUNTIF($B$107:$B$110,+$A118)=0,0,1) -> 0
A119: Product of Escalators by Category | C119: =PRODUCT(IF(C113:C118<>0,C113:C118+1))-IF(SUM(C113:C118)<>0,1,0) -> 0 | D119: =PRODUCT(IF(D113:D118<>0,D113:D118+1))-IF(SUM(D113:D118)<>0,1,0) -> 0 | E119: =PRODUCT(IF(E113:E118<>0,E113:E118+1))-IF(SUM(E113:E118)<>0,1,0) -> 0 | F119: =PRODUCT(IF(F113:F118<>0,F113:F118+1))-IF(SUM(F113:F118)<>0,1,0) -> 0 | G119: =PRODUCT(IF(G113:G118<>0,G113:G118+1))-IF(SUM(G113:G118)<>0,1,0) -> 0 | H119: =PRODUCT(IF(H113:H118<>0,H113:H118+1))-IF(SUM(H113:H118)<>0,1,0) -> 0 | I119: =PRODUCT(IF(I113:I118<>0,I113:I118+1))-IF(SUM(I113:I118)<>0,1,0) -> 0
A120: Product of All Escalators | C120: =PRODUCT(IF((C107:C110<>0),C107:C110+1))-IF(C107:C110<>0,1,0) -> 0 | D120: =PRODUCT(IF((D107:D110<>0),D107:D110+1))-IF(D107:D110<>0,1,0) -> 0 | E120: =PRODUCT(IF((E107:E110<>0),E107:E110+1))-IF(E107:E110<>0,1,0) -> 0 | F120: =PRODUCT(IF((F107:F110<>0),F107:F110+1))-IF(F107:F110<>0,1,0) -> 0 | G120: =PRODUCT(IF((G107:G110<>0),G107:G110+1))-IF(G107:G110<>0,1,0) -> 0 | H120: =PRODUCT(IF((H107:H110<>0),H107:H110+1))-IF(H107:H110<>0,1,0) -> 0 | I120: =PRODUCT(IF((I107:I110<>0),I107:I110+1))-IF(I107:I110<>0,1,0) -> 0
A121: Difference - should be Zero | C121: =+C119-C120 -> 0 | D121: 0 | E121: 0 | F121: 0 | G121: 0 | H121: 0 | I121: 0 | J121: =IF(SUM(C121:I121)<>0,"Warning Check Escalations","OK") -> OK
A123: Dollar Impact of Specific Escalations
A124: Summary by Cost Category | C124: =LU_TemplateYearHeader2 -> 2013/14 | D124: 2014/15 | E124: 2015/16 | F124: 2016/17 | G124: 2017/18 | H124: 2018/19 | I124: 2019/20
A125: Labour | C125: =+C30*(C113) -> 0 | D125: 0 | E125: 0 | F125: 0 | G125: 0 | H125: 0 | I125: 0
A126: Materials | C126: 0 | D126: 0 | E126: 0 | F126: 0 | G126: 0 | H126: 0 | I126: 0
A127: Contracts | C127: =+C32*(C115) -> 0 | D127: 0 | E127: 0 | F127: 0 | G127: 0 | H127: 0 | I127: 0
A128: Services Other | C128: =+C33*(C116) -> 0 | D128: 0 | E128: 0 | F128: 0 | G128: 0 | H128: 0 | I128: 0
A129: Business Overheads | C129: =+C34*(C117) -> 0 | D129: 0 | E129: 0 | F129: 0 | G129: 0 | H129: 0 | I129: 0
A130: Other | C130: =+C35*(C118) -> 0 | D130: 0 | E130: 0 | F130: 0 | G130: 0 | H130: 0 | I130: 0
A131: Dollar Impact of Escalations | C131: =SUM(C125:C130) -> 0 | D131: 0 | E131: 0 | F131: 0 | G131: 0 | H131: 0 | I131: 0
A132: Average Specific Escalation % | C132: =IF(C36<>0,+C131/C36,0) -> 0 | D132: 0 | E132: 0 | F132: 0 | G132: 0 | H132: 0 | I132: 0
A135: General Escalation Calculations | C135: 2 | D135: =+C135+1 -> 3 | E135: 4 | F135: 5 | G135: 6 | H135: 7 | I135: 8 | J135: Escalation | K135: Escalation
A136: Select the general escalations to apply for this expenditure category and the cost categories to which they relate: | J136: Type | K136: Active?
A137: Important - if there are not enough rows, copy and insert an entire row with the escalation formulas, not just the visible cells | N137: Dollar Impact of Each Escalation (uncompounded with other general escalations of the same cost category)
B138: Cost Category | C138: =LU_TemplateYearHeader2 -> 2013/14 | D138: 2014/15 | E138: 2015/16 | F138: 2016/17 | G138: 2017/18 | H138: 2018/19 | I138: 2019/20 | N138: =LU_TemplateYearHeader2 -> 2013/14 | O138: 2014/15 | P138: 2015/16 | Q138: 2016/17 | R138: 2017/18 | S138: 2018/19 | T138: 2019/20
A139: General Escalation (%Real**)
A140: Labour | B140: Labour | C140: =IF($K140="No",0,VLOOKUP($A140,Escalations_General_Costs,+C$135,FALSE)) -> 0 | D140: =IF($K140="No",0,IF($J140="one-off",VLOOKUP($A140,Escalations_General_Costs,+'I-6'!D$9+1,FALSE),((VLOOKUP($A140,Escalations_General_Costs,+'I-6'!D$9+1,FALSE)+1)*(1+C140)-1))) -> 0.0166 | E140: =IF($K140="No",0,IF($J140="one-off",VLOOKUP($A140,Escalations_General_Costs,+'I-6'!E$9+1,FALSE),((VLOOKUP($A140,Escalations_General_Costs,+'I-6'!E$9+1,FALSE)+1)*(1+D140)-1))) -> 0.03841416814 | F140: =IF($K140="No",0,IF($J140="one-off",VLOOKUP($A140,Escalations_General_Costs,+'I-6'!F$9+1,FALSE),((VLOOKUP($A140,Escalations_General_Costs,+'I-6'!F$9+1,FALSE)+1)*(1+E140)-1))) -> 0.06069642395 | G140: =IF($K140="No",0,IF($J140="one-off",VLOOKUP($A140,Escalations_General_Costs,+'I-6'!G$9+1,FALSE),((VLOOKUP($A140,Escalations_General_Costs,+'I-6'!G$9+1,FALSE)+1)*(1+F140)-1))) -> 0.08470395618 | H140: =IF($K140="No",0,IF($J140="one-off",VLOOKUP($A140,Escalations_General_Costs,+'I-6'!H$9+1,FALSE),((VLOOKUP($A140,Escalations_General_Costs,+'I-6'!H$9+1,FALSE)+1)*(1+G140)-1))) -> 0.1092548688 | I140: =IF($K140="No",0,IF($J140="one-off",VLOOKUP($A140,Escalations_General_Costs,+'I-6'!I$9+1,FALSE),((VLOOKUP($A140,Escalations_General_Costs,+'I-6'!I$9+1,FALSE)+1)*(1+H140)-1))) -> 0.1343614604 | J140: =IF(ISNA(VLOOKUP($A140,Escalations_General_Costs,+I$103+3,FALSE)),0,VLOOKUP($A140,Escalations_General_Costs,+I$103+3,FALSE)) -> Cumulative | K140: =IF(ISNA(VLOOKUP($A140,Escalations_General_Costs,1,FALSE)),"No","Yes") -> Yes | N140: =IF($B140<>0,(+VLOOKUP($B140,$A$30:$I$35,3,FALSE)+VLOOKUP($B140,$A$42:$I$47,3,FALSE))*(C140),0) -> 0 | O140: =IF($B140<>0,(+VLOOKUP($B140,$A$30:$I$35,4,FALSE)+VLOOKUP($B140,$A$42:$I$47,4,FALSE))*(D140),0) -> 0 | P140: =IF($B140<>0,(+VLOOKUP($B140,$A$30:$I$35,5,FALSE)+VLOOKUP($B140,$A$42:$I$47,5,FALSE))*(E140),0) -> 0 | Q140: =IF($B140<>0,(+VLOOKUP($B140,$A$30:$I$35,6,FALSE)+VLOOKUP($B140,$A$42:$I$47,6,FALSE))*(F140),0) -> 0 | R140: =IF($B140<>0,(+VLOOKUP($B140,$A$30:$I$35,7,FALSE)+VLOOKUP($B140,$A$42:$I$47,7,FALSE))*(G140),0) -> 0 | S140: =IF($B140<>0,(+VLOOKUP($B140,$A$30:$I$35,8,FALSE)+VLOOKUP($B140,$A$42:$I$47,8,FALSE))*(H140),0) -> 0 | T140: =IF($B140<>0,(+VLOOKUP($B140,$A$30:$I$35,9,FALSE)+VLOOKUP($B140,$A$42:$I$47,9,FALSE))*(I140),0) -> 0
A141: Materials | B141: Materials | C141: 0 | D141: =IF($K141="No",0,IF($J141="one-off",VLOOKUP($A141,Escalations_General_Costs,+'I-6'!D$9+1,FALSE),((VLOOKUP($A141,Escalations_General_Costs,+'I-6'!D$9+1,FALSE)+1)*(1+C141)-1))) -> 0 | E141: =IF($K141="No",0,IF($J141="one-off",VLOOKUP($A141,Escalations_General_Costs,+'I-6'!E$9+1,FALSE),((VLOOKUP($A141,Escalations_General_Costs,+'I-6'!E$9+1,FALSE)+1)*(1+D141)-1))) -> 0 | F141: =IF($K141="No",0,IF($J141="one-off",VLOOKUP($A141,Escalations_General_Costs,+'I-6'!F$9+1,FALSE),((VLOOKUP($A141,Escalations_General_Costs,+'I-6'!F$9+1,FALSE)+1)*(1+E141)-1))) -> 0 | G141: =IF($K141="No",0,IF($J141="one-off",VLOOKUP($A141,Escalations_General_Costs,+'I-6'!G$9+1,FALSE),((VLOOKUP($A141,Escalations_General_Costs,+'I-6'!G$9+1,FALSE)+1)*(1+F141)-1))) -> 0 | H141: =IF($K141="No",0,IF($J141="one-off",VLOOKUP($A141,Escalations_General_Costs,+'I-6'!H$9+1,FALSE),((VLOOKUP($A141,Escalations_General_Costs,+'I-6'!H$9+1,FALSE)+1)*(1+G141)-1))) -> 0 | I141: =IF($K141="No",0,IF($J141="one-off",VLOOKUP($A141,Escalations_General_Costs,+'I-6'!I$9+1,FALSE),((VLOOKUP($A141,Escalations_General_Costs,+'I-6'!I$9+1,FALSE)+1)*(1+H141)-1))) -> 0 | J141: Cumulative | K141: Yes | N141: =IF($B141<>0,(+VLOOKUP($B141,$A$30:$I$35,3,FALSE)+VLOOKUP($B141,$A$42:$I$47,3,FALSE))*(C141),0) -> 0 | O141: =IF($B141<>0,(+VLOOKUP($B141,$A$30:$I$35,4,FALSE)+VLOOKUP($B141,$A$42:$I$47,4,FALSE))*(D141),0) -> 0 | P141: =IF($B141<>0,(+VLOOKUP($B141,$A$30:$I$35,5,FALSE)+VLOOKUP($B141,$A$42:$I$47,5,FALSE))*(E141),0) -> 0 | Q141: =IF($B141<>0,(+VLOOKUP($B141,$A$30:$I$35,6,FALSE)+VLOOKUP($B141,$A$42:$I$47,6,FALSE))*(F141),0) -> 0 | R141: =IF($B141<>0,(+VLOOKUP($B141,$A$30:$I$35,7,FALSE)+VLOOKUP($B141,$A$42:$I$47,7,FALSE))*(G141),0) -> 0 | S141: =IF($B141<>0,(+VLOOKUP($B141,$A$30:$I$35,8,FALSE)+VLOOKUP($B141,$A$42:$I$47,8,FALSE))*(H141),0) -> 0 | T141: =IF($B141<>0,(+VLOOKUP($B141,$A$30:$I$35,9,FALSE)+VLOOKUP($B141,$A$42:$I$47,9,FALSE))*(I141),0) -> 0
A142: Services-construction | B142: Contracts | C142: 0 | D142: =IF($K142="No",0,IF($J142="one-off",VLOOKUP($A142,Escalations_General_Costs,+'I-6'!D$9+1,FALSE),((VLOOKUP($A142,Escalations_General_Costs,+'I-6'!D$9+1,FALSE)+1)*(1+C142)-1))) -> 0.001 | E142: =IF($K142="No",0,IF($J142="one-off",VLOOKUP($A142,Escalations_General_Costs,+'I-6'!E$9+1,FALSE),((VLOOKUP($A142,Escalations_General_Costs,+'I-6'!E$9+1,FALSE)+1)*(1+D142)-1))) -> 0.006005 | F142: =IF($K142="No",0,IF($J142="one-off",VLOOKUP($A142,Escalations_General_Costs,+'I-6'!F$9+1,FALSE),((VLOOKUP($A142,Escalations_General_Costs,+'I-6'!F$9+1,FALSE)+1)*(1+E142)-1))) -> 0.015059045 | G142: =IF($K142="No",0,IF($J142="one-off",VLOOKUP($A142,Escalations_General_Costs,+'I-6'!G$9+1,FALSE),((VLOOKUP($A142,Escalations_General_Costs,+'I-6'!G$9+1,FALSE)+1)*(1+F142)-1))) -> 0.02622469449 | H142: =IF($K142="No",0,IF($J142="one-off",VLOOKUP($A142,Escalations_General_Costs,+'I-6'!H$9+1,FALSE),((VLOOKUP($A142,Escalations_General_Costs,+'I-6'!H$9+1,FALSE)+1)*(1+G142)-1))) -> 0.04059184022 | I142: =IF($K142="No",0,IF($J142="one-off",VLOOKUP($A142,Escalations_General_Costs,+'I-6'!I$9+1,FALSE),((VLOOKUP($A142,Escalations_General_Costs,+'I-6'!I$9+1,FALSE)+1)*(1+H142)-1))) -> 0.05932249334 | J142: Cumulative | K142: Yes | N142: =IF($B142<>0,(+VLOOKUP($B142,$A$30:$I$35,3,FALSE)+VLOOKUP($B142,$A$42:$I$47,3,FALSE))*(C142),0) -> 0 | O142: =IF($B142<>0,(+VLOOKUP($B142,$A$30:$I$35,4,FALSE)+VLOOKUP($B142,$A$42:$I$47,4,FALSE))*(D142),0) -> 0 | P142: =IF($B142<>0,(+VLOOKUP($B142,$A$30:$I$35,5,FALSE)+VLOOKUP($B142,$A$42:$I$47,5,FALSE))*(E142),0) -> 0 | Q142: =IF($B142<>0,(+VLOOKUP($B142,$A$30:$I$35,6,FALSE)+VLOOKUP($B142,$A$42:$I$47,6,FALSE))*(F142),0) -> 0 | R142: =IF($B142<>0,(+VLOOKUP($B142,$A$30:$I$35,7,FALSE)+VLOOKUP($B142,$A$42:$I$47,7,FALSE))*(G142),0) -> 0 | S142: =IF($B142<>0,(+VLOOKUP($B142,$A$30:$I$35,8,FALSE)+VLOOKUP($B142,$A$42:$I$47,8,FALSE))*(H142),0) -> 0 | T142: =IF($B142<>0,(+VLOOKUP($B142,$A$30:$I$35,9,FALSE)+VLOOKUP($B142,$A$42:$I$47,9,FALSE))*(I142),0) -> 0
A143: Services-general | B143: Services Other | C143: 0 | D143: =IF($K143="No",0,IF($J143="one-off",VLOOKUP($A143,Escalations_General_Costs,+'I-6'!D$9+1,FALSE),((VLOOKUP($A143,Escalations_General_Costs,+'I-6'!D$9+1,FALSE)+1)*(1+C143)-1))) -> 0.001 | E143: =IF($K143="No",0,IF($J143="one-off",VLOOKUP($A143,Escalations_General_Costs,+'I-6'!E$9+1,FALSE),((VLOOKUP($A143,Escalations_General_Costs,+'I-6'!E$9+1,FALSE)+1)*(1+D143)-1))) -> 0.006005 | F143: =IF($K143="No",0,IF($J143="one-off",VLOOKUP($A143,Escalations_General_Costs,+'I-6'!F$9+1,FALSE),((VLOOKUP($A143,Escalations_General_Costs,+'I-6'!F$9+1,FALSE)+1)*(1+E143)-1))) -> 0.015059045 | G143: =IF($K143="No",0,IF($J143="one-off",VLOOKUP($A143,Escalations_General_Costs,+'I-6'!G$9+1,FALSE),((VLOOKUP($A143,Escalations_General_Costs,+'I-6'!G$9+1,FALSE)+1)*(1+F143)-1))) -> 0.02622469449 | H143: =IF($K143="No",0,IF($J143="one-off",VLOOKUP($A143,Escalations_General_Costs,+'I-6'!H$9+1,FALSE),((VLOOKUP($A143,Escalations_General_Costs,+'I-6'!H$9+1,FALSE)+1)*(1+G143)-1))) -> 0.04059184022 | I143: =IF($K143="No",0,IF($J143="one-off",VLOOKUP($A143,Escalations_General_Costs,+'I-6'!I$9+1,FALSE),((VLOOKUP($A143,Escalations_General_Costs,+'I-6'!I$9+1,FALSE)+1)*(1+H143)-1))) -> 0.05932249334 | J143: Cumulative | K143: Yes | N143: 0 | O143: 0 | P143: 0 | Q143: 0 | R143: 0 | S143: 0 | T143: 0
A144: Labour | B144: Business Overheads | C144: 0 | D144: =IF($K144="No",0,IF($J144="one-off",VLOOKUP($A144,Escalations_General_Costs,+'I-6'!D$9+1,FALSE),((VLOOKUP($A144,Escalations_General_Costs,+'I-6'!D$9+1,FALSE)+1)*(1+C144)-1))) -> 0.0166 | E144: =IF($K144="No",0,IF($J144="one-off",VLOOKUP($A144,Escalations_General_Costs,+'I-6'!E$9+1,FALSE),((VLOOKUP($A144,Escalations_General_Costs,+'I-6'!E$9+1,FALSE)+1)*(1+D144)-1))) -> 0.03841416814 | F144: =IF($K144="No",0,IF($J144="one-off",VLOOKUP($A144,Escalations_General_Costs,+'I-6'!F$9+1,FALSE),((VLOOKUP($A144,Escalations_General_Costs,+'I-6'!F$9+1,FALSE)+1)*(1+E144)-1))) -> 0.06069642395 | G144: =IF($K144="No",0,IF($J144="one-off",VLOOKUP($A144,Escalations_General_Costs,+'I-6'!G$9+1,FALSE),((VLOOKUP($A144,Escalations_General_Costs,+'I-6'!G$9+1,FALSE)+1)*(1+F144)-1))) -> 0.08470395618 | H144: =IF($K144="No",0,IF($J144="one-off",VLOOKUP($A144,Escalations_General_Costs,+'I-6'!H$9+1,FALSE),((VLOOKUP($A144,Escalations_General_Costs,+'I-6'!H$9+1,FALSE)+1)*(1+G144)-1))) -> 0.1092548688 | I144: =IF($K144="No",0,IF($J144="one-off",VLOOKUP($A144,Escalations_General_Costs,+'I-6'!I$9+1,FALSE),((VLOOKUP($A144,Escalations_General_Costs,+'I-6'!I$9+1,FALSE)+1)*(1+H144)-1))) -> 0.1343614604 | J144: Cumulative | K144: Yes | N144: 0 | O144: 0 | P144: 0.001159812384 | Q144: 0.0005257244105 | R144: 0.0007336665743 | S144: 0.0009463152479 | T144: 0.001162743408
A145: Materials - Land | B145: Other | C145: 0 | D145: =IF($K145="No",0,IF($J145="one-off",VLOOKUP($A145,Escalations_General_Costs,+'I-6'!D$9+1,FALSE),((VLOOKUP($A145,Escalations_General_Costs,+'I-6'!D$9+1,FALSE)+1)*(1+C145)-1))) -> 0.0596 | E145: =IF($K145="No",0,IF($J145="one-off",VLOOKUP($A145,Escalations_General_Costs,+'I-6'!E$9+1,FALSE),((VLOOKUP($A145,Escalations_General_Costs,+'I-6'!E$9+1,FALSE)+1)*(1+D145)-1))) -> 0.12275216 | F145: =IF($K145="No",0,IF($J145="one-off",VLOOKUP($A145,Escalations_General_Costs,+'I-6'!F$9+1,FALSE),((VLOOKUP($A145,Escalations_General_Costs,+'I-6'!F$9+1,FALSE)+1)*(1+E145)-1))) -> 0.1896681887 | G145: =IF($K145="No",0,IF($J145="one-off",VLOOKUP($A145,Escalations_General_Costs,+'I-6'!G$9+1,FALSE),((VLOOKUP($A145,Escalations_General_Costs,+'I-6'!G$9+1,FALSE)+1)*(1+F145)-1))) -> 0.2605724128 | H145: =IF($K145="No",0,IF($J145="one-off",VLOOKUP($A145,Escalations_General_Costs,+'I-6'!H$9+1,FALSE),((VLOOKUP($A145,Escalations_General_Costs,+'I-6'!H$9+1,FALSE)+1)*(1+G145)-1))) -> 0.3357025286 | I145: =IF($K145="No",0,IF($J145="one-off",VLOOKUP($A145,Escalations_General_Costs,+'I-6'!I$9+1,FALSE),((VLOOKUP($A145,Escalations_General_Costs,+'I-6'!I$9+1,FALSE)+1)*(1+H145)-1))) -> 0.4153103993 | J145: Cumulative | K145: Yes | N145: 0 | O145: 0 | P145: 0 | Q145: 0 | R145: 0 | S145: 0 | T145: 0
A146: End of Escalations - Note all escalations must be above this row. Do Not delete this row | N146: =SUM(N140:N145) -> 0 | O146: =SUM(O140:O145) -> 0 | P146: 0.001159812384 | Q146: 0.0005257244105 | R146: 0.0007336665743 | S146: 0.0009463152479 | T146: 0.001162743408
M147: Check | N147: =ROUND(N146-C167,3) -> 0 | O147: 0 | P147: 0 | Q147: 0 | R147: 0 | S147: 0 | T147: 0
A148: Total General Escalations to Apply (based on escalations selected above)
A149: Labour | C149: =PRODUCT(IF($B$140:$B$146=$A149,C$140:C$146+1))-IF(COUNTIF($B$140:$B$146,+$A149)=0,0,1) -> 0 | D149: =PRODUCT(IF($B$140:$B$146=$A149,D$140:D$146+1))-IF(COUNTIF($B$140:$B$146,+$A149)=0,0,1) -> 0.0166 | E149: =PRODUCT(IF($B$140:$B$146=$A149,E$140:E$146+1))-IF(COUNTIF($B$140:$B$146,+$A149)=0,0,1) -> 0.03841416814 | F149: =PRODUCT(IF($B$140:$B$146=$A149,F$140:F$146+1))-IF(COUNTIF($B$140:$B$146,+$A149)=0,0,1) -> 0.06069642395 | G149: =PRODUCT(IF($B$140:$B$146=$A149,G$140:G$146+1))-IF(COUNTIF($B$140:$B$146,+$A149)=0,0,1) -> 0.08470395618 | H149: =PRODUCT(IF($B$140:$B$146=$A149,H$140:H$146+1))-IF(COUNTIF($B$140:$B$146,+$A149)=0,0,1) -> 0.1092548688 | I149: =PRODUCT(IF($B$140:$B$146=$A149,I$140:I$146+1))-IF(COUNTIF($B$140:$B$146,+$A149)=0,0,1) -> 0.1343614604
A150: Materials | C150: =PRODUCT(IF($B$140:$B$146=$A150,C$140:C$146+1))-IF(COUNTIF($B$140:$B$146,+$A150)=0,0,1) -> 0 | D150: =PRODUCT(IF($B$140:$B$146=$A150,D$140:D$146+1))-IF(COUNTIF($B$140:$B$146,+$A150)=0,0,1) -> 0 | E150: =PRODUCT(IF($B$140:$B$146=$A150,E$140:E$146+1))-IF(COUNTIF($B$140:$B$146,+$A150)=0,0,1) -> 0 | F150: =PRODUCT(IF($B$140:$B$146=$A150,F$140:F$146+1))-IF(COUNTIF($B$140:$B$146,+$A150)=0,0,1) -> 0 | G150: =PRODUCT(IF($B$140:$B$146=$A150,G$140:G$146+1))-IF(COUNTIF($B$140:$B$146,+$A150)=0,0,1) -> 0 | H150: =PRODUCT(IF($B$140:$B$146=$A150,H$140:H$146+1))-IF(COUNTIF($B$140:$B$146,+$A150)=0,0,1) -> 0 | I150: =PRODUCT(IF($B$140:$B$146=$A150,I$140:I$146+1))-IF(COUNTIF($B$140:$B$146,+$A150)=0,0,1) -> 0
A151: Contracts | C151: =PRODUCT(IF($B$140:$B$146=$A151,C$140:C$146+1))-IF(COUNTIF($B$140:$B$146,+$A151)=0,0,1) -> 0 | D151: =PRODUCT(IF($B$140:$B$146=$A151,D$140:D$146+1))-IF(COUNTIF($B$140:$B$146,+$A151)=0,0,1) -> 0.001 | E151: =PRODUCT(IF($B$140:$B$146=$A151,E$140:E$146+1))-IF(COUNTIF($B$140:$B$146,+$A151)=0,0,1) -> 0.006005 | F151: =PRODUCT(IF($B$140:$B$146=$A151,F$140:F$146+1))-IF(COUNTIF($B$140:$B$146,+$A151)=0,0,1) -> 0.015059045 | G151: =PRODUCT(IF($B$140:$B$146=$A151,G$140:G$146+1))-IF(COUNTIF($B$140:$B$146,+$A151)=0,0,1) -> 0.02622469449 | H151: =PRODUCT(IF($B$140:$B$146=$A151,H$140:H$146+1))-IF(COUNTIF($B$140:$B$146,+$A151)=0,0,1) -> 0.04059184022 | I151: =PRODUCT(IF($B$140:$B$146=$A151,I$140:I$146+1))-IF(COUNTIF($B$140:$B$146,+$A151)=0,0,1) -> 0.05932249334
A152: Services Other | C152: =PRODUCT(IF($B$140:$B$146=$A152,C$140:C$146+1))-IF(COUNTIF($B$140:$B$146,+$A152)=0,0,1) -> 0 | D152: =PRODUCT(IF($B$140:$B$146=$A152,D$140:D$146+1))-IF(COUNTIF($B$140:$B$146,+$A152)=0,0,1) -> 0.001 | E152: =PRODUCT(IF($B$140:$B$146=$A152,E$140:E$146+1))-IF(COUNTIF($B$140:$B$146,+$A152)=0,0,1) -> 0.006005 | F152: =PRODUCT(IF($B$140:$B$146=$A152,F$140:F$146+1))-IF(COUNTIF($B$140:$B$146,+$A152)=0,0,1) -> 0.015059045 | G152: =PRODUCT(IF($B$140:$B$146=$A152,G$140:G$146+1))-IF(COUNTIF($B$140:$B$146,+$A152)=0,0,1) -> 0.02622469449 | H152: =PRODUCT(IF($B$140:$B$146=$A152,H$140:H$146+1))-IF(COUNTIF($B$140:$B$146,+$A152)=0,0,1) -> 0.04059184022 | I152: =PRODUCT(IF($B$140:$B$146=$A152,I$140:I$146+1))-IF(COUNTIF($B$140:$B$146,+$A152)=0,0,1) -> 0.05932249334
A153: Business Overheads | C153: =PRODUCT(IF($B$140:$B$146=$A153,C$140:C$146+1))-IF(COUNTIF($B$140:$B$146,+$A153)=0,0,1) -> 0 | D153: =PRODUCT(IF($B$140:$B$146=$A153,D$140:D$146+1))-IF(COUNTIF($B$140:$B$146,+$A153)=0,0,1) -> 0.0166 | E153: =PRODUCT(IF($B$140:$B$146=$A153,E$140:E$146+1))-IF(COUNTIF($B$140:$B$146,+$A153)=0,0,1) -> 0.03841416814 | F153: =PRODUCT(IF($B$140:$B$146=$A153,F$140:F$146+1))-IF(COUNTIF($B$140:$B$146,+$A153)=0,0,1) -> 0.06069642395 | G153: =PRODUCT(IF($B$140:$B$146=$A153,G$140:G$146+1))-IF(COUNTIF($B$140:$B$146,+$A153)=0,0,1) -> 0.08470395618 | H153: =PRODUCT(IF($B$140:$B$146=$A153,H$140:H$146+1))-IF(COUNTIF($B$140:$B$146,+$A153)=0,0,1) -> 0.1092548688 | I153: =PRODUCT(IF($B$140:$B$146=$A153,I$140:I$146+1))-IF(COUNTIF($B$140:$B$146,+$A153)=0,0,1) -> 0.1343614604
A154: Other | C154: =PRODUCT(IF($B$140:$B$146=$A154,C$140:C$146+1))-IF(COUNTIF($B$140:$B$146,+$A154)=0,0,1) -> 0 | D154: =PRODUCT(IF($B$140:$B$146=$A154,D$140:D$146+1))-IF(COUNTIF($B$140:$B$146,+$A154)=0,0,1) -> 0.0596 | E154: =PRODUCT(IF($B$140:$B$146=$A154,E$140:E$146+1))-IF(COUNTIF($B$140:$B$146,+$A154)=0,0,1) -> 0.12275216 | F154: =PRODUCT(IF($B$140:$B$146=$A154,F$140:F$146+1))-IF(COUNTIF($B$140:$B$146,+$A154)=0,0,1) -> 0.1896681887 | G154: =PRODUCT(IF($B$140:$B$146=$A154,G$140:G$146+1))-IF(COUNTIF($B$140:$B$146,+$A154)=0,0,1) -> 0.2605724128 | H154: =PRODUCT(IF($B$140:$B$146=$A154,H$140:H$146+1))-IF(COUNTIF($B$140:$B$146,+$A154)=0,0,1) -> 0.3357025286 | I154: =PRODUCT(IF($B$140:$B$146=$A154,I$140:I$146+1))-IF(COUNTIF($B$140:$B$146,+$A154)=0,0,1) -> 0.4153103993
A155: Product of Escalators by Category | C155: =PRODUCT(IF(C149:C154<>0,C149:C154+1))-IF(SUM(C149:C154)<>0,1,0) -> 0 | D155: =PRODUCT(IF(D149:D154<>0,D149:D154+1))-IF(SUM(D149:D154)<>0,1,0) -> 0.09726193985 | E155: =PRODUCT(IF(E149:E154<>0,E149:E154+1))-IF(SUM(E149:E154)<>0,1,0) -> 0.2252519088 | F155: =PRODUCT(IF(F149:F154<>0,F149:F154+1))-IF(SUM(F149:F154)<>0,1,0) -> 0.379083839 | G155: =PRODUCT(IF(G149:G154<>0,G149:G154+1))-IF(SUM(G149:G154)<>0,1,0) -> 0.5619789215 | H155: =PRODUCT(IF(H149:H154<>0,H149:H154+1))-IF(SUM(H149:H154)<>0,1,0) -> 0.7796445439 | I155: =PRODUCT(IF(I149:I154<>0,I149:I154+1))-IF(SUM(I149:I154)<>0,1,0) -> 1.04367114
A156: Product of All Escalators | C156: =PRODUCT(IF((C140:C146<>0),C140:C146+1))-IF(C140:C146<>0,1,0) -> 0 | D156: =PRODUCT(IF((D140:D146<>0),D140:D146+1))-IF(D140:D146<>0,1,0) -> 0.09726193985 | E156: =PRODUCT(IF((E140:E146<>0),E140:E146+1))-IF(E140:E146<>0,1,0) -> 0.2252519088 | F156: =PRODUCT(IF((F140:F146<>0),F140:F146+1))-IF(F140:F146<>0,1,0) -> 0.379083839 | G156: =PRODUCT(IF((G140:G146<>0),G140:G146+1))-IF(G140:G146<>0,1,0) -> 0.5619789215 | H156: =PRODUCT(IF((H140:H146<>0),H140:H146+1))-IF(H140:H146<>0,1,0) -> 0.7796445439 | I156: =PRODUCT(IF((I140:I146<>0),I140:I146+1))-IF(I140:I146<>0,1,0) -> 1.04367114
A157: Difference - should be Zero | C157: =ROUND(+C155-C156,4) -> 0 | D157: 0 | E157: 0 | F157: 0 | G157: 0 | H157: 0 | I157: 0 | J157: =IF(SUM(C157:I157)<>0,"Warning Check Escalations","OK") -> OK
A159: Dollar Impact of General Escalations
A160: Summary by Cost Category | C160: =LU_TemplateYearHeader2 -> 2013/14 | D160: 2014/15 | E160: 2015/16 | F160: 2016/17 | G160: 2017/18 | H160: 2018/19 | I160: 2019/20
A161: Labour | C161: =(+C30+C42)*(C$149) -> 0 | D161: 0 | E161: 0 | F161: 0 | G161: 0 | H161: 0 | I161: 0
A162: Materials | C162: =(+C31+C43)*(C$150) -> 0 | D162: 0 | E162: 0 | F162: 0 | G162: 0 | H162: 0 | I162: 0
A163: Contracts | C163: =(+C32+C44)*(C$151) -> 0 | D163: =(+D32+D44)*(D$151) -> 0 | E163: =(+E32+E44)*(E$151) -> 0 | F163: 0 | G163: 0 | H163: 0 | I163: 0
A164: Services Other | C164: =(+C33+C45)*(C$152) -> 0 | D164: =(+D33+D45)*(D$152) -> 0 | E164: =(+E33+E45)*(E$152) -> 0 | F164: 0 | G164: 0 | H164: 0 | I164: 0
A165: Business Overheads | C165: =(+C34+C46)*(C$153) -> 0 | D165: =(+D34+D46)*(D$153) -> 0 | E165: =(+E34+E46)*(E$153) -> 0.001159812384 | F165: 0.0005257244105 | G165: 0.0007336665743 | H165: 0.0009463152479 | I165: 0.001162743408
A166: Other | C166: =(+C35+C47)*(C$154) -> 0 | D166: 0 | E166: 0 | F166: 0 | G166: 0 | H166: 0 | I166: 0
A167: Dollar Impact of General Escalations | C167: =SUM(C161:C166) -> 0 | D167: 0 | E167: 0.001159812384 | F167: 0.0005257244105 | G167: 0.0007336665743 | H167: 0.0009463152479 | I167: 0.001162743408
A168: Average General Escalation % | C168: =IF((+C36+C48)<>0,+C167/(+C36+C48),0) -> 0 | D168: 0 | E168: 0.001477468005 | F168: 0.002334477844 | G168: 0.003257844468 | H168: 0.004202110337 | I168: 0.005167748479
A172: Variations
A173: Total of all the Variation Templates
B174: =LU_TemplateYearHeader -> 2012/13 | C174: 2013/14 | D174: 2014/15 | E174: 2015/16 | F174: 2016/17 | G174: 2017/18 | H174: 2018/19 | I174: 2019/20
A175: Summary by Cost Category
A176: Labour | C176: =SUMIF($A$217:$A$227,$A176,C$217:C$227) -> 0 | D176: 0 | E176: 0 | F176: 0 | G176: 0 | H176: 0 | I176: 0
A177: Materials | C177: 0 | D177: 0 | E177: 0 | F177: 0 | G177: 0 | H177: 0 | I177: 0
A178: Contracts | C178: =SUMIF($A$217:$A$227,$A178,C$217:C$227) -> 0 | D178: 0 | E178: 0 | F178: 0 | G178: 0 | H178: 0 | I178: 0
A179: Services Other | C179: 0 | D179: 0 | E179: 0 | F179: 0 | G179: 0 | H179: 0 | I179: 0
A180: Business Overheads | C180: 0 | D180: 0 | E180: 0 | F180: 0 | G180: 0 | H180: 0 | I180: 0
A181: Other | C181: =SUMIF($A$217:$A$227,$A181,C$217:C$227) -> 0 | D181: 0 | E181: 0 | F181: 0 | G181: 0 | H181: 0 | I181: 0
A182: Total Variations | C182: =SUM(C176:C181) -> 0 | D182: 0 | E182: 0 | F182: 0 | G182: 0 | H182: 0 | I182: 0
A184: Variations Summary
A185: Summary of the Variation Templates | C185: Number of variations: | D185: =MAX(J210:J227) -> 1
B186: =LU_TemplateYearHeader -> 2012/13 | C186: 2013/14 | D186: 2014/15 | E186: 2015/16 | F186: 2016/17 | G186: 2017/18 | H186: 2018/19 | I186: 2019/20 | J186: No:
A187: =IF(ISNUMBER($J187),OFFSET($B$209,MATCH(+$J187,$J$210:$J$227,0),0),"") -> Total Variation | B187: =IF(ISNUMBER($J187),OFFSET(B$209,MATCH(+$J187,$J$210:$J$227,0)+11,0),"") -> 0 | C187: 0 | D187: 0 | E187: 0 | F187: 0 | G187: 0 | H187: 0 | I187: 0 | J187: =IF($D$185>0,1,"") -> 1
J188: =IF(J187<$D$185,J187+1,"") -> 
J189: =IF(J188<$D$185,J188+1,"") -> 
J197: =IF(J196<$D$185,J196+1,"") -> 
J198: =IF(J197<$D$185,J197+1,"") -> 
J199: =IF(J198<$D$185,J198+1,"") -> 
J200: =IF(J199<$D$185,J199+1,"") -> 
J201: =IF(J200<$D$185,J200+1,"") -> 
A202: Total Variations | B202: =SUM(B187:B201) -> 0 | C202: =SUM(C187:C201) -> 0 | D202: 0 | E202: 0 | F202: 0 | G202: 0 | H202: 0 | I202: 0
A204: Variation Templates
A205: Variations are input below, with one Variation Template to be completed for each variation.
A206: Click on the "Insert New Variation" button to add a new template:
A207: Variations to be input in Real 2013 dollars (ie without escalations) . Escalations are calculated separately on all expenditure, including variations.
J209: Var. No:
A210: Variation Title | B210: Total Variation | J210: 1
A211: Description
A212: Source of data. (Name, date, location)
A213: Version of Data
B215: =LU_TemplateYearHeader -> 2012/13 | C215: 2013/14 | D215: 2014/15 | E215: 2015/16 | F215: 2016/17 | G215: 2017/18 | H215: 2018/19 | I215: 2019/20
A216: Summary by Cost Category
A217: Labour
A218: Materials
A219: Contracts
A220: Services Other
A221: Business Overheads
A222: Other
A223: Total of this variation | C223: =SUM(C217:C222) -> 0 | D223: 0 | E223: 0 | F223: 0 | G223: 0 | H223: 0 | I223: 0
A227: End of Variations - Note all variations must be above this row. Do Not delete this row
A232: Charts
A234: Chart Data - Historic Expenditure | B234: =LU_TemplateYearHeader3 -> 2005/06 | C234: 2006/07 | D234: 2007/08 | E234: 2008/09 | F234: 2009/10 | G234: 2010/11 | H234: 2011/12
A235: Historic Expenditure | B235: =OFFSET(List_CapexStart,MATCH($K$1,'I-4 History'!$A$6:$A$282)+6,+'I-4 History'!E5) -> 0 | C235: =OFFSET(List_CapexStart,MATCH($K$1,'I-4 History'!$A$6:$A$282)+6,+'I-4 History'!F5) -> 0 | D235: =OFFSET(List_CapexStart,MATCH($K$1,'I-4 History'!$A$6:$A$282)+6,+'I-4 History'!G5) -> 0 | E235: =OFFSET(List_CapexStart,MATCH($K$1,'I-4 History'!$A$6:$A$282)+6,+'I-4 History'!H5) -> 0 | F235: =OFFSET(List_CapexStart,MATCH($K$1,'I-4 History'!$A$6:$A$282)+6,+'I-4 History'!I5) -> 0 | G235: =OFFSET(List_CapexStart,MATCH($K$1,'I-4 History'!$A$6:$A$282)+6,+'I-4 History'!J5) -> 0 | H235: =OFFSET(List_CapexStart,MATCH($K$1,'I-4 History'!$A$6:$A$282)+6,+'I-4 History'!K5) -> 0
A236: Chart Data - Base Year+Planned | B236: =LU_TemplateYearHeader -> 2012/13 | C236: 2013/14 | D236: 2014/15 | E236: 2015/16 | F236: 2016/17 | G236: 2017/18 | H236: 2018/19 | I236: 2019/20
A237: Baseline Expenditure | B237: =+B14 -> 0 | C237: 0 | D237: 0 | E237: 0.785 | F237: 0.2252 | G237: 0.2252 | H237: 0.2252 | I237: 0.225
A238: Total with Variations | B238: =+B36 -> 0 | C238: 0 | D238: 0 | E238: 0.785 | F238: 0.2252 | G238: 0.2252 | H238: 0.2252 | I238: 0.225
A239: Total with Specific Escalations | B239: =+B36+B48 -> 0 | C239: 0 | D239: 0 | E239: 0.785 | F239: 0.2252 | G239: 0.2252 | H239: 0.2252 | I239: 0.225
A240: Total with All Escalations | B240: =+B70 -> 0 | C240: 0 | D240: 0 | E240: 0.7861598124 | F240: 0.2257257244 | G240: 0.2259336666 | H240: 0.2261463152 | I240: 0.2261627434

Sheet C-3
A1: Capital Expenditure | I1: =LU_TemplateDollarDenomination -> $'M Dec 2013 | J1: Sheet Number: | K1: 3
A2: Costs Category : | B2: =OFFSET(List_CapexCategoriesStart,+$K$1,1) -> Superannuation
A3: Sign-off : | B3: =OFFSET(List_CapexCategoriesStart,+$K$1,2) -> Patrick Makinson | E3: Version of Data: | H3: Dated:
B4: =LU_TemplateYearHeader -> 2012/13 | C4: 2013/14 | D4: 2014/15 | E4: 2015/16 | F4: 2016/17 | G4: 2017/18 | H4: 2018/19 | I4: 2019/20 | J4: Notes & checks
A5: A. Baseline Expenditure, based on:
A7: Summary by Cost Category
A8: Labour | B8: =OFFSET(List_CapexStart,MATCH($K$1,'I-4 History'!$A$6:$A$256)+2,0) -> 0 | C8: =OFFSET(Future_CapexStart,MATCH($K$1,'I-5 Future'!$A$6:$A$284)+2,+'I-5 Future'!D$5) -> 0 | D8: =OFFSET(Future_CapexStart,MATCH($K$1,'I-5 Future'!$A$6:$A$284)+2,+'I-5 Future'!E$5) -> 0 | E8: =OFFSET(Future_CapexStart,MATCH($K$1,'I-5 Future'!$A$6:$A$284)+2,+'I-5 Future'!F$5) -> 0 | F8: =OFFSET(Future_CapexStart,MATCH($K$1,'I-5 Future'!$A$6:$A$284)+2,+'I-5 Future'!G$5) -> 0 | G8: =OFFSET(Future_CapexStart,MATCH($K$1,'I-5 Future'!$A$6:$A$284)+2,+'I-5 Future'!H$5) -> 0 | H8: =OFFSET(Future_CapexStart,MATCH($K$1,'I-5 Future'!$A$6:$A$284)+2,+'I-5 Future'!I$5) -> 0 | I8: =OFFSET(Future_CapexStart,MATCH($K$1,'I-5 Future'!$A$6:$A$284)+2,+'I-5 Future'!J$5) -> 0
A9: Materials | B9: =OFFSET(List_CapexStart,MATCH($K$1,'I-4 History'!$A$6:$A$256)+3,0) -> 0 | C9: =OFFSET(Future_CapexStart,MATCH($K$1,'I-5 Future'!$A$6:$A$284)+3,+'I-5 Future'!D$5) -> 0 | D9: =OFFSET(Future_CapexStart,MATCH($K$1,'I-5 Future'!$A$6:$A$284)+3,+'I-5 Future'!E$5) -> 0 | E9: =OFFSET(Future_CapexStart,MATCH($K$1,'I-5 Future'!$A$6:$A$284)+3,+'I-5 Future'!F$5) -> 0 | F9: =OFFSET(Future_CapexStart,MATCH($K$1,'I-5 Future'!$A$6:$A$284)+3,+'I-5 Future'!G$5) -> 0 | G9: =OFFSET(Future_CapexStart,MATCH($K$1,'I-5 Future'!$A$6:$A$284)+3,+'I-5 Future'!H$5) -> 0 | H9: =OFFSET(Future_CapexStart,MATCH($K$1,'I-5 Future'!$A$6:$A$284)+3,+'I-5 Future'!I$5) -> 0 | I9: =OFFSET(Future_CapexStart,MATCH($K$1,'I-5 Future'!$A$6:$A$284)+3,+'I-5 Future'!J$5) -> 0
A10: Contracts | B10: =OFFSET(List_CapexStart,MATCH($K$1,'I-4 History'!$A$6:$A$256)+4,0) -> 0 | C10: =OFFSET(Future_CapexStart,MATCH($K$1,'I-5 Future'!$A$6:$A$284)+4,+'I-5 Future'!D$5) -> 0 | D10: =OFFSET(Future_CapexStart,MATCH($K$1,'I-5 Future'!$A$6:$A$284)+4,+'I-5 Future'!E$5) -> 0 | E10: =OFFSET(Future_CapexStart,MATCH($K$1,'I-5 Future'!$A$6:$A$284)+4,+'I-5 Future'!F$5) -> 0 | F10: =OFFSET(Future_CapexStart,MATCH($K$1,'I-5 Future'!$A$6:$A$284)+4,+'I-5 Future'!G$5) -> 0 | G10: =OFFSET(Future_CapexStart,MATCH($K$1,'I-5 Future'!$A$6:$A$284)+4,+'I-5 Future'!H$5) -> 0 | H10: =OFFSET(Future_CapexStart,MATCH($K$1,'I-5 Future'!$A$6:$A$284)+4,+'I-5 Future'!I$5) -> 0 | I10: =OFFSET(Future_CapexStart,MATCH($K$1,'I-5 Future'!$A$6:$A$284)+4,+'I-5 Future'!J$5) -> 0
A11: Services Other | B11: =OFFSET(List_CapexStart,MATCH($K$1,'I-4 History'!$A$6:$A$256)+5,0) -> 0 | C11: =OFFSET(Future_CapexStart,MATCH($K$1,'I-5 Future'!$A$6:$A$284)+5,+'I-5 Future'!D$5) -> 0 | D11: =OFFSET(Future_CapexStart,MATCH($K$1,'I-5 Future'!$A$6:$A$284)+5,+'I-5 Future'!E$5) -> 0 | E11: =OFFSET(Future_CapexStart,MATCH($K$1,'I-5 Future'!$A$6:$A$284)+5,+'I-5 Future'!F$5) -> 0 | F11: =OFFSET(Future_CapexStart,MATCH($K$1,'I-5 Future'!$A$6:$A$284)+5,+'I-5 Future'!G$5) -> 0 | G11: =OFFSET(Future_CapexStart,MATCH($K$1,'I-5 Future'!$A$6:$A$284)+5,+'I-5 Future'!H$5) -> 0 | H11: =OFFSET(Future_CapexStart,MATCH($K$1,'I-5 Future'!$A$6:$A$284)+5,+'I-5 Future'!I$5) -> 0 | I11: =OFFSET(Future_CapexStart,MATCH($K$1,'I-5 Future'!$A$6:$A$284)+5,+'I-5 Future'!J$5) -> 0
A12: Business Overheads | B12: =OFFSET(List_CapexStart,MATCH($K$1,'I-4 History'!$A$6:$A$256)+6,0) -> 0 | C12: =OFFSET(Future_CapexStart,MATCH($K$1,'I-5 Future'!$A$6:$A$284)+6,+'I-5 Future'!D$5) -> 0 | D12: =OFFSET(Future_CapexStart,MATCH($K$1,'I-5 Future'!$A$6:$A$284)+6,+'I-5 Future'!E$5) -> 0 | E12: =OFFSET(Future_CapexStart,MATCH($K$1,'I-5 Future'!$A$6:$A$284)+6,+'I-5 Future'!F$5) -> 0 | F12: =OFFSET(Future_CapexStart,MATCH($K$1,'I-5 Future'!$A$6:$A$284)+6,+'I-5 Future'!G$5) -> 0 | G12: =OFFSET(Future_CapexStart,MATCH($K$1,'I-5 Future'!$A$6:$A$284)+6,+'I-5 Future'!H$5) -> 0 | H12: =OFFSET(Future_CapexStart,MATCH($K$1,'I-5 Future'!$A$6:$A$284)+6,+'I-5 Future'!I$5) -> 0 | I12: =OFFSET(Future_CapexStart,MATCH($K$1,'I-5 Future'!$A$6:$A$284)+6,+'I-5 Future'!J$5) -> 0
A13: Other | B13: =OFFSET(List_CapexStart,MATCH($K$1,'I-4 History'!$A$6:$A$256)+7,0) -> 0 | C13: =OFFSET(Future_CapexStart,MATCH($K$1,'I-5 Future'!$A$6:$A$284)+7,+'I-5 Future'!D$5) -> 0 | D13: =OFFSET(Future_CapexStart,MATCH($K$1,'I-5 Future'!$A$6:$A$284)+7,+'I-5 Future'!E$5) -> 0 | E13: =OFFSET(Future_CapexStart,MATCH($K$1,'I-5 Future'!$A$6:$A$284)+7,+'I-5 Future'!F$5) -> 0 | F13: =OFFSET(Future_CapexStart,MATCH($K$1,'I-5 Future'!$A$6:$A$284)+7,+'I-5 Future'!G$5) -> 0 | G13: =OFFSET(Future_CapexStart,MATCH($K$1,'I-5 Future'!$A$6:$A$284)+7,+'I-5 Future'!H$5) -> 0 | H13: =OFFSET(Future_CapexStart,MATCH($K$1,'I-5 Future'!$A$6:$A$284)+7,+'I-5 Future'!I$5) -> 0 | I13: =OFFSET(Future_CapexStart,MATCH($K$1,'I-5 Future'!$A$6:$A$284)+7,+'I-5 Future'!J$5) -> 0
A14: Baseline Expenditure | B14: =SUM(B8:B13) -> 0 | C14: 0 | D14: 0 | E14: 0 | F14: 0 | G14: 0 | H14: 0 | I14: 0
A16: B. Variations (as per calculations on page 3)
A18: Summary by Cost Category
A19: Labour | C19: =+C176 -> 0 | D19: 0 | E19: 0 | F19: 0 | G19: 0 | H19: 0 | I19: 0
A20: Materials | C20: 0 | D20: 0 | E20: 0 | F20: 0 | G20: 0 | H20: 0 | I20: 0
A21: Contracts | C21: =+C178 -> 0 | D21: 0 | E21: 0 | F21: 0 | G21: 0 | H21: 0 | I21: 0
A22: Services Other | C22: =+C179 -> 0 | D22: 0 | E22: 0 | F22: 0 | G22: 0 | H22: 0 | I22: 0
A23: Business Overheads | C23: =+C180 -> 0 | D23: 0 | E23: 0 | F23: 0 | G23: 0 | H23: 0 | I23: 0
A24: Other | C24: =+C181 -> 0 | D24: 0 | E24: 0 | F24: 0 | G24: 0 | H24: 0 | I24: 0
A25: Variations | C25: =SUM(C19:C24) -> 0 | D25: 0 | E25: 0 | F25: 0 | G25: 0 | H25: 0 | I25: 0 | J25: =IF(ROUND(SUM(C182:I182)-SUM(B25:I25),2)<>0,"Warning Check Totals","OK") -> OK
A27: Total Base Expenditure + Variations, Before Escalations
A29: Summary by Cost Category
A30: Labour | B30: =+'C-3'!B8+'C-3'!B19 -> 0 | C30: =+'C-3'!C8+'C-3'!C19 -> 0 | D30: =+'C-3'!D8+'C-3'!D19 -> 0 | E30: =+'C-3'!E8+'C-3'!E19 -> 0 | F30: =+'C-3'!F8+'C-3'!F19 -> 0 | G30: =+'C-3'!G8+'C-3'!G19 -> 0 | H30: =+'C-3'!H8+'C-3'!H19 -> 0 | I30: =+'C-3'!I8+'C-3'!I19 -> 0
A31: Materials | B31: =+'C-3'!B9+'C-3'!B20 -> 0 | C31: =+'C-3'!C9+'C-3'!C20 -> 0 | D31: =+'C-3'!D9+'C-3'!D20 -> 0 | E31: =+'C-3'!E9+'C-3'!E20 -> 0 | F31: =+'C-3'!F9+'C-3'!F20 -> 0 | G31: =+'C-3'!G9+'C-3'!G20 -> 0 | H31: =+'C-3'!H9+'C-3'!H20 -> 0 | I31: =+'C-3'!I9+'C-3'!I20 -> 0
A32: Contracts | B32: =+'C-3'!B10+'C-3'!B21 -> 0 | C32: =+'C-3'!C10+'C-3'!C21 -> 0 | D32: =+'C-3'!D10+'C-3'!D21 -> 0 | E32: =+'C-3'!E10+'C-3'!E21 -> 0 | F32: =+'C-3'!F10+'C-3'!F21 -> 0 | G32: =+'C-3'!G10+'C-3'!G21 -> 0 | H32: =+'C-3'!H10+'C-3'!H21 -> 0 | I32: =+'C-3'!I10+'C-3'!I21 -> 0
A33: Services Other | B33: =+'C-3'!B11+'C-3'!B22 -> 0 | C33: =+'C-3'!C11+'C-3'!C22 -> 0 | D33: =+'C-3'!D11+'C-3'!D22 -> 0 | E33: =+'C-3'!E11+'C-3'!E22 -> 0 | F33: =+'C-3'!F11+'C-3'!F22 -> 0 | G33: =+'C-3'!G11+'C-3'!G22 -> 0 | H33: =+'C-3'!H11+'C-3'!H22 -> 0 | I33: =+'C-3'!I11+'C-3'!I22 -> 0
A34: Business Overheads | B34: =+'C-3'!B12+'C-3'!B23 -> 0 | C34: =+'C-3'!C12+'C-3'!C23 -> 0 | D34: =+'C-3'!D12+'C-3'!D23 -> 0 | E34: =+'C-3'!E12+'C-3'!E23 -> 0 | F34: =+'C-3'!F12+'C-3'!F23 -> 0 | G34: =+'C-3'!G12+'C-3'!G23 -> 0 | H34: =+'C-3'!H12+'C-3'!H23 -> 0 | I34: =+'C-3'!I12+'C-3'!I23 -> 0
A35: Other | B35: =+'C-3'!B13+'C-3'!B24 -> 0 | C35: =+'C-3'!C13+'C-3'!C24 -> 0 | D35: =+'C-3'!D13+'C-3'!D24 -> 0 | E35: =+'C-3'!E13+'C-3'!E24 -> 0 | F35: =+'C-3'!F13+'C-3'!F24 -> 0 | G35: =+'C-3'!G13+'C-3'!G24 -> 0 | H35: =+'C-3'!H13+'C-3'!H24 -> 0 | I35: =+'C-3'!I13+'C-3'!I24 -> 0
A36: Expenditure Before Escalations | B36: =SUM(B30:B35) -> 0 | C36: 0 | D36: 0 | E36: 0 | F36: 0 | G36: 0 | H36: 0 | I36: 0 | J36: =IF(ROUND(SUM(B14:I14)+SUM(B25:I25)-SUM(B36:I36),2)<>0,"Warning Check Totals","OK") -> OK
A39: C. Specific Escalations (as per calculations on page 2)
A41: Summary by Cost Category
A42: Labour | C42: =+C125 -> 0 | D42: 0 | E42: 0 | F42: 0 | G42: 0 | H42: 0 | I42: 0
A43: Materials | C43: 0 | D43: 0 | E43: 0 | F43: 0 | G43: 0 | H43: 0 | I43: 0
A44: Contracts | C44: =+C127 -> 0 | D44: 0 | E44: 0 | F44: 0 | G44: 0 | H44: 0 | I44: 0
A45: Services Other | C45: =+C128 -> 0 | D45: 0 | E45: 0 | F45: 0 | G45: 0 | H45: 0 | I45: 0
A46: Business Overheads | C46: =+C129 -> 0 | D46: 0 | E46: 0 | F46: 0 | G46: 0 | H46: 0 | I46: 0
A47: Other | C47: =+C130 -> 0 | D47: 0 | E47: 0 | F47: 0 | G47: 0 | H47: 0 | I47: 0
A48: Specific Escalations | C48: =SUM(C42:C47) -> 0 | D48: 0 | E48: 0 | F48: 0 | G48: 0 | H48: 0 | I48: 0 | J48: =IF(ROUND(SUM(B48:I48)-SUM(B131:I131),2)<>0,"Warning Check Escalations","OK") -> OK
A50: D. General Escalations (as per calculations on page 2)
A52: Summary by Cost Category
A53: Labour | C53: =+C161 -> 0 | D53: 0 | E53: 0 | F53: 0 | G53: 0 | H53: 0 | I53: 0
A54: Materials | C54: 0 | D54: 0 | E54: 0 | F54: 0 | G54: 0 | H54: 0 | I54: 0
A55: Contracts | C55: =+C163 -> 0 | D55: 0 | E55: 0 | F55: 0 | G55: 0 | H55: 0 | I55: 0
A56: Services Other | C56: =+C164 -> 0 | D56: 0 | E56: 0 | F56: 0 | G56: 0 | H56: 0 | I56: 0
A57: Business Overheads | C57: =+C165 -> 0 | D57: 0 | E57: 0 | F57: 0 | G57: 0 | H57: 0 | I57: 0
A58: Other | C58: =+C166 -> 0 | D58: 0 | E58: 0 | F58: 0 | G58: 0 | H58: 0 | I58: 0
A59: General Escalations | C59: =SUM(C53:C58) -> 0 | D59: 0 | E59: 0 | F59: 0 | G59: 0 | H59: 0 | I59: 0 | J59: =IF(ROUND(SUM(B59:I59)-SUM(B167:I167),2)<>0,"Warning Check Escalations","OK") -> OK
A61: Total Expenditure | B61: =LU_TemplateYearHeader -> 2012/13 | C61: 2013/14 | D61: 2014/15 | E61: 2015/16 | F61: 2016/17 | G61: 2017/18 | H61: 2018/19 | I61: 2019/20
A63: Summary by Cost Category
A64: Labour | B64: =+B42+B30+B53 -> 0 | C64: 0 | D64: 0 | E64: 0 | F64: 0 | G64: 0 | H64: 0 | I64: 0
A65: Materials | B65: 0 | C65: 0 | D65: 0 | E65: 0 | F65: 0 | G65: 0 | H65: 0 | I65: 0
A66: Contracts | B66: =+B44+B32+B55 -> 0 | C66: 0 | D66: 0 | E66: 0 | F66: 0 | G66: 0 | H66: 0 | I66: 0
A67: Services Other | B67: =+B45+B33+B56 -> 0 | C67: 0 | D67: 0 | E67: 0 | F67: 0 | G67: 0 | H67: 0 | I67: 0
A68: Business Overheads | B68: =+B46+B34+B57 -> 0 | C68: 0 | D68: 0 | E68: 0 | F68: 0 | G68: 0 | H68: 0 | I68: 0
A69: Other | B69: =+B47+B35+B58 -> 0 | C69: 0 | D69: 0 | E69: 0 | F69: 0 | G69: 0 | H69: 0 | I69: 0
A70: Total Expenditure | B70: =SUM(B64:B69) -> 0 | C70: 0 | D70: 0 | E70: 0 | F70: 0 | G70: 0 | H70: 0 | I70: 0 | J70: =IF(ROUND(SUM(B48:I48)+SUM(B36:I36)+SUM(B59:I59)-SUM(B70:I70),3)<>0,"Warning Check Totals","OK") -> OK
A72: Expenditure Categorisation | AA72: Base costs - Expenditure Categorisation
A73: Allocation of Capital Expenditure to Asset Categories | N73: Expenditure Category Proportions | AA73: On pro-rata basis
D74: =+'Ref-1'!P39 -> 2014/15 | E74: =+'Ref-1'!Q39 -> 2015/16 | F74: =+'Ref-1'!R39 -> 2016/17 | G74: =+'Ref-1'!S39 -> 2017/18 | H74: =+'Ref-1'!T39 -> 2018/19 | I74: =+'Ref-1'!U39 -> 2019/20 | N74: =E74 -> 2015/16 | O74: =F74 -> 2016/17 | P74: 2017/18 | Q74: 2018/19 | R74: 2019/20
A75: ='I-2'!C7 -> ACS Replacements | E75: =+E$70*N75 -> 0 | F75: =+F$70*O75 -> 0 | G75: 0 | H75: 0 | I75: 0 | N75: 0 | O75: 0 | P75: 0 | Q75: 0 | R75: 0 | AA75: =+E75*E$14/E$36 ->  | AB75: =+F75*F$14/F$36 ->  | AC75: =+G75*G$14/G$36 ->  | AD75: =+H75*H$14/H$36 ->  | AE75: =+I75*I$14/I$36 -> 
A76: ='I-2'!C8 -> ACS IT Infrastructure | E76: =+E$70*N76 -> 0 | F76: 0 | G76: 0 | H76: 0 | I76: 0 | N76: 0 | O76: 0 | P76: 0 | Q76: 0 | R76: 0
A77: ='I-2'!C9 -> Superannuation | E77: 0 | F77: 0 | G77: 0 | H77: 0 | I77: 0 | N77: 0 | O77: 0 | P77: 0 | Q77: 0 | R77: 0 | AA77: =+E77*E$14/E$36 ->  | AB77: =+F77*F$14/F$36 ->  | AC77: =+G77*G$14/G$36 ->  | AD77: =+H77*H$14/H$36 ->  | AE77: =+I77*I$14/I$36 -> 
A78: ='I-2'!C10 -> Equity Raising Costs | E78: 0 | F78: 0 | G78: 0 | H78: 0 | I78: 0 | N78: 0 | O78: 0 | P78: 0 | Q78: 0 | R78: 0
A79: ='I-2'!C11 -> Spare - Not in Use | E79: 0 | F79: 0 | G79: 0 | H79: 0 | I79: 0 | N79: 0 | O79: 0 | P79: 0 | Q79: 0 | R79: 0 | AA79: =+E79*E$14/E$36 ->  | AB79: =+F79*F$14/F$36 ->  | AC79: =+G79*G$14/G$36 ->  | AD79: =+H79*H$14/H$36 ->  | AE79: =+I79*I$14/I$36 -> 
A80: ='I-2'!C12 -> Spare - Not in Use | E80: 0 | F80: 0 | G80: 0 | H80: 0 | I80: 0 | N80: 0 | O80: 0 | P80: 0 | Q80: 0 | R80: 0
A81: ='I-2'!C13 -> Spare - Not in Use | E81: =+E$70*N81 -> 0 | F81: 0 | G81: 0 | H81: 0 | I81: 0 | N81: 0 | O81: 0 | P81: 0 | Q81: 0 | R81: 0
A82: ='I-2'!C14 -> Spare - Not in Use | E82: 0 | F82: 0 | G82: 0 | H82: 0 | I82: 0 | N82: 0 | O82: 0 | P82: 0 | Q82: 0 | R82: 0
A83: ='I-2'!C15 -> Spare - Not in Use | E83: 0 | F83: 0 | G83: 0 | H83: 0 | I83: 0 | N83: 0 | O83: 0 | P83: 0 | Q83: 0 | R83: 0 | AA83: =+E83*E$14/E$36 ->  | AB83: =+F83*F$14/F$36 ->  | AC83: =+G83*G$14/G$36 ->  | AD83: =+H83*H$14/H$36 ->  | AE83: =+I83*I$14/I$36 -> 
A84: ='I-2'!C16 -> Spare - Not in Use | E84: 0 | F84: 0 | G84: 0 | H84: 0 | I84: 0 | N84: 0 | O84: 0 | P84: 0 | Q84: 0 | R84: 0
A85: ='I-2'!C17 -> Spare - Not in Use | E85: 0 | F85: 0 | G85: 0 | H85: 0 | I85: 0 | N85: 0 | O85: 0 | P85: 0 | Q85: 0 | R85: 0 | AA85: =+E85*E$14/E$36 ->  | AB85: =+F85*F$14/F$36 ->  | AC85: =+G85*G$14/G$36 ->  | AD85: =+H85*H$14/H$36 ->  | AE85: =+I85*I$14/I$36 -> 
A86: ='I-2'!C18 -> Spare - Not in Use | E86: 0 | F86: 0 | G86: 0 | H86: 0 | I86: 0 | N86: 0 | O86: 0 | P86: 0 | Q86: 0 | R86: 0
A87: ='I-2'!C19 -> Spare - Not in Use | E87: 0 | F87: 0 | G87: 0 | H87: 0 | I87: 0 | N87: 0 | O87: 0 | P87: 0 | Q87: 0 | R87: 0 | AA87: =+E87*E$14/E$36 ->  | AB87: =+F87*F$14/F$36 ->  | AC87: =+G87*G$14/G$36 ->  | AD87: =+H87*H$14/H$36 ->  | AE87: =+I87*I$14/I$36 -> 
A88: ='I-2'!C20 -> Spare - Not in Use | E88: 0 | F88: 0 | G88: 0 | H88: 0 | I88: 0 | N88: 0 | O88: 0 | P88: 0 | Q88: 0 | R88: 0
A89: ='I-2'!C21 -> Spare - Not in Use | E89: 0 | F89: 0 | G89: 0 | H89: 0 | I89: 0 | N89: 0 | O89: 0 | P89: 0 | Q89: 0 | R89: 0
A90: ='I-2'!C22 -> Spare - Not in Use | E90: 0 | F90: 0 | G90: 0 | H90: 0 | I90: 0 | N90: 0 | O90: 0 | P90: 0 | Q90: 0 | R90: 0
A91: ='I-2'!C23 -> Spare - Not in Use | E91: 0 | F91: 0 | G91: 0 | H91: 0 | I91: 0 | N91: 0 | O91: 0 | P91: 0 | Q91: 0 | R91: 0
A92: ='I-2'!C24 -> Spare - Not in Use | E92: 0 | F92: 0 | G92: 0 | H92: 0 | I92: 0 | N92: 0 | O92: 0 | P92: 0 | Q92: 0 | R92: 0
A93: ='I-2'!C25 -> Spare - Not in Use | E93: 0 | F93: 0 | G93: 0 | H93: 0 | I93: 0 | N93: 0 | O93: 0 | P93: 0 | Q93: 0 | R93: 0
A94: ='I-2'!C26 -> Spare - Not in Use | E94: 0 | F94: 0 | G94: 0 | H94: 0 | I94: 0 | N94: 0 | O94: 0 | P94: 0 | Q94: 0 | R94: 0
A95: ='I-2'!C27 -> Spare - Not in Use | E95: 0 | F95: 0 | G95: 0 | H95: 0 | I95: 0 | N95: 0 | O95: 0 | P95: 0 | Q95: 0 | R95: 0
A96: ='I-2'!C28 -> Spare - Not in Use | E96: 0 | F96: 0 | G96: 0 | H96: 0 | I96: 0 | N96: 0 | O96: 0 | P96: 0 | Q96: 0 | R96: 0
A97: ='I-2'!C29 -> Spare - Not in Use | E97: 0 | F97: 0 | G97: 0 | H97: 0 | I97: 0 | N97: 0 | O97: 0 | P97: 0 | Q97: 0 | R97: 0
A98: ='I-2'!C30 -> Spare - Not in Use
A99: ='I-2'!C31 -> Spare - Not in Use
A100: ='I-2'!C32 -> Spare - Not in Use
A101: Total Expenditure | B101: =SUM(B75:B100) -> 0 | C101: 0 | D101: 0 | E101: 0 | F101: 0 | G101: 0 | H101: 0 | I101: 0 | O101: Check | P101: =E101-E70 -> 0 | Q101: =F101-F70 -> 0 | R101: 0 | S101: 0 | T101: 0 | AA101: =SUM(AA75:AA100) -> 
A103: Specific Escalation Calculations | C103: 2 | D103: =+C103+1 -> 3 | E103: 4 | F103: 5 | G103: 6 | H103: 7 | I103: 8 | J103: Escalation | K103: Escalation
A104: Select the specific escalations to apply for this expenditure category and the cost categories to which they relate: | J104: Type | K104: Active? | N104: Dollar Impact of Each Escalation (uncompounded with other specific escalations of the same cost category)
A105: Important - if there are not enough rows, copy and insert an entire row with the escalation formulas, not just the visible cells | N105: =LU_TemplateYearHeader2 -> 2013/14 | O105: 2014/15 | P105: 2015/16 | Q105: 2016/17 | R105: 2017/18 | S105: 2018/19 | T105: 2019/20
A106: Specific Escalations | B106: Cost Category | C106: =LU_TemplateYearHeader2 -> 2013/14 | D106: 2014/15 | E106: 2015/16 | F106: 2016/17 | G106: 2017/18 | H106: 2018/19 | I106: 2019/20
C107: =IF($K107="No",0,VLOOKUP($A107,Escalations_Specific_Costs,+C$103,FALSE)) -> 0 | D107: =IF($K107="No",0,IF($J107="one-off",VLOOKUP($A107,Escalations_Specific_Costs,+D$103,FALSE),(VLOOKUP($A107,Escalations_Specific_Costs,+D$103,FALSE)+1)*(1+C107)-1)) -> 0 | E107: 0 | F107: 0 | G107: 0 | H107: 0 | I107: 0 | J107: =IF(ISNA(VLOOKUP($A107,Escalations_Specific_Costs,+I$103+3,FALSE)),0,VLOOKUP($A107,Escalations_Specific_Costs,+I$103+3,FALSE)) -> 0 | K107: =IF(ISNA(VLOOKUP($A107,Escalations_Specific_Costs,1,FALSE)),"No","Yes") -> No | N107: =IF($B107<>0,(+VLOOKUP($B107,$A$30:$I$35,3,FALSE))*(C107),0) -> 0 | O107: =IF($B107<>0,(+VLOOKUP($B107,$A$30:$I$35,4,FALSE))*(D107),0) -> 0 | P107: =IF($B107<>0,(+VLOOKUP($B107,$A$30:$I$35,5,FALSE))*(E107),0) -> 0 | Q107: =IF($B107<>0,(+VLOOKUP($B107,$A$30:$I$35,6,FALSE))*(F107),0) -> 0 | R107: =IF($B107<>0,(+VLOOKUP($B107,$A$30:$I$35,7,FALSE))*(G107),0) -> 0 | S107: =IF($B107<>0,(+VLOOKUP($B107,$A$30:$I$35,8,FALSE))*(H107),0) -> 0 | T107: =IF($B107<>0,(+VLOOKUP($B107,$A$30:$I$35,9,FALSE))*(I107),0) -> 0
C108: =IF($K108="No",0,VLOOKUP($A108,Escalations_Specific_Costs,+C$103,FALSE)) -> 0 | D108: 0 | E108: 0 | F108: 0 | G108: 0 | H108: 0 | I108: 0 | J108: =IF(ISNA(VLOOKUP($A108,Escalations_Specific_Costs,+I$103+3,FALSE)),0,VLOOKUP($A108,Escalations_Specific_Costs,+I$103+3,FALSE)) -> 0 | K108: =IF(ISNA(VLOOKUP($A108,Escalations_Specific_Costs,1,FALSE)),"No","Yes") -> No | N108: =IF($B108<>0,(+VLOOKUP($B108,$A$30:$I$35,3,FALSE))*(C108),0) -> 0 | O108: =IF($B108<>0,(+VLOOKUP($B108,$A$30:$I$35,4,FALSE))*(D108),0) -> 0 | P108: =IF($B108<>0,(+VLOOKUP($B108,$A$30:$I$35,5,FALSE))*(E108),0) -> 0 | Q108: =IF($B108<>0,(+VLOOKUP($B108,$A$30:$I$35,6,FALSE))*(F108),0) -> 0 | R108: =IF($B108<>0,(+VLOOKUP($B108,$A$30:$I$35,7,FALSE))*(G108),0) -> 0 | S108: =IF($B108<>0,(+VLOOKUP($B108,$A$30:$I$35,8,FALSE))*(H108),0) -> 0 | T108: =IF($B108<>0,(+VLOOKUP($B108,$A$30:$I$35,9,FALSE))*(I108),0) -> 0
C109: =IF($K109="No",0,VLOOKUP($A109,Escalations_Specific_Costs,+C$103,FALSE)) -> 0 | D109: 0 | E109: 0 | F109: 0 | G109: 0 | H109: 0 | I109: 0 | J109: =IF(ISNA(VLOOKUP($A109,Escalations_Specific_Costs,+I$103+3,FALSE)),0,VLOOKUP($A109,Escalations_Specific_Costs,+I$103+3,FALSE)) -> 0 | K109: =IF(ISNA(VLOOKUP($A109,Escalations_Specific_Costs,1,FALSE)),"No","Yes") -> No | N109: =IF($B109<>0,(+VLOOKUP($B109,$A$30:$I$35,3,FALSE))*(C109),0) -> 0 | O109: =IF($B109<>0,(+VLOOKUP($B109,$A$30:$I$35,4,FALSE))*(D109),0) -> 0 | P109: =IF($B109<>0,(+VLOOKUP($B109,$A$30:$I$35,5,FALSE))*(E109),0) -> 0 | Q109: =IF($B109<>0,(+VLOOKUP($B109,$A$30:$I$35,6,FALSE))*(F109),0) -> 0 | R109: =IF($B109<>0,(+VLOOKUP($B109,$A$30:$I$35,7,FALSE))*(G109),0) -> 0 | S109: =IF($B109<>0,(+VLOOKUP($B109,$A$30:$I$35,8,FALSE))*(H109),0) -> 0 | T109: =IF($B109<>0,(+VLOOKUP($B109,$A$30:$I$35,9,FALSE))*(I109),0) -> 0
A110: End of Escalations - Note all escalations must be above this row. Do Not delete this row | N110: =SUM(N107:N109) -> 0 | O110: 0 | P110: 0 | Q110: 0 | R110: 0 | S110: 0 | T110: 0
M111: Check | N111: =ROUND(N110-C131,3) -> 0 | O111: 0 | P111: 0 | Q111: 0 | R111: 0 | S111: 0 | T111: 0
A112: Total Specific Escalations to Apply (based on escalations selected above)
A113: Labour | C113: =PRODUCT(IF($B$107:$B$110=$A113,C$107:C$110+1))-IF(COUNTIF($B$107:$B$110,+$A113)=0,0,1) -> 0 | D113: =PRODUCT(IF($B$107:$B$110=$A113,D$107:D$110+1))-IF(COUNTIF($B$107:$B$110,+$A113)=0,0,1) -> 0 | E113: =PRODUCT(IF($B$107:$B$110=$A113,E$107:E$110+1))-IF(COUNTIF($B$107:$B$110,+$A113)=0,0,1) -> 0 | F113: =PRODUCT(IF($B$107:$B$110=$A113,F$107:F$110+1))-IF(COUNTIF($B$107:$B$110,+$A113)=0,0,1) -> 0 | G113: =PRODUCT(IF($B$107:$B$110=$A113,G$107:G$110+1))-IF(COUNTIF($B$107:$B$110,+$A113)=0,0,1) -> 0 | H113: =PRODUCT(IF($B$107:$B$110=$A113,H$107:H$110+1))-IF(COUNTIF($B$107:$B$110,+$A113)=0,0,1) -> 0 | I113: =PRODUCT(IF($B$107:$B$110=$A113,I$107:I$110+1))-IF(COUNTIF($B$107:$B$110,+$A113)=0,0,1) -> 0
A114: Materials | C114: =PRODUCT(IF($B$107:$B$110=$A114,C$107:C$110+1))-IF(COUNTIF($B$107:$B$110,+$A114)=0,0,1) -> 0 | D114: =PRODUCT(IF($B$107:$B$110=$A114,D$107:D$110+1))-IF(COUNTIF($B$107:$B$110,+$A114)=0,0,1) -> 0 | E114: =PRODUCT(IF($B$107:$B$110=$A114,E$107:E$110+1))-IF(COUNTIF($B$107:$B$110,+$A114)=0,0,1) -> 0 | F114: =PRODUCT(IF($B$107:$B$110=$A114,F$107:F$110+1))-IF(COUNTIF($B$107:$B$110,+$A114)=0,0,1) -> 0 | G114: =PRODUCT(IF($B$107:$B$110=$A114,G$107:G$110+1))-IF(COUNTIF($B$107:$B$110,+$A114)=0,0,1) -> 0 | H114: =PRODUCT(IF($B$107:$B$110=$A114,H$107:H$110+1))-IF(COUNTIF($B$107:$B$110,+$A114)=0,0,1) -> 0 | I114: =PRODUCT(IF($B$107:$B$110=$A114,I$107:I$110+1))-IF(COUNTIF($B$107:$B$110,+$A114)=0,0,1) -> 0
A115: Contracts | C115: =PRODUCT(IF($B$107:$B$110=$A115,C$107:C$110+1))-IF(COUNTIF($B$107:$B$110,+$A115)=0,0,1) -> 0 | D115: =PRODUCT(IF($B$107:$B$110=$A115,D$107:D$110+1))-IF(COUNTIF($B$107:$B$110,+$A115)=0,0,1) -> 0 | E115: =PRODUCT(IF($B$107:$B$110=$A115,E$107:E$110+1))-IF(COUNTIF($B$107:$B$110,+$A115)=0,0,1) -> 0 | F115: =PRODUCT(IF($B$107:$B$110=$A115,F$107:F$110+1))-IF(COUNTIF($B$107:$B$110,+$A115)=0,0,1) -> 0 | G115: =PRODUCT(IF($B$107:$B$110=$A115,G$107:G$110+1))-IF(COUNTIF($B$107:$B$110,+$A115)=0,0,1) -> 0 | H115: =PRODUCT(IF($B$107:$B$110=$A115,H$107:H$110+1))-IF(COUNTIF($B$107:$B$110,+$A115)=0,0,1) -> 0 | I115: =PRODUCT(IF($B$107:$B$110=$A115,I$107:I$110+1))-IF(COUNTIF($B$107:$B$110,+$A115)=0,0,1) -> 0
A116: Services Other | C116: =PRODUCT(IF($B$107:$B$110=$A116,C$107:C$110+1))-IF(COUNTIF($B$107:$B$110,+$A116)=0,0,1) -> 0 | D116: =PRODUCT(IF($B$107:$B$110=$A116,D$107:D$110+1))-IF(COUNTIF($B$107:$B$110,+$A116)=0,0,1) -> 0 | E116: =PRODUCT(IF($B$107:$B$110=$A116,E$107:E$110+1))-IF(COUNTIF($B$107:$B$110,+$A116)=0,0,1) -> 0 | F116: =PRODUCT(IF($B$107:$B$110=$A116,F$107:F$110+1))-IF(COUNTIF($B$107:$B$110,+$A116)=0,0,1) -> 0 | G116: =PRODUCT(IF($B$107:$B$110=$A116,G$107:G$110+1))-IF(COUNTIF($B$107:$B$110,+$A116)=0,0,1) -> 0 | H116: =PRODUCT(IF($B$107:$B$110=$A116,H$107:H$110+1))-IF(COUNTIF($B$107:$B$110,+$A116)=0,0,1) -> 0 | I116: =PRODUCT(IF($B$107:$B$110=$A116,I$107:I$110+1))-IF(COUNTIF($B$107:$B$110,+$A116)=0,0,1) -> 0
A117: Business Overheads | C117: =PRODUCT(IF($B$107:$B$110=$A117,C$107:C$110+1))-IF(COUNTIF($B$107:$B$110,+$A117)=0,0,1) -> 0 | D117: =PRODUCT(IF($B$107:$B$110=$A117,D$107:D$110+1))-IF(COUNTIF($B$107:$B$110,+$A117)=0,0,1) -> 0 | E117: =PRODUCT(IF($B$107:$B$110=$A117,E$107:E$110+1))-IF(COUNTIF($B$107:$B$110,+$A117)=0,0,1) -> 0 | F117: =PRODUCT(IF($B$107:$B$110=$A117,F$107:F$110+1))-IF(COUNTIF($B$107:$B$110,+$A117)=0,0,1) -> 0 | G117: =PRODUCT(IF($B$107:$B$110=$A117,G$107:G$110+1))-IF(COUNTIF($B$107:$B$110,+$A117)=0,0,1) -> 0 | H117: =PRODUCT(IF($B$107:$B$110=$A117,H$107:H$110+1))-IF(COUNTIF($B$107:$B$110,+$A117)=0,0,1) -> 0 | I117: =PRODUCT(IF($B$107:$B$110=$A117,I$107:I$110+1))-IF(COUNTIF($B$107:$B$110,+$A117)=0,0,1) -> 0
A118: Other | C118: =PRODUCT(IF($B$107:$B$110=$A118,C$107:C$110+1))-IF(COUNTIF($B$107:$B$110,+$A118)=0,0,1) -> 0 | D118: =PRODUCT(IF($B$107:$B$110=$A118,D$107:D$110+1))-IF(COUNTIF($B$107:$B$110,+$A118)=0,0,1) -> 0 | E118: =PRODUCT(IF($B$107:$B$110=$A118,E$107:E$110+1))-IF(COUNTIF($B$107:$B$110,+$A118)=0,0,1) -> 0 | F118: =PRODUCT(IF($B$107:$B$110=$A118,F$107:F$110+1))-IF(COUNTIF($B$107:$B$110,+$A118)=0,0,1) -> 0 | G118: =PRODUCT(IF($B$107:$B$110=$A118,G$107:G$110+1))-IF(COUNTIF($B$107:$B$110,+$A118)=0,0,1) -> 0 | H118: =PRODUCT(IF($B$107:$B$110=$A118,H$107:H$110+1))-IF(COUNTIF($B$107:$B$110,+$A118)=0,0,1) -> 0 | I118: =PRODUCT(IF($B$107:$B$110=$A118,I$107:I$110+1))-IF(COUNTIF($B$107:$B$110,+$A118)=0,0,1) -> 0
A119: Product of Escalators by Category | C119: =PRODUCT(IF(C113:C118<>0,C113:C118+1))-IF(SUM(C113:C118)<>0,1,0) -> 0 | D119: =PRODUCT(IF(D113:D118<>0,D113:D118+1))-IF(SUM(D113:D118)<>0,1,0) -> 0 | E119: =PRODUCT(IF(E113:E118<>0,E113:E118+1))-IF(SUM(E113:E118)<>0,1,0) -> 0 | F119: =PRODUCT(IF(F113:F118<>0,F113:F118+1))-IF(SUM(F113:F118)<>0,1,0) -> 0 | G119: =PRODUCT(IF(G113:G118<>0,G113:G118+1))-IF(SUM(G113:G118)<>0,1,0) -> 0 | H119: =PRODUCT(IF(H113:H118<>0,H113:H118+1))-IF(SUM(H113:H118)<>0,1,0) -> 0 | I119: =PRODUCT(IF(I113:I118<>0,I113:I118+1))-IF(SUM(I113:I118)<>0,1,0) -> 0
A120: Product of All Escalators | C120: =PRODUCT(IF((C107:C110<>0),C107:C110+1))-IF(C107:C110<>0,1,0) -> 0 | D120: =PRODUCT(IF((D107:D110<>0),D107:D110+1))-IF(D107:D110<>0,1,0) -> 0 | E120: =PRODUCT(IF((E107:E110<>0),E107:E110+1))-IF(E107:E110<>0,1,0) -> 0 | F120: =PRODUCT(IF((F107:F110<>0),F107:F110+1))-IF(F107:F110<>0,1,0) -> 0 | G120: =PRODUCT(IF((G107:G110<>0),G107:G110+1))-IF(G107:G110<>0,1,0) -> 0 | H120: =PRODUCT(IF((H107:H110<>0),H107:H110+1))-IF(H107:H110<>0,1,0) -> 0 | I120: =PRODUCT(IF((I107:I110<>0),I107:I110+1))-IF(I107:I110<>0,1,0) -> 0
A121: Difference - should be Zero | C121: =+C119-C120 -> 0 | D121: 0 | E121: 0 | F121: 0 | G121: 0 | H121: 0 | I121: 0 | J121: =IF(SUM(C121:I121)<>0,"Warning Check Escalations","OK") -> OK
A123: Dollar Impact of Specific Escalations
A124: Summary by Cost Category | C124: =LU_TemplateYearHeader2 -> 2013/14 | D124: 2014/15 | E124: 2015/16 | F124: 2016/17 | G124: 2017/18 | H124: 2018/19 | I124: 2019/20
A125: Labour | C125: =+C30*(C113) -> 0 | D125: 0 | E125: 0 | F125: 0 | G125: 0 | H125: 0 | I125: 0
A126: Materials | C126: 0 | D126: 0 | E126: 0 | F126: 0 | G126: 0 | H126: 0 | I126: 0
A127: Contracts | C127: =+C32*(C115) -> 0 | D127: 0 | E127: 0 | F127: 0 | G127: 0 | H127: 0 | I127: 0
A128: Services Other | C128: =+C33*(C116) -> 0 | D128: 0 | E128: 0 | F128: 0 | G128: 0 | H128: 0 | I128: 0
A129: Business Overheads | C129: =+C34*(C117) -> 0 | D129: 0 | E129: 0 | F129: 0 | G129: 0 | H129: 0 | I129: 0
A130: Other | C130: =+C35*(C118) -> 0 | D130: 0 | E130: 0 | F130: 0 | G130: 0 | H130: 0 | I130: 0
A131: Dollar Impact of Escalations | C131: =SUM(C125:C130) -> 0 | D131: 0 | E131: 0 | F131: 0 | G131: 0 | H131: 0 | I131: 0
A132: Average Specific Escalation % | C132: =IF(C36<>0,+C131/C36,0) -> 0 | D132: 0 | E132: 0 | F132: 0 | G132: 0 | H132: 0 | I132: 0
A135: General Escalation Calculations | C135: 2 | D135: =+C135+1 -> 3 | E135: 4 | F135: 5 | G135: 6 | H135: 7 | I135: 8 | J135: Escalation | K135: Escalation
A136: Select the general escalations to apply for this expenditure category and the cost categories to which they relate: | J136: Type | K136: Active?
A137: Important - if there are not enough rows, copy and insert an entire row with the escalation formulas, not just the visible cells | N137: Dollar Impact of Each Escalation (uncompounded with other general escalations of the same cost category)
B138: Cost Category | C138: =LU_TemplateYearHeader2 -> 2013/14 | D138: 2014/15 | E138: 2015/16 | F138: 2016/17 | G138: 2017/18 | H138: 2018/19 | I138: 2019/20 | N138: =LU_TemplateYearHeader2 -> 2013/14 | O138: 2014/15 | P138: 2015/16 | Q138: 2016/17 | R138: 2017/18 | S138: 2018/19 | T138: 2019/20
A139: General Escalation (%Real**)
A140: Labour | B140: Labour | C140: =IF($K140="No",0,VLOOKUP($A140,Escalations_General_Costs,+C$135,FALSE)) -> 0 | D140: =IF($K140="No",0,IF($J140="one-off",VLOOKUP($A140,Escalations_General_Costs,+'I-6'!D$9+1,FALSE),((VLOOKUP($A140,Escalations_General_Costs,+'I-6'!D$9+1,FALSE)+1)*(1+C140)-1))) -> 0.0166 | E140: =IF($K140="No",0,IF($J140="one-off",VLOOKUP($A140,Escalations_General_Costs,+'I-6'!E$9+1,FALSE),((VLOOKUP($A140,Escalations_General_Costs,+'I-6'!E$9+1,FALSE)+1)*(1+D140)-1))) -> 0.03841416814 | F140: =IF($K140="No",0,IF($J140="one-off",VLOOKUP($A140,Escalations_General_Costs,+'I-6'!F$9+1,FALSE),((VLOOKUP($A140,Escalations_General_Costs,+'I-6'!F$9+1,FALSE)+1)*(1+E140)-1))) -> 0.06069642395 | G140: =IF($K140="No",0,IF($J140="one-off",VLOOKUP($A140,Escalations_General_Costs,+'I-6'!G$9+1,FALSE),((VLOOKUP($A140,Escalations_General_Costs,+'I-6'!G$9+1,FALSE)+1)*(1+F140)-1))) -> 0.08470395618 | H140: =IF($K140="No",0,IF($J140="one-off",VLOOKUP($A140,Escalations_General_Costs,+'I-6'!H$9+1,FALSE),((VLOOKUP($A140,Escalations_General_Costs,+'I-6'!H$9+1,FALSE)+1)*(1+G140)-1))) -> 0.1092548688 | I140: =IF($K140="No",0,IF($J140="one-off",VLOOKUP($A140,Escalations_General_Costs,+'I-6'!I$9+1,FALSE),((VLOOKUP($A140,Escalations_General_Costs,+'I-6'!I$9+1,FALSE)+1)*(1+H140)-1))) -> 0.1343614604 | J140: =IF(ISNA(VLOOKUP($A140,Escalations_General_Costs,+I$103+3,FALSE)),0,VLOOKUP($A140,Escalations_General_Costs,+I$103+3,FALSE)) -> Cumulative | K140: =IF(ISNA(VLOOKUP($A140,Escalations_General_Costs,1,FALSE)),"No","Yes") -> Yes | N140: =IF($B140<>0,(+VLOOKUP($B140,$A$30:$I$35,3,FALSE)+VLOOKUP($B140,$A$42:$I$47,3,FALSE))*(C140),0) -> 0 | O140: =IF($B140<>0,(+VLOOKUP($B140,$A$30:$I$35,4,FALSE)+VLOOKUP($B140,$A$42:$I$47,4,FALSE))*(D140),0) -> 0 | P140: =IF($B140<>0,(+VLOOKUP($B140,$A$30:$I$35,5,FALSE)+VLOOKUP($B140,$A$42:$I$47,5,FALSE))*(E140),0) -> 0 | Q140: =IF($B140<>0,(+VLOOKUP($B140,$A$30:$I$35,6,FALSE)+VLOOKUP($B140,$A$42:$I$47,6,FALSE))*(F140),0) -> 0 | R140: =IF($B140<>0,(+VLOOKUP($B140,$A$30:$I$35,7,FALSE)+VLOOKUP($B140,$A$42:$I$47,7,FALSE))*(G140),0) -> 0 | S140: =IF($B140<>0,(+VLOOKUP($B140,$A$30:$I$35,8,FALSE)+VLOOKUP($B140,$A$42:$I$47,8,FALSE))*(H140),0) -> 0 | T140: =IF($B140<>0,(+VLOOKUP($B140,$A$30:$I$35,9,FALSE)+VLOOKUP($B140,$A$42:$I$47,9,FALSE))*(I140),0) -> 0
A141: Materials | B141: Materials | C141: 0 | D141: =IF($K141="No",0,IF($J141="one-off",VLOOKUP($A141,Escalations_General_Costs,+'I-6'!D$9+1,FALSE),((VLOOKUP($A141,Escalations_General_Costs,+'I-6'!D$9+1,FALSE)+1)*(1+C141)-1))) -> 0 | E141: =IF($K141="No",0,IF($J141="one-off",VLOOKUP($A141,Escalations_General_Costs,+'I-6'!E$9+1,FALSE),((VLOOKUP($A141,Escalations_General_Costs,+'I-6'!E$9+1,FALSE)+1)*(1+D141)-1))) -> 0 | F141: =IF($K141="No",0,IF($J141="one-off",VLOOKUP($A141,Escalations_General_Costs,+'I-6'!F$9+1,FALSE),((VLOOKUP($A141,Escalations_General_Costs,+'I-6'!F$9+1,FALSE)+1)*(1+E141)-1))) -> 0 | G141: =IF($K141="No",0,IF($J141="one-off",VLOOKUP($A141,Escalations_General_Costs,+'I-6'!G$9+1,FALSE),((VLOOKUP($A141,Escalations_General_Costs,+'I-6'!G$9+1,FALSE)+1)*(1+F141)-1))) -> 0 | H141: =IF($K141="No",0,IF($J141="one-off",VLOOKUP($A141,Escalations_General_Costs,+'I-6'!H$9+1,FALSE),((VLOOKUP($A141,Escalations_General_Costs,+'I-6'!H$9+1,FALSE)+1)*(1+G141)-1))) -> 0 | I141: =IF($K141="No",0,IF($J141="one-off",VLOOKUP($A141,Escalations_General_Costs,+'I-6'!I$9+1,FALSE),((VLOOKUP($A141,Escalations_General_Costs,+'I-6'!I$9+1,FALSE)+1)*(1+H141)-1))) -> 0 | J141: Cumulative | K141: Yes | N141: =IF($B141<>0,(+VLOOKUP($B141,$A$30:$I$35,3,FALSE)+VLOOKUP($B141,$A$42:$I$47,3,FALSE))*(C141),0) -> 0 | O141: =IF($B141<>0,(+VLOOKUP($B141,$A$30:$I$35,4,FALSE)+VLOOKUP($B141,$A$42:$I$47,4,FALSE))*(D141),0) -> 0 | P141: =IF($B141<>0,(+VLOOKUP($B141,$A$30:$I$35,5,FALSE)+VLOOKUP($B141,$A$42:$I$47,5,FALSE))*(E141),0) -> 0 | Q141: =IF($B141<>0,(+VLOOKUP($B141,$A$30:$I$35,6,FALSE)+VLOOKUP($B141,$A$42:$I$47,6,FALSE))*(F141),0) -> 0 | R141: =IF($B141<>0,(+VLOOKUP($B141,$A$30:$I$35,7,FALSE)+VLOOKUP($B141,$A$42:$I$47,7,FALSE))*(G141),0) -> 0 | S141: =IF($B141<>0,(+VLOOKUP($B141,$A$30:$I$35,8,FALSE)+VLOOKUP($B141,$A$42:$I$47,8,FALSE))*(H141),0) -> 0 | T141: =IF($B141<>0,(+VLOOKUP($B141,$A$30:$I$35,9,FALSE)+VLOOKUP($B141,$A$42:$I$47,9,FALSE))*(I141),0) -> 0
A142: Services-construction | B142: Contracts | C142: 0 | D142: =IF($K142="No",0,IF($J142="one-off",VLOOKUP($A142,Escalations_General_Costs,+'I-6'!D$9+1,FALSE),((VLOOKUP($A142,Escalations_General_Costs,+'I-6'!D$9+1,FALSE)+1)*(1+C142)-1))) -> 0.001 | E142: =IF($K142="No",0,IF($J142="one-off",VLOOKUP($A142,Escalations_General_Costs,+'I-6'!E$9+1,FALSE),((VLOOKUP($A142,Escalations_General_Costs,+'I-6'!E$9+1,FALSE)+1)*(1+D142)-1))) -> 0.006005 | F142: =IF($K142="No",0,IF($J142="one-off",VLOOKUP($A142,Escalations_General_Costs,+'I-6'!F$9+1,FALSE),((VLOOKUP($A142,Escalations_General_Costs,+'I-6'!F$9+1,FALSE)+1)*(1+E142)-1))) -> 0.015059045 | G142: =IF($K142="No",0,IF($J142="one-off",VLOOKUP($A142,Escalations_General_Costs,+'I-6'!G$9+1,FALSE),((VLOOKUP($A142,Escalations_General_Costs,+'I-6'!G$9+1,FALSE)+1)*(1+F142)-1))) -> 0.02622469449 | H142: =IF($K142="No",0,IF($J142="one-off",VLOOKUP($A142,Escalations_General_Costs,+'I-6'!H$9+1,FALSE),((VLOOKUP($A142,Escalations_General_Costs,+'I-6'!H$9+1,FALSE)+1)*(1+G142)-1))) -> 0.04059184022 | I142: =IF($K142="No",0,IF($J142="one-off",VLOOKUP($A142,Escalations_General_Costs,+'I-6'!I$9+1,FALSE),((VLOOKUP($A142,Escalations_General_Costs,+'I-6'!I$9+1,FALSE)+1)*(1+H142)-1))) -> 0.05932249334 | J142: Cumulative | K142: Yes | N142: =IF($B142<>0,(+VLOOKUP($B142,$A$30:$I$35,3,FALSE)+VLOOKUP($B142,$A$42:$I$47,3,FALSE))*(C142),0) -> 0 | O142: =IF($B142<>0,(+VLOOKUP($B142,$A$30:$I$35,4,FALSE)+VLOOKUP($B142,$A$42:$I$47,4,FALSE))*(D142),0) -> 0 | P142: =IF($B142<>0,(+VLOOKUP($B142,$A$30:$I$35,5,FALSE)+VLOOKUP($B142,$A$42:$I$47,5,FALSE))*(E142),0) -> 0 | Q142: =IF($B142<>0,(+VLOOKUP($B142,$A$30:$I$35,6,FALSE)+VLOOKUP($B142,$A$42:$I$47,6,FALSE))*(F142),0) -> 0 | R142: =IF($B142<>0,(+VLOOKUP($B142,$A$30:$I$35,7,FALSE)+VLOOKUP($B142,$A$42:$I$47,7,FALSE))*(G142),0) -> 0 | S142: =IF($B142<>0,(+VLOOKUP($B142,$A$30:$I$35,8,FALSE)+VLOOKUP($B142,$A$42:$I$47,8,FALSE))*(H142),0) -> 0 | T142: =IF($B142<>0,(+VLOOKUP($B142,$A$30:$I$35,9,FALSE)+VLOOKUP($B142,$A$42:$I$47,9,FALSE))*(I142),0) -> 0
A143: Services-general | B143: Services Other | C143: 0 | D143: =IF($K143="No",0,IF($J143="one-off",VLOOKUP($A143,Escalations_General_Costs,+'I-6'!D$9+1,FALSE),((VLOOKUP($A143,Escalations_General_Costs,+'I-6'!D$9+1,FALSE)+1)*(1+C143)-1))) -> 0.001 | E143: =IF($K143="No",0,IF($J143="one-off",VLOOKUP($A143,Escalations_General_Costs,+'I-6'!E$9+1,FALSE),((VLOOKUP($A143,Escalations_General_Costs,+'I-6'!E$9+1,FALSE)+1)*(1+D143)-1))) -> 0.006005 | F143: =IF($K143="No",0,IF($J143="one-off",VLOOKUP($A143,Escalations_General_Costs,+'I-6'!F$9+1,FALSE),((VLOOKUP($A143,Escalations_General_Costs,+'I-6'!F$9+1,FALSE)+1)*(1+E143)-1))) -> 0.015059045 | G143: =IF($K143="No",0,IF($J143="one-off",VLOOKUP($A143,Escalations_General_Costs,+'I-6'!G$9+1,FALSE),((VLOOKUP($A143,Escalations_General_Costs,+'I-6'!G$9+1,FALSE)+1)*(1+F143)-1))) -> 0.02622469449 | H143: =IF($K143="No",0,IF($J143="one-off",VLOOKUP($A143,Escalations_General_Costs,+'I-6'!H$9+1,FALSE),((VLOOKUP($A143,Escalations_General_Costs,+'I-6'!H$9+1,FALSE)+1)*(1+G143)-1))) -> 0.04059184022 | I143: =IF($K143="No",0,IF($J143="one-off",VLOOKUP($A143,Escalations_General_Costs,+'I-6'!I$9+1,FALSE),((VLOOKUP($A143,Escalations_General_Costs,+'I-6'!I$9+1,FALSE)+1)*(1+H143)-1))) -> 0.05932249334 | J143: Cumulative | K143: Yes | N143: 0 | O143: 0 | P143: 0 | Q143: 0 | R143: 0 | S143: 0 | T143: 0
A144: Labour | B144: Business Overheads | C144: 0 | D144: =IF($K144="No",0,IF($J144="one-off",VLOOKUP($A144,Escalations_General_Costs,+'I-6'!D$9+1,FALSE),((VLOOKUP($A144,Escalations_General_Costs,+'I-6'!D$9+1,FALSE)+1)*(1+C144)-1))) -> 0.0166 | E144: =IF($K144="No",0,IF($J144="one-off",VLOOKUP($A144,Escalations_General_Costs,+'I-6'!E$9+1,FALSE),((VLOOKUP($A144,Escalations_General_Costs,+'I-6'!E$9+1,FALSE)+1)*(1+D144)-1))) -> 0.03841416814 | F144: =IF($K144="No",0,IF($J144="one-off",VLOOKUP($A144,Escalations_General_Costs,+'I-6'!F$9+1,FALSE),((VLOOKUP($A144,Escalations_General_Costs,+'I-6'!F$9+1,FALSE)+1)*(1+E144)-1))) -> 0.06069642395 | G144: =IF($K144="No",0,IF($J144="one-off",VLOOKUP($A144,Escalations_General_Costs,+'I-6'!G$9+1,FALSE),((VLOOKUP($A144,Escalations_General_Costs,+'I-6'!G$9+1,FALSE)+1)*(1+F144)-1))) -> 0.08470395618 | H144: =IF($K144="No",0,IF($J144="one-off",VLOOKUP($A144,Escalations_General_Costs,+'I-6'!H$9+1,FALSE),((VLOOKUP($A144,Escalations_General_Costs,+'I-6'!H$9+1,FALSE)+1)*(1+G144)-1))) -> 0.1092548688 | I144: =IF($K144="No",0,IF($J144="one-off",VLOOKUP($A144,Escalations_General_Costs,+'I-6'!I$9+1,FALSE),((VLOOKUP($A144,Escalations_General_Costs,+'I-6'!I$9+1,FALSE)+1)*(1+H144)-1))) -> 0.1343614604 | J144: Cumulative | K144: Yes | N144: 0 | O144: 0 | P144: 0 | Q144: 0 | R144: 0 | S144: 0 | T144: 0
A145: Materials - Land | B145: Other | C145: 0 | D145: =IF($K145="No",0,IF($J145="one-off",VLOOKUP($A145,Escalations_General_Costs,+'I-6'!D$9+1,FALSE),((VLOOKUP($A145,Escalations_General_Costs,+'I-6'!D$9+1,FALSE)+1)*(1+C145)-1))) -> 0.0596 | E145: =IF($K145="No",0,IF($J145="one-off",VLOOKUP($A145,Escalations_General_Costs,+'I-6'!E$9+1,FALSE),((VLOOKUP($A145,Escalations_General_Costs,+'I-6'!E$9+1,FALSE)+1)*(1+D145)-1))) -> 0.12275216 | F145: =IF($K145="No",0,IF($J145="one-off",VLOOKUP($A145,Escalations_General_Costs,+'I-6'!F$9+1,FALSE),((VLOOKUP($A145,Escalations_General_Costs,+'I-6'!F$9+1,FALSE)+1)*(1+E145)-1))) -> 0.1896681887 | G145: =IF($K145="No",0,IF($J145="one-off",VLOOKUP($A145,Escalations_General_Costs,+'I-6'!G$9+1,FALSE),((VLOOKUP($A145,Escalations_General_Costs,+'I-6'!G$9+1,FALSE)+1)*(1+F145)-1))) -> 0.2605724128 | H145: =IF($K145="No",0,IF($J145="one-off",VLOOKUP($A145,Escalations_General_Costs,+'I-6'!H$9+1,FALSE),((VLOOKUP($A145,Escalations_General_Costs,+'I-6'!H$9+1,FALSE)+1)*(1+G145)-1))) -> 0.3357025286 | I145: =IF($K145="No",0,IF($J145="one-off",VLOOKUP($A145,Escalations_General_Costs,+'I-6'!I$9+1,FALSE),((VLOOKUP($A145,Escalations_General_Costs,+'I-6'!I$9+1,FALSE)+1)*(1+H145)-1))) -> 0.4153103993 | J145: Cumulative | K145: Yes | N145: 0 | O145: 0 | P145: 0 | Q145: 0 | R145: 0 | S145: 0 | T145: 0
A146: End of Escalations - Note all escalations must be above this row. Do Not delete this row | N146: =SUM(N140:N145) -> 0 | O146: =SUM(O140:O145) -> 0 | P146: 0 | Q146: 0 | R146: 0 | S146: 0 | T146: 0
M147: Check | N147: =ROUND(N146-C167,3) -> 0 | O147: 0 | P147: 0 | Q147: 0 | R147: 0 | S147: 0 | T147: 0
A148: Total General Escalations to Apply (based on escalations selected above)
A149: Labour | C149: =PRODUCT(IF($B$140:$B$146=$A149,C$140:C$146+1))-IF(COUNTIF($B$140:$B$146,+$A149)=0,0,1) -> 0 | D149: =PRODUCT(IF($B$140:$B$146=$A149,D$140:D$146+1))-IF(COUNTIF($B$140:$B$146,+$A149)=0,0,1) -> 0.0166 | E149: =PRODUCT(IF($B$140:$B$146=$A149,E$140:E$146+1))-IF(COUNTIF($B$140:$B$146,+$A149)=0,0,1) -> 0.03841416814 | F149: =PRODUCT(IF($B$140:$B$146=$A149,F$140:F$146+1))-IF(COUNTIF($B$140:$B$146,+$A149)=0,0,1) -> 0.06069642395 | G149: =PRODUCT(IF($B$140:$B$146=$A149,G$140:G$146+1))-IF(COUNTIF($B$140:$B$146,+$A149)=0,0,1) -> 0.08470395618 | H149: =PRODUCT(IF($B$140:$B$146=$A149,H$140:H$146+1))-IF(COUNTIF($B$140:$B$146,+$A149)=0,0,1) -> 0.1092548688 | I149: =PRODUCT(IF($B$140:$B$146=$A149,I$140:I$146+1))-IF(COUNTIF($B$140:$B$146,+$A149)=0,0,1) -> 0.1343614604
A150: Materials | C150: =PRODUCT(IF($B$140:$B$146=$A150,C$140:C$146+1))-IF(COUNTIF($B$140:$B$146,+$A150)=0,0,1) -> 0 | D150: =PRODUCT(IF($B$140:$B$146=$A150,D$140:D$146+1))-IF(COUNTIF($B$140:$B$146,+$A150)=0,0,1) -> 0 | E150: =PRODUCT(IF($B$140:$B$146=$A150,E$140:E$146+1))-IF(COUNTIF($B$140:$B$146,+$A150)=0,0,1) -> 0 | F150: =PRODUCT(IF($B$140:$B$146=$A150,F$140:F$146+1))-IF(COUNTIF($B$140:$B$146,+$A150)=0,0,1) -> 0 | G150: =PRODUCT(IF($B$140:$B$146=$A150,G$140:G$146+1))-IF(COUNTIF($B$140:$B$146,+$A150)=0,0,1) -> 0 | H150: =PRODUCT(IF($B$140:$B$146=$A150,H$140:H$146+1))-IF(COUNTIF($B$140:$B$146,+$A150)=0,0,1) -> 0 | I150: =PRODUCT(IF($B$140:$B$146=$A150,I$140:I$146+1))-IF(COUNTIF($B$140:$B$146,+$A150)=0,0,1) -> 0
A151: Contracts | C151: =PRODUCT(IF($B$140:$B$146=$A151,C$140:C$146+1))-IF(COUNTIF($B$140:$B$146,+$A151)=0,0,1) -> 0 | D151: =PRODUCT(IF($B$140:$B$146=$A151,D$140:D$146+1))-IF(COUNTIF($B$140:$B$146,+$A151)=0,0,1) -> 0.001 | E151: =PRODUCT(IF($B$140:$B$146=$A151,E$140:E$146+1))-IF(COUNTIF($B$140:$B$146,+$A151)=0,0,1) -> 0.006005 | F151: =PRODUCT(IF($B$140:$B$146=$A151,F$140:F$146+1))-IF(COUNTIF($B$140:$B$146,+$A151)=0,0,1) -> 0.015059045 | G151: =PRODUCT(IF($B$140:$B$146=$A151,G$140:G$146+1))-IF(COUNTIF($B$140:$B$146,+$A151)=0,0,1) -> 0.02622469449 | H151: =PRODUCT(IF($B$140:$B$146=$A151,H$140:H$146+1))-IF(COUNTIF($B$140:$B$146,+$A151)=0,0,1) -> 0.04059184022 | I151: =PRODUCT(IF($B$140:$B$146=$A151,I$140:I$146+1))-IF(COUNTIF($B$140:$B$146,+$A151)=0,0,1) -> 0.05932249334
A152: Services Other | C152: =PRODUCT(IF($B$140:$B$146=$A152,C$140:C$146+1))-IF(COUNTIF($B$140:$B$146,+$A152)=0,0,1) -> 0 | D152: =PRODUCT(IF($B$140:$B$146=$A152,D$140:D$146+1))-IF(COUNTIF($B$140:$B$146,+$A152)=0,0,1) -> 0.001 | E152: =PRODUCT(IF($B$140:$B$146=$A152,E$140:E$146+1))-IF(COUNTIF($B$140:$B$146,+$A152)=0,0,1) -> 0.006005 | F152: =PRODUCT(IF($B$140:$B$146=$A152,F$140:F$146+1))-IF(COUNTIF($B$140:$B$146,+$A152)=0,0,1) -> 0.015059045 | G152: =PRODUCT(IF($B$140:$B$146=$A152,G$140:G$146+1))-IF(COUNTIF($B$140:$B$146,+$A152)=0,0,1) -> 0.02622469449 | H152: =PRODUCT(IF($B$140:$B$146=$A152,H$140:H$146+1))-IF(COUNTIF($B$140:$B$146,+$A152)=0,0,1) -> 0.04059184022 | I152: =PRODUCT(IF($B$140:$B$146=$A152,I$140:I$146+1))-IF(COUNTIF($B$140:$B$146,+$A152)=0,0,1) -> 0.05932249334
A153: Business Overheads | C153: =PRODUCT(IF($B$140:$B$146=$A153,C$140:C$146+1))-IF(COUNTIF($B$140:$B$146,+$A153)=0,0,1) -> 0 | D153: =PRODUCT(IF($B$140:$B$146=$A153,D$140:D$146+1))-IF(COUNTIF($B$140:$B$146,+$A153)=0,0,1) -> 0.0166 | E153: =PRODUCT(IF($B$140:$B$146=$A153,E$140:E$146+1))-IF(COUNTIF($B$140:$B$146,+$A153)=0,0,1) -> 0.03841416814 | F153: =PRODUCT(IF($B$140:$B$146=$A153,F$140:F$146+1))-IF(COUNTIF($B$140:$B$146,+$A153)=0,0,1) -> 0.06069642395 | G153: =PRODUCT(IF($B$140:$B$146=$A153,G$140:G$146+1))-IF(COUNTIF($B$140:$B$146,+$A153)=0,0,1) -> 0.08470395618 | H153: =PRODUCT(IF($B$140:$B$146=$A153,H$140:H$146+1))-IF(COUNTIF($B$140:$B$146,+$A153)=0,0,1) -> 0.1092548688 | I153: =PRODUCT(IF($B$140:$B$146=$A153,I$140:I$146+1))-IF(COUNTIF($B$140:$B$146,+$A153)=0,0,1) -> 0.1343614604
A154: Other | C154: =PRODUCT(IF($B$140:$B$146=$A154,C$140:C$146+1))-IF(COUNTIF($B$140:$B$146,+$A154)=0,0,1) -> 0 | D154: =PRODUCT(IF($B$140:$B$146=$A154,D$140:D$146+1))-IF(COUNTIF($B$140:$B$146,+$A154)=0,0,1) -> 0.0596 | E154: =PRODUCT(IF($B$140:$B$146=$A154,E$140:E$146+1))-IF(COUNTIF($B$140:$B$146,+$A154)=0,0,1) -> 0.12275216 | F154: =PRODUCT(IF($B$140:$B$146=$A154,F$140:F$146+1))-IF(COUNTIF($B$140:$B$146,+$A154)=0,0,1) -> 0.1896681887 | G154: =PRODUCT(IF($B$140:$B$146=$A154,G$140:G$146+1))-IF(COUNTIF($B$140:$B$146,+$A154)=0,0,1) -> 0.2605724128 | H154: =PRODUCT(IF($B$140:$B$146=$A154,H$140:H$146+1))-IF(COUNTIF($B$140:$B$146,+$A154)=0,0,1) -> 0.3357025286 | I154: =PRODUCT(IF($B$140:$B$146=$A154,I$140:I$146+1))-IF(COUNTIF($B$140:$B$146,+$A154)=0,0,1) -> 0.4153103993
A155: Product of Escalators by Category | C155: =PRODUCT(IF(C149:C154<>0,C149:C154+1))-IF(SUM(C149:C154)<>0,1,0) -> 0 | D155: =PRODUCT(IF(D149:D154<>0,D149:D154+1))-IF(SUM(D149:D154)<>0,1,0) -> 0.09726193985 | E155: =PRODUCT(IF(E149:E154<>0,E149:E154+1))-IF(SUM(E149:E154)<>0,1,0) -> 0.2252519088 | F155: =PRODUCT(IF(F149:F154<>0,F149:F154+1))-IF(SUM(F149:F154)<>0,1,0) -> 0.379083839 | G155: =PRODUCT(IF(G149:G154<>0,G149:G154+1))-IF(SUM(G149:G154)<>0,1,0) -> 0.5619789215 | H155: =PRODUCT(IF(H149:H154<>0,H149:H154+1))-IF(SUM(H149:H154)<>0,1,0) -> 0.7796445439 | I155: =PRODUCT(IF(I149:I154<>0,I149:I154+1))-IF(SUM(I149:I154)<>0,1,0) -> 1.04367114
A156: Product of All Escalators | C156: =PRODUCT(IF((C140:C146<>0),C140:C146+1))-IF(C140:C146<>0,1,0) -> 0 | D156: =PRODUCT(IF((D140:D146<>0),D140:D146+1))-IF(D140:D146<>0,1,0) -> 0.09726193985 | E156: =PRODUCT(IF((E140:E146<>0),E140:E146+1))-IF(E140:E146<>0,1,0) -> 0.2252519088 | F156: =PRODUCT(IF((F140:F146<>0),F140:F146+1))-IF(F140:F146<>0,1,0) -> 0.379083839 | G156: =PRODUCT(IF((G140:G146<>0),G140:G146+1))-IF(G140:G146<>0,1,0) -> 0.5619789215 | H156: =PRODUCT(IF((H140:H146<>0),H140:H146+1))-IF(H140:H146<>0,1,0) -> 0.7796445439 | I156: =PRODUCT(IF((I140:I146<>0),I140:I146+1))-IF(I140:I146<>0,1,0) -> 1.04367114
A157: Difference - should be Zero | C157: =ROUND(+C155-C156,4) -> 0 | D157: 0 | E157: 0 | F157: 0 | G157: 0 | H157: 0 | I157: 0 | J157: =IF(SUM(C157:I157)<>0,"Warning Check Escalations","OK") -> OK
A159: Dollar Impact of General Escalations
A160: Summary by Cost Category | C160: =LU_TemplateYearHeader2 -> 2013/14 | D160: 2014/15 | E160: 2015/16 | F160: 2016/17 | G160: 2017/18 | H160: 2018/19 | I160: 2019/20
A161: Labour | C161: =(+C30+C42)*(C$149) -> 0 | D161: 0 | E161: 0 | F161: 0 | G161: 0 | H161: 0 | I161: 0
A162: Materials | C162: =(+C31+C43)*(C$150) -> 0 | D162: 0 | E162: 0 | F162: 0 | G162: 0 | H162: 0 | I162: 0
A163: Contracts | C163: =(+C32+C44)*(C$151) -> 0 | D163: =(+D32+D44)*(D$151) -> 0 | E163: =(+E32+E44)*(E$151) -> 0 | F163: 0 | G163: 0 | H163: 0 | I163: 0
A164: Services Other | C164: =(+C33+C45)*(C$152) -> 0 | D164: =(+D33+D45)*(D$152) -> 0 | E164: =(+E33+E45)*(E$152) -> 0 | F164: 0 | G164: 0 | H164: 0 | I164: 0
A165: Business Overheads | C165: =(+C34+C46)*(C$153) -> 0 | D165: =(+D34+D46)*(D$153) -> 0 | E165: =(+E34+E46)*(E$153) -> 0 | F165: 0 | G165: 0 | H165: 0 | I165: 0
A166: Other | C166: =(+C35+C47)*(C$154) -> 0 | D166: 0 | E166: 0 | F166: 0 | G166: 0 | H166: 0 | I166: 0
A167: Dollar Impact of General Escalations | C167: =SUM(C161:C166) -> 0 | D167: 0 | E167: 0 | F167: 0 | G167: 0 | H167: 0 | I167: 0
A168: Average General Escalation % | C168: =IF((+C36+C48)<>0,+C167/(+C36+C48),0) -> 0 | D168: 0 | E168: 0 | F168: 0 | G168: 0 | H168: 0 | I168: 0
A172: Variations
A173: Total of all the Variation Templates
B174: =LU_TemplateYearHeader -> 2012/13 | C174: 2013/14 | D174: 2014/15 | E174: 2015/16 | F174: 2016/17 | G174: 2017/18 | H174: 2018/19 | I174: 2019/20
A175: Summary by Cost Category
A176: Labour | C176: =SUMIF($A$217:$A$227,$A176,C$217:C$227) -> 0 | D176: 0 | E176: 0 | F176: 0 | G176: 0 | H176: 0 | I176: 0
A177: Materials | C177: 0 | D177: 0 | E177: 0 | F177: 0 | G177: 0 | H177: 0 | I177: 0
A178: Contracts | C178: =SUMIF($A$217:$A$227,$A178,C$217:C$227) -> 0 | D178: 0 | E178: 0 | F178: 0 | G178: 0 | H178: 0 | I178: 0
A179: Services Other | C179: 0 | D179: 0 | E179: 0 | F179: 0 | G179: 0 | H179: 0 | I179: 0
A180: Business Overheads | C180: 0 | D180: 0 | E180: 0 | F180: 0 | G180: 0 | H180: 0 | I180: 0
A181: Other | C181: =SUMIF($A$217:$A$227,$A181,C$217:C$227) -> 0 | D181: 0 | E181: 0 | F181: 0 | G181: 0 | H181: 0 | I181: 0
A182: Total Variations | C182: =SUM(C176:C181) -> 0 | D182: 0 | E182: 0 | F182: 0 | G182: 0 | H182: 0 | I182: 0
A184: Variations Summary
A185: Summary of the Variation Templates | C185: Number of variations: | D185: =MAX(J210:J227) -> 1
B186: =LU_TemplateYearHeader -> 2012/13 | C186: 2013/14 | D186: 2014/15 | E186: 2015/16 | F186: 2016/17 | G186: 2017/18 | H186: 2018/19 | I186: 2019/20 | J186: No:
A187: =IF(ISNUMBER($J187),OFFSET($B$209,MATCH(+$J187,$J$210:$J$227,0),0),"") -> Total Variation | B187: =IF(ISNUMBER($J187),OFFSET(B$209,MATCH(+$J187,$J$210:$J$227,0)+11,0),"") -> 0 | C187: 0 | D187: 0 | E187: 0 | F187: 0 | G187: 0 | H187: 0 | I187: 0 | J187: =IF($D$185>0,1,"") -> 1
J188: =IF(J187<$D$185,J187+1,"") -> 
J189: =IF(J188<$D$185,J188+1,"") -> 
J197: =IF(J196<$D$185,J196+1,"") -> 
J198: =IF(J197<$D$185,J197+1,"") -> 
J199: =IF(J198<$D$185,J198+1,"") -> 
J200: =IF(J199<$D$185,J199+1,"") -> 
J201: =IF(J200<$D$185,J200+1,"") -> 
A202: Total Variations | B202: =SUM(B187:B201) -> 0 | C202: =SUM(C187:C201) -> 0 | D202: 0 | E202: 0 | F202: 0 | G202: 0 | H202: 0 | I202: 0
A204: Variation Templates
A205: Variations are input below, with one Variation Template to be completed for each variation.
A206: Click on the "Insert New Variation" button to add a new template:
A207: Variations to be input in Real 2013 dollars (ie without escalations) . Escalations are calculated separately on all expenditure, including variations.
J209: Var. No:
A210: Variation Title | B210: Total Variation | J210: 1
A211: Description
A212: Source of data. (Name, date, location)
A213: Version of Data
B215: =LU_TemplateYearHeader -> 2012/13 | C215: 2013/14 | D215: 2014/15 | E215: 2015/16 | F215: 2016/17 | G215: 2017/18 | H215: 2018/19 | I215: 2019/20
A216: Summary by Cost Category
A217: Labour
A218: Materials
A219: Contracts
A220: Services Other
A221: Business Overheads
A222: Other
A223: Total of this variation | C223: =SUM(C217:C222) -> 0 | D223: 0 | E223: 0 | F223: 0 | G223: 0 | H223: 0 | I223: 0
A227: End of Variations - Note all variations must be above this row. Do Not delete this row
A232: Charts
A234: Chart Data - Historic Expenditure | B234: =LU_TemplateYearHeader3 -> 2005/06 | C234: 2006/07 | D234: 2007/08 | E234: 2008/09 | F234: 2009/10 | G234: 2010/11 | H234: 2011/12
A235: Historic Expenditure | B235: =OFFSET(List_CapexStart,MATCH($K$1,'I-4 History'!$A$6:$A$282)+6,+'I-4 History'!E5) -> 0 | C235: =OFFSET(List_CapexStart,MATCH($K$1,'I-4 History'!$A$6:$A$282)+6,+'I-4 History'!F5) -> 0 | D235: =OFFSET(List_CapexStart,MATCH($K$1,'I-4 History'!$A$6:$A$282)+6,+'I-4 History'!G5) -> 0 | E235: =OFFSET(List_CapexStart,MATCH($K$1,'I-4 History'!$A$6:$A$282)+6,+'I-4 History'!H5) -> 0 | F235: =OFFSET(List_CapexStart,MATCH($K$1,'I-4 History'!$A$6:$A$282)+6,+'I-4 History'!I5) -> 0 | G235: =OFFSET(List_CapexStart,MATCH($K$1,'I-4 History'!$A$6:$A$282)+6,+'I-4 History'!J5) -> 0 | H235: =OFFSET(List_CapexStart,MATCH($K$1,'I-4 History'!$A$6:$A$282)+6,+'I-4 History'!K5) -> 0
A236: Chart Data - Base Year+Planned | B236: =LU_TemplateYearHeader -> 2012/13 | C236: 2013/14 | D236: 2014/15 | E236: 2015/16 | F236: 2016/17 | G236: 2017/18 | H236: 2018/19 | I236: 2019/20
A237: Baseline Expenditure | B237: =+B14 -> 0 | C237: 0 | D237: 0 | E237: 0 | F237: 0 | G237: 0 | H237: 0 | I237: 0
A238: Total with Variations | B238: =+B36 -> 0 | C238: 0 | D238: 0 | E238: 0 | F238: 0 | G238: 0 | H238: 0 | I238: 0
A239: Total with Specific Escalations | B239: =+B36+B48 -> 0 | C239: 0 | D239: 0 | E239: 0 | F239: 0 | G239: 0 | H239: 0 | I239: 0
A240: Total with All Escalations | B240: =+B70 -> 0 | C240: 0 | D240: 0 | E240: 0 | F240: 0 | G240: 0 | H240: 0 | I240: 0

Sheet C-4
A1: Capital Expenditure | I1: =LU_TemplateDollarDenomination -> $'M Dec 2013 | J1: Sheet Number: | K1: 4
A2: Costs Category : | B2: =OFFSET(List_CapexCategoriesStart,+$K$1,1) -> Equity Raising Costs
A3: Sign-off : | B3: =OFFSET(List_CapexCategoriesStart,+$K$1,2) -> Patrick Makinson | E3: Version of Data: | H3: Dated:
B4: =LU_TemplateYearHeader -> 2012/13 | C4: 2013/14 | D4: 2014/15 | E4: 2015/16 | F4: 2016/17 | G4: 2017/18 | H4: 2018/19 | I4: 2019/20 | J4: Notes & checks
A5: A. Baseline Expenditure, based on:
A7: Summary by Cost Category
A8: Labour | B8: =OFFSET(List_CapexStart,MATCH($K$1,'I-4 History'!$A$6:$A$256)+2,0) -> 0 | C8: =OFFSET(Future_CapexStart,MATCH($K$1,'I-5 Future'!$A$6:$A$284)+2,+'I-5 Future'!D$5) -> 0 | D8: =OFFSET(Future_CapexStart,MATCH($K$1,'I-5 Future'!$A$6:$A$284)+2,+'I-5 Future'!E$5) -> 0 | E8: =OFFSET(Future_CapexStart,MATCH($K$1,'I-5 Future'!$A$6:$A$284)+2,+'I-5 Future'!F$5) -> 0 | F8: =OFFSET(Future_CapexStart,MATCH($K$1,'I-5 Future'!$A$6:$A$284)+2,+'I-5 Future'!G$5) -> 0 | G8: =OFFSET(Future_CapexStart,MATCH($K$1,'I-5 Future'!$A$6:$A$284)+2,+'I-5 Future'!H$5) -> 0 | H8: =OFFSET(Future_CapexStart,MATCH($K$1,'I-5 Future'!$A$6:$A$284)+2,+'I-5 Future'!I$5) -> 0 | I8: =OFFSET(Future_CapexStart,MATCH($K$1,'I-5 Future'!$A$6:$A$284)+2,+'I-5 Future'!J$5) -> 0
A9: Materials | B9: =OFFSET(List_CapexStart,MATCH($K$1,'I-4 History'!$A$6:$A$256)+3,0) -> 0 | C9: =OFFSET(Future_CapexStart,MATCH($K$1,'I-5 Future'!$A$6:$A$284)+3,+'I-5 Future'!D$5) -> 0 | D9: =OFFSET(Future_CapexStart,MATCH($K$1,'I-5 Future'!$A$6:$A$284)+3,+'I-5 Future'!E$5) -> 0 | E9: =OFFSET(Future_CapexStart,MATCH($K$1,'I-5 Future'!$A$6:$A$284)+3,+'I-5 Future'!F$5) -> 0 | F9: =OFFSET(Future_CapexStart,MATCH($K$1,'I-5 Future'!$A$6:$A$284)+3,+'I-5 Future'!G$5) -> 0 | G9: =OFFSET(Future_CapexStart,MATCH($K$1,'I-5 Future'!$A$6:$A$284)+3,+'I-5 Future'!H$5) -> 0 | H9: =OFFSET(Future_CapexStart,MATCH($K$1,'I-5 Future'!$A$6:$A$284)+3,+'I-5 Future'!I$5) -> 0 | I9: =OFFSET(Future_CapexStart,MATCH($K$1,'I-5 Future'!$A$6:$A$284)+3,+'I-5 Future'!J$5) -> 0
A10: Contracts | B10: =OFFSET(List_CapexStart,MATCH($K$1,'I-4 History'!$A$6:$A$256)+4,0) -> 0 | C10: =OFFSET(Future_CapexStart,MATCH($K$1,'I-5 Future'!$A$6:$A$284)+4,+'I-5 Future'!D$5) -> 0 | D10: =OFFSET(Future_CapexStart,MATCH($K$1,'I-5 Future'!$A$6:$A$284)+4,+'I-5 Future'!E$5) -> 0 | E10: =OFFSET(Future_CapexStart,MATCH($K$1,'I-5 Future'!$A$6:$A$284)+4,+'I-5 Future'!F$5) -> 0 | F10: =OFFSET(Future_CapexStart,MATCH($K$1,'I-5 Future'!$A$6:$A$284)+4,+'I-5 Future'!G$5) -> 0 | G10: =OFFSET(Future_CapexStart,MATCH($K$1,'I-5 Future'!$A$6:$A$284)+4,+'I-5 Future'!H$5) -> 0 | H10: =OFFSET(Future_CapexStart,MATCH($K$1,'I-5 Future'!$A$6:$A$284)+4,+'I-5 Future'!I$5) -> 0 | I10: =OFFSET(Future_CapexStart,MATCH($K$1,'I-5 Future'!$A$6:$A$284)+4,+'I-5 Future'!J$5) -> 0
A11: Services Other | B11: =OFFSET(List_CapexStart,MATCH($K$1,'I-4 History'!$A$6:$A$256)+5,0) -> 0 | C11: =OFFSET(Future_CapexStart,MATCH($K$1,'I-5 Future'!$A$6:$A$284)+5,+'I-5 Future'!D$5) -> 0 | D11: =OFFSET(Future_CapexStart,MATCH($K$1,'I-5 Future'!$A$6:$A$284)+5,+'I-5 Future'!E$5) -> 0 | E11: =OFFSET(Future_CapexStart,MATCH($K$1,'I-5 Future'!$A$6:$A$284)+5,+'I-5 Future'!F$5) -> 0 | F11: =OFFSET(Future_CapexStart,MATCH($K$1,'I-5 Future'!$A$6:$A$284)+5,+'I-5 Future'!G$5) -> 0 | G11: =OFFSET(Future_CapexStart,MATCH($K$1,'I-5 Future'!$A$6:$A$284)+5,+'I-5 Future'!H$5) -> 0 | H11: =OFFSET(Future_CapexStart,MATCH($K$1,'I-5 Future'!$A$6:$A$284)+5,+'I-5 Future'!I$5) -> 0 | I11: =OFFSET(Future_CapexStart,MATCH($K$1,'I-5 Future'!$A$6:$A$284)+5,+'I-5 Future'!J$5) -> 0
A12: Business Overheads | B12: =OFFSET(List_CapexStart,MATCH($K$1,'I-4 History'!$A$6:$A$256)+6,0) -> 0 | C12: =OFFSET(Future_CapexStart,MATCH($K$1,'I-5 Future'!$A$6:$A$284)+6,+'I-5 Future'!D$5) -> 0 | D12: =OFFSET(Future_CapexStart,MATCH($K$1,'I-5 Future'!$A$6:$A$284)+6,+'I-5 Future'!E$5) -> 0 | E12: =OFFSET(Future_CapexStart,MATCH($K$1,'I-5 Future'!$A$6:$A$284)+6,+'I-5 Future'!F$5) -> 0 | F12: =OFFSET(Future_CapexStart,MATCH($K$1,'I-5 Future'!$A$6:$A$284)+6,+'I-5 Future'!G$5) -> 0 | G12: =OFFSET(Future_CapexStart,MATCH($K$1,'I-5 Future'!$A$6:$A$284)+6,+'I-5 Future'!H$5) -> 0 | H12: =OFFSET(Future_CapexStart,MATCH($K$1,'I-5 Future'!$A$6:$A$284)+6,+'I-5 Future'!I$5) -> 0 | I12: =OFFSET(Future_CapexStart,MATCH($K$1,'I-5 Future'!$A$6:$A$284)+6,+'I-5 Future'!J$5) -> 0
A13: Other | B13: =OFFSET(List_CapexStart,MATCH($K$1,'I-4 History'!$A$6:$A$256)+7,0) -> 0 | C13: =OFFSET(Future_CapexStart,MATCH($K$1,'I-5 Future'!$A$6:$A$284)+7,+'I-5 Future'!D$5) -> 0 | D13: =OFFSET(Future_CapexStart,MATCH($K$1,'I-5 Future'!$A$6:$A$284)+7,+'I-5 Future'!E$5) -> 0 | E13: =OFFSET(Future_CapexStart,MATCH($K$1,'I-5 Future'!$A$6:$A$284)+7,+'I-5 Future'!F$5) -> 0 | F13: =OFFSET(Future_CapexStart,MATCH($K$1,'I-5 Future'!$A$6:$A$284)+7,+'I-5 Future'!G$5) -> 0 | G13: =OFFSET(Future_CapexStart,MATCH($K$1,'I-5 Future'!$A$6:$A$284)+7,+'I-5 Future'!H$5) -> 0 | H13: =OFFSET(Future_CapexStart,MATCH($K$1,'I-5 Future'!$A$6:$A$284)+7,+'I-5 Future'!I$5) -> 0 | I13: =OFFSET(Future_CapexStart,MATCH($K$1,'I-5 Future'!$A$6:$A$284)+7,+'I-5 Future'!J$5) -> 0
A14: Baseline Expenditure | B14: =SUM(B8:B13) -> 0 | C14: 0 | D14: 0 | E14: 0 | F14: 0 | G14: 0 | H14: 0 | I14: 0
A16: B. Variations (as per calculations on page 3)
A18: Summary by Cost Category
A19: Labour | C19: =+C176 -> 0 | D19: 0 | E19: 0 | F19: 0 | G19: 0 | H19: 0 | I19: 0
A20: Materials | C20: 0 | D20: 0 | E20: 0 | F20: 0 | G20: 0 | H20: 0 | I20: 0
A21: Contracts | C21: =+C178 -> 0 | D21: 0 | E21: 0 | F21: 0 | G21: 0 | H21: 0 | I21: 0
A22: Services Other | C22: =+C179 -> 0 | D22: 0 | E22: 0 | F22: 0 | G22: 0 | H22: 0 | I22: 0
A23: Business Overheads | C23: =+C180 -> 0 | D23: 0 | E23: 0 | F23: 0 | G23: 0 | H23: 0 | I23: 0
A24: Other | C24: =+C181 -> 0 | D24: 0 | E24: 0 | F24: 0 | G24: 0 | H24: 0 | I24: 0
A25: Variations | C25: =SUM(C19:C24) -> 0 | D25: 0 | E25: 0 | F25: 0 | G25: 0 | H25: 0 | I25: 0 | J25: =IF(ROUND(SUM(C182:I182)-SUM(B25:I25),2)<>0,"Warning Check Totals","OK") -> OK
A27: Total Base Expenditure + Variations, Before Escalations
A29: Summary by Cost Category
A30: Labour | B30: =+'C-4'!B8+'C-4'!B19 -> 0 | C30: =+'C-4'!C8+'C-4'!C19 -> 0 | D30: =+'C-4'!D8+'C-4'!D19 -> 0 | E30: =+'C-4'!E8+'C-4'!E19 -> 0 | F30: =+'C-4'!F8+'C-4'!F19 -> 0 | G30: =+'C-4'!G8+'C-4'!G19 -> 0 | H30: =+'C-4'!H8+'C-4'!H19 -> 0 | I30: =+'C-4'!I8+'C-4'!I19 -> 0
A31: Materials | B31: =+'C-4'!B9+'C-4'!B20 -> 0 | C31: =+'C-4'!C9+'C-4'!C20 -> 0 | D31: =+'C-4'!D9+'C-4'!D20 -> 0 | E31: =+'C-4'!E9+'C-4'!E20 -> 0 | F31: =+'C-4'!F9+'C-4'!F20 -> 0 | G31: =+'C-4'!G9+'C-4'!G20 -> 0 | H31: =+'C-4'!H9+'C-4'!H20 -> 0 | I31: =+'C-4'!I9+'C-4'!I20 -> 0
A32: Contracts | B32: =+'C-4'!B10+'C-4'!B21 -> 0 | C32: =+'C-4'!C10+'C-4'!C21 -> 0 | D32: =+'C-4'!D10+'C-4'!D21 -> 0 | E32: =+'C-4'!E10+'C-4'!E21 -> 0 | F32: =+'C-4'!F10+'C-4'!F21 -> 0 | G32: =+'C-4'!G10+'C-4'!G21 -> 0 | H32: =+'C-4'!H10+'C-4'!H21 -> 0 | I32: =+'C-4'!I10+'C-4'!I21 -> 0
A33: Services Other | B33: =+'C-4'!B11+'C-4'!B22 -> 0 | C33: =+'C-4'!C11+'C-4'!C22 -> 0 | D33: =+'C-4'!D11+'C-4'!D22 -> 0 | E33: =+'C-4'!E11+'C-4'!E22 -> 0 | F33: =+'C-4'!F11+'C-4'!F22 -> 0 | G33: =+'C-4'!G11+'C-4'!G22 -> 0 | H33: =+'C-4'!H11+'C-4'!H22 -> 0 | I33: =+'C-4'!I11+'C-4'!I22 -> 0
A34: Business Overheads | B34: =+'C-4'!B12+'C-4'!B23 -> 0 | C34: =+'C-4'!C12+'C-4'!C23 -> 0 | D34: =+'C-4'!D12+'C-4'!D23 -> 0 | E34: =+'C-4'!E12+'C-4'!E23 -> 0 | F34: =+'C-4'!F12+'C-4'!F23 -> 0 | G34: =+'C-4'!G12+'C-4'!G23 -> 0 | H34: =+'C-4'!H12+'C-4'!H23 -> 0 | I34: =+'C-4'!I12+'C-4'!I23 -> 0
A35: Other | B35: =+'C-4'!B13+'C-4'!B24 -> 0 | C35: =+'C-4'!C13+'C-4'!C24 -> 0 | D35: =+'C-4'!D13+'C-4'!D24 -> 0 | E35: =+'C-4'!E13+'C-4'!E24 -> 0 | F35: =+'C-4'!F13+'C-4'!F24 -> 0 | G35: =+'C-4'!G13+'C-4'!G24 -> 0 | H35: =+'C-4'!H13+'C-4'!H24 -> 0 | I35: =+'C-4'!I13+'C-4'!I24 -> 0
A36: Expenditure Before Escalations | B36: =SUM(B30:B35) -> 0 | C36: 0 | D36: 0 | E36: 0 | F36: 0 | G36: 0 | H36: 0 | I36: 0 | J36: =IF(ROUND(SUM(B14:I14)+SUM(B25:I25)-SUM(B36:I36),2)<>0,"Warning Check Totals","OK") -> OK
A39: C. Specific Escalations (as per calculations on page 2)
A41: Summary by Cost Category
A42: Labour | C42: =+C125 -> 0 | D42: 0 | E42: 0 | F42: 0 | G42: 0 | H42: 0 | I42: 0
A43: Materials | C43: 0 | D43: 0 | E43: 0 | F43: 0 | G43: 0 | H43: 0 | I43: 0
A44: Contracts | C44: =+C127 -> 0 | D44: 0 | E44: 0 | F44: 0 | G44: 0 | H44: 0 | I44: 0
A45: Services Other | C45: =+C128 -> 0 | D45: 0 | E45: 0 | F45: 0 | G45: 0 | H45: 0 | I45: 0
A46: Business Overheads | C46: =+C129 -> 0 | D46: 0 | E46: 0 | F46: 0 | G46: 0 | H46: 0 | I46: 0
A47: Other | C47: =+C130 -> 0 | D47: 0 | E47: 0 | F47: 0 | G47: 0 | H47: 0 | I47: 0
A48: Specific Escalations | C48: =SUM(C42:C47) -> 0 | D48: 0 | E48: 0 | F48: 0 | G48: 0 | H48: 0 | I48: 0 | J48: =IF(ROUND(SUM(B48:I48)-SUM(B131:I131),2)<>0,"Warning Check Escalations","OK") -> OK
A50: D. General Escalations (as per calculations on page 2)
A52: Summary by Cost Category
A53: Labour | C53: =+C161 -> 0 | D53: 0 | E53: 0 | F53: 0 | G53: 0 | H53: 0 | I53: 0
A54: Materials | C54: 0 | D54: 0 | E54: 0 | F54: 0 | G54: 0 | H54: 0 | I54: 0
A55: Contracts | C55: =+C163 -> 0 | D55: 0 | E55: 0 | F55: 0 | G55: 0 | H55: 0 | I55: 0
A56: Services Other | C56: =+C164 -> 0 | D56: 0 | E56: 0 | F56: 0 | G56: 0 | H56: 0 | I56: 0
A57: Business Overheads | C57: =+C165 -> 0 | D57: 0 | E57: 0 | F57: 0 | G57: 0 | H57: 0 | I57: 0
A58: Other | C58: =+C166 -> 0 | D58: 0 | E58: 0 | F58: 0 | G58: 0 | H58: 0 | I58: 0
A59: General Escalations | C59: =SUM(C53:C58) -> 0 | D59: 0 | E59: 0 | F59: 0 | G59: 0 | H59: 0 | I59: 0 | J59: =IF(ROUND(SUM(B59:I59)-SUM(B167:I167),2)<>0,"Warning Check Escalations","OK") -> OK
A61: Total Expenditure | B61: =LU_TemplateYearHeader -> 2012/13 | C61: 2013/14 | D61: 2014/15 | E61: 2015/16 | F61: 2016/17 | G61: 2017/18 | H61: 2018/19 | I61: 2019/20
A63: Summary by Cost Category
A64: Labour | B64: =+B42+B30+B53 -> 0 | C64: 0 | D64: 0 | E64: 0 | F64: 0 | G64: 0 | H64: 0 | I64: 0
A65: Materials | B65: 0 | C65: 0 | D65: 0 | E65: 0 | F65: 0 | G65: 0 | H65: 0 | I65: 0
A66: Contracts | B66: =+B44+B32+B55 -> 0 | C66: 0 | D66: 0 | E66: 0 | F66: 0 | G66: 0 | H66: 0 | I66: 0
A67: Services Other | B67: =+B45+B33+B56 -> 0 | C67: 0 | D67: 0 | E67: 0 | F67: 0 | G67: 0 | H67: 0 | I67: 0
A68: Business Overheads | B68: =+B46+B34+B57 -> 0 | C68: 0 | D68: 0 | E68: 0 | F68: 0 | G68: 0 | H68: 0 | I68: 0
A69: Other | B69: =+B47+B35+B58 -> 0 | C69: 0 | D69: 0 | E69: 0 | F69: 0 | G69: 0 | H69: 0 | I69: 0
A70: Total Expenditure | B70: =SUM(B64:B69) -> 0 | C70: 0 | D70: 0 | E70: 0 | F70: 0 | G70: 0 | H70: 0 | I70: 0 | J70: =IF(ROUND(SUM(B48:I48)+SUM(B36:I36)+SUM(B59:I59)-SUM(B70:I70),3)<>0,"Warning Check Totals","OK") -> OK
A72: Expenditure Categorisation | AA72: Base costs - Expenditure Categorisation
A73: Allocation of Capital Expenditure to Asset Categories | N73: Expenditure Category Proportions | AA73: On pro-rata basis
D74: =+'Ref-1'!P39 -> 2014/15 | E74: =+'Ref-1'!Q39 -> 2015/16 | F74: =+'Ref-1'!R39 -> 2016/17 | G74: =+'Ref-1'!S39 -> 2017/18 | H74: =+'Ref-1'!T39 -> 2018/19 | I74: =+'Ref-1'!U39 -> 2019/20 | N74: =E74 -> 2015/16 | O74: =F74 -> 2016/17 | P74: 2017/18 | Q74: 2018/19 | R74: 2019/20
A75: ='I-2'!C7 -> ACS Replacements | E75: =+E$70*N75 -> 0 | F75: =+F$70*O75 -> 0 | G75: 0 | H75: 0 | I75: 0 | N75: 0 | O75: 0 | P75: 0 | Q75: 0 | R75: 0
A76: ='I-2'!C8 -> ACS IT Infrastructure | E76: =+E$70*N76 -> 0 | F76: 0 | G76: 0 | H76: 0 | I76: 0 | N76: 0 | O76: 0 | P76: 0 | Q76: 0 | R76: 0
A77: ='I-2'!C9 -> Superannuation | E77: 0 | F77: 0 | G77: 0 | H77: 0 | I77: 0 | N77: 0 | O77: 0 | P77: 0 | Q77: 0 | R77: 0
A78: ='I-2'!C10 -> Equity Raising Costs | E78: 0 | F78: 0 | G78: 0 | H78: 0 | I78: 0 | N78: 0 | O78: 0 | P78: 0 | Q78: 0 | R78: 0
A79: ='I-2'!C11 -> Spare - Not in Use | E79: 0 | F79: 0 | G79: 0 | H79: 0 | I79: 0 | N79: 0 | O79: 0 | P79: 0 | Q79: 0 | R79: 0
A80: ='I-2'!C12 -> Spare - Not in Use | E80: 0 | F80: 0 | G80: 0 | H80: 0 | I80: 0 | N80: 0 | O80: 0 | P80: 0 | Q80: 0 | R80: 0
A81: ='I-2'!C13 -> Spare - Not in Use | E81: =+E$70*N81 -> 0 | F81: 0 | G81: 0 | H81: 0 | I81: 0 | N81: 0 | O81: 0 | P81: 0 | Q81: 0 | R81: 0
A82: ='I-2'!C14 -> Spare - Not in Use | E82: 0 | F82: 0 | G82: 0 | H82: 0 | I82: 0 | N82: 0 | O82: 0 | P82: 0 | Q82: 0 | R82: 0
A83: ='I-2'!C15 -> Spare - Not in Use | E83: 0 | F83: 0 | G83: 0 | H83: 0 | I83: 0 | N83: 0 | O83: 0 | P83: 0 | Q83: 0 | R83: 0
A84: ='I-2'!C16 -> Spare - Not in Use | E84: 0 | F84: 0 | G84: 0 | H84: 0 | I84: 0 | N84: 0 | O84: 0 | P84: 0 | Q84: 0 | R84: 0
A85: ='I-2'!C17 -> Spare - Not in Use | E85: 0 | F85: 0 | G85: 0 | H85: 0 | I85: 0 | N85: 0 | O85: 0 | P85: 0 | Q85: 0 | R85: 0
A86: ='I-2'!C18 -> Spare - Not in Use | E86: 0 | F86: 0 | G86: 0 | H86: 0 | I86: 0 | N86: 0 | O86: 0 | P86: 0 | Q86: 0 | R86: 0
A87: ='I-2'!C19 -> Spare - Not in Use | E87: 0 | F87: 0 | G87: 0 | H87: 0 | I87: 0 | N87: 0 | O87: 0 | P87: 0 | Q87: 0 | R87: 0
A88: ='I-2'!C20 -> Spare - Not in Use | E88: 0 | F88: 0 | G88: 0 | H88: 0 | I88: 0 | N88: 0 | O88: 0 | P88: 0 | Q88: 0 | R88: 0 | AA88: =+E88*E$14/E$36 ->  | AB88: =+F88*F$14/F$36 ->  | AC88: =+G88*G$14/G$36 ->  | AD88: =+H88*H$14/H$36 ->  | AE88: =+I88*I$14/I$36 -> 
A89: ='I-2'!C21 -> Spare - Not in Use | E89: 0 | F89: 0 | G89: 0 | H89: 0 | I89: 0 | N89: 0 | O89: 0 | P89: 0 | Q89: 0 | R89: 0
A90: ='I-2'!C22 -> Spare - Not in Use | E90: 0 | F90: 0 | G90: 0 | H90: 0 | I90: 0 | N90: 0 | O90: 0 | P90: 0 | Q90: 0 | R90: 0
A91: ='I-2'!C23 -> Spare - Not in Use | E91: 0 | F91: 0 | G91: 0 | H91: 0 | I91: 0 | N91: 0 | O91: 0 | P91: 0 | Q91: 0 | R91: 0
A92: ='I-2'!C24 -> Spare - Not in Use | E92: 0 | F92: 0 | G92: 0 | H92: 0 | I92: 0 | N92: 0 | O92: 0 | P92: 0 | Q92: 0 | R92: 0
A93: ='I-2'!C25 -> Spare - Not in Use | E93: 0 | F93: 0 | G93: 0 | H93: 0 | I93: 0 | N93: 0 | O93: 0 | P93: 0 | Q93: 0 | R93: 0
A94: ='I-2'!C26 -> Spare - Not in Use | E94: 0 | F94: 0 | G94: 0 | H94: 0 | I94: 0 | N94: 0 | O94: 0 | P94: 0 | Q94: 0 | R94: 0
A95: ='I-2'!C27 -> Spare - Not in Use | E95: 0 | F95: 0 | G95: 0 | H95: 0 | I95: 0 | N95: 0 | O95: 0 | P95: 0 | Q95: 0 | R95: 0
A96: ='I-2'!C28 -> Spare - Not in Use | E96: 0 | F96: 0 | G96: 0 | H96: 0 | I96: 0 | N96: 0 | O96: 0 | P96: 0 | Q96: 0 | R96: 0
A97: ='I-2'!C29 -> Spare - Not in Use | E97: =+E$70*N97 -> 0 | F97: 0 | G97: 0 | H97: 0 | I97: 0 | N97: 0 | O97: 0 | P97: 0 | Q97: 0 | R97: 0
A98: ='I-2'!C30 -> Spare - Not in Use | E98: =+E$70*N98 -> 0 | F98: =+F$70*O98 -> 0 | G98: =+G$70*P98 -> 0 | H98: =+H$70*Q98 -> 0 | I98: =+I$70*R98 -> 0 | N98: ='[3]2015_25_13.5%oh FIN YR (real$)'!$AL$748:$AP$770 -> 0 | O98: 0 | P98: 0 | Q98: 0 | R98: 0
A99: ='I-2'!C31 -> Spare - Not in Use
A100: ='I-2'!C32 -> Spare - Not in Use
A101: Total Expenditure | B101: =SUM(B75:B100) -> 0 | C101: 0 | D101: 0 | E101: 0 | F101: 0 | G101: 0 | H101: 0 | I101: 0 | O101: Check | P101: =E101-E70 -> 0 | Q101: =F101-F70 -> 0 | R101: 0 | S101: 0 | T101: 0 | AA101: =SUM(AA75:AA100) -> 
A103: Specific Escalation Calculations | C103: 2 | D103: =+C103+1 -> 3 | E103: 4 | F103: 5 | G103: 6 | H103: 7 | I103: 8 | J103: Escalation | K103: Escalation
A104: Select the specific escalations to apply for this expenditure category and the cost categories to which they relate: | J104: Type | K104: Active? | N104: Dollar Impact of Each Escalation (uncompounded with other specific escalations of the same cost category)
A105: Important - if there are not enough rows, copy and insert an entire row with the escalation formulas, not just the visible cells | N105: =LU_TemplateYearHeader2 -> 2013/14 | O105: 2014/15 | P105: 2015/16 | Q105: 2016/17 | R105: 2017/18 | S105: 2018/19 | T105: 2019/20
A106: Specific Escalations | B106: Cost Category | C106: =LU_TemplateYearHeader2 -> 2013/14 | D106: 2014/15 | E106: 2015/16 | F106: 2016/17 | G106: 2017/18 | H106: 2018/19 | I106: 2019/20
C107: =IF($K107="No",0,VLOOKUP($A107,Escalations_Specific_Costs,+C$103,FALSE)) -> 0 | D107: =IF($K107="No",0,IF($J107="one-off",VLOOKUP($A107,Escalations_Specific_Costs,+D$103,FALSE),(VLOOKUP($A107,Escalations_Specific_Costs,+D$103,FALSE)+1)*(1+C107)-1)) -> 0 | E107: 0 | F107: 0 | G107: 0 | H107: 0 | I107: 0 | J107: =IF(ISNA(VLOOKUP($A107,Escalations_Specific_Costs,+I$103+3,FALSE)),0,VLOOKUP($A107,Escalations_Specific_Costs,+I$103+3,FALSE)) -> 0 | K107: =IF(ISNA(VLOOKUP($A107,Escalations_Specific_Costs,1,FALSE)),"No","Yes") -> No | N107: =IF($B107<>0,(+VLOOKUP($B107,$A$30:$I$35,3,FALSE))*(C107),0) -> 0 | O107: =IF($B107<>0,(+VLOOKUP($B107,$A$30:$I$35,4,FALSE))*(D107),0) -> 0 | P107: =IF($B107<>0,(+VLOOKUP($B107,$A$30:$I$35,5,FALSE))*(E107),0) -> 0 | Q107: =IF($B107<>0,(+VLOOKUP($B107,$A$30:$I$35,6,FALSE))*(F107),0) -> 0 | R107: =IF($B107<>0,(+VLOOKUP($B107,$A$30:$I$35,7,FALSE))*(G107),0) -> 0 | S107: =IF($B107<>0,(+VLOOKUP($B107,$A$30:$I$35,8,FALSE))*(H107),0) -> 0 | T107: =IF($B107<>0,(+VLOOKUP($B107,$A$30:$I$35,9,FALSE))*(I107),0) -> 0
C108: =IF($K108="No",0,VLOOKUP($A108,Escalations_Specific_Costs,+C$103,FALSE)) -> 0 | D108: 0 | E108: 0 | F108: 0 | G108: 0 | H108: 0 | I108: 0 | J108: =IF(ISNA(VLOOKUP($A108,Escalations_Specific_Costs,+I$103+3,FALSE)),0,VLOOKUP($A108,Escalations_Specific_Costs,+I$103+3,FALSE)) -> 0 | K108: =IF(ISNA(VLOOKUP($A108,Escalations_Specific_Costs,1,FALSE)),"No","Yes") -> No | N108: =IF($B108<>0,(+VLOOKUP($B108,$A$30:$I$35,3,FALSE))*(C108),0) -> 0 | O108: =IF($B108<>0,(+VLOOKUP($B108,$A$30:$I$35,4,FALSE))*(D108),0) -> 0 | P108: =IF($B108<>0,(+VLOOKUP($B108,$A$30:$I$35,5,FALSE))*(E108),0) -> 0 | Q108: =IF($B108<>0,(+VLOOKUP($B108,$A$30:$I$35,6,FALSE))*(F108),0) -> 0 | R108: =IF($B108<>0,(+VLOOKUP($B108,$A$30:$I$35,7,FALSE))*(G108),0) -> 0 | S108: =IF($B108<>0,(+VLOOKUP($B108,$A$30:$I$35,8,FALSE))*(H108),0) -> 0 | T108: =IF($B108<>0,(+VLOOKUP($B108,$A$30:$I$35,9,FALSE))*(I108),0) -> 0
C109: =IF($K109="No",0,VLOOKUP($A109,Escalations_Specific_Costs,+C$103,FALSE)) -> 0 | D109: 0 | E109: 0 | F109: 0 | G109: 0 | H109: 0 | I109: 0 | J109: =IF(ISNA(VLOOKUP($A109,Escalations_Specific_Costs,+I$103+3,FALSE)),0,VLOOKUP($A109,Escalations_Specific_Costs,+I$103+3,FALSE)) -> 0 | K109: =IF(ISNA(VLOOKUP($A109,Escalations_Specific_Costs,1,FALSE)),"No","Yes") -> No | N109: =IF($B109<>0,(+VLOOKUP($B109,$A$30:$I$35,3,FALSE))*(C109),0) -> 0 | O109: =IF($B109<>0,(+VLOOKUP($B109,$A$30:$I$35,4,FALSE))*(D109),0) -> 0 | P109: =IF($B109<>0,(+VLOOKUP($B109,$A$30:$I$35,5,FALSE))*(E109),0) -> 0 | Q109: =IF($B109<>0,(+VLOOKUP($B109,$A$30:$I$35,6,FALSE))*(F109),0) -> 0 | R109: =IF($B109<>0,(+VLOOKUP($B109,$A$30:$I$35,7,FALSE))*(G109),0) -> 0 | S109: =IF($B109<>0,(+VLOOKUP($B109,$A$30:$I$35,8,FALSE))*(H109),0) -> 0 | T109: =IF($B109<>0,(+VLOOKUP($B109,$A$30:$I$35,9,FALSE))*(I109),0) -> 0
A110: End of Escalations - Note all escalations must be above this row. Do Not delete this row | N110: =SUM(N107:N109) -> 0 | O110: 0 | P110: 0 | Q110: 0 | R110: 0 | S110: 0 | T110: 0
M111: Check | N111: =ROUND(N110-C131,3) -> 0 | O111: 0 | P111: 0 | Q111: 0 | R111: 0 | S111: 0 | T111: 0
A112: Total Specific Escalations to Apply (based on escalations selected above)
A113: Labour | C113: =PRODUCT(IF($B$107:$B$110=$A113,C$107:C$110+1))-IF(COUNTIF($B$107:$B$110,+$A113)=0,0,1) -> 0 | D113: =PRODUCT(IF($B$107:$B$110=$A113,D$107:D$110+1))-IF(COUNTIF($B$107:$B$110,+$A113)=0,0,1) -> 0 | E113: =PRODUCT(IF($B$107:$B$110=$A113,E$107:E$110+1))-IF(COUNTIF($B$107:$B$110,+$A113)=0,0,1) -> 0 | F113: =PRODUCT(IF($B$107:$B$110=$A113,F$107:F$110+1))-IF(COUNTIF($B$107:$B$110,+$A113)=0,0,1) -> 0 | G113: =PRODUCT(IF($B$107:$B$110=$A113,G$107:G$110+1))-IF(COUNTIF($B$107:$B$110,+$A113)=0,0,1) -> 0 | H113: =PRODUCT(IF($B$107:$B$110=$A113,H$107:H$110+1))-IF(COUNTIF($B$107:$B$110,+$A113)=0,0,1) -> 0 | I113: =PRODUCT(IF($B$107:$B$110=$A113,I$107:I$110+1))-IF(COUNTIF($B$107:$B$110,+$A113)=0,0,1) -> 0
A114: Materials | C114: =PRODUCT(IF($B$107:$B$110=$A114,C$107:C$110+1))-IF(COUNTIF($B$107:$B$110,+$A114)=0,0,1) -> 0 | D114: =PRODUCT(IF($B$107:$B$110=$A114,D$107:D$110+1))-IF(COUNTIF($B$107:$B$110,+$A114)=0,0,1) -> 0 | E114: =PRODUCT(IF($B$107:$B$110=$A114,E$107:E$110+1))-IF(COUNTIF($B$107:$B$110,+$A114)=0,0,1) -> 0 | F114: =PRODUCT(IF($B$107:$B$110=$A114,F$107:F$110+1))-IF(COUNTIF($B$107:$B$110,+$A114)=0,0,1) -> 0 | G114: =PRODUCT(IF($B$107:$B$110=$A114,G$107:G$110+1))-IF(COUNTIF($B$107:$B$110,+$A114)=0,0,1) -> 0 | H114: =PRODUCT(IF($B$107:$B$110=$A114,H$107:H$110+1))-IF(COUNTIF($B$107:$B$110,+$A114)=0,0,1) -> 0 | I114: =PRODUCT(IF($B$107:$B$110=$A114,I$107:I$110+1))-IF(COUNTIF($B$107:$B$110,+$A114)=0,0,1) -> 0
A115: Contracts | C115: =PRODUCT(IF($B$107:$B$110=$A115,C$107:C$110+1))-IF(COUNTIF($B$107:$B$110,+$A115)=0,0,1) -> 0 | D115: =PRODUCT(IF($B$107:$B$110=$A115,D$107:D$110+1))-IF(COUNTIF($B$107:$B$110,+$A115)=0,0,1) -> 0 | E115: =PRODUCT(IF($B$107:$B$110=$A115,E$107:E$110+1))-IF(COUNTIF($B$107:$B$110,+$A115)=0,0,1) -> 0 | F115: =PRODUCT(IF($B$107:$B$110=$A115,F$107:F$110+1))-IF(COUNTIF($B$107:$B$110,+$A115)=0,0,1) -> 0 | G115: =PRODUCT(IF($B$107:$B$110=$A115,G$107:G$110+1))-IF(COUNTIF($B$107:$B$110,+$A115)=0,0,1) -> 0 | H115: =PRODUCT(IF($B$107:$B$110=$A115,H$107:H$110+1))-IF(COUNTIF($B$107:$B$110,+$A115)=0,0,1) -> 0 | I115: =PRODUCT(IF($B$107:$B$110=$A115,I$107:I$110+1))-IF(COUNTIF($B$107:$B$110,+$A115)=0,0,1) -> 0
A116: Services Other | C116: =PRODUCT(IF($B$107:$B$110=$A116,C$107:C$110+1))-IF(COUNTIF($B$107:$B$110,+$A116)=0,0,1) -> 0 | D116: =PRODUCT(IF($B$107:$B$110=$A116,D$107:D$110+1))-IF(COUNTIF($B$107:$B$110,+$A116)=0,0,1) -> 0 | E116: =PRODUCT(IF($B$107:$B$110=$A116,E$107:E$110+1))-IF(COUNTIF($B$107:$B$110,+$A116)=0,0,1) -> 0 | F116: =PRODUCT(IF($B$107:$B$110=$A116,F$107:F$110+1))-IF(COUNTIF($B$107:$B$110,+$A116)=0,0,1) -> 0 | G116: =PRODUCT(IF($B$107:$B$110=$A116,G$107:G$110+1))-IF(COUNTIF($B$107:$B$110,+$A116)=0,0,1) -> 0 | H116: =PRODUCT(IF($B$107:$B$110=$A116,H$107:H$110+1))-IF(COUNTIF($B$107:$B$110,+$A116)=0,0,1) -> 0 | I116: =PRODUCT(IF($B$107:$B$110=$A116,I$107:I$110+1))-IF(COUNTIF($B$107:$B$110,+$A116)=0,0,1) -> 0
A117: Business Overheads | C117: =PRODUCT(IF($B$107:$B$110=$A117,C$107:C$110+1))-IF(COUNTIF($B$107:$B$110,+$A117)=0,0,1) -> 0 | D117: =PRODUCT(IF($B$107:$B$110=$A117,D$107:D$110+1))-IF(COUNTIF($B$107:$B$110,+$A117)=0,0,1) -> 0 | E117: =PRODUCT(IF($B$107:$B$110=$A117,E$107:E$110+1))-IF(COUNTIF($B$107:$B$110,+$A117)=0,0,1) -> 0 | F117: =PRODUCT(IF($B$107:$B$110=$A117,F$107:F$110+1))-IF(COUNTIF($B$107:$B$110,+$A117)=0,0,1) -> 0 | G117: =PRODUCT(IF($B$107:$B$110=$A117,G$107:G$110+1))-IF(COUNTIF($B$107:$B$110,+$A117)=0,0,1) -> 0 | H117: =PRODUCT(IF($B$107:$B$110=$A117,H$107:H$110+1))-IF(COUNTIF($B$107:$B$110,+$A117)=0,0,1) -> 0 | I117: =PRODUCT(IF($B$107:$B$110=$A117,I$107:I$110+1))-IF(COUNTIF($B$107:$B$110,+$A117)=0,0,1) -> 0
A118: Other | C118: =PRODUCT(IF($B$107:$B$110=$A118,C$107:C$110+1))-IF(COUNTIF($B$107:$B$110,+$A118)=0,0,1) -> 0 | D118: =PRODUCT(IF($B$107:$B$110=$A118,D$107:D$110+1))-IF(COUNTIF($B$107:$B$110,+$A118)=0,0,1) -> 0 | E118: =PRODUCT(IF($B$107:$B$110=$A118,E$107:E$110+1))-IF(COUNTIF($B$107:$B$110,+$A118)=0,0,1) -> 0 | F118: =PRODUCT(IF($B$107:$B$110=$A118,F$107:F$110+1))-IF(COUNTIF($B$107:$B$110,+$A118)=0,0,1) -> 0 | G118: =PRODUCT(IF($B$107:$B$110=$A118,G$107:G$110+1))-IF(COUNTIF($B$107:$B$110,+$A118)=0,0,1) -> 0 | H118: =PRODUCT(IF($B$107:$B$110=$A118,H$107:H$110+1))-IF(COUNTIF($B$107:$B$110,+$A118)=0,0,1) -> 0 | I118: =PRODUCT(IF($B$107:$B$110=$A118,I$107:I$110+1))-IF(COUNTIF($B$107:$B$110,+$A118)=0,0,1) -> 0
A119: Product of Escalators by Category | C119: =PRODUCT(IF(C113:C118<>0,C113:C118+1))-IF(SUM(C113:C118)<>0,1,0) -> 0 | D119: =PRODUCT(IF(D113:D118<>0,D113:D118+1))-IF(SUM(D113:D118)<>0,1,0) -> 0 | E119: =PRODUCT(IF(E113:E118<>0,E113:E118+1))-IF(SUM(E113:E118)<>0,1,0) -> 0 | F119: =PRODUCT(IF(F113:F118<>0,F113:F118+1))-IF(SUM(F113:F118)<>0,1,0) -> 0 | G119: =PRODUCT(IF(G113:G118<>0,G113:G118+1))-IF(SUM(G113:G118)<>0,1,0) -> 0 | H119: =PRODUCT(IF(H113:H118<>0,H113:H118+1))-IF(SUM(H113:H118)<>0,1,0) -> 0 | I119: =PRODUCT(IF(I113:I118<>0,I113:I118+1))-IF(SUM(I113:I118)<>0,1,0) -> 0
A120: Product of All Escalators | C120: =PRODUCT(IF((C107:C110<>0),C107:C110+1))-IF(C107:C110<>0,1,0) -> 0 | D120: =PRODUCT(IF((D107:D110<>0),D107:D110+1))-IF(D107:D110<>0,1,0) -> 0 | E120: =PRODUCT(IF((E107:E110<>0),E107:E110+1))-IF(E107:E110<>0,1,0) -> 0 | F120: =PRODUCT(IF((F107:F110<>0),F107:F110+1))-IF(F107:F110<>0,1,0) -> 0 | G120: =PRODUCT(IF((G107:G110<>0),G107:G110+1))-IF(G107:G110<>0,1,0) -> 0 | H120: =PRODUCT(IF((H107:H110<>0),H107:H110+1))-IF(H107:H110<>0,1,0) -> 0 | I120: =PRODUCT(IF((I107:I110<>0),I107:I110+1))-IF(I107:I110<>0,1,0) -> 0
A121: Difference - should be Zero | C121: =+C119-C120 -> 0 | D121: 0 | E121: 0 | F121: 0 | G121: 0 | H121: 0 | I121: 0 | J121: =IF(SUM(C121:I121)<>0,"Warning Check Escalations","OK") -> OK
A123: Dollar Impact of Specific Escalations
A124: Summary by Cost Category | C124: =LU_TemplateYearHeader2 -> 2013/14 | D124: 2014/15 | E124: 2015/16 | F124: 2016/17 | G124: 2017/18 | H124: 2018/19 | I124: 2019/20
A125: Labour | C125: =+C30*(C113) -> 0 | D125: 0 | E125: 0 | F125: 0 | G125: 0 | H125: 0 | I125: 0
A126: Materials | C126: 0 | D126: 0 | E126: 0 | F126: 0 | G126: 0 | H126: 0 | I126: 0
A127: Contracts | C127: =+C32*(C115) -> 0 | D127: 0 | E127: 0 | F127: 0 | G127: 0 | H127: 0 | I127: 0
A128: Services Other | C128: =+C33*(C116) -> 0 | D128: 0 | E128: 0 | F128: 0 | G128: 0 | H128: 0 | I128: 0
A129: Business Overheads | C129: =+C34*(C117) -> 0 | D129: 0 | E129: 0 | F129: 0 | G129: 0 | H129: 0 | I129: 0
A130: Other | C130: =+C35*(C118) -> 0 | D130: 0 | E130: 0 | F130: 0 | G130: 0 | H130: 0 | I130: 0
A131: Dollar Impact of Escalations | C131: =SUM(C125:C130) -> 0 | D131: 0 | E131: 0 | F131: 0 | G131: 0 | H131: 0 | I131: 0
A132: Average Specific Escalation % | C132: =IF(C36<>0,+C131/C36,0) -> 0 | D132: 0 | E132: 0 | F132: 0 | G132: 0 | H132: 0 | I132: 0
A135: General Escalation Calculations | C135: 2 | D135: =+C135+1 -> 3 | E135: 4 | F135: 5 | G135: 6 | H135: 7 | I135: 8 | J135: Escalation | K135: Escalation
A136: Select the general escalations to apply for this expenditure category and the cost categories to which they relate: | J136: Type | K136: Active?
A137: Important - if there are not enough rows, copy and insert an entire row with the escalation formulas, not just the visible cells | N137: Dollar Impact of Each Escalation (uncompounded with other general escalations of the same cost category)
B138: Cost Category | C138: =LU_TemplateYearHeader2 -> 2013/14 | D138: 2014/15 | E138: 2015/16 | F138: 2016/17 | G138: 2017/18 | H138: 2018/19 | I138: 2019/20 | N138: =LU_TemplateYearHeader2 -> 2013/14 | O138: 2014/15 | P138: 2015/16 | Q138: 2016/17 | R138: 2017/18 | S138: 2018/19 | T138: 2019/20
A139: General Escalation (%Real**)
A140: Labour | B140: Labour | C140: =IF($K140="No",0,VLOOKUP($A140,Escalations_General_Costs,+C$135,FALSE)) -> 0 | D140: =IF($K140="No",0,IF($J140="one-off",VLOOKUP($A140,Escalations_General_Costs,+'I-6'!D$9+1,FALSE),((VLOOKUP($A140,Escalations_General_Costs,+'I-6'!D$9+1,FALSE)+1)*(1+C140)-1))) -> 0.0166 | E140: =IF($K140="No",0,IF($J140="one-off",VLOOKUP($A140,Escalations_General_Costs,+'I-6'!E$9+1,FALSE),((VLOOKUP($A140,Escalations_General_Costs,+'I-6'!E$9+1,FALSE)+1)*(1+D140)-1))) -> 0.03841416814 | F140: =IF($K140="No",0,IF($J140="one-off",VLOOKUP($A140,Escalations_General_Costs,+'I-6'!F$9+1,FALSE),((VLOOKUP($A140,Escalations_General_Costs,+'I-6'!F$9+1,FALSE)+1)*(1+E140)-1))) -> 0.06069642395 | G140: =IF($K140="No",0,IF($J140="one-off",VLOOKUP($A140,Escalations_General_Costs,+'I-6'!G$9+1,FALSE),((VLOOKUP($A140,Escalations_General_Costs,+'I-6'!G$9+1,FALSE)+1)*(1+F140)-1))) -> 0.08470395618 | H140: =IF($K140="No",0,IF($J140="one-off",VLOOKUP($A140,Escalations_General_Costs,+'I-6'!H$9+1,FALSE),((VLOOKUP($A140,Escalations_General_Costs,+'I-6'!H$9+1,FALSE)+1)*(1+G140)-1))) -> 0.1092548688 | I140: =IF($K140="No",0,IF($J140="one-off",VLOOKUP($A140,Escalations_General_Costs,+'I-6'!I$9+1,FALSE),((VLOOKUP($A140,Escalations_General_Costs,+'I-6'!I$9+1,FALSE)+1)*(1+H140)-1))) -> 0.1343614604 | J140: =IF(ISNA(VLOOKUP($A140,Escalations_General_Costs,+I$103+3,FALSE)),0,VLOOKUP($A140,Escalations_General_Costs,+I$103+3,FALSE)) -> Cumulative | K140: =IF(ISNA(VLOOKUP($A140,Escalations_General_Costs,1,FALSE)),"No","Yes") -> Yes | N140: =IF($B140<>0,(+VLOOKUP($B140,$A$30:$I$35,3,FALSE)+VLOOKUP($B140,$A$42:$I$47,3,FALSE))*(C140),0) -> 0 | O140: =IF($B140<>0,(+VLOOKUP($B140,$A$30:$I$35,4,FALSE)+VLOOKUP($B140,$A$42:$I$47,4,FALSE))*(D140),0) -> 0 | P140: =IF($B140<>0,(+VLOOKUP($B140,$A$30:$I$35,5,FALSE)+VLOOKUP($B140,$A$42:$I$47,5,FALSE))*(E140),0) -> 0 | Q140: =IF($B140<>0,(+VLOOKUP($B140,$A$30:$I$35,6,FALSE)+VLOOKUP($B140,$A$42:$I$47,6,FALSE))*(F140),0) -> 0 | R140: =IF($B140<>0,(+VLOOKUP($B140,$A$30:$I$35,7,FALSE)+VLOOKUP($B140,$A$42:$I$47,7,FALSE))*(G140),0) -> 0 | S140: =IF($B140<>0,(+VLOOKUP($B140,$A$30:$I$35,8,FALSE)+VLOOKUP($B140,$A$42:$I$47,8,FALSE))*(H140),0) -> 0 | T140: =IF($B140<>0,(+VLOOKUP($B140,$A$30:$I$35,9,FALSE)+VLOOKUP($B140,$A$42:$I$47,9,FALSE))*(I140),0) -> 0
A141: Materials | B141: Materials | C141: 0 | D141: =IF($K141="No",0,IF($J141="one-off",VLOOKUP($A141,Escalations_General_Costs,+'I-6'!D$9+1,FALSE),((VLOOKUP($A141,Escalations_General_Costs,+'I-6'!D$9+1,FALSE)+1)*(1+C141)-1))) -> 0 | E141: =IF($K141="No",0,IF($J141="one-off",VLOOKUP($A141,Escalations_General_Costs,+'I-6'!E$9+1,FALSE),((VLOOKUP($A141,Escalations_General_Costs,+'I-6'!E$9+1,FALSE)+1)*(1+D141)-1))) -> 0 | F141: =IF($K141="No",0,IF($J141="one-off",VLOOKUP($A141,Escalations_General_Costs,+'I-6'!F$9+1,FALSE),((VLOOKUP($A141,Escalations_General_Costs,+'I-6'!F$9+1,FALSE)+1)*(1+E141)-1))) -> 0 | G141: =IF($K141="No",0,IF($J141="one-off",VLOOKUP($A141,Escalations_General_Costs,+'I-6'!G$9+1,FALSE),((VLOOKUP($A141,Escalations_General_Costs,+'I-6'!G$9+1,FALSE)+1)*(1+F141)-1))) -> 0 | H141: =IF($K141="No",0,IF($J141="one-off",VLOOKUP($A141,Escalations_General_Costs,+'I-6'!H$9+1,FALSE),((VLOOKUP($A141,Escalations_General_Costs,+'I-6'!H$9+1,FALSE)+1)*(1+G141)-1))) -> 0 | I141: =IF($K141="No",0,IF($J141="one-off",VLOOKUP($A141,Escalations_General_Costs,+'I-6'!I$9+1,FALSE),((VLOOKUP($A141,Escalations_General_Costs,+'I-6'!I$9+1,FALSE)+1)*(1+H141)-1))) -> 0 | J141: Cumulative | K141: Yes | N141: =IF($B141<>0,(+VLOOKUP($B141,$A$30:$I$35,3,FALSE)+VLOOKUP($B141,$A$42:$I$47,3,FALSE))*(C141),0) -> 0 | O141: =IF($B141<>0,(+VLOOKUP($B141,$A$30:$I$35,4,FALSE)+VLOOKUP($B141,$A$42:$I$47,4,FALSE))*(D141),0) -> 0 | P141: =IF($B141<>0,(+VLOOKUP($B141,$A$30:$I$35,5,FALSE)+VLOOKUP($B141,$A$42:$I$47,5,FALSE))*(E141),0) -> 0 | Q141: =IF($B141<>0,(+VLOOKUP($B141,$A$30:$I$35,6,FALSE)+VLOOKUP($B141,$A$42:$I$47,6,FALSE))*(F141),0) -> 0 | R141: =IF($B141<>0,(+VLOOKUP($B141,$A$30:$I$35,7,FALSE)+VLOOKUP($B141,$A$42:$I$47,7,FALSE))*(G141),0) -> 0 | S141: =IF($B141<>0,(+VLOOKUP($B141,$A$30:$I$35,8,FALSE)+VLOOKUP($B141,$A$42:$I$47,8,FALSE))*(H141),0) -> 0 | T141: =IF($B141<>0,(+VLOOKUP($B141,$A$30:$I$35,9,FALSE)+VLOOKUP($B141,$A$42:$I$47,9,FALSE))*(I141),0) -> 0
A142: Services-construction | B142: Contracts | C142: 0 | D142: =IF($K142="No",0,IF($J142="one-off",VLOOKUP($A142,Escalations_General_Costs,+'I-6'!D$9+1,FALSE),((VLOOKUP($A142,Escalations_General_Costs,+'I-6'!D$9+1,FALSE)+1)*(1+C142)-1))) -> 0.001 | E142: =IF($K142="No",0,IF($J142="one-off",VLOOKUP($A142,Escalations_General_Costs,+'I-6'!E$9+1,FALSE),((VLOOKUP($A142,Escalations_General_Costs,+'I-6'!E$9+1,FALSE)+1)*(1+D142)-1))) -> 0.006005 | F142: =IF($K142="No",0,IF($J142="one-off",VLOOKUP($A142,Escalations_General_Costs,+'I-6'!F$9+1,FALSE),((VLOOKUP($A142,Escalations_General_Costs,+'I-6'!F$9+1,FALSE)+1)*(1+E142)-1))) -> 0.015059045 | G142: =IF($K142="No",0,IF($J142="one-off",VLOOKUP($A142,Escalations_General_Costs,+'I-6'!G$9+1,FALSE),((VLOOKUP($A142,Escalations_General_Costs,+'I-6'!G$9+1,FALSE)+1)*(1+F142)-1))) -> 0.02622469449 | H142: =IF($K142="No",0,IF($J142="one-off",VLOOKUP($A142,Escalations_General_Costs,+'I-6'!H$9+1,FALSE),((VLOOKUP($A142,Escalations_General_Costs,+'I-6'!H$9+1,FALSE)+1)*(1+G142)-1))) -> 0.04059184022 | I142: =IF($K142="No",0,IF($J142="one-off",VLOOKUP($A142,Escalations_General_Costs,+'I-6'!I$9+1,FALSE),((VLOOKUP($A142,Escalations_General_Costs,+'I-6'!I$9+1,FALSE)+1)*(1+H142)-1))) -> 0.05932249334 | J142: Cumulative | K142: Yes | N142: =IF($B142<>0,(+VLOOKUP($B142,$A$30:$I$35,3,FALSE)+VLOOKUP($B142,$A$42:$I$47,3,FALSE))*(C142),0) -> 0 | O142: =IF($B142<>0,(+VLOOKUP($B142,$A$30:$I$35,4,FALSE)+VLOOKUP($B142,$A$42:$I$47,4,FALSE))*(D142),0) -> 0 | P142: =IF($B142<>0,(+VLOOKUP($B142,$A$30:$I$35,5,FALSE)+VLOOKUP($B142,$A$42:$I$47,5,FALSE))*(E142),0) -> 0 | Q142: =IF($B142<>0,(+VLOOKUP($B142,$A$30:$I$35,6,FALSE)+VLOOKUP($B142,$A$42:$I$47,6,FALSE))*(F142),0) -> 0 | R142: =IF($B142<>0,(+VLOOKUP($B142,$A$30:$I$35,7,FALSE)+VLOOKUP($B142,$A$42:$I$47,7,FALSE))*(G142),0) -> 0 | S142: =IF($B142<>0,(+VLOOKUP($B142,$A$30:$I$35,8,FALSE)+VLOOKUP($B142,$A$42:$I$47,8,FALSE))*(H142),0) -> 0 | T142: =IF($B142<>0,(+VLOOKUP($B142,$A$30:$I$35,9,FALSE)+VLOOKUP($B142,$A$42:$I$47,9,FALSE))*(I142),0) -> 0
A143: Services-general | B143: Services Other | C143: 0 | D143: =IF($K143="No",0,IF($J143="one-off",VLOOKUP($A143,Escalations_General_Costs,+'I-6'!D$9+1,FALSE),((VLOOKUP($A143,Escalations_General_Costs,+'I-6'!D$9+1,FALSE)+1)*(1+C143)-1))) -> 0.001 | E143: =IF($K143="No",0,IF($J143="one-off",VLOOKUP($A143,Escalations_General_Costs,+'I-6'!E$9+1,FALSE),((VLOOKUP($A143,Escalations_General_Costs,+'I-6'!E$9+1,FALSE)+1)*(1+D143)-1))) -> 0.006005 | F143: =IF($K143="No",0,IF($J143="one-off",VLOOKUP($A143,Escalations_General_Costs,+'I-6'!F$9+1,FALSE),((VLOOKUP($A143,Escalations_General_Costs,+'I-6'!F$9+1,FALSE)+1)*(1+E143)-1))) -> 0.015059045 | G143: =IF($K143="No",0,IF($J143="one-off",VLOOKUP($A143,Escalations_General_Costs,+'I-6'!G$9+1,FALSE),((VLOOKUP($A143,Escalations_General_Costs,+'I-6'!G$9+1,FALSE)+1)*(1+F143)-1))) -> 0.02622469449 | H143: =IF($K143="No",0,IF($J143="one-off",VLOOKUP($A143,Escalations_General_Costs,+'I-6'!H$9+1,FALSE),((VLOOKUP($A143,Escalations_General_Costs,+'I-6'!H$9+1,FALSE)+1)*(1+G143)-1))) -> 0.04059184022 | I143: =IF($K143="No",0,IF($J143="one-off",VLOOKUP($A143,Escalations_General_Costs,+'I-6'!I$9+1,FALSE),((VLOOKUP($A143,Escalations_General_Costs,+'I-6'!I$9+1,FALSE)+1)*(1+H143)-1))) -> 0.05932249334 | J143: Cumulative | K143: Yes | N143: 0 | O143: 0 | P143: 0 | Q143: 0 | R143: 0 | S143: 0 | T143: 0
A144: Labour | B144: Business Overheads | C144: 0 | D144: =IF($K144="No",0,IF($J144="one-off",VLOOKUP($A144,Escalations_General_Costs,+'I-6'!D$9+1,FALSE),((VLOOKUP($A144,Escalations_General_Costs,+'I-6'!D$9+1,FALSE)+1)*(1+C144)-1))) -> 0.0166 | E144: =IF($K144="No",0,IF($J144="one-off",VLOOKUP($A144,Escalations_General_Costs,+'I-6'!E$9+1,FALSE),((VLOOKUP($A144,Escalations_General_Costs,+'I-6'!E$9+1,FALSE)+1)*(1+D144)-1))) -> 0.03841416814 | F144: =IF($K144="No",0,IF($J144="one-off",VLOOKUP($A144,Escalations_General_Costs,+'I-6'!F$9+1,FALSE),((VLOOKUP($A144,Escalations_General_Costs,+'I-6'!F$9+1,FALSE)+1)*(1+E144)-1))) -> 0.06069642395 | G144: =IF($K144="No",0,IF($J144="one-off",VLOOKUP($A144,Escalations_General_Costs,+'I-6'!G$9+1,FALSE),((VLOOKUP($A144,Escalations_General_Costs,+'I-6'!G$9+1,FALSE)+1)*(1+F144)-1))) -> 0.08470395618 | H144: =IF($K144="No",0,IF($J144="one-off",VLOOKUP($A144,Escalations_General_Costs,+'I-6'!H$9+1,FALSE),((VLOOKUP($A144,Escalations_General_Costs,+'I-6'!H$9+1,FALSE)+1)*(1+G144)-1))) -> 0.1092548688 | I144: =IF($K144="No",0,IF($J144="one-off",VLOOKUP($A144,Escalations_General_Costs,+'I-6'!I$9+1,FALSE),((VLOOKUP($A144,Escalations_General_Costs,+'I-6'!I$9+1,FALSE)+1)*(1+H144)-1))) -> 0.1343614604 | J144: Cumulative | K144: Yes | N144: 0 | O144: 0 | P144: 0 | Q144: 0 | R144: 0 | S144: 0 | T144: 0
A145: Materials - Land | B145: Other | C145: 0 | D145: =IF($K145="No",0,IF($J145="one-off",VLOOKUP($A145,Escalations_General_Costs,+'I-6'!D$9+1,FALSE),((VLOOKUP($A145,Escalations_General_Costs,+'I-6'!D$9+1,FALSE)+1)*(1+C145)-1))) -> 0.0596 | E145: =IF($K145="No",0,IF($J145="one-off",VLOOKUP($A145,Escalations_General_Costs,+'I-6'!E$9+1,FALSE),((VLOOKUP($A145,Escalations_General_Costs,+'I-6'!E$9+1,FALSE)+1)*(1+D145)-1))) -> 0.12275216 | F145: =IF($K145="No",0,IF($J145="one-off",VLOOKUP($A145,Escalations_General_Costs,+'I-6'!F$9+1,FALSE),((VLOOKUP($A145,Escalations_General_Costs,+'I-6'!F$9+1,FALSE)+1)*(1+E145)-1))) -> 0.1896681887 | G145: =IF($K145="No",0,IF($J145="one-off",VLOOKUP($A145,Escalations_General_Costs,+'I-6'!G$9+1,FALSE),((VLOOKUP($A145,Escalations_General_Costs,+'I-6'!G$9+1,FALSE)+1)*(1+F145)-1))) -> 0.2605724128 | H145: =IF($K145="No",0,IF($J145="one-off",VLOOKUP($A145,Escalations_General_Costs,+'I-6'!H$9+1,FALSE),((VLOOKUP($A145,Escalations_General_Costs,+'I-6'!H$9+1,FALSE)+1)*(1+G145)-1))) -> 0.3357025286 | I145: =IF($K145="No",0,IF($J145="one-off",VLOOKUP($A145,Escalations_General_Costs,+'I-6'!I$9+1,FALSE),((VLOOKUP($A145,Escalations_General_Costs,+'I-6'!I$9+1,FALSE)+1)*(1+H145)-1))) -> 0.4153103993 | J145: Cumulative | K145: Yes | N145: 0 | O145: 0 | P145: 0 | Q145: 0 | R145: 0 | S145: 0 | T145: 0
A146: End of Escalations - Note all escalations must be above this row. Do Not delete this row | N146: =SUM(N140:N145) -> 0 | O146: =SUM(O140:O145) -> 0 | P146: 0 | Q146: 0 | R146: 0 | S146: 0 | T146: 0
M147: Check | N147: =ROUND(N146-C167,3) -> 0 | O147: 0 | P147: 0 | Q147: 0 | R147: 0 | S147: 0 | T147: 0
A148: Total General Escalations to Apply (based on escalations selected above)
A149: Labour | C149: =PRODUCT(IF($B$140:$B$146=$A149,C$140:C$146+1))-IF(COUNTIF($B$140:$B$146,+$A149)=0,0,1) -> 0 | D149: =PRODUCT(IF($B$140:$B$146=$A149,D$140:D$146+1))-IF(COUNTIF($B$140:$B$146,+$A149)=0,0,1) -> 0.0166 | E149: =PRODUCT(IF($B$140:$B$146=$A149,E$140:E$146+1))-IF(COUNTIF($B$140:$B$146,+$A149)=0,0,1) -> 0.03841416814 | F149: =PRODUCT(IF($B$140:$B$146=$A149,F$140:F$146+1))-IF(COUNTIF($B$140:$B$146,+$A149)=0,0,1) -> 0.06069642395 | G149: =PRODUCT(IF($B$140:$B$146=$A149,G$140:G$146+1))-IF(COUNTIF($B$140:$B$146,+$A149)=0,0,1) -> 0.08470395618 | H149: =PRODUCT(IF($B$140:$B$146=$A149,H$140:H$146+1))-IF(COUNTIF($B$140:$B$146,+$A149)=0,0,1) -> 0.1092548688 | I149: =PRODUCT(IF($B$140:$B$146=$A149,I$140:I$146+1))-IF(COUNTIF($B$140:$B$146,+$A149)=0,0,1) -> 0.1343614604
A150: Materials | C150: =PRODUCT(IF($B$140:$B$146=$A150,C$140:C$146+1))-IF(COUNTIF($B$140:$B$146,+$A150)=0,0,1) -> 0 | D150: =PRODUCT(IF($B$140:$B$146=$A150,D$140:D$146+1))-IF(COUNTIF($B$140:$B$146,+$A150)=0,0,1) -> 0 | E150: =PRODUCT(IF($B$140:$B$146=$A150,E$140:E$146+1))-IF(COUNTIF($B$140:$B$146,+$A150)=0,0,1) -> 0 | F150: =PRODUCT(IF($B$140:$B$146=$A150,F$140:F$146+1))-IF(COUNTIF($B$140:$B$146,+$A150)=0,0,1) -> 0 | G150: =PRODUCT(IF($B$140:$B$146=$A150,G$140:G$146+1))-IF(COUNTIF($B$140:$B$146,+$A150)=0,0,1) -> 0 | H150: =PRODUCT(IF($B$140:$B$146=$A150,H$140:H$146+1))-IF(COUNTIF($B$140:$B$146,+$A150)=0,0,1) -> 0 | I150: =PRODUCT(IF($B$140:$B$146=$A150,I$140:I$146+1))-IF(COUNTIF($B$140:$B$146,+$A150)=0,0,1) -> 0
A151: Contracts | C151: =PRODUCT(IF($B$140:$B$146=$A151,C$140:C$146+1))-IF(COUNTIF($B$140:$B$146,+$A151)=0,0,1) -> 0 | D151: =PRODUCT(IF($B$140:$B$146=$A151,D$140:D$146+1))-IF(COUNTIF($B$140:$B$146,+$A151)=0,0,1) -> 0.001 | E151: =PRODUCT(IF($B$140:$B$146=$A151,E$140:E$146+1))-IF(COUNTIF($B$140:$B$146,+$A151)=0,0,1) -> 0.006005 | F151: =PRODUCT(IF($B$140:$B$146=$A151,F$140:F$146+1))-IF(COUNTIF($B$140:$B$146,+$A151)=0,0,1) -> 0.015059045 | G151: =PRODUCT(IF($B$140:$B$146=$A151,G$140:G$146+1))-IF(COUNTIF($B$140:$B$146,+$A151)=0,0,1) -> 0.02622469449 | H151: =PRODUCT(IF($B$140:$B$146=$A151,H$140:H$146+1))-IF(COUNTIF($B$140:$B$146,+$A151)=0,0,1) -> 0.04059184022 | I151: =PRODUCT(IF($B$140:$B$146=$A151,I$140:I$146+1))-IF(COUNTIF($B$140:$B$146,+$A151)=0,0,1) -> 0.05932249334
A152: Services Other | C152: =PRODUCT(IF($B$140:$B$146=$A152,C$140:C$146+1))-IF(COUNTIF($B$140:$B$146,+$A152)=0,0,1) -> 0 | D152: =PRODUCT(IF($B$140:$B$146=$A152,D$140:D$146+1))-IF(COUNTIF($B$140:$B$146,+$A152)=0,0,1) -> 0.001 | E152: =PRODUCT(IF($B$140:$B$146=$A152,E$140:E$146+1))-IF(COUNTIF($B$140:$B$146,+$A152)=0,0,1) -> 0.006005 | F152: =PRODUCT(IF($B$140:$B$146=$A152,F$140:F$146+1))-IF(COUNTIF($B$140:$B$146,+$A152)=0,0,1) -> 0.015059045 | G152: =PRODUCT(IF($B$140:$B$146=$A152,G$140:G$146+1))-IF(COUNTIF($B$140:$B$146,+$A152)=0,0,1) -> 0.02622469449 | H152: =PRODUCT(IF($B$140:$B$146=$A152,H$140:H$146+1))-IF(COUNTIF($B$140:$B$146,+$A152)=0,0,1) -> 0.04059184022 | I152: =PRODUCT(IF($B$140:$B$146=$A152,I$140:I$146+1))-IF(COUNTIF($B$140:$B$146,+$A152)=0,0,1) -> 0.05932249334
A153: Business Overheads | C153: =PRODUCT(IF($B$140:$B$146=$A153,C$140:C$146+1))-IF(COUNTIF($B$140:$B$146,+$A153)=0,0,1) -> 0 | D153: =PRODUCT(IF($B$140:$B$146=$A153,D$140:D$146+1))-IF(COUNTIF($B$140:$B$146,+$A153)=0,0,1) -> 0.0166 | E153: =PRODUCT(IF($B$140:$B$146=$A153,E$140:E$146+1))-IF(COUNTIF($B$140:$B$146,+$A153)=0,0,1) -> 0.03841416814 | F153: =PRODUCT(IF($B$140:$B$146=$A153,F$140:F$146+1))-IF(COUNTIF($B$140:$B$146,+$A153)=0,0,1) -> 0.06069642395 | G153: =PRODUCT(IF($B$140:$B$146=$A153,G$140:G$146+1))-IF(COUNTIF($B$140:$B$146,+$A153)=0,0,1) -> 0.08470395618 | H153: =PRODUCT(IF($B$140:$B$146=$A153,H$140:H$146+1))-IF(COUNTIF($B$140:$B$146,+$A153)=0,0,1) -> 0.1092548688 | I153: =PRODUCT(IF($B$140:$B$146=$A153,I$140:I$146+1))-IF(COUNTIF($B$140:$B$146,+$A153)=0,0,1) -> 0.1343614604
A154: Other | C154: =PRODUCT(IF($B$140:$B$146=$A154,C$140:C$146+1))-IF(COUNTIF($B$140:$B$146,+$A154)=0,0,1) -> 0 | D154: =PRODUCT(IF($B$140:$B$146=$A154,D$140:D$146+1))-IF(COUNTIF($B$140:$B$146,+$A154)=0,0,1) -> 0.0596 | E154: =PRODUCT(IF($B$140:$B$146=$A154,E$140:E$146+1))-IF(COUNTIF($B$140:$B$146,+$A154)=0,0,1) -> 0.12275216 | F154: =PRODUCT(IF($B$140:$B$146=$A154,F$140:F$146+1))-IF(COUNTIF($B$140:$B$146,+$A154)=0,0,1) -> 0.1896681887 | G154: =PRODUCT(IF($B$140:$B$146=$A154,G$140:G$146+1))-IF(COUNTIF($B$140:$B$146,+$A154)=0,0,1) -> 0.2605724128 | H154: =PRODUCT(IF($B$140:$B$146=$A154,H$140:H$146+1))-IF(COUNTIF($B$140:$B$146,+$A154)=0,0,1) -> 0.3357025286 | I154: =PRODUCT(IF($B$140:$B$146=$A154,I$140:I$146+1))-IF(COUNTIF($B$140:$B$146,+$A154)=0,0,1) -> 0.4153103993
A155: Product of Escalators by Category | C155: =PRODUCT(IF(C149:C154<>0,C149:C154+1))-IF(SUM(C149:C154)<>0,1,0) -> 0 | D155: =PRODUCT(IF(D149:D154<>0,D149:D154+1))-IF(SUM(D149:D154)<>0,1,0) -> 0.09726193985 | E155: =PRODUCT(IF(E149:E154<>0,E149:E154+1))-IF(SUM(E149:E154)<>0,1,0) -> 0.2252519088 | F155: =PRODUCT(IF(F149:F154<>0,F149:F154+1))-IF(SUM(F149:F154)<>0,1,0) -> 0.379083839 | G155: =PRODUCT(IF(G149:G154<>0,G149:G154+1))-IF(SUM(G149:G154)<>0,1,0) -> 0.5619789215 | H155: =PRODUCT(IF(H149:H154<>0,H149:H154+1))-IF(SUM(H149:H154)<>0,1,0) -> 0.7796445439 | I155: =PRODUCT(IF(I149:I154<>0,I149:I154+1))-IF(SUM(I149:I154)<>0,1,0) -> 1.04367114
A156: Product of All Escalators | C156: =PRODUCT(IF((C140:C146<>0),C140:C146+1))-IF(C140:C146<>0,1,0) -> 0 | D156: =PRODUCT(IF((D140:D146<>0),D140:D146+1))-IF(D140:D146<>0,1,0) -> 0.09726193985 | E156: =PRODUCT(IF((E140:E146<>0),E140:E146+1))-IF(E140:E146<>0,1,0) -> 0.2252519088 | F156: =PRODUCT(IF((F140:F146<>0),F140:F146+1))-IF(F140:F146<>0,1,0) -> 0.379083839 | G156: =PRODUCT(IF((G140:G146<>0),G140:G146+1))-IF(G140:G146<>0,1,0) -> 0.5619789215 | H156: =PRODUCT(IF((H140:H146<>0),H140:H146+1))-IF(H140:H146<>0,1,0) -> 0.7796445439 | I156: =PRODUCT(IF((I140:I146<>0),I140:I146+1))-IF(I140:I146<>0,1,0) -> 1.04367114
A157: Difference - should be Zero | C157: =ROUND(+C155-C156,4) -> 0 | D157: 0 | E157: 0 | F157: 0 | G157: 0 | H157: 0 | I157: 0 | J157: =IF(SUM(C157:I157)<>0,"Warning Check Escalations","OK") -> OK
A159: Dollar Impact of General Escalations
A160: Summary by Cost Category | C160: =LU_TemplateYearHeader2 -> 2013/14 | D160: 2014/15 | E160: 2015/16 | F160: 2016/17 | G160: 2017/18 | H160: 2018/19 | I160: 2019/20
A161: Labour | C161: =(+C30+C42)*(C$149) -> 0 | D161: 0 | E161: 0 | F161: 0 | G161: 0 | H161: 0 | I161: 0
A162: Materials | C162: =(+C31+C43)*(C$150) -> 0 | D162: 0 | E162: 0 | F162: 0 | G162: 0 | H162: 0 | I162: 0
A163: Contracts | C163: =(+C32+C44)*(C$151) -> 0 | D163: =(+D32+D44)*(D$151) -> 0 | E163: =(+E32+E44)*(E$151) -> 0 | F163: 0 | G163: 0 | H163: 0 | I163: 0
A164: Services Other | C164: =(+C33+C45)*(C$152) -> 0 | D164: =(+D33+D45)*(D$152) -> 0 | E164: =(+E33+E45)*(E$152) -> 0 | F164: 0 | G164: 0 | H164: 0 | I164: 0
A165: Business Overheads | C165: =(+C34+C46)*(C$153) -> 0 | D165: =(+D34+D46)*(D$153) -> 0 | E165: =(+E34+E46)*(E$153) -> 0 | F165: 0 | G165: 0 | H165: 0 | I165: 0
A166: Other | C166: =(+C35+C47)*(C$154) -> 0 | D166: 0 | E166: 0 | F166: 0 | G166: 0 | H166: 0 | I166: 0
A167: Dollar Impact of General Escalations | C167: =SUM(C161:C166) -> 0 | D167: 0 | E167: 0 | F167: 0 | G167: 0 | H167: 0 | I167: 0
A168: Average General Escalation % | C168: =IF((+C36+C48)<>0,+C167/(+C36+C48),0) -> 0 | D168: 0 | E168: 0 | F168: 0 | G168: 0 | H168: 0 | I168: 0
A172: Variations
A173: Total of all the Variation Templates
B174: =LU_TemplateYearHeader -> 2012/13 | C174: 2013/14 | D174: 2014/15 | E174: 2015/16 | F174: 2016/17 | G174: 2017/18 | H174: 2018/19 | I174: 2019/20
A175: Summary by Cost Category
A176: Labour | C176: =SUMIF($A$217:$A$227,$A176,C$217:C$227) -> 0 | D176: 0 | E176: 0 | F176: 0 | G176: 0 | H176: 0 | I176: 0
A177: Materials | C177: 0 | D177: 0 | E177: 0 | F177: 0 | G177: 0 | H177: 0 | I177: 0
A178: Contracts | C178: =SUMIF($A$217:$A$227,$A178,C$217:C$227) -> 0 | D178: 0 | E178: 0 | F178: 0 | G178: 0 | H178: 0 | I178: 0
A179: Services Other | C179: 0 | D179: 0 | E179: 0 | F179: 0 | G179: 0 | H179: 0 | I179: 0
A180: Business Overheads | C180: 0 | D180: 0 | E180: 0 | F180: 0 | G180: 0 | H180: 0 | I180: 0
A181: Other | C181: =SUMIF($A$217:$A$227,$A181,C$217:C$227) -> 0 | D181: 0 | E181: 0 | F181: 0 | G181: 0 | H181: 0 | I181: 0
A182: Total Variations | C182: =SUM(C176:C181) -> 0 | D182: 0 | E182: 0 | F182: 0 | G182: 0 | H182: 0 | I182: 0
A184: Variations Summary
A185: Summary of the Variation Templates | C185: Number of variations: | D185: =MAX(J210:J227) -> 1
B186: =LU_TemplateYearHeader -> 2012/13 | C186: 2013/14 | D186: 2014/15 | E186: 2015/16 | F186: 2016/17 | G186: 2017/18 | H186: 2018/19 | I186: 2019/20 | J186: No:
A187: =IF(ISNUMBER($J187),OFFSET($B$209,MATCH(+$J187,$J$210:$J$227,0),0),"") -> Total Variation | B187: =IF(ISNUMBER($J187),OFFSET(B$209,MATCH(+$J187,$J$210:$J$227,0)+11,0),"") -> 0 | C187: 0 | D187: 0 | E187: 0 | F187: 0 | G187: 0 | H187: 0 | I187: 0 | J187: =IF($D$185>0,1,"") -> 1
J188: =IF(J187<$D$185,J187+1,"") -> 
J189: =IF(J188<$D$185,J188+1,"") -> 
J197: =IF(J196<$D$185,J196+1,"") -> 
J198: =IF(J197<$D$185,J197+1,"") -> 
J199: =IF(J198<$D$185,J198+1,"") -> 
J200: =IF(J199<$D$185,J199+1,"") -> 
J201: =IF(J200<$D$185,J200+1,"") -> 
A202: Total Variations | B202: =SUM(B187:B201) -> 0 | C202: =SUM(C187:C201) -> 0 | D202: 0 | E202: 0 | F202: 0 | G202: 0 | H202: 0 | I202: 0
A204: Variation Templates
A205: Variations are input below, with one Variation Template to be completed for each variation.
A206: Click on the "Insert New Variation" button to add a new template:
A207: Variations to be input in Real 2013 dollars (ie without escalations) . Escalations are calculated separately on all expenditure, including variations.
J209: Var. No:
A210: Variation Title | B210: Total Variation | J210: 1
A211: Description
A212: Source of data. (Name, date, location)
A213: Version of Data
B215: =LU_TemplateYearHeader -> 2012/13 | C215: 2013/14 | D215: 2014/15 | E215: 2015/16 | F215: 2016/17 | G215: 2017/18 | H215: 2018/19 | I215: 2019/20
A216: Summary by Cost Category
A217: Labour
A218: Materials
A219: Contracts
A220: Services Other
A221: Business Overheads
A222: Other
A223: Total of this variation | C223: =SUM(C217:C222) -> 0 | D223: 0 | E223: 0 | F223: 0 | G223: 0 | H223: 0 | I223: 0
A227: End of Variations - Note all variations must be above this row. Do Not delete this row
A232: Charts
A234: Chart Data - Historic Expenditure | B234: =LU_TemplateYearHeader3 -> 2005/06 | C234: 2006/07 | D234: 2007/08 | E234: 2008/09 | F234: 2009/10 | G234: 2010/11 | H234: 2011/12
A235: Historic Expenditure | B235: =OFFSET(List_CapexStart,MATCH($K$1,'I-4 History'!$A$6:$A$282)+6,+'I-4 History'!E5) -> 0 | C235: =OFFSET(List_CapexStart,MATCH($K$1,'I-4 History'!$A$6:$A$282)+6,+'I-4 History'!F5) -> 0 | D235: =OFFSET(List_CapexStart,MATCH($K$1,'I-4 History'!$A$6:$A$282)+6,+'I-4 History'!G5) -> 0 | E235: =OFFSET(List_CapexStart,MATCH($K$1,'I-4 History'!$A$6:$A$282)+6,+'I-4 History'!H5) -> 0 | F235: =OFFSET(List_CapexStart,MATCH($K$1,'I-4 History'!$A$6:$A$282)+6,+'I-4 History'!I5) -> 0 | G235: =OFFSET(List_CapexStart,MATCH($K$1,'I-4 History'!$A$6:$A$282)+6,+'I-4 History'!J5) -> 0 | H235: =OFFSET(List_CapexStart,MATCH($K$1,'I-4 History'!$A$6:$A$282)+6,+'I-4 History'!K5) -> 0
A236: Chart Data - Base Year+Planned | B236: =LU_TemplateYearHeader -> 2012/13 | C236: 2013/14 | D236: 2014/15 | E236: 2015/16 | F236: 2016/17 | G236: 2017/18 | H236: 2018/19 | I236: 2019/20
A237: Baseline Expenditure | B237: =+B14 -> 0 | C237: 0 | D237: 0 | E237: 0 | F237: 0 | G237: 0 | H237: 0 | I237: 0
A238: Total with Variations | B238: =+B36 -> 0 | C238: 0 | D238: 0 | E238: 0 | F238: 0 | G238: 0 | H238: 0 | I238: 0
A239: Total with Specific Escalations | B239: =+B36+B48 -> 0 | C239: 0 | D239: 0 | E239: 0 | F239: 0 | G239: 0 | H239: 0 | I239: 0
A240: Total with All Escalations | B240: =+B70 -> 0 | C240: 0 | D240: 0 | E240: 0 | F240: 0 | G240: 0 | H240: 0 | I240: 0

Sheet C-5 (hidden)
A1: Capital Expenditure | I1: =LU_TemplateDollarDenomination -> $'M Dec 2013 | J1: Sheet Number: | K1: 5
A2: Costs Category : | B2: =OFFSET(List_CapexCategoriesStart,+$K$1,1) -> Spare - Not in Use
A3: Sign-off : | B3: =OFFSET(List_CapexCategoriesStart,+$K$1,2) -> N/A | E3: Version of Data: | H3: Dated:
B4: =LU_TemplateYearHeader -> 2012/13 | C4: 2013/14 | D4: 2014/15 | E4: 2015/16 | F4: 2016/17 | G4: 2017/18 | H4: 2018/19 | I4: 2019/20 | J4: Notes & checks
A5: A. Baseline Expenditure, based on:
A7: Summary by Cost Category
A8: Labour | B8: =OFFSET(List_CapexStart,MATCH($K$1,'I-4 History'!$A$6:$A$256)+2,0) -> 0 | C8: =OFFSET(Future_CapexStart,MATCH($K$1,'I-5 Future'!$A$6:$A$284)+2,+'I-5 Future'!D$5) -> 0 | D8: =OFFSET(Future_CapexStart,MATCH($K$1,'I-5 Future'!$A$6:$A$284)+2,+'I-5 Future'!E$5) -> 0 | E8: =OFFSET(Future_CapexStart,MATCH($K$1,'I-5 Future'!$A$6:$A$284)+2,+'I-5 Future'!F$5) -> 0 | F8: =OFFSET(Future_CapexStart,MATCH($K$1,'I-5 Future'!$A$6:$A$284)+2,+'I-5 Future'!G$5) -> 0 | G8: =OFFSET(Future_CapexStart,MATCH($K$1,'I-5 Future'!$A$6:$A$284)+2,+'I-5 Future'!H$5) -> 0 | H8: =OFFSET(Future_CapexStart,MATCH($K$1,'I-5 Future'!$A$6:$A$284)+2,+'I-5 Future'!I$5) -> 0 | I8: =OFFSET(Future_CapexStart,MATCH($K$1,'I-5 Future'!$A$6:$A$284)+2,+'I-5 Future'!J$5) -> 0
A9: Materials | B9: =OFFSET(List_CapexStart,MATCH($K$1,'I-4 History'!$A$6:$A$256)+3,0) -> 0 | C9: =OFFSET(Future_CapexStart,MATCH($K$1,'I-5 Future'!$A$6:$A$284)+3,+'I-5 Future'!D$5) -> 0 | D9: =OFFSET(Future_CapexStart,MATCH($K$1,'I-5 Future'!$A$6:$A$284)+3,+'I-5 Future'!E$5) -> 0 | E9: =OFFSET(Future_CapexStart,MATCH($K$1,'I-5 Future'!$A$6:$A$284)+3,+'I-5 Future'!F$5) -> 0 | F9: =OFFSET(Future_CapexStart,MATCH($K$1,'I-5 Future'!$A$6:$A$284)+3,+'I-5 Future'!G$5) -> 0 | G9: =OFFSET(Future_CapexStart,MATCH($K$1,'I-5 Future'!$A$6:$A$284)+3,+'I-5 Future'!H$5) -> 0 | H9: =OFFSET(Future_CapexStart,MATCH($K$1,'I-5 Future'!$A$6:$A$284)+3,+'I-5 Future'!I$5) -> 0 | I9: =OFFSET(Future_CapexStart,MATCH($K$1,'I-5 Future'!$A$6:$A$284)+3,+'I-5 Future'!J$5) -> 0
A10: Contracts | B10: =OFFSET(List_CapexStart,MATCH($K$1,'I-4 History'!$A$6:$A$256)+4,0) -> 0 | C10: =OFFSET(Future_CapexStart,MATCH($K$1,'I-5 Future'!$A$6:$A$284)+4,+'I-5 Future'!D$5) -> 0 | D10: =OFFSET(Future_CapexStart,MATCH($K$1,'I-5 Future'!$A$6:$A$284)+4,+'I-5 Future'!E$5) -> 0 | E10: =OFFSET(Future_CapexStart,MATCH($K$1,'I-5 Future'!$A$6:$A$284)+4,+'I-5 Future'!F$5) -> 0 | F10: =OFFSET(Future_CapexStart,MATCH($K$1,'I-5 Future'!$A$6:$A$284)+4,+'I-5 Future'!G$5) -> 0 | G10: =OFFSET(Future_CapexStart,MATCH($K$1,'I-5 Future'!$A$6:$A$284)+4,+'I-5 Future'!H$5) -> 0 | H10: =OFFSET(Future_CapexStart,MATCH($K$1,'I-5 Future'!$A$6:$A$284)+4,+'I-5 Future'!I$5) -> 0 | I10: =OFFSET(Future_CapexStart,MATCH($K$1,'I-5 Future'!$A$6:$A$284)+4,+'I-5 Future'!J$5) -> 0
A11: Services Other | B11: =OFFSET(List_CapexStart,MATCH($K$1,'I-4 History'!$A$6:$A$256)+5,0) -> 0 | C11: =OFFSET(Future_CapexStart,MATCH($K$1,'I-5 Future'!$A$6:$A$284)+5,+'I-5 Future'!D$5) -> 0 | D11: =OFFSET(Future_CapexStart,MATCH($K$1,'I-5 Future'!$A$6:$A$284)+5,+'I-5 Future'!E$5) -> 0 | E11: =OFFSET(Future_CapexStart,MATCH($K$1,'I-5 Future'!$A$6:$A$284)+5,+'I-5 Future'!F$5) -> 0 | F11: =OFFSET(Future_CapexStart,MATCH($K$1,'I-5 Future'!$A$6:$A$284)+5,+'I-5 Future'!G$5) -> 0 | G11: =OFFSET(Future_CapexStart,MATCH($K$1,'I-5 Future'!$A$6:$A$284)+5,+'I-5 Future'!H$5) -> 0 | H11: =OFFSET(Future_CapexStart,MATCH($K$1,'I-5 Future'!$A$6:$A$284)+5,+'I-5 Future'!I$5) -> 0 | I11: =OFFSET(Future_CapexStart,MATCH($K$1,'I-5 Future'!$A$6:$A$284)+5,+'I-5 Future'!J$5) -> 0
A12: Business Overheads | B12: =OFFSET(List_CapexStart,MATCH($K$1,'I-4 History'!$A$6:$A$256)+6,0) -> 0 | C12: =OFFSET(Future_CapexStart,MATCH($K$1,'I-5 Future'!$A$6:$A$284)+6,+'I-5 Future'!D$5) -> 0 | D12: =OFFSET(Future_CapexStart,MATCH($K$1,'I-5 Future'!$A$6:$A$284)+6,+'I-5 Future'!E$5) -> 0 | E12: =OFFSET(Future_CapexStart,MATCH($K$1,'I-5 Future'!$A$6:$A$284)+6,+'I-5 Future'!F$5) -> 0 | F12: =OFFSET(Future_CapexStart,MATCH($K$1,'I-5 Future'!$A$6:$A$284)+6,+'I-5 Future'!G$5) -> 0 | G12: =OFFSET(Future_CapexStart,MATCH($K$1,'I-5 Future'!$A$6:$A$284)+6,+'I-5 Future'!H$5) -> 0 | H12: =OFFSET(Future_CapexStart,MATCH($K$1,'I-5 Future'!$A$6:$A$284)+6,+'I-5 Future'!I$5) -> 0 | I12: =OFFSET(Future_CapexStart,MATCH($K$1,'I-5 Future'!$A$6:$A$284)+6,+'I-5 Future'!J$5) -> 0
A13: Other | B13: =OFFSET(List_CapexStart,MATCH($K$1,'I-4 History'!$A$6:$A$256)+7,0) -> 0 | C13: =OFFSET(Future_CapexStart,MATCH($K$1,'I-5 Future'!$A$6:$A$284)+7,+'I-5 Future'!D$5) -> 0 | D13: =OFFSET(Future_CapexStart,MATCH($K$1,'I-5 Future'!$A$6:$A$284)+7,+'I-5 Future'!E$5) -> 0 | E13: =OFFSET(Future_CapexStart,MATCH($K$1,'I-5 Future'!$A$6:$A$284)+7,+'I-5 Future'!F$5) -> 0 | F13: =OFFSET(Future_CapexStart,MATCH($K$1,'I-5 Future'!$A$6:$A$284)+7,+'I-5 Future'!G$5) -> 0 | G13: =OFFSET(Future_CapexStart,MATCH($K$1,'I-5 Future'!$A$6:$A$284)+7,+'I-5 Future'!H$5) -> 0 | H13: =OFFSET(Future_CapexStart,MATCH($K$1,'I-5 Future'!$A$6:$A$284)+7,+'I-5 Future'!I$5) -> 0 | I13: =OFFSET(Future_CapexStart,MATCH($K$1,'I-5 Future'!$A$6:$A$284)+7,+'I-5 Future'!J$5) -> 0
A14: Baseline Expenditure | B14: =SUM(B8:B13) -> 0 | C14: 0 | D14: 0 | E14: 0 | F14: 0 | G14: 0 | H14: 0 | I14: 0
A16: B. Variations (as per calculations on page 3)
A18: Summary by Cost Category
A19: Labour | C19: =+C176 -> 0 | D19: 0 | E19: 0 | F19: 0 | G19: 0 | H19: 0 | I19: 0
A20: Materials | C20: 0 | D20: 0 | E20: 0 | F20: 0 | G20: 0 | H20: 0 | I20: 0
A21: Contracts | C21: =+C178 -> 0 | D21: 0 | E21: 0 | F21: 0 | G21: 0 | H21: 0 | I21: 0
A22: Services Other | C22: =+C179 -> 0 | D22: 0 | E22: 0 | F22: 0 | G22: 0 | H22: 0 | I22: 0
A23: Business Overheads | C23: =+C180 -> 0 | D23: 0 | E23: 0 | F23: 0 | G23: 0 | H23: 0 | I23: 0
A24: Other | C24: =+C181 -> 0 | D24: 0 | E24: 0 | F24: 0 | G24: 0 | H24: 0 | I24: 0
A25: Variations | C25: =SUM(C19:C24) -> 0 | D25: 0 | E25: 0 | F25: 0 | G25: 0 | H25: 0 | I25: 0 | J25: =IF(ROUND(SUM(C182:I182)-SUM(B25:I25),2)<>0,"Warning Check Totals","OK") -> OK
A27: Total Base Expenditure + Variations, Before Escalations
A29: Summary by Cost Category
A30: Labour | B30: =+'C-5'!B8+'C-5'!B19 -> 0 | C30: =+'C-5'!C8+'C-5'!C19 -> 0 | D30: =+'C-5'!D8+'C-5'!D19 -> 0 | E30: =+'C-5'!E8+'C-5'!E19 -> 0 | F30: =+'C-5'!F8+'C-5'!F19 -> 0 | G30: =+'C-5'!G8+'C-5'!G19 -> 0 | H30: =+'C-5'!H8+'C-5'!H19 -> 0 | I30: =+'C-5'!I8+'C-5'!I19 -> 0
A31: Materials | B31: =+'C-5'!B9+'C-5'!B20 -> 0 | C31: =+'C-5'!C9+'C-5'!C20 -> 0 | D31: =+'C-5'!D9+'C-5'!D20 -> 0 | E31: =+'C-5'!E9+'C-5'!E20 -> 0 | F31: =+'C-5'!F9+'C-5'!F20 -> 0 | G31: =+'C-5'!G9+'C-5'!G20 -> 0 | H31: =+'C-5'!H9+'C-5'!H20 -> 0 | I31: =+'C-5'!I9+'C-5'!I20 -> 0
A32: Contracts | B32: =+'C-5'!B10+'C-5'!B21 -> 0 | C32: =+'C-5'!C10+'C-5'!C21 -> 0 | D32: =+'C-5'!D10+'C-5'!D21 -> 0 | E32: =+'C-5'!E10+'C-5'!E21 -> 0 | F32: =+'C-5'!F10+'C-5'!F21 -> 0 | G32: =+'C-5'!G10+'C-5'!G21 -> 0 | H32: =+'C-5'!H10+'C-5'!H21 -> 0 | I32: =+'C-5'!I10+'C-5'!I21 -> 0
A33: Services Other | B33: =+'C-5'!B11+'C-5'!B22 -> 0 | C33: =+'C-5'!C11+'C-5'!C22 -> 0 | D33: =+'C-5'!D11+'C-5'!D22 -> 0 | E33: =+'C-5'!E11+'C-5'!E22 -> 0 | F33: =+'C-5'!F11+'C-5'!F22 -> 0 | G33: =+'C-5'!G11+'C-5'!G22 -> 0 | H33: =+'C-5'!H11+'C-5'!H22 -> 0 | I33: =+'C-5'!I11+'C-5'!I22 -> 0
A34: Business Overheads | B34: =+'C-5'!B12+'C-5'!B23 -> 0 | C34: =+'C-5'!C12+'C-5'!C23 -> 0 | D34: =+'C-5'!D12+'C-5'!D23 -> 0 | E34: =+'C-5'!E12+'C-5'!E23 -> 0 | F34: =+'C-5'!F12+'C-5'!F23 -> 0 | G34: =+'C-5'!G12+'C-5'!G23 -> 0 | H34: =+'C-5'!H12+'C-5'!H23 -> 0 | I34: =+'C-5'!I12+'C-5'!I23 -> 0
A35: Other | B35: =+'C-5'!B13+'C-5'!B24 -> 0 | C35: =+'C-5'!C13+'C-5'!C24 -> 0 | D35: =+'C-5'!D13+'C-5'!D24 -> 0 | E35: =+'C-5'!E13+'C-5'!E24 -> 0 | F35: =+'C-5'!F13+'C-5'!F24 -> 0 | G35: =+'C-5'!G13+'C-5'!G24 -> 0 | H35: =+'C-5'!H13+'C-5'!H24 -> 0 | I35: =+'C-5'!I13+'C-5'!I24 -> 0
A36: Expenditure Before Escalations | B36: =SUM(B30:B35) -> 0 | C36: 0 | D36: 0 | E36: 0 | F36: 0 | G36: 0 | H36: 0 | I36: 0 | J36: =IF(ROUND(SUM(B14:I14)+SUM(B25:I25)-SUM(B36:I36),2)<>0,"Warning Check Totals","OK") -> OK
A39: C. Specific Escalations (as per calculations on page 2)
A41: Summary by Cost Category
A42: Labour | C42: =+C125 -> 0 | D42: 0 | E42: 0 | F42: 0 | G42: 0 | H42: 0 | I42: 0
A43: Materials | C43: 0 | D43: 0 | E43: 0 | F43: 0 | G43: 0 | H43: 0 | I43: 0
A44: Contracts | C44: =+C127 -> 0 | D44: 0 | E44: 0 | F44: 0 | G44: 0 | H44: 0 | I44: 0
A45: Services Other | C45: =+C128 -> 0 | D45: 0 | E45: 0 | F45: 0 | G45: 0 | H45: 0 | I45: 0
A46: Business Overheads | C46: =+C129 -> 0 | D46: 0 | E46: 0 | F46: 0 | G46: 0 | H46: 0 | I46: 0
A47: Other | C47: =+C130 -> 0 | D47: 0 | E47: 0 | F47: 0 | G47: 0 | H47: 0 | I47: 0
A48: Specific Escalations | C48: =SUM(C42:C47) -> 0 | D48: 0 | E48: 0 | F48: 0 | G48: 0 | H48: 0 | I48: 0 | J48: =IF(ROUND(SUM(B48:I48)-SUM(B131:I131),2)<>0,"Warning Check Escalations","OK") -> OK
A50: D. General Escalations (as per calculations on page 2)
A52: Summary by Cost Category
A53: Labour | C53: =+C161 -> 0 | D53: 0 | E53: 0 | F53: 0 | G53: 0 | H53: 0 | I53: 0
A54: Materials | C54: 0 | D54: 0 | E54: 0 | F54: 0 | G54: 0 | H54: 0 | I54: 0
A55: Contracts | C55: =+C163 -> 0 | D55: 0 | E55: 0 | F55: 0 | G55: 0 | H55: 0 | I55: 0
A56: Services Other | C56: =+C164 -> 0 | D56: 0 | E56: 0 | F56: 0 | G56: 0 | H56: 0 | I56: 0
A57: Business Overheads | C57: =+C165 -> 0 | D57: 0 | E57: 0 | F57: 0 | G57: 0 | H57: 0 | I57: 0
A58: Other | C58: =+C166 -> 0 | D58: 0 | E58: 0 | F58: 0 | G58: 0 | H58: 0 | I58: 0
A59: General Escalations | C59: =SUM(C53:C58) -> 0 | D59: 0 | E59: 0 | F59: 0 | G59: 0 | H59: 0 | I59: 0 | J59: =IF(ROUND(SUM(B59:I59)-SUM(B167:I167),2)<>0,"Warning Check Escalations","OK") -> OK
A61: Total Expenditure | B61: =LU_TemplateYearHeader -> 2012/13 | C61: 2013/14 | D61: 2014/15 | E61: 2015/16 | F61: 2016/17 | G61: 2017/18 | H61: 2018/19 | I61: 2019/20
A63: Summary by Cost Category
A64: Labour | B64: =+B42+B30+B53 -> 0 | C64: 0 | D64: 0 | E64: 0 | F64: 0 | G64: 0 | H64: 0 | I64: 0
A65: Materials | B65: 0 | C65: 0 | D65: 0 | E65: 0 | F65: 0 | G65: 0 | H65: 0 | I65: 0
A66: Contracts | B66: =+B44+B32+B55 -> 0 | C66: 0 | D66: 0 | E66: 0 | F66: 0 | G66: 0 | H66: 0 | I66: 0
A67: Services Other | B67: =+B45+B33+B56 -> 0 | C67: 0 | D67: 0 | E67: 0 | F67: 0 | G67: 0 | H67: 0 | I67: 0
A68: Business Overheads | B68: =+B46+B34+B57 -> 0 | C68: 0 | D68: 0 | E68: 0 | F68: 0 | G68: 0 | H68: 0 | I68: 0
A69: Other | B69: =+B47+B35+B58 -> 0 | C69: 0 | D69: 0 | E69: 0 | F69: 0 | G69: 0 | H69: 0 | I69: 0
A70: Total Expenditure | B70: =SUM(B64:B69) -> 0 | C70: 0 | D70: 0 | E70: 0 | F70: 0 | G70: 0 | H70: 0 | I70: 0 | J70: =IF(ROUND(SUM(B48:I48)+SUM(B36:I36)+SUM(B59:I59)-SUM(B70:I70),3)<>0,"Warning Check Totals","OK") -> OK
A72: Expenditure Categorisation | AA72: Base costs - Expenditure Categorisation
A73: Allocation of Capital Expenditure to Asset Categories | N73: Expenditure Category Proportions | AA73: On pro-rata basis
D74: =+'Ref-1'!P39 -> 2014/15 | E74: =+'Ref-1'!Q39 -> 2015/16 | F74: =+'Ref-1'!R39 -> 2016/17 | G74: =+'Ref-1'!S39 -> 2017/18 | H74: =+'Ref-1'!T39 -> 2018/19 | I74: =+'Ref-1'!U39 -> 2019/20 | N74: =E74 -> 2015/16 | O74: =F74 -> 2016/17 | P74: 2017/18 | Q74: 2018/19 | R74: 2019/20
A75: ='I-2'!C7 -> ACS Replacements | E75: =+E$70*N75 -> 0 | F75: =+F$70*O75 -> 0 | G75: 0 | H75: 0 | I75: 0 | N75: 0 | O75: 0 | P75: 0 | Q75: 0 | R75: 0
A76: ='I-2'!C8 -> ACS IT Infrastructure | E76: =+E$70*N76 -> 0 | F76: 0 | G76: 0 | H76: 0 | I76: 0 | N76: 0 | O76: 0 | P76: 0 | Q76: 0 | R76: 0
A77: ='I-2'!C9 -> Superannuation | E77: 0 | F77: 0 | G77: 0 | H77: 0 | I77: 0 | N77: 0 | O77: 0 | P77: 0 | Q77: 0 | R77: 0
A78: ='I-2'!C10 -> Equity Raising Costs | E78: 0 | F78: 0 | G78: 0 | H78: 0 | I78: 0 | N78: 0 | O78: 0 | P78: 0 | Q78: 0 | R78: 0
A79: ='I-2'!C11 -> Spare - Not in Use | E79: 0 | F79: 0 | G79: 0 | H79: 0 | I79: 0 | N79: 0 | O79: 0 | P79: 0 | Q79: 0 | R79: 0
A80: ='I-2'!C12 -> Spare - Not in Use | E80: 0 | F80: 0 | G80: 0 | H80: 0 | I80: 0 | N80: 0 | O80: 0 | P80: 0 | Q80: 0 | R80: 0
A81: ='I-2'!C13 -> Spare - Not in Use | E81: =+E$70*N81 -> 0 | F81: 0 | G81: 0 | H81: 0 | I81: 0 | N81: 0 | O81: 0 | P81: 0 | Q81: 0 | R81: 0
A82: ='I-2'!C14 -> Spare - Not in Use | E82: 0 | F82: 0 | G82: 0 | H82: 0 | I82: 0 | N82: 0 | O82: 0 | P82: 0 | Q82: 0 | R82: 0
A83: ='I-2'!C15 -> Spare - Not in Use | E83: 0 | F83: 0 | G83: 0 | H83: 0 | I83: 0 | N83: 0 | O83: 0 | P83: 0 | Q83: 0 | R83: 0
A84: ='I-2'!C16 -> Spare - Not in Use | E84: 0 | F84: 0 | G84: 0 | H84: 0 | I84: 0 | N84: 0 | O84: 0 | P84: 0 | Q84: 0 | R84: 0
A85: ='I-2'!C17 -> Spare - Not in Use | E85: 0 | F85: 0 | G85: 0 | H85: 0 | I85: 0 | N85: 0 | O85: 0 | P85: 0 | Q85: 0 | R85: 0
A86: ='I-2'!C18 -> Spare - Not in Use | E86: 0 | F86: 0 | G86: 0 | H86: 0 | I86: 0 | N86: 0 | O86: 0 | P86: 0 | Q86: 0 | R86: 0
A87: ='I-2'!C19 -> Spare - Not in Use | E87: 0 | F87: 0 | G87: 0 | H87: 0 | I87: 0 | N87: 0 | O87: 0 | P87: 0 | Q87: 0 | R87: 0
A88: ='I-2'!C20 -> Spare - Not in Use | E88: 0 | F88: 0 | G88: 0 | H88: 0 | I88: 0 | N88: 0 | O88: 0 | P88: 0 | Q88: 0 | R88: 0 | AA88: =+E88*E$14/E$36 ->  | AB88: =+F88*F$14/F$36 ->  | AC88: =+G88*G$14/G$36 ->  | AD88: =+H88*H$14/H$36 ->  | AE88: =+I88*I$14/I$36 -> 
A89: ='I-2'!C21 -> Spare - Not in Use | E89: 0 | F89: 0 | G89: 0 | H89: 0 | I89: 0 | N89: 0 | O89: 0 | P89: 0 | Q89: 0 | R89: 0
A90: ='I-2'!C22 -> Spare - Not in Use | E90: 0 | F90: 0 | G90: 0 | H90: 0 | I90: 0 | N90: 0 | O90: 0 | P90: 0 | Q90: 0 | R90: 0
A91: ='I-2'!C23 -> Spare - Not in Use | E91: 0 | F91: 0 | G91: 0 | H91: 0 | I91: 0 | N91: 0 | O91: 0 | P91: 0 | Q91: 0 | R91: 0
A92: ='I-2'!C24 -> Spare - Not in Use | E92: 0 | F92: 0 | G92: 0 | H92: 0 | I92: 0 | N92: 0 | O92: 0 | P92: 0 | Q92: 0 | R92: 0
A93: ='I-2'!C25 -> Spare - Not in Use | E93: 0 | F93: 0 | G93: 0 | H93: 0 | I93: 0 | N93: 0 | O93: 0 | P93: 0 | Q93: 0 | R93: 0
A94: ='I-2'!C26 -> Spare - Not in Use | E94: 0 | F94: 0 | G94: 0 | H94: 0 | I94: 0 | N94: 0 | O94: 0 | P94: 0 | Q94: 0 | R94: 0
A95: ='I-2'!C27 -> Spare - Not in Use | E95: 0 | F95: 0 | G95: 0 | H95: 0 | I95: 0 | N95: 0 | O95: 0 | P95: 0 | Q95: 0 | R95: 0
A96: ='I-2'!C28 -> Spare - Not in Use | E96: 0 | F96: 0 | G96: 0 | H96: 0 | I96: 0 | N96: 0 | O96: 0 | P96: 0 | Q96: 0 | R96: 0
A97: ='I-2'!C29 -> Spare - Not in Use | E97: 0 | F97: 0 | G97: 0 | H97: 0 | I97: 0 | N97: 0 | O97: 0 | P97: 0 | Q97: 0 | R97: 0
A98: ='I-2'!C30 -> Spare - Not in Use
A99: ='I-2'!C31 -> Spare - Not in Use
A100: ='I-2'!C32 -> Spare - Not in Use
A101: Total Expenditure | B101: =SUM(B75:B100) -> 0 | C101: 0 | D101: 0 | E101: 0 | F101: 0 | G101: 0 | H101: 0 | I101: 0 | O101: Check | P101: =E101-E70 -> 0 | Q101: =F101-F70 -> 0 | R101: 0 | S101: 0 | T101: 0 | AA101: =SUM(AA75:AA100) -> 
A103: Specific Escalation Calculations | C103: 2 | D103: =+C103+1 -> 3 | E103: 4 | F103: 5 | G103: 6 | H103: 7 | I103: 8 | J103: Escalation | K103: Escalation
A104: Select the specific escalations to apply for this expenditure category and the cost categories to which they relate: | J104: Type | K104: Active? | N104: Dollar Impact of Each Escalation (uncompounded with other specific escalations of the same cost category)
A105: Important - if there are not enough rows, copy and insert an entire row with the escalation formulas, not just the visible cells | N105: =LU_TemplateYearHeader2 -> 2013/14 | O105: 2014/15 | P105: 2015/16 | Q105: 2016/17 | R105: 2017/18 | S105: 2018/19 | T105: 2019/20
A106: Specific Escalations | B106: Cost Category | C106: =LU_TemplateYearHeader2 -> 2013/14 | D106: 2014/15 | E106: 2015/16 | F106: 2016/17 | G106: 2017/18 | H106: 2018/19 | I106: 2019/20
C107: =IF($K107="No",0,VLOOKUP($A107,Escalations_Specific_Costs,+C$103,FALSE)) -> 0 | D107: =IF($K107="No",0,IF($J107="one-off",VLOOKUP($A107,Escalations_Specific_Costs,+D$103,FALSE),(VLOOKUP($A107,Escalations_Specific_Costs,+D$103,FALSE)+1)*(1+C107)-1)) -> 0 | E107: 0 | F107: 0 | G107: 0 | H107: 0 | I107: 0 | J107: =IF(ISNA(VLOOKUP($A107,Escalations_Specific_Costs,+I$103+3,FALSE)),0,VLOOKUP($A107,Escalations_Specific_Costs,+I$103+3,FALSE)) -> 0 | K107: =IF(ISNA(VLOOKUP($A107,Escalations_Specific_Costs,1,FALSE)),"No","Yes") -> No | N107: =IF($B107<>0,(+VLOOKUP($B107,$A$30:$I$35,3,FALSE))*(C107),0) -> 0 | O107: =IF($B107<>0,(+VLOOKUP($B107,$A$30:$I$35,4,FALSE))*(D107),0) -> 0 | P107: =IF($B107<>0,(+VLOOKUP($B107,$A$30:$I$35,5,FALSE))*(E107),0) -> 0 | Q107: =IF($B107<>0,(+VLOOKUP($B107,$A$30:$I$35,6,FALSE))*(F107),0) -> 0 | R107: =IF($B107<>0,(+VLOOKUP($B107,$A$30:$I$35,7,FALSE))*(G107),0) -> 0 | S107: =IF($B107<>0,(+VLOOKUP($B107,$A$30:$I$35,8,FALSE))*(H107),0) -> 0 | T107: =IF($B107<>0,(+VLOOKUP($B107,$A$30:$I$35,9,FALSE))*(I107),0) -> 0
C108: =IF($K108="No",0,VLOOKUP($A108,Escalations_Specific_Costs,+C$103,FALSE)) -> 0 | D108: 0 | E108: 0 | F108: 0 | G108: 0 | H108: 0 | I108: 0 | J108: =IF(ISNA(VLOOKUP($A108,Escalations_Specific_Costs,+I$103+3,FALSE)),0,VLOOKUP($A108,Escalations_Specific_Costs,+I$103+3,FALSE)) -> 0 | K108: =IF(ISNA(VLOOKUP($A108,Escalations_Specific_Costs,1,FALSE)),"No","Yes") -> No | N108: =IF($B108<>0,(+VLOOKUP($B108,$A$30:$I$35,3,FALSE))*(C108),0) -> 0 | O108: =IF($B108<>0,(+VLOOKUP($B108,$A$30:$I$35,4,FALSE))*(D108),0) -> 0 | P108: =IF($B108<>0,(+VLOOKUP($B108,$A$30:$I$35,5,FALSE))*(E108),0) -> 0 | Q108: =IF($B108<>0,(+VLOOKUP($B108,$A$30:$I$35,6,FALSE))*(F108),0) -> 0 | R108: =IF($B108<>0,(+VLOOKUP($B108,$A$30:$I$35,7,FALSE))*(G108),0) -> 0 | S108: =IF($B108<>0,(+VLOOKUP($B108,$A$30:$I$35,8,FALSE))*(H108),0) -> 0 | T108: =IF($B108<>0,(+VLOOKUP($B108,$A$30:$I$35,9,FALSE))*(I108),0) -> 0
C109: =IF($K109="No",0,VLOOKUP($A109,Escalations_Specific_Costs,+C$103,FALSE)) -> 0 | D109: 0 | E109: 0 | F109: 0 | G109: 0 | H109: 0 | I109: 0 | J109: =IF(ISNA(VLOOKUP($A109,Escalations_Specific_Costs,+I$103+3,FALSE)),0,VLOOKUP($A109,Escalations_Specific_Costs,+I$103+3,FALSE)) -> 0 | K109: =IF(ISNA(VLOOKUP($A109,Escalations_Specific_Costs,1,FALSE)),"No","Yes") -> No | N109: =IF($B109<>0,(+VLOOKUP($B109,$A$30:$I$35,3,FALSE))*(C109),0) -> 0 | O109: =IF($B109<>0,(+VLOOKUP($B109,$A$30:$I$35,4,FALSE))*(D109),0) -> 0 | P109: =IF($B109<>0,(+VLOOKUP($B109,$A$30:$I$35,5,FALSE))*(E109),0) -> 0 | Q109: =IF($B109<>0,(+VLOOKUP($B109,$A$30:$I$35,6,FALSE))*(F109),0) -> 0 | R109: =IF($B109<>0,(+VLOOKUP($B109,$A$30:$I$35,7,FALSE))*(G109),0) -> 0 | S109: =IF($B109<>0,(+VLOOKUP($B109,$A$30:$I$35,8,FALSE))*(H109),0) -> 0 | T109: =IF($B109<>0,(+VLOOKUP($B109,$A$30:$I$35,9,FALSE))*(I109),0) -> 0
A110: End of Escalations - Note all escalations must be above this row. Do Not delete this row | N110: =SUM(N107:N109) -> 0 | O110: 0 | P110: 0 | Q110: 0 | R110: 0 | S110: 0 | T110: 0
M111: Check | N111: =ROUND(N110-C131,3) -> 0 | O111: 0 | P111: 0 | Q111: 0 | R111: 0 | S111: 0 | T111: 0
A112: Total Specific Escalations to Apply (based on escalations selected above)
A113: Labour | C113: =PRODUCT(IF($B$107:$B$110=$A113,C$107:C$110+1))-IF(COUNTIF($B$107:$B$110,+$A113)=0,0,1) -> 0 | D113: =PRODUCT(IF($B$107:$B$110=$A113,D$107:D$110+1))-IF(COUNTIF($B$107:$B$110,+$A113)=0,0,1) -> 0 | E113: =PRODUCT(IF($B$107:$B$110=$A113,E$107:E$110+1))-IF(COUNTIF($B$107:$B$110,+$A113)=0,0,1) -> 0 | F113: =PRODUCT(IF($B$107:$B$110=$A113,F$107:F$110+1))-IF(COUNTIF($B$107:$B$110,+$A113)=0,0,1) -> 0 | G113: =PRODUCT(IF($B$107:$B$110=$A113,G$107:G$110+1))-IF(COUNTIF($B$107:$B$110,+$A113)=0,0,1) -> 0 | H113: =PRODUCT(IF($B$107:$B$110=$A113,H$107:H$110+1))-IF(COUNTIF($B$107:$B$110,+$A113)=0,0,1) -> 0 | I113: =PRODUCT(IF($B$107:$B$110=$A113,I$107:I$110+1))-IF(COUNTIF($B$107:$B$110,+$A113)=0,0,1) -> 0
A114: Materials | C114: =PRODUCT(IF($B$107:$B$110=$A114,C$107:C$110+1))-IF(COUNTIF($B$107:$B$110,+$A114)=0,0,1) -> 0 | D114: =PRODUCT(IF($B$107:$B$110=$A114,D$107:D$110+1))-IF(COUNTIF($B$107:$B$110,+$A114)=0,0,1) -> 0 | E114: =PRODUCT(IF($B$107:$B$110=$A114,E$107:E$110+1))-IF(COUNTIF($B$107:$B$110,+$A114)=0,0,1) -> 0 | F114: =PRODUCT(IF($B$107:$B$110=$A114,F$107:F$110+1))-IF(COUNTIF($B$107:$B$110,+$A114)=0,0,1) -> 0 | G114: =PRODUCT(IF($B$107:$B$110=$A114,G$107:G$110+1))-IF(COUNTIF($B$107:$B$110,+$A114)=0,0,1) -> 0 | H114: =PRODUCT(IF($B$107:$B$110=$A114,H$107:H$110+1))-IF(COUNTIF($B$107:$B$110,+$A114)=0,0,1) -> 0 | I114: =PRODUCT(IF($B$107:$B$110=$A114,I$107:I$110+1))-IF(COUNTIF($B$107:$B$110,+$A114)=0,0,1) -> 0
A115: Contracts | C115: =PRODUCT(IF($B$107:$B$110=$A115,C$107:C$110+1))-IF(COUNTIF($B$107:$B$110,+$A115)=0,0,1) -> 0 | D115: =PRODUCT(IF($B$107:$B$110=$A115,D$107:D$110+1))-IF(COUNTIF($B$107:$B$110,+$A115)=0,0,1) -> 0 | E115: =PRODUCT(IF($B$107:$B$110=$A115,E$107:E$110+1))-IF(COUNTIF($B$107:$B$110,+$A115)=0,0,1) -> 0 | F115: =PRODUCT(IF($B$107:$B$110=$A115,F$107:F$110+1))-IF(COUNTIF($B$107:$B$110,+$A115)=0,0,1) -> 0 | G115: =PRODUCT(IF($B$107:$B$110=$A115,G$107:G$110+1))-IF(COUNTIF($B$107:$B$110,+$A115)=0,0,1) -> 0 | H115: =PRODUCT(IF($B$107:$B$110=$A115,H$107:H$110+1))-IF(COUNTIF($B$107:$B$110,+$A115)=0,0,1) -> 0 | I115: =PRODUCT(IF($B$107:$B$110=$A115,I$107:I$110+1))-IF(COUNTIF($B$107:$B$110,+$A115)=0,0,1) -> 0
A116: Services Other | C116: =PRODUCT(IF($B$107:$B$110=$A116,C$107:C$110+1))-IF(COUNTIF($B$107:$B$110,+$A116)=0,0,1) -> 0 | D116: =PRODUCT(IF($B$107:$B$110=$A116,D$107:D$110+1))-IF(COUNTIF($B$107:$B$110,+$A116)=0,0,1) -> 0 | E116: =PRODUCT(IF($B$107:$B$110=$A116,E$107:E$110+1))-IF(COUNTIF($B$107:$B$110,+$A116)=0,0,1) -> 0 | F116: =PRODUCT(IF($B$107:$B$110=$A116,F$107:F$110+1))-IF(COUNTIF($B$107:$B$110,+$A116)=0,0,1) -> 0 | G116: =PRODUCT(IF($B$107:$B$110=$A116,G$107:G$110+1))-IF(COUNTIF($B$107:$B$110,+$A116)=0,0,1) -> 0 | H116: =PRODUCT(IF($B$107:$B$110=$A116,H$107:H$110+1))-IF(COUNTIF($B$107:$B$110,+$A116)=0,0,1) -> 0 | I116: =PRODUCT(IF($B$107:$B$110=$A116,I$107:I$110+1))-IF(COUNTIF($B$107:$B$110,+$A116)=0,0,1) -> 0
A117: Business Overheads | C117: =PRODUCT(IF($B$107:$B$110=$A117,C$107:C$110+1))-IF(COUNTIF($B$107:$B$110,+$A117)=0,0,1) -> 0 | D117: =PRODUCT(IF($B$107:$B$110=$A117,D$107:D$110+1))-IF(COUNTIF($B$107:$B$110,+$A117)=0,0,1) -> 0 | E117: =PRODUCT(IF($B$107:$B$110=$A117,E$107:E$110+1))-IF(COUNTIF($B$107:$B$110,+$A117)=0,0,1) -> 0 | F117: =PRODUCT(IF($B$107:$B$110=$A117,F$107:F$110+1))-IF(COUNTIF($B$107:$B$110,+$A117)=0,0,1) -> 0 | G117: =PRODUCT(IF($B$107:$B$110=$A117,G$107:G$110+1))-IF(COUNTIF($B$107:$B$110,+$A117)=0,0,1) -> 0 | H117: =PRODUCT(IF($B$107:$B$110=$A117,H$107:H$110+1))-IF(COUNTIF($B$107:$B$110,+$A117)=0,0,1) -> 0 | I117: =PRODUCT(IF($B$107:$B$110=$A117,I$107:I$110+1))-IF(COUNTIF($B$107:$B$110,+$A117)=0,0,1) -> 0
A118: Other | C118: =PRODUCT(IF($B$107:$B$110=$A118,C$107:C$110+1))-IF(COUNTIF($B$107:$B$110,+$A118)=0,0,1) -> 0 | D118: =PRODUCT(IF($B$107:$B$110=$A118,D$107:D$110+1))-IF(COUNTIF($B$107:$B$110,+$A118)=0,0,1) -> 0 | E118: =PRODUCT(IF($B$107:$B$110=$A118,E$107:E$110+1))-IF(COUNTIF($B$107:$B$110,+$A118)=0,0,1) -> 0 | F118: =PRODUCT(IF($B$107:$B$110=$A118,F$107:F$110+1))-IF(COUNTIF($B$107:$B$110,+$A118)=0,0,1) -> 0 | G118: =PRODUCT(IF($B$107:$B$110=$A118,G$107:G$110+1))-IF(COUNTIF($B$107:$B$110,+$A118)=0,0,1) -> 0 | H118: =PRODUCT(IF($B$107:$B$110=$A118,H$107:H$110+1))-IF(COUNTIF($B$107:$B$110,+$A118)=0,0,1) -> 0 | I118: =PRODUCT(IF($B$107:$B$110=$A118,I$107:I$110+1))-IF(COUNTIF($B$107:$B$110,+$A118)=0,0,1) -> 0
A119: Product of Escalators by Category | C119: =PRODUCT(IF(C113:C118<>0,C113:C118+1))-IF(SUM(C113:C118)<>0,1,0) -> 0 | D119: =PRODUCT(IF(D113:D118<>0,D113:D118+1))-IF(SUM(D113:D118)<>0,1,0) -> 0 | E119: =PRODUCT(IF(E113:E118<>0,E113:E118+1))-IF(SUM(E113:E118)<>0,1,0) -> 0 | F119: =PRODUCT(IF(F113:F118<>0,F113:F118+1))-IF(SUM(F113:F118)<>0,1,0) -> 0 | G119: =PRODUCT(IF(G113:G118<>0,G113:G118+1))-IF(SUM(G113:G118)<>0,1,0) -> 0 | H119: =PRODUCT(IF(H113:H118<>0,H113:H118+1))-IF(SUM(H113:H118)<>0,1,0) -> 0 | I119: =PRODUCT(IF(I113:I118<>0,I113:I118+1))-IF(SUM(I113:I118)<>0,1,0) -> 0
A120: Product of All Escalators | C120: =PRODUCT(IF((C107:C110<>0),C107:C110+1))-IF(C107:C110<>0,1,0) -> 0 | D120: =PRODUCT(IF((D107:D110<>0),D107:D110+1))-IF(D107:D110<>0,1,0) -> 0 | E120: =PRODUCT(IF((E107:E110<>0),E107:E110+1))-IF(E107:E110<>0,1,0) -> 0 | F120: =PRODUCT(IF((F107:F110<>0),F107:F110+1))-IF(F107:F110<>0,1,0) -> 0 | G120: =PRODUCT(IF((G107:G110<>0),G107:G110+1))-IF(G107:G110<>0,1,0) -> 0 | H120: =PRODUCT(IF((H107:H110<>0),H107:H110+1))-IF(H107:H110<>0,1,0) -> 0 | I120: =PRODUCT(IF((I107:I110<>0),I107:I110+1))-IF(I107:I110<>0,1,0) -> 0
A121: Difference - should be Zero | C121: =+C119-C120 -> 0 | D121: 0 | E121: 0 | F121: 0 | G121: 0 | H121: 0 | I121: 0 | J121: =IF(SUM(C121:I121)<>0,"Warning Check Escalations","OK") -> OK
A123: Dollar Impact of Specific Escalations
A124: Summary by Cost Category | C124: =LU_TemplateYearHeader2 -> 2013/14 | D124: 2014/15 | E124: 2015/16 | F124: 2016/17 | G124: 2017/18 | H124: 2018/19 | I124: 2019/20
A125: Labour | C125: =+C30*(C113) -> 0 | D125: 0 | E125: 0 | F125: 0 | G125: 0 | H125: 0 | I125: 0
A126: Materials | C126: 0 | D126: 0 | E126: 0 | F126: 0 | G126: 0 | H126: 0 | I126: 0
A127: Contracts | C127: =+C32*(C115) -> 0 | D127: 0 | E127: 0 | F127: 0 | G127: 0 | H127: 0 | I127: 0
A128: Services Other | C128: =+C33*(C116) -> 0 | D128: 0 | E128: 0 | F128: 0 | G128: 0 | H128: 0 | I128: 0
A129: Business Overheads | C129: =+C34*(C117) -> 0 | D129: 0 | E129: 0 | F129: 0 | G129: 0 | H129: 0 | I129: 0
A130: Other | C130: =+C35*(C118) -> 0 | D130: 0 | E130: 0 | F130: 0 | G130: 0 | H130: 0 | I130: 0
A131: Dollar Impact of Escalations | C131: =SUM(C125:C130) -> 0 | D131: 0 | E131: 0 | F131: 0 | G131: 0 | H131: 0 | I131: 0
A132: Average Specific Escalation % | C132: =IF(C36<>0,+C131/C36,0) -> 0 | D132: 0 | E132: 0 | F132: 0 | G132: 0 | H132: 0 | I132: 0
A135: General Escalation Calculations | C135: 2 | D135: =+C135+1 -> 3 | E135: 4 | F135: 5 | G135: 6 | H135: 7 | I135: 8 | J135: Escalation | K135: Escalation
A136: Select the general escalations to apply for this expenditure category and the cost categories to which they relate: | J136: Type | K136: Active?
A137: Important - if there are not enough rows, copy and insert an entire row with the escalation formulas, not just the visible cells | N137: Dollar Impact of Each Escalation (uncompounded with other general escalations of the same cost category)
B138: Cost Category | C138: =LU_TemplateYearHeader2 -> 2013/14 | D138: 2014/15 | E138: 2015/16 | F138: 2016/17 | G138: 2017/18 | H138: 2018/19 | I138: 2019/20 | N138: =LU_TemplateYearHeader2 -> 2013/14 | O138: 2014/15 | P138: 2015/16 | Q138: 2016/17 | R138: 2017/18 | S138: 2018/19 | T138: 2019/20
A139: General Escalation (%Real**)
A140: Labour | B140: Labour | C140: =IF($K140="No",0,VLOOKUP($A140,Escalations_General_Costs,+C$135,FALSE)) -> 0 | D140: =IF($K140="No",0,IF($J140="one-off",VLOOKUP($A140,Escalations_General_Costs,+'I-6'!D$9+1,FALSE),((VLOOKUP($A140,Escalations_General_Costs,+'I-6'!D$9+1,FALSE)+1)*(1+C140)-1))) -> 0.0166 | E140: =IF($K140="No",0,IF($J140="one-off",VLOOKUP($A140,Escalations_General_Costs,+'I-6'!E$9+1,FALSE),((VLOOKUP($A140,Escalations_General_Costs,+'I-6'!E$9+1,FALSE)+1)*(1+D140)-1))) -> 0.03841416814 | F140: =IF($K140="No",0,IF($J140="one-off",VLOOKUP($A140,Escalations_General_Costs,+'I-6'!F$9+1,FALSE),((VLOOKUP($A140,Escalations_General_Costs,+'I-6'!F$9+1,FALSE)+1)*(1+E140)-1))) -> 0.06069642395 | G140: =IF($K140="No",0,IF($J140="one-off",VLOOKUP($A140,Escalations_General_Costs,+'I-6'!G$9+1,FALSE),((VLOOKUP($A140,Escalations_General_Costs,+'I-6'!G$9+1,FALSE)+1)*(1+F140)-1))) -> 0.08470395618 | H140: =IF($K140="No",0,IF($J140="one-off",VLOOKUP($A140,Escalations_General_Costs,+'I-6'!H$9+1,FALSE),((VLOOKUP($A140,Escalations_General_Costs,+'I-6'!H$9+1,FALSE)+1)*(1+G140)-1))) -> 0.1092548688 | I140: =IF($K140="No",0,IF($J140="one-off",VLOOKUP($A140,Escalations_General_Costs,+'I-6'!I$9+1,FALSE),((VLOOKUP($A140,Escalations_General_Costs,+'I-6'!I$9+1,FALSE)+1)*(1+H140)-1))) -> 0.1343614604 | J140: =IF(ISNA(VLOOKUP($A140,Escalations_General_Costs,+I$103+3,FALSE)),0,VLOOKUP($A140,Escalations_General_Costs,+I$103+3,FALSE)) -> Cumulative | K140: =IF(ISNA(VLOOKUP($A140,Escalations_General_Costs,1,FALSE)),"No","Yes") -> Yes | N140: =IF($B140<>0,(+VLOOKUP($B140,$A$30:$I$35,3,FALSE)+VLOOKUP($B140,$A$42:$I$47,3,FALSE))*(C140),0) -> 0 | O140: =IF($B140<>0,(+VLOOKUP($B140,$A$30:$I$35,4,FALSE)+VLOOKUP($B140,$A$42:$I$47,4,FALSE))*(D140),0) -> 0 | P140: =IF($B140<>0,(+VLOOKUP($B140,$A$30:$I$35,5,FALSE)+VLOOKUP($B140,$A$42:$I$47,5,FALSE))*(E140),0) -> 0 | Q140: =IF($B140<>0,(+VLOOKUP($B140,$A$30:$I$35,6,FALSE)+VLOOKUP($B140,$A$42:$I$47,6,FALSE))*(F140),0) -> 0 | R140: =IF($B140<>0,(+VLOOKUP($B140,$A$30:$I$35,7,FALSE)+VLOOKUP($B140,$A$42:$I$47,7,FALSE))*(G140),0) -> 0 | S140: =IF($B140<>0,(+VLOOKUP($B140,$A$30:$I$35,8,FALSE)+VLOOKUP($B140,$A$42:$I$47,8,FALSE))*(H140),0) -> 0 | T140: =IF($B140<>0,(+VLOOKUP($B140,$A$30:$I$35,9,FALSE)+VLOOKUP($B140,$A$42:$I$47,9,FALSE))*(I140),0) -> 0
A141: Materials | B141: Materials | C141: 0 | D141: =IF($K141="No",0,IF($J141="one-off",VLOOKUP($A141,Escalations_General_Costs,+'I-6'!D$9+1,FALSE),((VLOOKUP($A141,Escalations_General_Costs,+'I-6'!D$9+1,FALSE)+1)*(1+C141)-1))) -> 0 | E141: =IF($K141="No",0,IF($J141="one-off",VLOOKUP($A141,Escalations_General_Costs,+'I-6'!E$9+1,FALSE),((VLOOKUP($A141,Escalations_General_Costs,+'I-6'!E$9+1,FALSE)+1)*(1+D141)-1))) -> 0 | F141: =IF($K141="No",0,IF($J141="one-off",VLOOKUP($A141,Escalations_General_Costs,+'I-6'!F$9+1,FALSE),((VLOOKUP($A141,Escalations_General_Costs,+'I-6'!F$9+1,FALSE)+1)*(1+E141)-1))) -> 0 | G141: =IF($K141="No",0,IF($J141="one-off",VLOOKUP($A141,Escalations_General_Costs,+'I-6'!G$9+1,FALSE),((VLOOKUP($A141,Escalations_General_Costs,+'I-6'!G$9+1,FALSE)+1)*(1+F141)-1))) -> 0 | H141: =IF($K141="No",0,IF($J141="one-off",VLOOKUP($A141,Escalations_General_Costs,+'I-6'!H$9+1,FALSE),((VLOOKUP($A141,Escalations_General_Costs,+'I-6'!H$9+1,FALSE)+1)*(1+G141)-1))) -> 0 | I141: =IF($K141="No",0,IF($J141="one-off",VLOOKUP($A141,Escalations_General_Costs,+'I-6'!I$9+1,FALSE),((VLOOKUP($A141,Escalations_General_Costs,+'I-6'!I$9+1,FALSE)+1)*(1+H141)-1))) -> 0 | J141: Cumulative | K141: Yes | N141: =IF($B141<>0,(+VLOOKUP($B141,$A$30:$I$35,3,FALSE)+VLOOKUP($B141,$A$42:$I$47,3,FALSE))*(C141),0) -> 0 | O141: =IF($B141<>0,(+VLOOKUP($B141,$A$30:$I$35,4,FALSE)+VLOOKUP($B141,$A$42:$I$47,4,FALSE))*(D141),0) -> 0 | P141: =IF($B141<>0,(+VLOOKUP($B141,$A$30:$I$35,5,FALSE)+VLOOKUP($B141,$A$42:$I$47,5,FALSE))*(E141),0) -> 0 | Q141: =IF($B141<>0,(+VLOOKUP($B141,$A$30:$I$35,6,FALSE)+VLOOKUP($B141,$A$42:$I$47,6,FALSE))*(F141),0) -> 0 | R141: =IF($B141<>0,(+VLOOKUP($B141,$A$30:$I$35,7,FALSE)+VLOOKUP($B141,$A$42:$I$47,7,FALSE))*(G141),0) -> 0 | S141: =IF($B141<>0,(+VLOOKUP($B141,$A$30:$I$35,8,FALSE)+VLOOKUP($B141,$A$42:$I$47,8,FALSE))*(H141),0) -> 0 | T141: =IF($B141<>0,(+VLOOKUP($B141,$A$30:$I$35,9,FALSE)+VLOOKUP($B141,$A$42:$I$47,9,FALSE))*(I141),0) -> 0
A142: Services-construction | B142: Contracts | C142: 0 | D142: =IF($K142="No",0,IF($J142="one-off",VLOOKUP($A142,Escalations_General_Costs,+'I-6'!D$9+1,FALSE),((VLOOKUP($A142,Escalations_General_Costs,+'I-6'!D$9+1,FALSE)+1)*(1+C142)-1))) -> 0.001 | E142: =IF($K142="No",0,IF($J142="one-off",VLOOKUP($A142,Escalations_General_Costs,+'I-6'!E$9+1,FALSE),((VLOOKUP($A142,Escalations_General_Costs,+'I-6'!E$9+1,FALSE)+1)*(1+D142)-1))) -> 0.006005 | F142: =IF($K142="No",0,IF($J142="one-off",VLOOKUP($A142,Escalations_General_Costs,+'I-6'!F$9+1,FALSE),((VLOOKUP($A142,Escalations_General_Costs,+'I-6'!F$9+1,FALSE)+1)*(1+E142)-1))) -> 0.015059045 | G142: =IF($K142="No",0,IF($J142="one-off",VLOOKUP($A142,Escalations_General_Costs,+'I-6'!G$9+1,FALSE),((VLOOKUP($A142,Escalations_General_Costs,+'I-6'!G$9+1,FALSE)+1)*(1+F142)-1))) -> 0.02622469449 | H142: =IF($K142="No",0,IF($J142="one-off",VLOOKUP($A142,Escalations_General_Costs,+'I-6'!H$9+1,FALSE),((VLOOKUP($A142,Escalations_General_Costs,+'I-6'!H$9+1,FALSE)+1)*(1+G142)-1))) -> 0.04059184022 | I142: =IF($K142="No",0,IF($J142="one-off",VLOOKUP($A142,Escalations_General_Costs,+'I-6'!I$9+1,FALSE),((VLOOKUP($A142,Escalations_General_Costs,+'I-6'!I$9+1,FALSE)+1)*(1+H142)-1))) -> 0.05932249334 | J142: Cumulative | K142: Yes | N142: =IF($B142<>0,(+VLOOKUP($B142,$A$30:$I$35,3,FALSE)+VLOOKUP($B142,$A$42:$I$47,3,FALSE))*(C142),0) -> 0 | O142: =IF($B142<>0,(+VLOOKUP($B142,$A$30:$I$35,4,FALSE)+VLOOKUP($B142,$A$42:$I$47,4,FALSE))*(D142),0) -> 0 | P142: =IF($B142<>0,(+VLOOKUP($B142,$A$30:$I$35,5,FALSE)+VLOOKUP($B142,$A$42:$I$47,5,FALSE))*(E142),0) -> 0 | Q142: =IF($B142<>0,(+VLOOKUP($B142,$A$30:$I$35,6,FALSE)+VLOOKUP($B142,$A$42:$I$47,6,FALSE))*(F142),0) -> 0 | R142: =IF($B142<>0,(+VLOOKUP($B142,$A$30:$I$35,7,FALSE)+VLOOKUP($B142,$A$42:$I$47,7,FALSE))*(G142),0) -> 0 | S142: =IF($B142<>0,(+VLOOKUP($B142,$A$30:$I$35,8,FALSE)+VLOOKUP($B142,$A$42:$I$47,8,FALSE))*(H142),0) -> 0 | T142: =IF($B142<>0,(+VLOOKUP($B142,$A$30:$I$35,9,FALSE)+VLOOKUP($B142,$A$42:$I$47,9,FALSE))*(I142),0) -> 0
A143: Services-general | B143: Services Other | C143: 0 | D143: =IF($K143="No",0,IF($J143="one-off",VLOOKUP($A143,Escalations_General_Costs,+'I-6'!D$9+1,FALSE),((VLOOKUP($A143,Escalations_General_Costs,+'I-6'!D$9+1,FALSE)+1)*(1+C143)-1))) -> 0.001 | E143: =IF($K143="No",0,IF($J143="one-off",VLOOKUP($A143,Escalations_General_Costs,+'I-6'!E$9+1,FALSE),((VLOOKUP($A143,Escalations_General_Costs,+'I-6'!E$9+1,FALSE)+1)*(1+D143)-1))) -> 0.006005 | F143: =IF($K143="No",0,IF($J143="one-off",VLOOKUP($A143,Escalations_General_Costs,+'I-6'!F$9+1,FALSE),((VLOOKUP($A143,Escalations_General_Costs,+'I-6'!F$9+1,FALSE)+1)*(1+E143)-1))) -> 0.015059045 | G143: =IF($K143="No",0,IF($J143="one-off",VLOOKUP($A143,Escalations_General_Costs,+'I-6'!G$9+1,FALSE),((VLOOKUP($A143,Escalations_General_Costs,+'I-6'!G$9+1,FALSE)+1)*(1+F143)-1))) -> 0.02622469449 | H143: =IF($K143="No",0,IF($J143="one-off",VLOOKUP($A143,Escalations_General_Costs,+'I-6'!H$9+1,FALSE),((VLOOKUP($A143,Escalations_General_Costs,+'I-6'!H$9+1,FALSE)+1)*(1+G143)-1))) -> 0.04059184022 | I143: =IF($K143="No",0,IF($J143="one-off",VLOOKUP($A143,Escalations_General_Costs,+'I-6'!I$9+1,FALSE),((VLOOKUP($A143,Escalations_General_Costs,+'I-6'!I$9+1,FALSE)+1)*(1+H143)-1))) -> 0.05932249334 | J143: Cumulative | K143: Yes | N143: 0 | O143: 0 | P143: 0 | Q143: 0 | R143: 0 | S143: 0 | T143: 0
A144: Labour | B144: Business Overheads | C144: 0 | D144: =IF($K144="No",0,IF($J144="one-off",VLOOKUP($A144,Escalations_General_Costs,+'I-6'!D$9+1,FALSE),((VLOOKUP($A144,Escalations_General_Costs,+'I-6'!D$9+1,FALSE)+1)*(1+C144)-1))) -> 0.0166 | E144: =IF($K144="No",0,IF($J144="one-off",VLOOKUP($A144,Escalations_General_Costs,+'I-6'!E$9+1,FALSE),((VLOOKUP($A144,Escalations_General_Costs,+'I-6'!E$9+1,FALSE)+1)*(1+D144)-1))) -> 0.03841416814 | F144: =IF($K144="No",0,IF($J144="one-off",VLOOKUP($A144,Escalations_General_Costs,+'I-6'!F$9+1,FALSE),((VLOOKUP($A144,Escalations_General_Costs,+'I-6'!F$9+1,FALSE)+1)*(1+E144)-1))) -> 0.06069642395 | G144: =IF($K144="No",0,IF($J144="one-off",VLOOKUP($A144,Escalations_General_Costs,+'I-6'!G$9+1,FALSE),((VLOOKUP($A144,Escalations_General_Costs,+'I-6'!G$9+1,FALSE)+1)*(1+F144)-1))) -> 0.08470395618 | H144: =IF($K144="No",0,IF($J144="one-off",VLOOKUP($A144,Escalations_General_Costs,+'I-6'!H$9+1,FALSE),((VLOOKUP($A144,Escalations_General_Costs,+'I-6'!H$9+1,FALSE)+1)*(1+G144)-1))) -> 0.1092548688 | I144: =IF($K144="No",0,IF($J144="one-off",VLOOKUP($A144,Escalations_General_Costs,+'I-6'!I$9+1,FALSE),((VLOOKUP($A144,Escalations_General_Costs,+'I-6'!I$9+1,FALSE)+1)*(1+H144)-1))) -> 0.1343614604 | J144: Cumulative | K144: Yes | N144: 0 | O144: 0 | P144: 0 | Q144: 0 | R144: 0 | S144: 0 | T144: 0
A145: Materials - Land | B145: Other | C145: 0 | D145: =IF($K145="No",0,IF($J145="one-off",VLOOKUP($A145,Escalations_General_Costs,+'I-6'!D$9+1,FALSE),((VLOOKUP($A145,Escalations_General_Costs,+'I-6'!D$9+1,FALSE)+1)*(1+C145)-1))) -> 0.0596 | E145: =IF($K145="No",0,IF($J145="one-off",VLOOKUP($A145,Escalations_General_Costs,+'I-6'!E$9+1,FALSE),((VLOOKUP($A145,Escalations_General_Costs,+'I-6'!E$9+1,FALSE)+1)*(1+D145)-1))) -> 0.12275216 | F145: =IF($K145="No",0,IF($J145="one-off",VLOOKUP($A145,Escalations_General_Costs,+'I-6'!F$9+1,FALSE),((VLOOKUP($A145,Escalations_General_Costs,+'I-6'!F$9+1,FALSE)+1)*(1+E145)-1))) -> 0.1896681887 | G145: =IF($K145="No",0,IF($J145="one-off",VLOOKUP($A145,Escalations_General_Costs,+'I-6'!G$9+1,FALSE),((VLOOKUP($A145,Escalations_General_Costs,+'I-6'!G$9+1,FALSE)+1)*(1+F145)-1))) -> 0.2605724128 | H145: =IF($K145="No",0,IF($J145="one-off",VLOOKUP($A145,Escalations_General_Costs,+'I-6'!H$9+1,FALSE),((VLOOKUP($A145,Escalations_General_Costs,+'I-6'!H$9+1,FALSE)+1)*(1+G145)-1))) -> 0.3357025286 | I145: =IF($K145="No",0,IF($J145="one-off",VLOOKUP($A145,Escalations_General_Costs,+'I-6'!I$9+1,FALSE),((VLOOKUP($A145,Escalations_General_Costs,+'I-6'!I$9+1,FALSE)+1)*(1+H145)-1))) -> 0.4153103993 | J145: Cumulative | K145: Yes | N145: 0 | O145: 0 | P145: 0 | Q145: 0 | R145: 0 | S145: 0 | T145: 0
A146: End of Escalations - Note all escalations must be above this row. Do Not delete this row | N146: =SUM(N140:N145) -> 0 | O146: =SUM(O140:O145) -> 0 | P146: 0 | Q146: 0 | R146: 0 | S146: 0 | T146: 0
M147: Check | N147: =ROUND(N146-C167,3) -> 0 | O147: 0 | P147: 0 | Q147: 0 | R147: 0 | S147: 0 | T147: 0
A148: Total General Escalations to Apply (based on escalations selected above)
A149: Labour | C149: =PRODUCT(IF($B$140:$B$146=$A149,C$140:C$146+1))-IF(COUNTIF($B$140:$B$146,+$A149)=0,0,1) -> 0 | D149: =PRODUCT(IF($B$140:$B$146=$A149,D$140:D$146+1))-IF(COUNTIF($B$140:$B$146,+$A149)=0,0,1) -> 0.0166 | E149: =PRODUCT(IF($B$140:$B$146=$A149,E$140:E$146+1))-IF(COUNTIF($B$140:$B$146,+$A149)=0,0,1) -> 0.03841416814 | F149: =PRODUCT(IF($B$140:$B$146=$A149,F$140:F$146+1))-IF(COUNTIF($B$140:$B$146,+$A149)=0,0,1) -> 0.06069642395 | G149: =PRODUCT(IF($B$140:$B$146=$A149,G$140:G$146+1))-IF(COUNTIF($B$140:$B$146,+$A149)=0,0,1) -> 0.08470395618 | H149: =PRODUCT(IF($B$140:$B$146=$A149,H$140:H$146+1))-IF(COUNTIF($B$140:$B$146,+$A149)=0,0,1) -> 0.1092548688 | I149: =PRODUCT(IF($B$140:$B$146=$A149,I$140:I$146+1))-IF(COUNTIF($B$140:$B$146,+$A149)=0,0,1) -> 0.1343614604
A150: Materials | C150: =PRODUCT(IF($B$140:$B$146=$A150,C$140:C$146+1))-IF(COUNTIF($B$140:$B$146,+$A150)=0,0,1) -> 0 | D150: =PRODUCT(IF($B$140:$B$146=$A150,D$140:D$146+1))-IF(COUNTIF($B$140:$B$146,+$A150)=0,0,1) -> 0 | E150: =PRODUCT(IF($B$140:$B$146=$A150,E$140:E$146+1))-IF(COUNTIF($B$140:$B$146,+$A150)=0,0,1) -> 0 | F150: =PRODUCT(IF($B$140:$B$146=$A150,F$140:F$146+1))-IF(COUNTIF($B$140:$B$146,+$A150)=0,0,1) -> 0 | G150: =PRODUCT(IF($B$140:$B$146=$A150,G$140:G$146+1))-IF(COUNTIF($B$140:$B$146,+$A150)=0,0,1) -> 0 | H150: =PRODUCT(IF($B$140:$B$146=$A150,H$140:H$146+1))-IF(COUNTIF($B$140:$B$146,+$A150)=0,0,1) -> 0 | I150: =PRODUCT(IF($B$140:$B$146=$A150,I$140:I$146+1))-IF(COUNTIF($B$140:$B$146,+$A150)=0,0,1) -> 0
A151: Contracts | C151: =PRODUCT(IF($B$140:$B$146=$A151,C$140:C$146+1))-IF(COUNTIF($B$140:$B$146,+$A151)=0,0,1) -> 0 | D151: =PRODUCT(IF($B$140:$B$146=$A151,D$140:D$146+1))-IF(COUNTIF($B$140:$B$146,+$A151)=0,0,1) -> 0.001 | E151: =PRODUCT(IF($B$140:$B$146=$A151,E$140:E$146+1))-IF(COUNTIF($B$140:$B$146,+$A151)=0,0,1) -> 0.006005 | F151: =PRODUCT(IF($B$140:$B$146=$A151,F$140:F$146+1))-IF(COUNTIF($B$140:$B$146,+$A151)=0,0,1) -> 0.015059045 | G151: =PRODUCT(IF($B$140:$B$146=$A151,G$140:G$146+1))-IF(COUNTIF($B$140:$B$146,+$A151)=0,0,1) -> 0.02622469449 | H151: =PRODUCT(IF($B$140:$B$146=$A151,H$140:H$146+1))-IF(COUNTIF($B$140:$B$146,+$A151)=0,0,1) -> 0.04059184022 | I151: =PRODUCT(IF($B$140:$B$146=$A151,I$140:I$146+1))-IF(COUNTIF($B$140:$B$146,+$A151)=0,0,1) -> 0.05932249334
A152: Services Other | C152: =PRODUCT(IF($B$140:$B$146=$A152,C$140:C$146+1))-IF(COUNTIF($B$140:$B$146,+$A152)=0,0,1) -> 0 | D152: =PRODUCT(IF($B$140:$B$146=$A152,D$140:D$146+1))-IF(COUNTIF($B$140:$B$146,+$A152)=0,0,1) -> 0.001 | E152: =PRODUCT(IF($B$140:$B$146=$A152,E$140:E$146+1))-IF(COUNTIF($B$140:$B$146,+$A152)=0,0,1) -> 0.006005 | F152: =PRODUCT(IF($B$140:$B$146=$A152,F$140:F$146+1))-IF(COUNTIF($B$140:$B$146,+$A152)=0,0,1) -> 0.015059045 | G152: =PRODUCT(IF($B$140:$B$146=$A152,G$140:G$146+1))-IF(COUNTIF($B$140:$B$146,+$A152)=0,0,1) -> 0.02622469449 | H152: =PRODUCT(IF($B$140:$B$146=$A152,H$140:H$146+1))-IF(COUNTIF($B$140:$B$146,+$A152)=0,0,1) -> 0.04059184022 | I152: =PRODUCT(IF($B$140:$B$146=$A152,I$140:I$146+1))-IF(COUNTIF($B$140:$B$146,+$A152)=0,0,1) -> 0.05932249334
A153: Business Overheads | C153: =PRODUCT(IF($B$140:$B$146=$A153,C$140:C$146+1))-IF(COUNTIF($B$140:$B$146,+$A153)=0,0,1) -> 0 | D153: =PRODUCT(IF($B$140:$B$146=$A153,D$140:D$146+1))-IF(COUNTIF($B$140:$B$146,+$A153)=0,0,1) -> 0.0166 | E153: =PRODUCT(IF($B$140:$B$146=$A153,E$140:E$146+1))-IF(COUNTIF($B$140:$B$146,+$A153)=0,0,1) -> 0.03841416814 | F153: =PRODUCT(IF($B$140:$B$146=$A153,F$140:F$146+1))-IF(COUNTIF($B$140:$B$146,+$A153)=0,0,1) -> 0.06069642395 | G153: =PRODUCT(IF($B$140:$B$146=$A153,G$140:G$146+1))-IF(COUNTIF($B$140:$B$146,+$A153)=0,0,1) -> 0.08470395618 | H153: =PRODUCT(IF($B$140:$B$146=$A153,H$140:H$146+1))-IF(COUNTIF($B$140:$B$146,+$A153)=0,0,1) -> 0.1092548688 | I153: =PRODUCT(IF($B$140:$B$146=$A153,I$140:I$146+1))-IF(COUNTIF($B$140:$B$146,+$A153)=0,0,1) -> 0.1343614604
A154: Other | C154: =PRODUCT(IF($B$140:$B$146=$A154,C$140:C$146+1))-IF(COUNTIF($B$140:$B$146,+$A154)=0,0,1) -> 0 | D154: =PRODUCT(IF($B$140:$B$146=$A154,D$140:D$146+1))-IF(COUNTIF($B$140:$B$146,+$A154)=0,0,1) -> 0.0596 | E154: =PRODUCT(IF($B$140:$B$146=$A154,E$140:E$146+1))-IF(COUNTIF($B$140:$B$146,+$A154)=0,0,1) -> 0.12275216 | F154: =PRODUCT(IF($B$140:$B$146=$A154,F$140:F$146+1))-IF(COUNTIF($B$140:$B$146,+$A154)=0,0,1) -> 0.1896681887 | G154: =PRODUCT(IF($B$140:$B$146=$A154,G$140:G$146+1))-IF(COUNTIF($B$140:$B$146,+$A154)=0,0,1) -> 0.2605724128 | H154: =PRODUCT(IF($B$140:$B$146=$A154,H$140:H$146+1))-IF(COUNTIF($B$140:$B$146,+$A154)=0,0,1) -> 0.3357025286 | I154: =PRODUCT(IF($B$140:$B$146=$A154,I$140:I$146+1))-IF(COUNTIF($B$140:$B$146,+$A154)=0,0,1) -> 0.4153103993
A155: Product of Escalators by Category | C155: =PRODUCT(IF(C149:C154<>0,C149:C154+1))-IF(SUM(C149:C154)<>0,1,0) -> 0 | D155: =PRODUCT(IF(D149:D154<>0,D149:D154+1))-IF(SUM(D149:D154)<>0,1,0) -> 0.09726193985 | E155: =PRODUCT(IF(E149:E154<>0,E149:E154+1))-IF(SUM(E149:E154)<>0,1,0) -> 0.2252519088 | F155: =PRODUCT(IF(F149:F154<>0,F149:F154+1))-IF(SUM(F149:F154)<>0,1,0) -> 0.379083839 | G155: =PRODUCT(IF(G149:G154<>0,G149:G154+1))-IF(SUM(G149:G154)<>0,1,0) -> 0.5619789215 | H155: =PRODUCT(IF(H149:H154<>0,H149:H154+1))-IF(SUM(H149:H154)<>0,1,0) -> 0.7796445439 | I155: =PRODUCT(IF(I149:I154<>0,I149:I154+1))-IF(SUM(I149:I154)<>0,1,0) -> 1.04367114
A156: Product of All Escalators | C156: =PRODUCT(IF((C140:C146<>0),C140:C146+1))-IF(C140:C146<>0,1,0) -> 0 | D156: =PRODUCT(IF((D140:D146<>0),D140:D146+1))-IF(D140:D146<>0,1,0) -> 0.09726193985 | E156: =PRODUCT(IF((E140:E146<>0),E140:E146+1))-IF(E140:E146<>0,1,0) -> 0.2252519088 | F156: =PRODUCT(IF((F140:F146<>0),F140:F146+1))-IF(F140:F146<>0,1,0) -> 0.379083839 | G156: =PRODUCT(IF((G140:G146<>0),G140:G146+1))-IF(G140:G146<>0,1,0) -> 0.5619789215 | H156: =PRODUCT(IF((H140:H146<>0),H140:H146+1))-IF(H140:H146<>0,1,0) -> 0.7796445439 | I156: =PRODUCT(IF((I140:I146<>0),I140:I146+1))-IF(I140:I146<>0,1,0) -> 1.04367114
A157: Difference - should be Zero | C157: =ROUND(+C155-C156,4) -> 0 | D157: 0 | E157: 0 | F157: 0 | G157: 0 | H157: 0 | I157: 0 | J157: =IF(SUM(C157:I157)<>0,"Warning Check Escalations","OK") -> OK
A159: Dollar Impact of General Escalations
A160: Summary by Cost Category | C160: =LU_TemplateYearHeader2 -> 2013/14 | D160: 2014/15 | E160: 2015/16 | F160: 2016/17 | G160: 2017/18 | H160: 2018/19 | I160: 2019/20
A161: Labour | C161: =(+C30+C42)*(C$149) -> 0 | D161: 0 | E161: 0 | F161: 0 | G161: 0 | H161: 0 | I161: 0
A162: Materials | C162: =(+C31+C43)*(C$150) -> 0 | D162: 0 | E162: 0 | F162: 0 | G162: 0 | H162: 0 | I162: 0
A163: Contracts | C163: =(+C32+C44)*(C$151) -> 0 | D163: =(+D32+D44)*(D$151) -> 0 | E163: =(+E32+E44)*(E$151) -> 0 | F163: 0 | G163: 0 | H163: 0 | I163: 0
A164: Services Other | C164: =(+C33+C45)*(C$152) -> 0 | D164: =(+D33+D45)*(D$152) -> 0 | E164: =(+E33+E45)*(E$152) -> 0 | F164: 0 | G164: 0 | H164: 0 | I164: 0
A165: Business Overheads | C165: =(+C34+C46)*(C$153) -> 0 | D165: =(+D34+D46)*(D$153) -> 0 | E165: =(+E34+E46)*(E$153) -> 0 | F165: 0 | G165: 0 | H165: 0 | I165: 0
A166: Other | C166: =(+C35+C47)*(C$154) -> 0 | D166: 0 | E166: 0 | F166: 0 | G166: 0 | H166: 0 | I166: 0
A167: Dollar Impact of General Escalations | C167: =SUM(C161:C166) -> 0 | D167: 0 | E167: 0 | F167: 0 | G167: 0 | H167: 0 | I167: 0
A168: Average General Escalation % | C168: =IF((+C36+C48)<>0,+C167/(+C36+C48),0) -> 0 | D168: 0 | E168: 0 | F168: 0 | G168: 0 | H168: 0 | I168: 0
A172: Variations
A173: Total of all the Variation Templates
B174: =LU_TemplateYearHeader -> 2012/13 | C174: 2013/14 | D174: 2014/15 | E174: 2015/16 | F174: 2016/17 | G174: 2017/18 | H174: 2018/19 | I174: 2019/20
A175: Summary by Cost Category
A176: Labour | C176: =SUMIF($A$217:$A$227,$A176,C$217:C$227) -> 0 | D176: 0 | E176: 0 | F176: 0 | G176: 0 | H176: 0 | I176: 0
A177: Materials | C177: 0 | D177: 0 | E177: 0 | F177: 0 | G177: 0 | H177: 0 | I177: 0
A178: Contracts | C178: =SUMIF($A$217:$A$227,$A178,C$217:C$227) -> 0 | D178: 0 | E178: 0 | F178: 0 | G178: 0 | H178: 0 | I178: 0
A179: Services Other | C179: 0 | D179: 0 | E179: 0 | F179: 0 | G179: 0 | H179: 0 | I179: 0
A180: Business Overheads | C180: 0 | D180: 0 | E180: 0 | F180: 0 | G180: 0 | H180: 0 | I180: 0
A181: Other | C181: =SUMIF($A$217:$A$227,$A181,C$217:C$227) -> 0 | D181: 0 | E181: 0 | F181: 0 | G181: 0 | H181: 0 | I181: 0
A182: Total Variations | C182: =SUM(C176:C181) -> 0 | D182: 0 | E182: 0 | F182: 0 | G182: 0 | H182: 0 | I182: 0
A184: Variations Summary
A185: Summary of the Variation Templates | C185: Number of variations: | D185: =MAX(J210:J227) -> 1
B186: =LU_TemplateYearHeader -> 2012/13 | C186: 2013/14 | D186: 2014/15 | E186: 2015/16 | F186: 2016/17 | G186: 2017/18 | H186: 2018/19 | I186: 2019/20 | J186: No:
A187: =IF(ISNUMBER($J187),OFFSET($B$209,MATCH(+$J187,$J$210:$J$227,0),0),"") -> Total Variation | B187: =IF(ISNUMBER($J187),OFFSET(B$209,MATCH(+$J187,$J$210:$J$227,0)+11,0),"") -> 0 | C187: 0 | D187: 0 | E187: 0 | F187: 0 | G187: 0 | H187: 0 | I187: 0 | J187: =IF($D$185>0,1,"") -> 1
J188: =IF(J187<$D$185,J187+1,"") -> 
J189: =IF(J188<$D$185,J188+1,"") -> 
J197: =IF(J196<$D$185,J196+1,"") -> 
J198: =IF(J197<$D$185,J197+1,"") -> 
J199: =IF(J198<$D$185,J198+1,"") -> 
J200: =IF(J199<$D$185,J199+1,"") -> 
J201: =IF(J200<$D$185,J200+1,"") -> 
A202: Total Variations | B202: =SUM(B187:B201) -> 0 | C202: =SUM(C187:C201) -> 0 | D202: 0 | E202: 0 | F202: 0 | G202: 0 | H202: 0 | I202: 0
A204: Variation Templates
A205: Variations are input below, with one Variation Template to be completed for each variation.
A206: Click on the "Insert New Variation" button to add a new template:
A207: Variations to be input in Real 2013 dollars (ie without escalations) . Escalations are calculated separately on all expenditure, including variations.
J209: Var. No:
A210: Variation Title | B210: Total Variation | J210: 1
A211: Description
A212: Source of data. (Name, date, location)
A213: Version of Data
B215: =LU_TemplateYearHeader -> 2012/13 | C215: 2013/14 | D215: 2014/15 | E215: 2015/16 | F215: 2016/17 | G215: 2017/18 | H215: 2018/19 | I215: 2019/20
A216: Summary by Cost Category
A217: Labour
A218: Materials
A219: Contracts
A220: Services Other
A221: Business Overheads
A222: Other
A223: Total of this variation | C223: =SUM(C217:C222) -> 0 | D223: 0 | E223: 0 | F223: 0 | G223: 0 | H223: 0 | I223: 0
A227: End of Variations - Note all variations must be above this row. Do Not delete this row
A232: Charts
A234: Chart Data - Historic Expenditure | B234: =LU_TemplateYearHeader3 -> 2005/06 | C234: 2006/07 | D234: 2007/08 | E234: 2008/09 | F234: 2009/10 | G234: 2010/11 | H234: 2011/12
A235: Historic Expenditure | B235: =OFFSET(List_CapexStart,MATCH($K$1,'I-4 History'!$A$6:$A$282)+6,+'I-4 History'!E5) -> 0 | C235: =OFFSET(List_CapexStart,MATCH($K$1,'I-4 History'!$A$6:$A$282)+6,+'I-4 History'!F5) -> 0 | D235: =OFFSET(List_CapexStart,MATCH($K$1,'I-4 History'!$A$6:$A$282)+6,+'I-4 History'!G5) -> 0 | E235: =OFFSET(List_CapexStart,MATCH($K$1,'I-4 History'!$A$6:$A$282)+6,+'I-4 History'!H5) -> 0 | F235: =OFFSET(List_CapexStart,MATCH($K$1,'I-4 History'!$A$6:$A$282)+6,+'I-4 History'!I5) -> 0 | G235: =OFFSET(List_CapexStart,MATCH($K$1,'I-4 History'!$A$6:$A$282)+6,+'I-4 History'!J5) -> 0 | H235: =OFFSET(List_CapexStart,MATCH($K$1,'I-4 History'!$A$6:$A$282)+6,+'I-4 History'!K5) -> 0
A236: Chart Data - Base Year+Planned | B236: =LU_TemplateYearHeader -> 2012/13 | C236: 2013/14 | D236: 2014/15 | E236: 2015/16 | F236: 2016/17 | G236: 2017/18 | H236: 2018/19 | I236: 2019/20
A237: Baseline Expenditure | B237: =+B14 -> 0 | C237: 0 | D237: 0 | E237: 0 | F237: 0 | G237: 0 | H237: 0 | I237: 0
A238: Total with Variations | B238: =+B36 -> 0 | C238: 0 | D238: 0 | E238: 0 | F238: 0 | G238: 0 | H238: 0 | I238: 0
A239: Total with Specific Escalations | B239: =+B36+B48 -> 0 | C239: 0 | D239: 0 | E239: 0 | F239: 0 | G239: 0 | H239: 0 | I239: 0
A240: Total with All Escalations | B240: =+B70 -> 0 | C240: 0 | D240: 0 | E240: 0 | F240: 0 | G240: 0 | H240: 0 | I240: 0

Sheet C-6 (hidden)
A1: Capital Expenditure | I1: =LU_TemplateDollarDenomination -> $'M Dec 2013 | J1: Sheet Number: | K1: 6
A2: Costs Category : | B2: =OFFSET(List_CapexCategoriesStart,+$K$1,1) -> Spare - Not in Use
A3: Sign-off : | B3: =OFFSET(List_CapexCategoriesStart,+$K$1,2) -> N/A | E3: Version of Data: | H3: Dated:
B4: =LU_TemplateYearHeader -> 2012/13 | C4: 2013/14 | D4: 2014/15 | E4: 2015/16 | F4: 2016/17 | G4: 2017/18 | H4: 2018/19 | I4: 2019/20 | J4: Notes & checks
A5: A. Baseline Expenditure, based on:
A7: Summary by Cost Category
A8: Labour | B8: =OFFSET(List_CapexStart,MATCH($K$1,'I-4 History'!$A$6:$A$256)+2,0) -> 0 | C8: =OFFSET(Future_CapexStart,MATCH($K$1,'I-5 Future'!$A$6:$A$284)+2,+'I-5 Future'!D$5) -> 0 | D8: =OFFSET(Future_CapexStart,MATCH($K$1,'I-5 Future'!$A$6:$A$284)+2,+'I-5 Future'!E$5) -> 0 | E8: =OFFSET(Future_CapexStart,MATCH($K$1,'I-5 Future'!$A$6:$A$284)+2,+'I-5 Future'!F$5) -> 0 | F8: =OFFSET(Future_CapexStart,MATCH($K$1,'I-5 Future'!$A$6:$A$284)+2,+'I-5 Future'!G$5) -> 0 | G8: =OFFSET(Future_CapexStart,MATCH($K$1,'I-5 Future'!$A$6:$A$284)+2,+'I-5 Future'!H$5) -> 0 | H8: =OFFSET(Future_CapexStart,MATCH($K$1,'I-5 Future'!$A$6:$A$284)+2,+'I-5 Future'!I$5) -> 0 | I8: =OFFSET(Future_CapexStart,MATCH($K$1,'I-5 Future'!$A$6:$A$284)+2,+'I-5 Future'!J$5) -> 0
A9: Materials | B9: =OFFSET(List_CapexStart,MATCH($K$1,'I-4 History'!$A$6:$A$256)+3,0) -> 0 | C9: =OFFSET(Future_CapexStart,MATCH($K$1,'I-5 Future'!$A$6:$A$284)+3,+'I-5 Future'!D$5) -> 0 | D9: =OFFSET(Future_CapexStart,MATCH($K$1,'I-5 Future'!$A$6:$A$284)+3,+'I-5 Future'!E$5) -> 0 | E9: =OFFSET(Future_CapexStart,MATCH($K$1,'I-5 Future'!$A$6:$A$284)+3,+'I-5 Future'!F$5) -> 0 | F9: =OFFSET(Future_CapexStart,MATCH($K$1,'I-5 Future'!$A$6:$A$284)+3,+'I-5 Future'!G$5) -> 0 | G9: =OFFSET(Future_CapexStart,MATCH($K$1,'I-5 Future'!$A$6:$A$284)+3,+'I-5 Future'!H$5) -> 0 | H9: =OFFSET(Future_CapexStart,MATCH($K$1,'I-5 Future'!$A$6:$A$284)+3,+'I-5 Future'!I$5) -> 0 | I9: =OFFSET(Future_CapexStart,MATCH($K$1,'I-5 Future'!$A$6:$A$284)+3,+'I-5 Future'!J$5) -> 0
A10: Contracts | B10: =OFFSET(List_CapexStart,MATCH($K$1,'I-4 History'!$A$6:$A$256)+4,0) -> 0 | C10: =OFFSET(Future_CapexStart,MATCH($K$1,'I-5 Future'!$A$6:$A$284)+4,+'I-5 Future'!D$5) -> 0 | D10: =OFFSET(Future_CapexStart,MATCH($K$1,'I-5 Future'!$A$6:$A$284)+4,+'I-5 Future'!E$5) -> 0 | E10: =OFFSET(Future_CapexStart,MATCH($K$1,'I-5 Future'!$A$6:$A$284)+4,+'I-5 Future'!F$5) -> 0 | F10: =OFFSET(Future_CapexStart,MATCH($K$1,'I-5 Future'!$A$6:$A$284)+4,+'I-5 Future'!G$5) -> 0 | G10: =OFFSET(Future_CapexStart,MATCH($K$1,'I-5 Future'!$A$6:$A$284)+4,+'I-5 Future'!H$5) -> 0 | H10: =OFFSET(Future_CapexStart,MATCH($K$1,'I-5 Future'!$A$6:$A$284)+4,+'I-5 Future'!I$5) -> 0 | I10: =OFFSET(Future_CapexStart,MATCH($K$1,'I-5 Future'!$A$6:$A$284)+4,+'I-5 Future'!J$5) -> 0
A11: Services Other | B11: =OFFSET(List_CapexStart,MATCH($K$1,'I-4 History'!$A$6:$A$256)+5,0) -> 0 | C11: =OFFSET(Future_CapexStart,MATCH($K$1,'I-5 Future'!$A$6:$A$284)+5,+'I-5 Future'!D$5) -> 0 | D11: =OFFSET(Future_CapexStart,MATCH($K$1,'I-5 Future'!$A$6:$A$284)+5,+'I-5 Future'!E$5) -> 0 | E11: =OFFSET(Future_CapexStart,MATCH($K$1,'I-5 Future'!$A$6:$A$284)+5,+'I-5 Future'!F$5) -> 0 | F11: =OFFSET(Future_CapexStart,MATCH($K$1,'I-5 Future'!$A$6:$A$284)+5,+'I-5 Future'!G$5) -> 0 | G11: =OFFSET(Future_CapexStart,MATCH($K$1,'I-5 Future'!$A$6:$A$284)+5,+'I-5 Future'!H$5) -> 0 | H11: =OFFSET(Future_CapexStart,MATCH($K$1,'I-5 Future'!$A$6:$A$284)+5,+'I-5 Future'!I$5) -> 0 | I11: =OFFSET(Future_CapexStart,MATCH($K$1,'I-5 Future'!$A$6:$A$284)+5,+'I-5 Future'!J$5) -> 0
A12: Business Overheads | B12: =OFFSET(List_CapexStart,MATCH($K$1,'I-4 History'!$A$6:$A$256)+6,0) -> 0 | C12: =OFFSET(Future_CapexStart,MATCH($K$1,'I-5 Future'!$A$6:$A$284)+6,+'I-5 Future'!D$5) -> 0 | D12: =OFFSET(Future_CapexStart,MATCH($K$1,'I-5 Future'!$A$6:$A$284)+6,+'I-5 Future'!E$5) -> 0 | E12: =OFFSET(Future_CapexStart,MATCH($K$1,'I-5 Future'!$A$6:$A$284)+6,+'I-5 Future'!F$5) -> 0 | F12: =OFFSET(Future_CapexStart,MATCH($K$1,'I-5 Future'!$A$6:$A$284)+6,+'I-5 Future'!G$5) -> 0 | G12: =OFFSET(Future_CapexStart,MATCH($K$1,'I-5 Future'!$A$6:$A$284)+6,+'I-5 Future'!H$5) -> 0 | H12: =OFFSET(Future_CapexStart,MATCH($K$1,'I-5 Future'!$A$6:$A$284)+6,+'I-5 Future'!I$5) -> 0 | I12: =OFFSET(Future_CapexStart,MATCH($K$1,'I-5 Future'!$A$6:$A$284)+6,+'I-5 Future'!J$5) -> 0
A13: Other | B13: =OFFSET(List_CapexStart,MATCH($K$1,'I-4 History'!$A$6:$A$256)+7,0) -> 0 | C13: =OFFSET(Future_CapexStart,MATCH($K$1,'I-5 Future'!$A$6:$A$284)+7,+'I-5 Future'!D$5) -> 0 | D13: =OFFSET(Future_CapexStart,MATCH($K$1,'I-5 Future'!$A$6:$A$284)+7,+'I-5 Future'!E$5) -> 0 | E13: =OFFSET(Future_CapexStart,MATCH($K$1,'I-5 Future'!$A$6:$A$284)+7,+'I-5 Future'!F$5) -> 0 | F13: =OFFSET(Future_CapexStart,MATCH($K$1,'I-5 Future'!$A$6:$A$284)+7,+'I-5 Future'!G$5) -> 0 | G13: =OFFSET(Future_CapexStart,MATCH($K$1,'I-5 Future'!$A$6:$A$284)+7,+'I-5 Future'!H$5) -> 0 | H13: =OFFSET(Future_CapexStart,MATCH($K$1,'I-5 Future'!$A$6:$A$284)+7,+'I-5 Future'!I$5) -> 0 | I13: =OFFSET(Future_CapexStart,MATCH($K$1,'I-5 Future'!$A$6:$A$284)+7,+'I-5 Future'!J$5) -> 0
A14: Baseline Expenditure | B14: =SUM(B8:B13) -> 0 | C14: 0 | D14: 0 | E14: 0 | F14: 0 | G14: 0 | H14: 0 | I14: 0
A16: B. Variations (as per calculations on page 3)
A18: Summary by Cost Category
A19: Labour | C19: =+C176 -> 0 | D19: 0 | E19: 0 | F19: 0 | G19: 0 | H19: 0 | I19: 0
A20: Materials | C20: 0 | D20: 0 | E20: 0 | F20: 0 | G20: 0 | H20: 0 | I20: 0
A21: Contracts | C21: =+C178 -> 0 | D21: 0 | E21: 0 | F21: 0 | G21: 0 | H21: 0 | I21: 0
A22: Services Other | C22: =+C179 -> 0 | D22: 0 | E22: 0 | F22: 0 | G22: 0 | H22: 0 | I22: 0
A23: Business Overheads | C23: =+C180 -> 0 | D23: 0 | E23: 0 | F23: 0 | G23: 0 | H23: 0 | I23: 0
A24: Other | C24: =+C181 -> 0 | D24: 0 | E24: 0 | F24: 0 | G24: 0 | H24: 0 | I24: 0
A25: Variations | C25: =SUM(C19:C24) -> 0 | D25: 0 | E25: 0 | F25: 0 | G25: 0 | H25: 0 | I25: 0 | J25: =IF(ROUND(SUM(C182:I182)-SUM(B25:I25),2)<>0,"Warning Check Totals","OK") -> OK
A27: Total Base Expenditure + Variations, Before Escalations
A29: Summary by Cost Category
A30: Labour | B30: =+'C-6'!B8+'C-6'!B19 -> 0 | C30: =+'C-6'!C8+'C-6'!C19 -> 0 | D30: =+'C-6'!D8+'C-6'!D19 -> 0 | E30: =+'C-6'!E8+'C-6'!E19 -> 0 | F30: =+'C-6'!F8+'C-6'!F19 -> 0 | G30: =+'C-6'!G8+'C-6'!G19 -> 0 | H30: =+'C-6'!H8+'C-6'!H19 -> 0 | I30: =+'C-6'!I8+'C-6'!I19 -> 0
A31: Materials | B31: =+'C-6'!B9+'C-6'!B20 -> 0 | C31: =+'C-6'!C9+'C-6'!C20 -> 0 | D31: =+'C-6'!D9+'C-6'!D20 -> 0 | E31: =+'C-6'!E9+'C-6'!E20 -> 0 | F31: =+'C-6'!F9+'C-6'!F20 -> 0 | G31: =+'C-6'!G9+'C-6'!G20 -> 0 | H31: =+'C-6'!H9+'C-6'!H20 -> 0 | I31: =+'C-6'!I9+'C-6'!I20 -> 0
A32: Contracts | B32: =+'C-6'!B10+'C-6'!B21 -> 0 | C32: =+'C-6'!C10+'C-6'!C21 -> 0 | D32: =+'C-6'!D10+'C-6'!D21 -> 0 | E32: =+'C-6'!E10+'C-6'!E21 -> 0 | F32: =+'C-6'!F10+'C-6'!F21 -> 0 | G32: =+'C-6'!G10+'C-6'!G21 -> 0 | H32: =+'C-6'!H10+'C-6'!H21 -> 0 | I32: =+'C-6'!I10+'C-6'!I21 -> 0
A33: Services Other | B33: =+'C-6'!B11+'C-6'!B22 -> 0 | C33: =+'C-6'!C11+'C-6'!C22 -> 0 | D33: =+'C-6'!D11+'C-6'!D22 -> 0 | E33: =+'C-6'!E11+'C-6'!E22 -> 0 | F33: =+'C-6'!F11+'C-6'!F22 -> 0 | G33: =+'C-6'!G11+'C-6'!G22 -> 0 | H33: =+'C-6'!H11+'C-6'!H22 -> 0 | I33: =+'C-6'!I11+'C-6'!I22 -> 0
A34: Business Overheads | B34: =+'C-6'!B12+'C-6'!B23 -> 0 | C34: =+'C-6'!C12+'C-6'!C23 -> 0 | D34: =+'C-6'!D12+'C-6'!D23 -> 0 | E34: =+'C-6'!E12+'C-6'!E23 -> 0 | F34: =+'C-6'!F12+'C-6'!F23 -> 0 | G34: =+'C-6'!G12+'C-6'!G23 -> 0 | H34: =+'C-6'!H12+'C-6'!H23 -> 0 | I34: =+'C-6'!I12+'C-6'!I23 -> 0
A35: Other | B35: =+'C-6'!B13+'C-6'!B24 -> 0 | C35: =+'C-6'!C13+'C-6'!C24 -> 0 | D35: =+'C-6'!D13+'C-6'!D24 -> 0 | E35: =+'C-6'!E13+'C-6'!E24 -> 0 | F35: =+'C-6'!F13+'C-6'!F24 -> 0 | G35: =+'C-6'!G13+'C-6'!G24 -> 0 | H35: =+'C-6'!H13+'C-6'!H24 -> 0 | I35: =+'C-6'!I13+'C-6'!I24 -> 0
A36: Expenditure Before Escalations | B36: =SUM(B30:B35) -> 0 | C36: 0 | D36: 0 | E36: 0 | F36: 0 | G36: 0 | H36: 0 | I36: 0 | J36: =IF(ROUND(SUM(B14:I14)+SUM(B25:I25)-SUM(B36:I36),2)<>0,"Warning Check Totals","OK") -> OK
A39: C. Specific Escalations (as per calculations on page 2)
A41: Summary by Cost Category
A42: Labour | C42: =+C125 -> 0 | D42: 0 | E42: 0 | F42: 0 | G42: 0 | H42: 0 | I42: 0
A43: Materials | C43: 0 | D43: 0 | E43: 0 | F43: 0 | G43: 0 | H43: 0 | I43: 0
A44: Contracts | C44: =+C127 -> 0 | D44: 0 | E44: 0 | F44: 0 | G44: 0 | H44: 0 | I44: 0
A45: Services Other | C45: =+C128 -> 0 | D45: 0 | E45: 0 | F45: 0 | G45: 0 | H45: 0 | I45: 0
A46: Business Overheads | C46: =+C129 -> 0 | D46: 0 | E46: 0 | F46: 0 | G46: 0 | H46: 0 | I46: 0
A47: Other | C47: =+C130 -> 0 | D47: 0 | E47: 0 | F47: 0 | G47: 0 | H47: 0 | I47: 0
A48: Specific Escalations | C48: =SUM(C42:C47) -> 0 | D48: 0 | E48: 0 | F48: 0 | G48: 0 | H48: 0 | I48: 0 | J48: =IF(ROUND(SUM(B48:I48)-SUM(B131:I131),2)<>0,"Warning Check Escalations","OK") -> OK
A50: D. General Escalations (as per calculations on page 2)
A52: Summary by Cost Category
A53: Labour | C53: =+C161 -> 0 | D53: 0 | E53: 0 | F53: 0 | G53: 0 | H53: 0 | I53: 0
A54: Materials | C54: 0 | D54: 0 | E54: 0 | F54: 0 | G54: 0 | H54: 0 | I54: 0
A55: Contracts | C55: =+C163 -> 0 | D55: 0 | E55: 0 | F55: 0 | G55: 0 | H55: 0 | I55: 0
A56: Services Other | C56: =+C164 -> 0 | D56: 0 | E56: 0 | F56: 0 | G56: 0 | H56: 0 | I56: 0
A57: Business Overheads | C57: =+C165 -> 0 | D57: 0 | E57: 0 | F57: 0 | G57: 0 | H57: 0 | I57: 0
A58: Other | C58: =+C166 -> 0 | D58: 0 | E58: 0 | F58: 0 | G58: 0 | H58: 0 | I58: 0
A59: General Escalations | C59: =SUM(C53:C58) -> 0 | D59: 0 | E59: 0 | F59: 0 | G59: 0 | H59: 0 | I59: 0 | J59: =IF(ROUND(SUM(B59:I59)-SUM(B167:I167),2)<>0,"Warning Check Escalations","OK") -> OK
A61: Total Expenditure | B61: =LU_TemplateYearHeader -> 2012/13 | C61: 2013/14 | D61: 2014/15 | E61: 2015/16 | F61: 2016/17 | G61: 2017/18 | H61: 2018/19 | I61: 2019/20
A63: Summary by Cost Category
A64: Labour | B64: =+B42+B30+B53 -> 0 | C64: 0 | D64: 0 | E64: 0 | F64: 0 | G64: 0 | H64: 0 | I64: 0
A65: Materials | B65: 0 | C65: 0 | D65: 0 | E65: 0 | F65: 0 | G65: 0 | H65: 0 | I65: 0
A66: Contracts | B66: =+B44+B32+B55 -> 0 | C66: 0 | D66: 0 | E66: 0 | F66: 0 | G66: 0 | H66: 0 | I66: 0
A67: Services Other | B67: =+B45+B33+B56 -> 0 | C67: 0 | D67: 0 | E67: 0 | F67: 0 | G67: 0 | H67: 0 | I67: 0
A68: Business Overheads | B68: =+B46+B34+B57 -> 0 | C68: 0 | D68: 0 | E68: 0 | F68: 0 | G68: 0 | H68: 0 | I68: 0
A69: Other | B69: =+B47+B35+B58 -> 0 | C69: 0 | D69: 0 | E69: 0 | F69: 0 | G69: 0 | H69: 0 | I69: 0
A70: Total Expenditure | B70: =SUM(B64:B69) -> 0 | C70: 0 | D70: 0 | E70: 0 | F70: 0 | G70: 0 | H70: 0 | I70: 0 | J70: =IF(ROUND(SUM(B48:I48)+SUM(B36:I36)+SUM(B59:I59)-SUM(B70:I70),3)<>0,"Warning Check Totals","OK") -> OK
A72: Expenditure Categorisation | AA72: Base costs - Expenditure Categorisation
A73: Allocation of Capital Expenditure to Asset Categories | N73: Expenditure Category Proportions | AA73: On pro-rata basis
D74: =+'Ref-1'!P39 -> 2014/15 | E74: =+'Ref-1'!Q39 -> 2015/16 | F74: =+'Ref-1'!R39 -> 2016/17 | G74: =+'Ref-1'!S39 -> 2017/18 | H74: =+'Ref-1'!T39 -> 2018/19 | I74: =+'Ref-1'!U39 -> 2019/20 | N74: =E74 -> 2015/16 | O74: =F74 -> 2016/17 | P74: 2017/18 | Q74: 2018/19 | R74: 2019/20
A75: ='I-2'!C7 -> ACS Replacements | E75: =+E$70*N75 -> 0 | F75: =+F$70*O75 -> 0 | G75: 0 | H75: 0 | I75: 0 | N75: 0 | O75: 0 | P75: 0 | Q75: 0 | R75: 0
A76: ='I-2'!C8 -> ACS IT Infrastructure | E76: =+E$70*N76 -> 0 | F76: 0 | G76: 0 | H76: 0 | I76: 0 | N76: 0 | O76: 0 | P76: 0 | Q76: 0 | R76: 0
A77: ='I-2'!C9 -> Superannuation | E77: 0 | F77: 0 | G77: 0 | H77: 0 | I77: 0 | N77: 0 | O77: 0 | P77: 0 | Q77: 0 | R77: 0
A78: ='I-2'!C10 -> Equity Raising Costs | E78: 0 | F78: 0 | G78: 0 | H78: 0 | I78: 0 | N78: 0 | O78: 0 | P78: 0 | Q78: 0 | R78: 0 | AA78: =+E78*E$14/E$36 ->  | AB78: =+F78*F$14/F$36 ->  | AC78: =+G78*G$14/G$36 ->  | AD78: =+H78*H$14/H$36 ->  | AE78: =+I78*I$14/I$36 -> 
A79: ='I-2'!C11 -> Spare - Not in Use | E79: 0 | F79: 0 | G79: 0 | H79: 0 | I79: 0 | N79: 0 | O79: 0 | P79: 0 | Q79: 0 | R79: 0
A80: ='I-2'!C12 -> Spare - Not in Use | E80: 0 | F80: 0 | G80: 0 | H80: 0 | I80: 0 | N80: 0 | O80: 0 | P80: 0 | Q80: 0 | R80: 0
A81: ='I-2'!C13 -> Spare - Not in Use | E81: =+E$70*N81 -> 0 | F81: 0 | G81: 0 | H81: 0 | I81: 0 | N81: 0 | O81: 0 | P81: 0 | Q81: 0 | R81: 0
A82: ='I-2'!C14 -> Spare - Not in Use | E82: 0 | F82: 0 | G82: 0 | H82: 0 | I82: 0 | N82: 0 | O82: 0 | P82: 0 | Q82: 0 | R82: 0
A83: ='I-2'!C15 -> Spare - Not in Use | E83: 0 | F83: 0 | G83: 0 | H83: 0 | I83: 0 | N83: 0 | O83: 0 | P83: 0 | Q83: 0 | R83: 0
A84: ='I-2'!C16 -> Spare - Not in Use | E84: 0 | F84: 0 | G84: 0 | H84: 0 | I84: 0 | N84: 0 | O84: 0 | P84: 0 | Q84: 0 | R84: 0
A85: ='I-2'!C17 -> Spare - Not in Use | E85: 0 | F85: 0 | G85: 0 | H85: 0 | I85: 0 | N85: 0 | O85: 0 | P85: 0 | Q85: 0 | R85: 0
A86: ='I-2'!C18 -> Spare - Not in Use | E86: 0 | F86: 0 | G86: 0 | H86: 0 | I86: 0 | N86: 0 | O86: 0 | P86: 0 | Q86: 0 | R86: 0
A87: ='I-2'!C19 -> Spare - Not in Use | E87: 0 | F87: 0 | G87: 0 | H87: 0 | I87: 0 | N87: 0 | O87: 0 | P87: 0 | Q87: 0 | R87: 0
A88: ='I-2'!C20 -> Spare - Not in Use | E88: 0 | F88: 0 | G88: 0 | H88: 0 | I88: 0 | N88: 0 | O88: 0 | P88: 0 | Q88: 0 | R88: 0
A89: ='I-2'!C21 -> Spare - Not in Use | E89: 0 | F89: 0 | G89: 0 | H89: 0 | I89: 0 | N89: 0 | O89: 0 | P89: 0 | Q89: 0 | R89: 0
A90: ='I-2'!C22 -> Spare - Not in Use | E90: 0 | F90: 0 | G90: 0 | H90: 0 | I90: 0 | N90: 0 | O90: 0 | P90: 0 | Q90: 0 | R90: 0
A91: ='I-2'!C23 -> Spare - Not in Use | E91: 0 | F91: 0 | G91: 0 | H91: 0 | I91: 0 | N91: 0 | O91: 0 | P91: 0 | Q91: 0 | R91: 0
A92: ='I-2'!C24 -> Spare - Not in Use | E92: 0 | F92: 0 | G92: 0 | H92: 0 | I92: 0 | N92: 0 | O92: 0 | P92: 0 | Q92: 0 | R92: 0
A93: ='I-2'!C25 -> Spare - Not in Use | E93: 0 | F93: 0 | G93: 0 | H93: 0 | I93: 0 | N93: 0 | O93: 0 | P93: 0 | Q93: 0 | R93: 0
A94: ='I-2'!C26 -> Spare - Not in Use | E94: 0 | F94: 0 | G94: 0 | H94: 0 | I94: 0 | N94: 0 | O94: 0 | P94: 0 | Q94: 0 | R94: 0
A95: ='I-2'!C27 -> Spare - Not in Use | E95: 0 | F95: 0 | G95: 0 | H95: 0 | I95: 0 | N95: 0 | O95: 0 | P95: 0 | Q95: 0 | R95: 0
A96: ='I-2'!C28 -> Spare - Not in Use | E96: 0 | F96: 0 | G96: 0 | H96: 0 | I96: 0 | N96: 0 | O96: 0 | P96: 0 | Q96: 0 | R96: 0
A97: ='I-2'!C29 -> Spare - Not in Use | E97: 0 | F97: 0 | G97: 0 | H97: 0 | I97: 0 | N97: 0 | O97: 0 | P97: 0 | Q97: 0 | R97: 0
A98: ='I-2'!C30 -> Spare - Not in Use
A99: ='I-2'!C31 -> Spare - Not in Use
A100: ='I-2'!C32 -> Spare - Not in Use
